Workbook

Sheet All MOSFETs Selection Guide
A1: MOSFET Selection Guide: Date of Release - Dec. 9, 2025
A2: * This document is for distribution among JJM affliates , authorized distributors, and customers. All information shown are considered proprietary of JJM.
A3: Product Name | B3: Platform | C3: JJM Package | D3: Status | E3: Recommended Product Name | F3: Confi- guration | G3: VDS_Max | H3: ID_Max | I3: VGS_Typ | J3: RDS_Typ @ VGS = 10V | K3: RDS_Max @ VGS = 10V | L3: RDS_Typ @ VGS = 4.5V | M3: RDS_Max @ VGS = 4.5V | N3: RDS_Typ @ VGS = 2.5V | O3: RDS_Max @ VGS = 2.5V | P3: VGS_Max | Q3: EAS_Max | R3: Ciss_Typ | S3: Coss_Typ | T3: Crss_Typ | U3: Qg_Typ | V3: ESD | W3: MPQ | X3: MOQ | Y3: FOM | Z3: DataSheet Version # | AA3: Date of Update | AC3: Compatible to Infineon's Product | AD3: Compatible to onsemi's Product | AE3: Compatible to ST's Product | AF3: Compatible to AOS' Product | AG3: Compatible to Nexperia's Product | AH3: Compatible to Toshiba's Product | AI3: Domestic Competition
A4: JMPL1050AGQ | B4: Auto-SGT | C4: PDFN5x6-8L | D4: Active | E4: JMPL1050PGQ | F4: P | G4: -100 | H4: -30 | I4: -2 | J4: 36 | K4: 50 | L4: 48 | M4: 65 | N4: - | O4: - | P4: ±20 | Q4: 109 | R4: 1412 | S4: 222 | T4: 2.6 | U4: 20 | V4: No | W4: 5000 | X4: 50000 | Y4: =J4*U4 -> 720 | Z4: 1.2 | AA4: 2022-12-13 | AC4: - | AD4: - | AE4: - | AF4: - | AG4: - | AH4: - | AI4: -
A5: JMPL1050AKQ | B5: Auto-SGT | C5: TO-252-3L | D5: Active | E5: JMPL1050PKQ | F5: P | G5: -100 | H5: -36 | I5: -2 | J5: 37 | K5: 50 | L5: 50 | M5: 66 | N5: - | O5: - | P5: ±20 | Q5: 109 | R5: 1412 | S5: 222 | T5: 2.6 | U5: 20 | V5: No | W5: 2500 | X5: 25000 | Y5: 740 | Z5: 1.0 | AA5: 2024-03-27 | AC5: - | AD5: - | AE5: - | AF5: - | AG5: - | AH5: - | AI5: -
A6: JMPL1050AUQ | B6: Auto-SGT | C6: PDFN3x3-8L | D6: Active | E6: JMPL1050PUQ | F6: P | G6: -100 | H6: -27 | I6: -2 | J6: 38 | K6: 50 | L6: 51 | M6: 66 | N6: - | O6: - | P6: ±20 | Q6: 109 | R6: 1412 | S6: 222 | T6: 2.6 | U6: 20 | V6: No | W6: 5000 | X6: 50000 | Y6: 760 | Z6: 1.1 | AA6: 2023-02-01 | AC6: - | AD6: - | AE6: - | AF6: - | AG6: - | AH6: - | AI6: -
A7: JMPL1050PGQ | B7: Auto-SGT | C7: PDFN5X6-8L | D7: Active | F7: P | G7: -100 | H7: -30 | I7: -1.8 | J7: 36 | K7: 50 | L7: 49 | M7: 64 | N7: - | O7: - | P7: ±20 | Q7: 144 | R7: 1535 | S7: 282 | T7: 20 | U7: 26 | V7: No | W7: 5000 | X7: 50000 | Y7: 936 | Z7: 1.0 | AA7: 2025-11-14
A8: JMPL1050PKQ | B8: Auto-SGT | C8: TO-252-3L | D8: Active | F8: P | G8: -100 | H8: -23 | I8: -1.7 | J8: 38.1 | K8: 49.5 | L8: 49.5 | M8: 64.3 | N8: - | O8: - | P8: ±20 | Q8: 144 | R8: 1497 | S8: 271 | T8: 19 | U8: 25 | V8: No | W8: 2500 | X8: 25000 | Y8: 953 | Z8: 1.1 | AA8: 2025-12-02
A9: JMPL0648PKQ | B9: Auto-SGT | C9: TO-252-3L | D9: Active | F9: P | G9: -60 | H9: -22 | I9: -1.9 | J9: 35 | K9: 46 | L9: 48 | M9: 62 | N9: - | O9: - | P9: ±20 | Q9: 74 | R9: 951 | S9: 174 | T9: 9 | U9: 14.4 | V9: No | W9: 2500 | X9: 25000 | Y9: =J9*U9 -> 504 | Z9: 1.4 | AA9: 2024-06-03 | AC9: - | AD9: - | AE9: - | AF9: - | AG9: - | AH9: - | AI9: -
A10: JMSH0401AGQ | B10: Auto-SGT | C10: PDFN5x6-8L | D10: Active | E10: JMSH0401MGQ | F10: N | G10: 40 | H10: 197 | I10: 2.8 | J10: 1.3 | K10: 1.7 | L10: - | M10: - | N10: - | O10: - | P10: ±20 | Q10: 194 | R10: 3015 | S10: 2000 | T10: 18 | U10: 42 | V10: No | W10: 5000 | X10: 50000 | Y10: 55 | Z10: 2.6 | AA10: 2024-11-13 | AC10: - | AD10: - | AE10: - | AF10: - | AG10: - | AH10: - | AI10: -
A11: JMSH0401ATLQ | B11: Auto-SGT | C11: PowerJE®10x12 | D11: Active | E11: JMSH0401PTLQ | F11: N | G11: 40 | H11: 337 | I11: 2.8 | J11: 1 | K11: 1.25 | L11: - | M11: - | N11: - | O11: - | P11: ±20 | Q11: 317 | R11: 5280 | S11: 3405 | T11: 71 | U11: 68 | V11: No | W11: 2000 | X11: 10000 | Y11: 68 | Z11: 1.2 | AA11: 2024-12-26 | AC11: IAUC45N04S6N070H | AD11: NVMFD5C466NL | AE11: STL76DN4LF7AG | AF11: - | AG11: BUK7K6R2-40E | AH11: - | AI11: -
A12: JMSH0401ATSQ | B12: Auto-SGT | C12: PowerJE®7x8 | D12: Active | E12: JMSH0401PTSQ | F12: N | G12: 40 | H12: 352 | I12: 2.8 | J12: 0.9 | K12: 1.1 | L12: - | M12: - | N12: - | O12: - | P12: ±20 | Q12: 441 | R12: 5214 | S12: 3396 | T12: 46 | U12: 66 | V12: No | W12: 2000 | X12: 10000 | Y12: 59 | Z12: 1.6 | AA12: 2025-03-03 | AC12: - | AD12: - | AE12: - | AF12: - | AG12: - | AH12: - | AI12: -
A13: JMSH0401BGQ | B13: Auto-SGT | C13: PDFN5x6-8L | D13: Active | E13: JMSH0401PGQ | F13: N | G13: 40 | H13: 276 | I13: 2.8 | J13: 0.9 | K13: 1.1 | L13: - | M13: - | N13: - | O13: - | P13: ±20 | Q13: 441 | R13: 5280 | S13: 3405 | T13: 71 | U13: 68 | V13: No | W13: 5000 | X13: 50000 | Y13: 61 | Z13: 1.3 | AA13: 2024-11-13 | AC13: - | AD13: - | AE13: - | AF13: - | AG13: - | AH13: - | AI13: -
A14: JMSH0401CGQ | B14: Auto-SGT | C14: PDFN5x6-8L | D14: Active | E14: JMSH0401NGQ | F14: N | G14: 40 | H14: 252 | I14: 2.8 | J14: 1.1 | K14: 1.4 | L14: - | M14: - | N14: - | O14: - | P14: ±20 | Q14: 600 | R14: 5304 | S14: 3832 | T14: 78 | U14: 71 | V14: No | W14: 5000 | X14: 50000 | Y14: 78 | Z14: 1.1 | AA14: 2022-12-25 | AC14: - | AD14: - | AE14: - | AF14: - | AG14: - | AH14: - | AI14: -
A15: JMSH0401MGQ | B15: Auto-SGT | C15: PDFN5X6-8L | D15: Active | F15: N | G15: 40 | H15: 223 | I15: 2.7 | J15: 1.4 | K15: 1.7 | L15: - | M15: - | N15: - | O15: - | P15: ±20 | Q15: 459 | R15: 3625 | S15: 1979 | T15: 158 | U15: 59 | V15: No | W15: 5000 | X15: 50000 | Y15: 83 | Z15: 1.5 | AA15: 2024-12-26 | AC15: IPD90N04S402ATMA1 | AD15: FDD9409L_F085 | AE15: - | AF15: - | AG15: - | AH15: - | AI15: -
A16: JMSH0401PGQ | B16: Auto-SGT | C16: PDFN5X6-8L | D16: Active | F16: N | G16: 40 | H16: 323 | I16: 2.7 | J16: 0.8 | K16: 1 | L16: - | M16: - | N16: - | O16: - | P16: ±20 | Q16: 662 | R16: 5693 | S16: 3673 | T16: 301 | U16: 90 | V16: No | W16: 5000 | X16: 50000 | Y16: 72 | Z16: 1.5 | AA16: 2024-05-27 | AC16: - | AD16: - | AE16: - | AF16: - | AG16: - | AH16: - | AI16: -
A17: JMSH0401PTSQ | B17: Auto-SGT | C17: PowerJE®7x8 | D17: Active | F17: N | G17: 40 | H17: 381 | I17: 2.6 | J17: 0.9 | K17: 1.1 | L17: - | M17: - | N17: - | O17: - | P17: ±20 | Q17: 662 | R17: 5693 | S17: 3673 | T17: 301 | U17: 90 | V17: No | W17: 2000 | X17: 10000 | Y17: 81 | Z17: 1.3 | AA17: 2024-09-05 | AC17: - | AD17: - | AE17: - | AF17: - | AG17: - | AH17: - | AI17: -
A18: JMSH0402AEQ | B18: Auto-SGT | C18: TO-263-3L | D18: Active | E18: JMSH0402PEQ | F18: N | G18: 40 | H18: 253 | I18: 2.8 | J18: 1.3 | K18: 1.7 | L18: - | M18: - | N18: - | O18: - | P18: ±20 | Q18: 726 | R18: 5280 | S18: 3405 | T18: 71 | U18: 68 | V18: No | W18: 800 | X18: 4000 | Y18: 88 | Z18: 1.0 | AA18: 2023-06-21 | AC18: - | AD18: - | AE18: - | AF18: - | AG18: - | AH18: - | AI18: -
A19: JMSH0402AGQ | B19: Auto-SGT | C19: PDFN5x6-8L | D19: Active | E19: JMSH0402MGQ | F19: N | G19: 40 | H19: 182 | I19: 2.8 | J19: 1.6 | K19: 2 | L19: - | M19: - | N19: - | O19: - | P19: ±20 | Q19: 194 | R19: 3020 | S19: 2013 | T19: 25 | U19: 41 | V19: No | W19: 5000 | X19: 50000 | Y19: 66 | Z19: 1.2 | AA19: 2024-09-05 | AC19: - | AD19: - | AE19: - | AF19: - | AG19: - | AH19: - | AI19: -
A20: JMSH0402AKQ | B20: Auto-SGT | C20: TO-252-3L | D20: Active | E20: JMSH0402PKQ | F20: N | G20: 40 | H20: 170 | I20: 2.8 | J20: 2 | K20: 2.5 | L20: - | M20: - | N20: - | O20: - | P20: ±20 | Q20: 194 | R20: 3020 | S20: 2013 | T20: 25 | U20: 41 | V20: No | W20: 2500 | X20: 25000 | Y20: 82 | Z20: 1.2 | AA20: 2022-11-21 | AC20: IPC70N04S5-4R6 | AD20: - | AE20: STL70N4LLF5 | AF20: - | AG20: BUK9Y7R6-40E | AH20: - | AI20: -
A21: JMSH0402BGQ | B21: Auto-SGT | C21: PDFN5x6-8L | D21: Active | E21: JMSH0402TGQ | F21: N | G21: 40 | H21: 166 | I21: 2.8 | J21: 2 | K21: 2.5 | L21: - | M21: - | N21: - | O21: - | P21: ±20 | Q21: 294 | R21: 2094 | S21: 1922 | T21: 100 | U21: 33 | V21: No | W21: 5000 | X21: 50000 | Y21: 66 | Z21: 1.1 | AA21: 2023-03-16 | AC21: - | AD21: - | AE21: - | AF21: - | AG21: - | AH21: - | AI21: -
A22: JMSH0403AGHWQ | B22: Auto-SGT | C22: PDFN5x6-8L-HW | D22: Active | E22: JMSH0403PGHWQ | F22: N+N | G22: 40 | H22: 111 | I22: 2.8 | J22: 2.7 | K22: 3.3 | L22: - | M22: - | N22: - | O22: - | P22: ±20 | Q22: 182 | R22: 1715 | S22: 894 | T22: 54 | U22: 25 | V22: No | W22: 5000 | X22: 50000 | Y22: 68 | Z22: 1.0 | AA22: 2024-01-08 | AC22: - | AD22: - | AE22: - | AF22: - | AG22: - | AH22: - | AI22: -
A23: JMSH0403AGQ | B23: Auto-SGT | C23: PDFN5x6-8L | D23: Active | E23: JMSH0403PGQ | F23: N | G23: 40 | H23: 121 | I23: 2.8 | J23: 2.7 | K23: 3.4 | L23: - | M23: - | N23: - | O23: - | P23: ±20 | Q23: 216 | R23: 1542 | S23: 1020 | T23: 43 | U23: 22 | V23: No | W23: 5000 | X23: 50000 | Y23: 59 | Z23: 1.2 | AA23: 2024-12-26 | AC23: IPD75N04S4-06 | AD23: NVD5C464NL | AE23: STD95N4F3 | AF23: - | AG23: - | AH23: TK65S04N1L | AI23: -
A24: JMSH0403BGQ | B24: Auto-SGT | C24: PDFN5x6-8L | D24: Active | E24: JMSH0403RGQ | F24: N | G24: 40 | H24: 145 | I24: 2.8 | J24: 2.2 | K24: 2.8 | L24: - | M24: - | N24: - | O24: - | P24: ±20 | Q24: 216 | R24: 2086 | S24: 1150 | T24: 60 | U24: 28 | V24: No | W24: 5000 | X24: 50000 | Y24: 62 | Z24: 1.1 | AA24: 2022-12-25 | AC24: - | AD24: - | AE24: - | AF24: - | AG24: - | AH24: - | AI24: -
A25: JMSH0403PGHWQ | B25: Auto-SGT | C25: PDFN5X6-8L-HW | D25: Active | F25: N+N | G25: 40 | H25: 140 | I25: 3.1 | J25: 3 | K25: 3.6 | L25: - | M25: - | N25: - | O25: - | P25: ±20 | Q25: 238 | R25: 1976 | S25: 1198 | T25: 110 | U25: 33 | V25: No | W25: 5000 | X25: 50000 | Y25: 99 | Z25: 1.3 | AA25: 2024-10-16 | AC25: - | AD25: - | AE25: - | AF25: - | AG25: - | AH25: - | AI25: -
A26: JMSH0403PGQ | B26: Auto-SGT | C26: PDFN5x6-8L | D26: Active | F26: N | G26: 40 | H26: 137 | I26: 2.8 | J26: 2.8 | K26: 3.7 | L26: - | M26: - | N26: - | O26: - | P26: ±20 | Q26: 212 | R26: 1958 | S26: 1246 | T26: 91 | U26: 30 | V26: No | W26: 5000 | X26: 50000 | Y26: 84 | Z26: 1.3 | AA26: 2025-09-05 | AC26: - | AD26: - | AE26: - | AF26: - | AG26: - | AH26: - | AI26: -
A27: JMSH0406AGDQ | B27: Auto-SGT | C27: PDFN5x6-8L-D | D27: Active | E27: JMSH0406PGDQ | F27: N+N | G27: 40 | H27: 68 | I27: 2.8 | J27: 5.2 | K27: 6.5 | L27: - | M27: - | N27: - | O27: - | P27: ±20 | Q27: 96 | R27: 1027 | S27: 662 | T27: 105 | U27: 14.9 | V27: No | W27: 5000 | X27: 50000 | Y27: 77 | Z27: 1.2 | AA27: 2024-11-13 | AC27: IPC100N04S5L-1R9 | AD27: NVMFS5C423NL | AE27: STL190N4F7AG | AF27: - | AG27: BUK9Y1R9-40H | AH27: - | AI27: -
A28: JMSH0406AGQ | B28: Auto-SGT | C28: PDFN5x6-8L | D28: Active | E28: JMSH0406PGQ | F28: N | G28: 40 | H28: 90 | I28: 2.8 | J28: 4.1 | K28: 5.1 | L28: - | M28: - | N28: - | O28: - | P28: ±20 | Q28: 96 | R28: 1027 | S28: 662 | T28: 105 | U28: 14.9 | V28: No | W28: 5000 | X28: 50000 | Y28: 61 | Z28: 1.3 | AA28: 2024-11-13 | AC28: - | AD28: - | AE28: - | AF28: - | AG28: - | AH28: - | AI28: -
A29: JMSH0406AKQ | B29: Auto-SGT | C29: TO-252-3L | D29: Active | E29: JMSH0406PKQ | F29: N | G29: 40 | H29: 73 | I29: 2.8 | J29: 5 | K29: 6.2 | L29: - | M29: - | N29: - | O29: - | P29: ±20 | Q29: 96 | R29: 1027 | S29: 662 | T29: 105 | U29: 15.2 | V29: No | W29: 2500 | X29: 25000 | Y29: 76 | Z29: 1.1 | AA29: 2022-12-13 | AC29: IPC100N04S5L-1R9 | AD29: NVMFS5C423NL | AE29: STL190N4F7AG | AF29: - | AG29: BUK9Y1R6-40H | AH29: - | AI29: -
A30: JMSH0406BUQ | B30: Auto-SGT | C30: PDFN3x3-8L | D30: Active | E30: JMSH0406PUQ | F30: N | G30: 40 | H30: 59 | I30: 2.8 | J30: 4.8 | K30: 6 | L30: - | M30: - | N30: - | O30: - | P30: ±20 | Q30: 96 | R30: 1032 | S30: 630 | T30: 34 | U30: 15.4 | V30: No | W30: 5000 | X30: 50000 | Y30: 74 | Z30: 1.1 | AA30: 2023-02-23 | AC30: - | AD30: - | AE30: - | AF30: - | AG30: - | AH30: - | AI30: -
A31: JMSH0406PGDQ | B31: Auto-SGT | C31: PDFN5X6-8L-D | D31: Active | F31: N+N | G31: 40 | H31: 51 | I31: 2.8 | J31: 5.1 | K31: 6.7 | L31: - | M31: - | N31: - | O31: - | P31: ±20 | Q31: 89 | R31: 1208 | S31: 753 | T31: 71 | U31: 20 | V31: No | W31: 5000 | X31: 50000 | Y31: 102 | Z31: 1.1 | AA31: 2024-12-26 | AC31: - | AD31: - | AE31: - | AF31: - | AG31: - | AH31: - | AI31: -
A32: JMSH0406PGQ | B32: Auto-SGT | C32: PDFN5X6-8L | D32: Active | F32: N | G32: 40 | H32: 106 | I32: 3.1 | J32: 4.1 | K32: 5.4 | L32: - | M32: - | N32: - | O32: - | P32: ±20 | Q32: 89 | R32: 1208 | S32: 753 | T32: 71 | U32: 20 | V32: No | W32: 5,000 | X32: 50,000 | Y32: 82 | Z32: 1.1 | AA32: 2024-05-27 | AC32: - | AD32: - | AE32: - | AF32: - | AG32: - | AH32: - | AI32: -
A33: JMSH0406PKQ | B33: Auto-SGT | C33: TO-252-3L | D33: Active | F33: N | G33: 40 | H33: 66 | I33: 3 | J33: 4.8 | K33: 6.2 | L33: - | M33: - | N33: - | O33: - | P33: ±20 | Q33: 89 | R33: 1208 | S33: 753 | T33: 71 | U33: 20 | V33: No | W33: 2500 | X33: 25000 | Y33: 96 | Z33: 1.0 | AA33: 2024-05-27 | AC33: IPC100N04S5-1R7 | AD33: NVMFS5C430N | AE33: STL210N4F7AG | AF33: - | AG33: BUK7Y1R7-40H | AH33: XPH1R104PS | AI33: -
A34: JMSH0406PUQ | B34: Auto-SGT | C34: PDFN3x3-8L | D34: Active | F34: N | G34: 40 | H34: 57 | I34: 2.8 | J34: 4.1 | K34: 5.4 | L34: - | M34: - | N34: - | O34: - | P34: ±20 | Q34: 89 | R34: 1208 | S34: 753 | T34: 71 | U34: 20 | V34: No | W34: 5000 | X34: 50000 | Y34: 82 | Z34: 1.0 | AA34: 2024-07-24 | AC34: - | AD34: - | AE34: - | AF34: - | AG34: - | AH34: - | AI34: -
A35: JMSH040SAGQ | B35: Auto-SGT | C35: PDFN5x6-8L | D35: Active | E35: JMSH040SPGQ | F35: N | G35: 40 | H35: 400 | I35: 2.8 | J35: 0.56 | K35: 0.68 | L35: - | M35: - | N35: - | O35: - | P35: ±20 | Q35: 864 | R35: 7445 | S35: 5755 | T35: 282 | U35: 107 | V35: No | W35: 5000 | X35: 50000 | Y35: 60 | Z35: 2.0 | AA35: 2023-04-23 | AC35: - | AD35: - | AE35: - | AF35: - | AG35: - | AH35: - | AI35: -
A36: JMSH040SPGQ | B36: Auto-SGT | C36: PDFN5X6-8L | D36: Active | F36: N | G36: 40 | H36: 342 | I36: 3.1 | J36: 0.7 | K36: 0.9 | L36: - | M36: - | N36: - | O36: - | P36: ±20 | Q36: 880 | R36: 6820 | S36: 3910 | T36: 217 | U36: 99 | V36: No | W36: 5000 | X36: 50000 | Y36: 69 | Z36: 1.4 | AA36: 2024-05-27 | AC36: IPD90N04S402ATMA1 | AD36: FDD9409L_F085 | AE36: - | AF36: - | AG36: - | AH36: - | AI36: -
A37: JMSH040SPTSQ | B37: Auto-SGT | C37: PowerJE®7x8 | D37: Active | F37: N | G37: 40 | H37: 430 | I37: 2.6 | J37: 0.85 | K37: 1.1 | L37: - | M37: - | N37: - | O37: - | P37: ±20 | Q37: 850 | R37: 7231 | S37: 3471 | T37: 232 | U37: 105 | V37: No | W37: 2000 | X37: 10000 | Y37: 89 | Z37: 1.1 | AA37: 2024-11-15 | AC37: - | AD37: - | AE37: - | AF37: - | AG37: - | AH37: - | AI37: -
A38: JMSL0401AGQ | B38: Auto-SGT | C38: PDFN5x6-8L | D38: Active | E38: JMSL0401MGQ | F38: N | G38: 40 | H38: 198 | I38: 1.6 | J38: 1.3 | K38: 1.7 | L38: 1.7 | M38: 2.3 | N38: - | O38: - | P38: ±20 | Q38: 194 | R38: 3125 | S38: 1607 | T38: 18 | U38: 47 | V38: No | W38: 5000 | X38: 50000 | Y38: 61 | Z38: 2.3 | AA38: 2024-12-26 | AC38: - | AD38: - | AE38: - | AF38: - | AG38: - | AH38: - | AI38: -
A39: JMSL0401BGQ | B39: Auto-SGT | C39: PDFN5x6-8L | D39: Active | E39: JMSL0401PGQ | F39: N | G39: 40 | H39: 299 | I39: 1.5 | J39: 0.83 | K39: 0.98 | L39: 1.2 | M39: 1.6 | N39: - | O39: - | P39: ±20 | Q39: 726 | R39: 5495 | S39: 3347 | T39: 44 | U39: 80 | V39: No | W39: 5000 | X39: 50000 | Y39: 66 | Z39: 1.3 | AA39: 2022-12-25 | AC39: - | AD39: - | AE39: - | AF39: - | AG39: - | AH39: - | AI39: -
A40: JMSL0401PGQ | B40: Auto-SGT | C40: PDFN5x6-8L | D40: Active | F40: N | G40: 40 | H40: 318 | I40: 1.6 | J40: 0.8 | K40: 1.1 | L40: 1.1 | M40: 1.4 | N40: - | O40: - | P40: ±20 | Q40: 706 | R40: 6237 | S40: 3122 | T40: 222 | U40: 106 | V40: No | W40: 5000 | X40: 50000 | Y40: 85 | Z40: 1.1 | AA40: 2025-08-08 | AC40: - | AD40: - | AE40: - | AF40: - | AG40: - | AH40: - | AI40: -
A41: JMSL0402AGQ | B41: Auto-SGT | C41: PDFN5x6-8L | D41: Active | E41: JMSL0402MGQ | F41: N | G41: 40 | H41: 183 | I41: 1.6 | J41: 1.6 | K41: 2 | L41: 2.2 | M41: 3 | N41: - | O41: - | P41: ±20 | Q41: 163 | R41: 3133 | S41: 1993 | T41: 75 | U41: 46 | V41: No | W41: 5000 | X41: 50000 | Y41: 74 | Z41: 2.4 | AA41: 2024-11-13 | AC41: - | AD41: - | AE41: - | AF41: - | AG41: - | AH41: - | AI41: -
A42: JMSL0402AKQ | B42: Auto-SGT | C42: TO-252-3L | D42: Active | E42: JMSL0402MKQ | F42: N | G42: 40 | H42: 211 | I42: 1.5 | J42: 1.9 | K42: 2.4 | L42: 2.6 | M42: 3.4 | N42: - | O42: - | P42: ±20 | Q42: 338 | R42: 3252 | S42: 1888 | T42: 55 | U42: 50 | V42: No | W42: 2500 | X42: 25000 | Y42: 95 | Z42: 2.0 | AA42: 2022-09-23 | AC42: - | AD42: - | AE42: - | AF42: - | AG42: - | AH42: - | AI42: -
A43: JMSL0402BGQ | B43: Auto-SGT | C43: PDFN5x6-8L | D43: Active | E43: JMSL0402TGQ | F43: N | G43: 40 | H43: 158 | I43: 1.6 | J43: 1.9 | K43: 2.5 | L43: 2.5 | M43: 3.4 | N43: - | O43: - | P43: ±20 | Q43: 126 | R43: 2131 | S43: 1538 | T43: 95 | U43: 36 | V43: No | W43: 5000 | X43: 50000 | Y43: 68 | Z43: 1.2 | AA43: 2022-12-25 | AC43: - | AD43: - | AE43: - | AF43: - | AG43: - | AH43: - | AI43: -
A44: JMSL0402MGQ | B44: Auto-SGT | C44: PDFN5x6-8L | D44: Active | F44: N | G44: 40 | H44: 222 | I44: 1.9 | J44: 1.8 | K44: 2.4 | L44: 2.5 | M44: 3.2 | N44: - | O44: - | P44: ±20 | Q44: 356 | R44: 4458 | S44: 2000 | T44: 154 | U44: 70 | V44: No | W44: 5000 | X44: 50000 | Y44: 126 | Z44: 1.3 | AA44: 2024-06-03 | AC44: - | AD44: - | AE44: - | AF44: - | AG44: - | AH44: - | AI44: -
A45: JMSL0403AGQ | B45: Auto-SGT | C45: PDFN5x6-8L | D45: Active | E45: JMSL0403PGQ | F45: N | G45: 40 | H45: 128 | I45: 1.5 | J45: 2.5 | K45: 3.1 | L45: 3.3 | M45: 4.5 | N45: - | O45: - | P45: ±20 | Q45: 79 | R45: 1424 | S45: 927 | T45: 48 | U45: 22 | V45: No | W45: 5000 | X45: 50000 | Y45: 55 | Z45: 1.3 | AA45: 2024-10-10 | AC45: - | AD45: - | AE45: - | AF45: - | AG45: - | AH45: - | AI45: -
A46: JMSL0403ZGQ | B46: Auto-SGT | C46: PDFN5x6-8L | D46: Active | F46: N | G46: 40 | H46: 124 | I46: 1.7 | J46: 2.8 | K46: 3.7 | L46: 3.9 | M46: 5.1 | N46: - | O46: - | P46: ±20 | Q46: 183 | R46: 1275 | S46: 788 | T46: 42 | U46: 19 | V46: No | W46: 5000 | X46: 50000 | Y46: 53 | Z46: 1.1 | AA46: 2025-09-04 | AC46: - | AD46: - | AE46: - | AF46: - | AG46: - | AH46: - | AI46: -
A47: JMSL0403PGQ | B47: Auto-SGT | C47: PDFN5x6-8L | D47: Active | F47: N | G47: 40 | H47: 165 | I47: 1.8 | J47: 2.3 | K47: 3 | L47: 3.2 | M47: 4.2 | N47: - | O47: - | P47: ±20 | Q47: 212 | R47: 2150 | S47: 1118 | T47: 83 | U47: 36 | V47: No | W47: 5000 | X47: 50000 | Y47: 83 | Z47: 1.0 | AA47: 2025-09-05
A48: JMSL04055GQ | B48: Auto-SGT | C48: PDFN5x6-8L | D48: Active | F48: N | G48: 40 | H48: 119 | I48: 1.8 | J48: 3.1 | K48: 4 | L48: 4.6 | M48: 6 | N48: - | O48: - | P48: ±20 | Q48: 106 | R48: 1474 | S48: 633 | T48: 61 | U48: 27 | V48: No | W48: 5000 | X48: 50000 | Y48: =J48*U48 -> 84 | Z48: 1.0 | AA48: 2024-06-03 | AC48: - | AD48: - | AE48: - | AF48: - | AG48: - | AH48: - | AI48: -
A49: JMSL04055UQ | B49: Auto-SGT | C49: PDFN3x3-8L | D49: Active | F49: N | G49: 40 | H49: 62 | I49: 1.7 | J49: 3.5 | K49: 4.5 | L49: 5.1 | M49: 6.6 | N49: - | O49: - | P49: ±20 | Q49: 106 | R49: 1474 | S49: 633 | T49: 61 | U49: 27 | V49: No | W49: 5000 | X49: 50000 | Y49: 95 | Z49: 1.0 | AA49: 2024-06-03 | AC49: - | AD49: - | AE49: - | AF49: - | AG49: - | AH49: - | AI49: -
A50: JMSL04060GDQ | B50: Auto-SGT | C50: PDFN5x6-8L-D | D50: Active | F50: N+N | G50: 40 | H50: 95 | I50: 1.7 | J50: 4.8 | K50: 6.3 | L50: 6.4 | M50: 8.3 | N50: - | O50: - | P50: ±20 | Q50: 106 | R50: 1474 | S50: 633 | T50: 61 | U50: 27 | V50: No | W50: 5000 | X50: 50000 | Y50: 130 | Z50: 1.0 | AA50: 2024-12-12 | AC50: - | AD50: - | AE50: - | AF50: - | AG50: - | AH50: - | AI50: -
A51: JMSL0406AGDQ | B51: Auto-SGT | C51: PDFN5x6-8L-D | D51: Active | E51: JMSL04060GDQ | F51: N+N | G51: 40 | H51: 49 | I51: 1.6 | J51: 5.5 | K51: 6.9 | L51: 7 | M51: 9.5 | N51: - | O51: - | P51: ±20 | Q51: 36 | R51: 1227 | S51: 526 | T51: 55 | U51: 17.9 | V51: No | W51: 5000 | X51: 50000 | Y51: 98 | Z51: 2.3 | AA51: 2022-12-25 | AC51: - | AD51: - | AE51: - | AF51: - | AG51: - | AH51: - | AI51: -
A52: JMSL0406AGQ | B52: Auto-SGT | C52: PDFN5x6-8L | D52: Active | E52: JMSL04055GQ | F52: N | G52: 40 | H52: 90 | I52: 1.6 | J52: 4.2 | K52: 5.2 | L52: 5.8 | M52: 7.6 | N52: - | O52: - | P52: ±20 | Q52: 36 | R52: 1204 | S52: 536 | T52: 51 | U52: 17.9 | V52: No | W52: 5000 | X52: 50000 | Y52: 75 | Z52: 2.4 | AA52: 2024-12-26 | AC52: - | AD52: - | AE52: - | AF52: - | AG52: - | AH52: - | AI52: -
A53: JMSL0406AKQ | B53: Auto-SGT | C53: TO-252-3L | D53: Active | E53: JMSL04055KQ | F53: N | G53: 40 | H53: 78 | I53: 1.6 | J53: 4.7 | K53: 5.6 | L53: 6 | M53: 7.8 | N53: - | O53: - | P53: ±20 | Q53: 36 | R53: 1204 | S53: 536 | T53: 51 | U53: 17.9 | V53: No | W53: 2500 | X53: 25000 | Y53: 84 | Z53: 1.3 | AA53: 2025-08-08 | AC53: - | AD53: - | AE53: - | AF53: - | AG53: - | AH53: - | AI53: -
A54: JMSL0406AUQ | B54: Auto-SGT | C54: PDFN3x3-8L | D54: Active | E54: JMSL04055UQ | F54: N | G54: 40 | H54: 57 | I54: 1.6 | J54: 4.5 | K54: 5.6 | L54: 5.9 | M54: 7.8 | N54: - | O54: - | P54: ±20 | Q54: 36 | R54: 1204 | S54: 536 | T54: 51 | U54: 17.9 | V54: No | W54: 5000 | X54: 50000 | Y54: 81 | Z54: 1.3 | AA54: 2022-12-25 | AC54: - | AD54: - | AE54: - | AF54: - | AG54: - | AH54: - | AI54: -
A55: JMSL040SAGQ | B55: Auto-SGT | C55: PDFN5x6-8L | D55: Active | E55: JMSL040SPGQ | F55: N | G55: 40 | H55: 387 | I55: 1.5 | J55: 0.58 | K55: 0.75 | L55: 0.8 | M55: 0.99 | N55: - | O55: - | P55: ±20 | Q55: 506 | R55: 7654 | S55: 3738 | T55: 44 | U55: 114 | V55: No | W55: 5000 | X55: 50000 | Y55: 66 | Z55: 1.2 | AA55: 2022-12-25 | AC55: - | AD55: - | AE55: - | AF55: - | AG55: - | AH55: - | AI55: -
A56: JMSH060SPGWQ | B56: Auto-SGT | C56: PDFN5x6-8L-W | D56: Active | F56: N | G56: 60 | H56: 256 | I56: 2.8 | J56: 1.1 | K56: 1.4 | L56: - | M56: - | N56: - | O56: - | P56: ±20 | Q56: 800 | R56: 7004 | S56: 2411 | T56: 95 | U56: 111 | V56: No | W56: 5000 | X56: 50000 | Y56: 122 | Z56: 1.0 | AA56: 2025-11-14
A57: JMSL060SMGQ | B57: Auto-SGT | C57: PDFN5x6-8L | D57: Active | F57: N | G57: 60 | H57: 301 | I57: 1.5 | J57: 0.9 | K57: 1.1 | L57: 1.1 | M57: 1.5 | N57: - | O57: - | P57: ±20 | Q57: 900 | R57: 8100 | S57: 3299 | T57: 149 | U57: 136 | V57: No | W57: 5000 | X57: 50000 | Y57: 122 | Z57: 1.0 | AA57: 2025-11-14
A58: JMSL060SPGQ | B58: Auto-SGT | C58: PDFN5x6-8L | D58: Active | F58: N | G58: 60 | H58: 283 | I58: 1.7 | J58: 1 | K58: 1.3 | L58: 1.4 | M58: 1.9 | N58: - | O58: - | P58: ±20 | Q58: 800 | R58: 7593 | S58: 3302 | T58: 109 | U58: 122 | V58: No | W58: 5000 | X58: 50000 | Y58: 122 | Z58: 1.0 | AA58: 2024-11-15 | AC58: - | AD58: NVTYS005N06CL | AE58: - | AF58: - | AG58: - | AH58: - | AI58: -
A59: JMSH060SMTLQ | B59: Auto-SGT | C59: PowerJE®10x12 | D59: Active | F59: N | G59: 60 | H59: 368 | I59: 2.5 | J59: 1.2 | K59: 1.6 | L59: - | M59: - | N59: - | O59: - | P59: ±20 | Q59: 900 | R59: 7106 | S59: 3416 | T59: 119 | U59: 106 | V59: No | W59: 2000 | X59: 10000 | Y59: 127 | Z59: 1.1 | AA59: 2025-09-04 | AC59: - | AD59: - | AE59: - | AF59: - | AG59: - | AH59: - | AI59: -
A60: JMSH0601AGQ | B60: Auto-SGT | C60: PDFN5x6-8L | D60: Active | E60: JMSH0602MGQ | F60: N | G60: 60 | H60: 225 | I60: 2.8 | J60: 1.3 | K60: 1.7 | L60: - | M60: - | N60: - | O60: - | P60: ±20 | Q60: 375 | R60: 5874 | S60: 1375 | T60: 45 | U60: 81 | V60: No | W60: 5000 | X60: 50000 | Y60: 105 | Z60: 1.2 | AA60: 2022-12-23 | AC60: - | AD60: - | AE60: - | AF60: - | AG60: - | AH60: - | AI60: -
A61: JMSH0601ATLQ | B61: Auto-SGT | C61: PowerJE®10x12 | D61: Active | E61: JMSH060SMTLQ | F61: N | G61: 60 | H61: 348 | I61: 2.8 | J61: 1.2 | K61: 1.6 | L61: - | M61: - | N61: - | O61: - | P61: ±20 | Q61: 480 | R61: 7312 | S61: 2239 | T61: 53 | U61: 102 | V61: No | W61: 2000 | X61: 10000 | Y61: 122 | Z61: 1.1 | AA61: 2022-05-30 | AC61: IPG20N06S4-15 | AD61: NVMFD5C674NL | AE61: - | AF61: - | AG61: BUK9K13-60E | AH61: - | AI61: -
A62: JMSH0601BGQ | B62: Auto-SGT | C62: PDFN5x6-8L | D62: Active | E62: JMSH060STGQ | F62: N | G62: 60 | H62: 314 | I62: 2.8 | J62: 1 | K62: 1.3 | L62: - | M62: - | N62: - | O62: - | P62: ±20 | Q62: 1014 | R62: 7219 | S62: 1841 | T62: 47 | U62: 102 | V62: No | W62: 5000 | X62: 50000 | Y62: 102 | Z62: 1.1 | AA62: 2022-12-23 | AC62: IPG20N06S4L-11 | AD62: NVMFD5C672NL | AE62: - | AF62: - | AG62: BUK9K12-60E | AH62: - | AI62: -
A63: JMSL0601TGQ | B63: Auto-SGT | C63: PDFN5x6-8L | D63: Active | F63: N | G63: 60 | H63: 260 | I63: 1.4 | J63: 1.1 | K63: 1.5 | L63: 1.5 | M63: 1.9 | N63: - | O63: - | P63: ±20 | Q63: 576 | R63: 5625 | S63: 2527 | T63: 139 | U63: 98 | V63: No | W63: 5000 | X63: 50000 | Y63: 108 | Z63: 1.0 | AA63: 2025-11-14
A64: JMSH0602AEQ | B64: Auto-SGT | C64: TO-263-3L | D64: Active | E64: JMSH0602PEQ | F64: N | G64: 60 | H64: 224 | I64: 2.8 | J64: 2 | K64: 2.5 | L64: - | M64: - | N64: - | O64: - | P64: ±20 | Q64: 338 | R64: 5783 | S64: 1695 | T64: 39 | U64: 81 | V64: No | W64: 800 | X64: 4000 | Y64: 162 | Z64: 1.0 | AA64: 2023-01-03 | AC64: - | AD64: - | AE64: - | AF64: - | AG64: - | AH64: - | AI64: -
A65: JMSH0602AGQ | B65: Auto-SGT | C65: PDFN5x6-8L | D65: Active | E65: JMSH0603MGQ | F65: N | G65: 60 | H65: 168 | I65: 2.8 | J65: 1.9 | K65: 2.4 | L65: - | M65: - | N65: - | O65: - | P65: ±20 | Q65: 240 | R65: 3562 | S65: 896 | T65: 43 | U65: 50 | V65: No | W65: 5000 | X65: 50000 | Y65: 95 | Z65: 1.1 | AA65: 2022-12-23 | AC65: - | AD65: - | AE65: - | AF65: - | AG65: - | AH65: - | AI65: -
A66: JMSH0602PGQ | B66: Auto-SGT | C66: PDFN5X6-8L | D66: Active | F66: N | G66: 60 | H66: 179 | I66: 3 | J66: 1.6 | K66: 2.1 | L66: - | M66: - | N66: - | O66: - | P66: ±20 | Q66: 497 | R66: 4574 | S66: 2330 | T66: 102 | U66: 70 | V66: No | W66: 5000 | X66: 50000 | Y66: 112 | Z66: 1.2 | AA66: 2024-11-15 | AC66: - | AD66: - | AE66: - | AF66: - | AG66: - | AH66: - | AI66: -
A67: JMSL0602TGQ | B67: Auto-SGT | C67: PDFN5x6-8L | D67: Active | F67: N | G67: 60 | H67: 220 | I67: 1.5 | J67: 1.6 | K67: 2 | L67: 2.2 | M67: 2.9 | N67: - | O67: - | P67: ±20 | Q67: 423 | R67: 3672 | S67: 1222 | T67: 58 | U67: 65 | V67: No | W67: 5000 | X67: 50000 | Y67: 104 | Z67: 1.0 | AA67: 2025-11-14
A68: JMSH0603AKQ | B68: Auto-SGT | C68: TO-252-3L | D68: Active | E68: JMSH0603PKQ | F68: N | G68: 60 | H68: 151 | I68: 2.8 | J68: 2.6 | K68: 3.3 | L68: - | M68: - | N68: - | O68: - | P68: ±20 | Q68: 338 | R68: 2312 | S68: 1654 | T68: 180 | U68: 51 | V68: No | W68: 2500 | X68: 25000 | Y68: 133 | Z68: 1.0 | AA68: 2023-01-06 | AC68: - | AD68: - | AE68: - | AF68: - | AG68: - | AH68: - | AI68: -
A69: JMSH0603MGQ | B69: Auto-SGT | C69: PDFN5x6-8L | D69: Active | F69: N | G69: 60 | H69: 163 | I69: 2.8 | J69: 2.3 | K69: 2.9 | L69: - | M69: - | N69: - | O69: - | P69: ±20 | Q69: 423 | R69: 2996 | S69: 1493 | T69: 71 | U69: 47 | V69: No | W69: 5000 | X69: 50000 | Y69: 108 | Z69: 1.2 | AA69: 2024-11-15 | AC69: - | AD69: - | AE69: - | AF69: - | AG69: - | AH69: - | AI69: -
A70: JMSH0603PGQ | B70: Auto-SGT | C70: PDFN5x6-8L | D70: Active | F70: N | G70: 60 | H70: 152 | I70: 2.6 | J70: 2.6 | K70: 2.6 | L70: 3.4 | M70: - | N70: - | O70: - | P70: ±20 | Q70: 423 | R70: 2996 | S70: 1493 | T70: 71 | U70: 47 | V70: No | W70: 5000 | X70: 50000 | Y70: 122 | Z70: 1.1 | AA70: 2024-11-15 | AC70: - | AD70: - | AE70: - | AF70: - | AG70: - | AH70: - | AI70: -
A71: JMSH0605AGDQ | B71: Auto-SGT | C71: PDFN5x6-8L-D | D71: Active | E71: JMSH0606PGDQ | F71: N+N | G71: 60 | H71: 56 | I71: 2.8 | J71: 4.7 | K71: 5.8 | L71: - | M71: - | N71: - | O71: - | P71: ±20 | Q71: 216 | R71: 1492 | S71: 940 | T71: 109 | U71: 34 | V71: No | W71: 5000 | X71: 50000 | Y71: 160 | Z71: 1.0 | AA71: 2023-03-04 | AC71: IAUC120N06S5N017 | AD71: NVMFS5C604N | AE71: STL225N6F7AG | AF71: - | AG71: BUK762R4-60E | AH71: - | AI71: -
A72: JMSH0606AGQ | B72: Auto-SGT | C72: PDFN5x6-8L | D72: Active | E72: JMSH0606PGQ | F72: N | G72: 60 | H72: 103 | I72: 2.9 | J72: 3.7 | K72: 4.7 | L72: - | M72: - | N72: - | O72: - | P72: ±20 | Q72: 216 | R72: 1492 | S72: 940 | T72: 109 | U72: 34 | V72: No | W72: 5000 | X72: 50000 | Y72: 126 | Z72: 1.1 | AA72: 2023-01-06 | AC72: - | AD72: - | AE72: - | AF72: - | AG72: - | AH72: - | AI72: -
A73: JMSH0606AKQ | B73: Auto-SGT | C73: TO-252-3L | D73: Active | E73: JMSH06060KQ | F73: N | G73: 60 | H73: 95 | I73: 2.8 | J73: 4.4 | K73: 5.5 | L73: - | M73: - | N73: - | O73: - | P73: ±20 | Q73: 216 | R73: 1492 | S73: 940 | T73: 109 | U73: 34 | V73: No | W73: 2500 | X73: 25000 | Y73: 150 | Z73: 1.0 | AA73: 2023-01-06 | AC73: IAUC120N06S5N011ATMA1 | AD73: NVMFS5C604N | AE73: STL225N6F7AG | AF73: - | AG73: BUK762R4-60E | AH73: - | AI73: -
A74: JMSH0606PGDQ | B74: Auto-SGT | C74: PDFN5x6-8L-D | D74: Active | F74: N+N | G74: 60 | H74: 61 | I74: 2.7 | J74: 4.1 | K74: 5.4 | L74: - | M74: - | N74: - | O74: - | P74: ±20 | Q74: 212 | R74: 2124 | S74: 1081 | T74: 46 | U74: 34 | V74: No | W74: 5000 | X74: 50000 | Y74: 139 | Z74: 1.0 | AA74: 2025-04-24 | AC74: - | AD74: - | AE74: - | AF74: - | AG74: - | AH74: - | AI74: -
A75: JMSH0606PGQ | B75: Auto-SGT | C75: PDFN5X6-8L | D75: Active | F75: N | G75: 60 | H75: 118 | I75: 2.8 | J75: 4.5 | K75: 5.1 | L75: - | M75: - | N75: - | O75: - | P75: ±20 | Q75: 188 | R75: 1770 | S75: 907 | T75: 49 | U75: 29 | V75: No | W75: 5000 | X75: 50000 | Y75: 131 | Z75: 1.4 | AA75: 2024-12-26 | AC75: - | AD75: - | AE75: - | AF75: - | AG75: - | AH75: - | AI75: -
A76: JMSH060STGQ | B76: Auto-SGT | C76: PDFN5x6-8L | D76: Active | F76: N | G76: 60 | H76: 303 | I76: 2.7 | J76: 0.85 | K76: 1.1 | L76: - | M76: - | N76: - | O76: - | P76: ±20 | Q76: 850 | R76: 6832 | S76: 3238 | T76: 90 | U76: 100 | V76: No | W76: 5000 | X76: 50000 | Y76: 85 | Z76: 1.0 | AA76: 2025-09-04 | AC76: - | AD76: - | AE76: - | AF76: - | AG76: - | AH76: - | AI76: -
A77: JMSL0601AGQ | B77: Auto-SGT | C77: PDFN5x6-8L | D77: Active | E77: JMSL060SMGQ | F77: N | G77: 60 | H77: 315 | I77: 1.5 | J77: 0.9 | K77: 1.2 | L77: 1.3 | M77: 1.7 | N77: - | O77: - | P77: ±20 | Q77: 1176 | R77: 7325 | S77: 1821 | T77: 45 | U77: 114 | V77: No | W77: 5000 | X77: 50000 | Y77: =J77*U77 -> 103 | Z77: 2.1 | AA77: 2022-12-23 | AC77: - | AD77: - | AE77: - | AF77: - | AG77: - | AH77: - | AI77: -
A78: JMSL0601BGQ | B78: Auto-SGT | C78: PDFN5x6-8L | D78: Active | E78: JMSL0601TGQ | F78: N | G78: 60 | H78: 252 | I78: 1.6 | J78: 1.25 | K78: 1.6 | L78: 1.8 | M78: 2.5 | N78: - | O78: - | P78: ±20 | Q78: 1634 | R78: 4685 | S78: 1429 | T78: 40 | U78: 75 | V78: No | W78: 5000 | X78: 50000 | Y78: 94 | Z78: 1.1 | AA78: 2022-12-23 | AC78: IAUC41N06S5L100 | AD78: - | AE78: - | AF78: - | AG78: - | AH78: - | AI78: -
A79: JMSL0602AGQ | B79: Auto-SGT | C79: PDFN5x6-8L | D79: Active | E79: JMSL0602TGQ | F79: N | G79: 60 | H79: 172 | I79: 1.7 | J79: 1.8 | K79: 2.3 | L79: 2.4 | M79: 3.2 | N79: - | O79: - | P79: ±20 | Q79: 240 | R79: 2880 | S79: 958 | T79: 44 | U79: 48 | V79: No | W79: 5000 | X79: 50000 | Y79: 86 | Z79: 1.2 | AA79: 2022-12-23 | AC79: - | AD79: NVTYS010N06CL | AE79: - | AF79: - | AG79: BUK9M12-60E | AH79: - | AI79: -
A80: JMSL0602PKQ | B80: Auto-SGT | C80: TO-252-3L | D80: Active | F80: N | G80: 60 | H80: 125 | I80: 1.6 | J80: 1.7 | K80: 2.2 | L80: 2.3 | M80: 3 | N80: - | O80: - | P80: ±20 | Q80: 536 | R80: 5548 | S80: 2529 | T80: 111 | U80: 95 | V80: No | W80: 2500 | X80: 25000 | Y80: 162 | Z80: 1.0 | AA80: 2025-09-04 | AC80: - | AD80: - | AE80: - | AF80: - | AG80: - | AH80: - | AI80: -
A81: JMSL0603BGQ | B81: Auto-SGT | C81: PDFN5x6-8L | D81: Active | E81: JMSL0603PGQ | F81: N | G81: 60 | H81: 147 | I81: 1.6 | J81: 2.4 | K81: 3 | L81: 3.4 | M81: 4.4 | N81: - | O81: - | P81: ±20 | Q81: 338 | R81: 3174 | S81: 872 | T81: 39 | U81: 51 | V81: No | W81: 5000 | X81: 50000 | Y81: =J81*U81 -> 122 | Z81: 1.2 | AA81: 2022-12-23 | AC81: - | AD81: - | AE81: - | AF81: - | AG81: - | AH81: - | AI81: -
A82: JMSL0604AGQ | B82: Auto-SGT | C82: PDFN5x6-8L | D82: Active | E82: JMSL0606MGQ | F82: N | G82: 60 | H82: 112 | I82: 1.6 | J82: 3.6 | K82: 4.5 | L82: 4.7 | M82: 5.9 | N82: - | O82: - | P82: ±20 | Q82: 94 | R82: 2030 | S82: 445 | T82: 4.4 | U82: 32 | V82: No | W82: 5000 | X82: 50000 | Y82: 115 | Z82: 1.3 | AA82: 2023-01-05 | AC82: IAUC41N06S5L100 | AD82: - | AE82: - | AF82: - | AG82: - | AH82: - | AI82: -
A83: JMSL0605AGDQ | B83: Auto-SGT | C83: PDFN5x6-8L-D | D83: Active | E83: JMSL0606PGDQ | F83: N+N | G83: 60 | H83: 61 | I83: 1.6 | J83: 4.4 | K83: 5.5 | L83: 5.6 | M83: 7.3 | N83: - | O83: - | P83: ±20 | Q83: 182 | R83: 1966 | S83: 596 | T83: 36 | U83: 33 | V83: No | W83: 5000 | X83: 50000 | Y83: 145 | Z83: 2.1 | AA83: 2022-12-23 | AC83: - | AD83: - | AE83: - | AF83: - | AG83: - | AH83: - | AI83: -
A84: JMSL0606PGDQ | B84: Auto-SGT | C84: PDFN5x6-8L-D | D84: Active | F84: N+N | G84: 60 | H84: 114 | I84: 1.5 | J84: 4.1 | K84: 5.3 | L84: 5.3 | M84: 6.9 | N84: - | O84: - | P84: ±20 | Q84: 188 | R84: 2241 | S84: 1019 | T84: 47 | U84: 39 | V84: No | W84: 5000 | X84: 50000 | Y84: 160 | Z84: 1.0 | AA84: 2025-11-11
A85: JMSL0606AGQ | B85: Auto-SGT | C85: PDFN5x6-8L | D85: Active | E85: JMSL0606MGQ | F85: N | G85: 60 | H85: 103 | I85: 1.6 | J85: 4 | K85: 5 | L85: 5.2 | M85: 6.5 | N85: - | O85: - | P85: ±20 | Q85: 94 | R85: 2030 | S85: 445 | T85: 4.4 | U85: 32 | V85: No | W85: 5000 | X85: 50000 | Y85: =J85*U85 -> 128 | Z85: 2.2 | AA85: 2024-12-26 | AC85: - | AD85: NVTYS008N06CL | AE85: - | AF85: - | AG85: - | AH85: - | AI85: -
A86: JMSL0606AKQ | B86: Auto-SGT | C86: TO-252-3L | D86: Active | E86: JMSL0606PKQ | F86: N | G86: 60 | H86: 93 | I86: 1.6 | J86: 4.6 | K86: 5.8 | L86: 6 | M86: 7.5 | N86: - | O86: - | P86: ±20 | Q86: 94 | R86: 2122 | S86: 440 | T86: 4.4 | U86: 32 | V86: No | W86: 2500 | X86: 25000 | Y86: 147 | Z86: 1.2 | AA86: 2022-04-28 | AC86: - | AD86: NVMFS5C645N | AE86: - | AF86: - | AG86: BUK9Y6R0-60E | AH86: - | AI86: -
A87: JMSL0606AUQ | B87: Auto-SGT | C87: PDFN3x3-8L | D87: Active | E87: JMSL0606PUQ | F87: N | G87: 60 | H87: 59 | I87: 1.6 | J87: 5 | K87: 6.2 | L87: 6 | M87: 7.8 | N87: - | O87: - | P87: ±20 | Q87: 94 | R87: 2122 | S87: 440 | T87: 4.4 | U87: 32 | V87: No | W87: 5000 | X87: 50000 | Y87: 160 | Z87: 1.3 | AA87: 2022-12-23 | AC87: - | AD87: NVMFS5C645N | AE87: - | AF87: - | AG87: BUK9Y6R0-60E | AH87: - | AI87: -
A88: JMSL06060GQ | B88: Auto-SGT | C88: PDFN5x6-8L | D88: Active | F88: N | G88: 60 | H88: 120 | I88: 1.6 | J88: 3.5 | K88: 4.6 | L88: 4.6 | M88: 5.9 | N88: - | O88: - | P88: ±20 | Q88: 165 | R88: 2118 | S88: 929 | T88: 56 | U88: 38 | V88: No | W88: 5000 | X88: 50000 | Y88: 133 | Z88: 1.1 | AA88: 2025-11-11
A89: JMSL0606PKQ | B89: Auto-SGT | C89: TO-252-3L | D89: Active | F89: N | G89: 60 | H89: 74 | I89: 1.6 | J89: 4 | K89: 5.2 | L89: 5.1 | M89: 6.7 | N89: - | O89: - | P89: ±20 | Q89: 165 | R89: 2097 | S89: 832 | T89: 53 | U89: 37 | V89: No | W89: 2500 | X89: 25000 | Y89: 148 | Z89: 1.0 | AA89: 2025-12-02
A90: JMSL0606PUQ | B90: Auto-SGT | C90: PDFN3x3-8L | D90: Active | F90: N | G90: 60 | H90: 57 | I90: 1.6 | J90: 4 | K90: 5.5 | L90: 5 | M90: 6.5 | N90: - | O90: - | P90: ±20 | Q90: 165 | R90: 2097 | S90: 832 | T90: 53 | U90: 37 | V90: No | W90: 5000 | X90: 50000 | Y90: 148 | Z90: 1.1 | AA90: 2025-12-02
A91: JMSL0609AGQ | B91: Auto-SGT | C91: PDFN5x6-8L | D91: Active | E91: JMSL0609PGQ | F91: N | G91: 60 | H91: 67 | I91: 1.6 | J91: 7.2 | K91: 9.4 | L91: 9 | M91: 12 | N91: - | O91: - | P91: ±20 | Q91: 34 | R91: 1087 | S91: 309 | T91: 8.5 | U91: 16.6 | V91: No | W91: 5000 | X91: 50000 | Y91: =J91*U91 -> 120 | Z91: 2.1 | AA91: 2022-12-23 | AC91: - | AD91: - | AE91: - | AF91: - | AG91: - | AH91: - | AI91: -
A92: JMSL0609PKQ | B92: Auto-SGT | C92: TO-252-3L | D92: Active | F92: N | G92: 60 | H92: 59 | I92: 1.6 | J92: 5.5 | K92: 7.2 | L92: 7.3 | M92: 9.5 | N92: - | O92: - | P92: ±20 | Q92: 89 | R92: 1214 | S92: 565 | T92: 31 | U92: 22 | V92: No | W92: 2500 | X92: 25000 | Y92: 121 | Z92: 1.0 | AA92: 2025-11-14
A93: JMSL0609AKQ | B93: Auto-SGT | C93: TO-252-3L | D93: Active | E93: JMSL0609PKQ | F93: N | G93: 60 | H93: 59 | I93: 1.6 | J93: 7.4 | K93: 9.4 | L93: 9.5 | M93: 12.4 | N93: - | O93: - | P93: ±20 | Q93: 74 | R93: 1110 | S93: 352 | T93: 12 | U93: 18.3 | V93: No | W93: 2500 | X93: 25000 | Y93: 135 | Z93: 1.0 | AA93: 2022-12-12 | AC93: IPD90N06S4L06ATMA2 | AD93: NVD5C668NL | AE93: STD80N6F6 | AF93: - | AG93: - | AH93: - | AI93: -
A94: JMSL0609AUQ | B94: Auto-SGT | C94: PDFN3x3-8L | D94: Active | E94: JMSL0609PUQ | F94: N | G94: 60 | H94: 44 | I94: 1.6 | J94: 7.5 | K94: 9.4 | L94: 9.4 | M94: 12.2 | N94: - | O94: - | P94: ±20 | Q94: 34 | R94: 1087 | S94: 309 | T94: 8.5 | U94: 16.6 | V94: No | W94: 5000 | X94: 50000 | Y94: 125 | Z94: 1.3 | AA94: 2022-12-23 | AC94: - | AD94: - | AE94: - | AF94: - | AG94: - | AH94: - | AI94: -
A95: JMSL0609PGQ | B95: Auto-SGT | C95: PDFN5x6-8L | D95: Active | F95: N | G95: 60 | H95: 91 | I95: 1.5 | J95: 5.1 | K95: 6.6 | L95: 6.7 | M95: 8.8 | N95: - | O95: - | P95: ±20 | Q95: 89 | R95: 1233 | S95: 560 | T95: 32 | U95: 22 | V95: No | W95: 5000 | X95: 50000 | Y95: 112 | Z95: 1.0 | AA95: 2025-11-11
A96: JMSL0610AGDQ | B96: Auto-SGT | C96: PDFN5x6-8L-D | D96: Active | E96: JMSL0610PGDQ | F96: N+N | G96: 60 | H96: 38 | I96: 1.6 | J96: 8.5 | K96: 10.6 | L96: 10.2 | M96: 13 | N96: - | O96: - | P96: ±20 | Q96: 34 | R96: 1087 | S96: 309 | T96: 8.5 | U96: 16.6 | V96: No | W96: 5000 | X96: 50000 | Y96: =J96*U96 -> 141 | Z96: 1.3 | AA96: 2022-12-23 | AC96: - | AD96: - | AE96: - | AF96: - | AG96: - | AH96: - | AI96: -
A97: JMSL06120UQ | B97: Auto-SGT | C97: PDFN3x3-8L | D97: Active | F97: N | G97: 60 | H97: 42 | I97: 2 | J97: 7.3 | K97: 9.5 | L97: 10.9 | M97: 14.2 | N97: - | O97: - | P97: ±20 | Q97: 74 | R97: 1110 | S97: 443 | T97: 34 | U97: 19 | V97: No | W97: 5000 | X97: 50000 | Y97: 139 | Z97: 1.1 | AA97: 2024-11-15 | AC97: - | AD97: - | AE97: - | AF97: - | AG97: - | AH97: - | AI97: -
A98: JMSL0612AGQ | B98: Auto-SGT | C98: PDFN5x6-8L | D98: Active | E98: JMSL0612PGQ | F98: N | G98: 60 | H98: 52 | I98: 1.6 | J98: 9.5 | K98: 12 | L98: 12 | M98: 16 | N98: - | O98: - | P98: ±20 | Q98: 20 | R98: 731 | S98: 224 | T98: 7.4 | U98: 13.9 | V98: No | W98: 5000 | X98: 50000 | Y98: 132 | Z98: 2.1 | AA98: 2022-12-23 | AC98: IPD50N06S4L12ATMA2 | AD98: - | AE98: - | AF98: - | AG98: - | AH98: - | AI98: -
A99: JMSL0612AKQ | B99: Auto-SGT | C99: TO-252-3L | D99: Active | E99: JMSL0612PKQ | F99: N | G99: 60 | H99: 57 | I99: 1.7 | J99: 9.9 | K99: 12 | L99: 12.6 | M99: 16 | N99: - | O99: - | P99: ±20 | Q99: 58 | R99: 734 | S99: 204 | T99: 26 | U99: 13.1 | V99: No | W99: 2500 | X99: 25000 | Y99: 130 | Z99: 2.1 | AA99: 2022-09-09 | AC99: - | AD99: - | AE99: - | AF99: - | AG99: - | AH99: - | AI99: -
A100: JMSL0612PKQ | B100: Auto-SGT | C100: TO-252-3L | D100: Active | F100: N | G100: 60 | H100: 42 | I100: 1.6 | J100: 10.4 | K100: 13.5 | L100: 13.3 | M100: 17.3 | N100: - | O100: - | P100: ±20 | Q100: 74 | R100: 1110 | S100: 443 | T100: 34 | U100: 19 | V100: No | W100: 2500 | X100: 25000 | Y100: 198 | Z100: 1.0 | AA100: 2025-12-02
A101: JMSL0612NKQ | B101: Auto-SGT | C101: TO-252-3L | D101: Active | F101: N | G101: 60 | H101: 65 | I101: 1.7 | J101: 8.1 | K101: 11 | L101: 11 | M101: 14 | N101: - | O101: - | P101: ±20 | Q101: 60 | R101: 834 | S101: 376 | T101: 24 | U101: 15 | V101: No | W101: 2500 | X101: 25000 | Y101: 122 | Z101: 1.0 | AA101: 2025-11-11
A102: JMSL0612AUQ | B102: Auto-SGT | C102: PDFN3x3-8L | D102: Active | E102: JMSL06120UQ | F102: N | G102: 60 | H102: 36 | I102: 1.6 | J102: 10 | K102: 12.5 | L102: 12.3 | M102: 16 | N102: - | O102: - | P102: ±20 | Q102: 20 | R102: 731 | S102: 224 | T102: 7.4 | U102: 13.9 | V102: No | W102: 5000 | X102: 50000 | Y102: =J102*U102 -> 139 | Z102: 1.4 | AA102: 2022-12-23 | AC102: - | AD102: - | AE102: - | AF102: - | AG102: - | AH102: - | AI102: -
A103: JMSL0612PGQ | B103: Auto-SGT | C103: PDFN5x6-8L | D103: Active | F103: N | G103: 60 | H103: 72 | I103: 1.9 | J103: 7.4 | K103: 9.7 | L103: 10.5 | M103: 13.7 | N103: - | O103: - | P103: ±20 | Q103: 74 | R103: 1110 | S103: 443 | T103: 34 | U103: 19 | V103: No | W103: 5000 | X103: 50000 | Y103: 141 | Z103: 1.2 | AA103: 2024-06-03 | AC103: - | AD103: - | AE103: - | AF103: - | AG103: - | AH103: - | AI103: -
A104: JMSL0615AGDQ | B104: Auto-SGT | C104: PDFN5x6-8L-D | D104: Active | E104: JMSL0615PGDQ | F104: N+N | G104: 60 | H104: 33 | I104: 1.6 | J104: 10.5 | K104: 13.5 | L104: 13.5 | M104: 17.5 | N104: - | O104: - | P104: ±20 | Q104: 20 | R104: 731 | S104: 224 | T104: 7.4 | U104: 13.9 | V104: No | W104: 5000 | X104: 50000 | Y104: 146 | Z104: 2.2 | AA104: 2022-12-23 | AC104: - | AD104: - | AE104: - | AF104: - | AG104: - | AH104: - | AI104: -
A105: JMSL0615PGDQ | B105: Auto-SGT | C105: PDFN5x6-8L-D | D105: Active | F105: N+N | G105: 60 | H105: 78 | I105: 1.9 | J105: 8.3 | K105: 10.8 | L105: 12.1 | M105: 15.7 | N105: - | O105: - | P105: ±20 | Q105: 74 | R105: 1125 | S105: 444 | T105: 31 | U105: 19 | V105: No | W105: 5000 | X105: 50000 | Y105: 158 | Z105: 1.2 | AA105: 2024-10-16 | AC105: - | AD105: - | AE105: - | AF105: - | AG105: - | AH105: - | AI105: -
A106: JMSL0620AGDEQ | B106: Auto-SGT | C106: PDFN5x6-8L-D | D106: Active | E106: JMSL0620PGDEQ | F106: N+N | G106: 60 | H106: 23 | I106: 1.8 | J106: 18 | K106: 23 | L106: 25 | M106: 33 | N106: - | O106: - | P106: ±20 | Q106: 26 | R106: 409 | S106: 143 | T106: 24 | U106: 7.5 | V106: Yes | W106: 5000 | X106: 50000 | Y106: 135 | Z106: 1.2 | AA106: 2023-03-07 | AC106: - | AD106: - | AE106: - | AF106: - | AG106: - | AH106: - | AI106: -
A107: JMSL0620PGEQ | B107: Auto-SGT | C107: PDFN5x6-8L | D107: Active | F107: N | G107: 60 | H107: 40 | I107: 1.7 | J107: 12.0 | K107: 15.0 | L107: 17 | M107: 22.0 | N107: - | O107: - | P107: ±20 | Q107: 36.0 | R107: 593 | S107: 287.0 | T107: 18.0 | U107: 11.0 | V107: Yes | W107: 5000 | X107: 50000 | Y107: 132 | Z107: 1.1 | AA107: 2025-12-02 | AC107: - | AD107: - | AE107: - | AF107: - | AG107: - | AH107: - | AI107: -
A108: JMSL0620PGDEQ | B108: Auto-SGT | C108: PDFN5x6-8L-D | D108: Active | F108: N+N | G108: 60 | H108: 29 | I108: 1.7 | J108: 12.6 | K108: 16.3 | L108: 17.6 | M108: 22.8 | N108: - | O108: - | P108: ±20 | Q108: 36.0 | R108: 602 | S108: 283.0 | T108: 17.0 | U108: 11.0 | V108: Yes | W108: 5000 | X108: 50000 | Y108: 139 | Z108: 1.1 | AA108: 2025-12-02 | AC108: - | AD108: - | AE108: - | AF108: - | AG108: - | AH108: - | AI108: -
A109: JMSL0620PUDEQ | B109: Auto-SGT | C109: PDFN3x3-8L-D | D109: Active | F109: N+N | G109: 60 | H109: 29 | I109: 1.7 | J109: 14.0 | K109: 18.0 | L109: 19 | M109: 24.0 | N109: - | O109: - | P109: ±20 | Q109: 36.0 | R109: 589 | S109: 277.0 | T109: 18.0 | U109: 11.0 | V109: No | W109: 5000 | X109: 50000 | Y109: 154 | Z109: 1.0 | AA109: 2025-09-04 | AC109: - | AD109: - | AE109: - | AF109: - | AG109: - | AH109: - | AI109: -
A110: JMSL0620AGEQ | B110: Auto-SGT | C110: PDFN5x6-8L | D110: Active | E110: JMSL0620PGEQ | F110: N | G110: 60 | H110: 32 | I110: 1.8 | J110: 16 | K110: 20 | L110: 23 | M110: 30 | N110: - | O110: - | P110: ±20 | Q110: 26 | R110: 409 | S110: 143 | T110: 24 | U110: 7.5 | V110: Yes | W110: 5000 | X110: 50000 | Y110: =J110*U110 -> 120 | Z110: 1.1 | AA110: 2022-12-23 | AC110: - | AD110: - | AE110: - | AF110: - | AG110: - | AH110: - | AI110: -
A111: JMTL2310AQ | B111: Auto-SGT | C111: SOT-23 | D111: Active | F111: N | G111: 60 | H111: 3 | I111: 1.5 | J111: 75 | K111: 98 | L111: 86 | M111: 112 | N111: - | O111: - | P111: ±20 | Q111: 6 | R111: 422 | S111: 21 | T111: 17 | U111: 10 | V111: No | W111: 3000 | X111: 120000 | Y111: 750 | Z111: 1.0 | AA111: 2025-12-02
A112: JMSH0801PTLQ | B112: Auto-SGT | C112: PowerJE®10x12 | D112: Active | F112: N | G112: 80 | H112: 400 | I112: 2.9 | J112: 1.1 | K112: 1.4 | L112: - | M112: - | N112: - | O112: - | P112: ±20 | Q112: 2065 | R112: 13653 | S112: 4421 | T112: 110 | U112: 200 | V112: No | W112: 2000 | X112: 10000 | Y112: 220 | Z112: 1.0 | AA112: 2025-11-14
A113: JMSH1001AE7Q | B113: Auto-SGT | C113: TO-263-7L | D113: Active | E113: JMSH 1001NE7Q | F113: N | G113: 100 | H113: 350 | I113: 2.8 | J113: 1.6 | K113: 2 | L113: - | M113: - | N113: - | O113: - | P113: ±20 | Q113: 512 | R113: 9623 | S113: 2091 | T113: 1.2 | U113: 155 | V113: No | W113: 800 | X113: 4000 | Y113: 248 | Z113: 1.0 | AA113: 2023-02-07 | AC113: - | AD113: - | AE113: - | AF113: - | AG113: - | AH113: - | AI113: -
A114: JMSH1001ATLQ | B114: Auto-SGT | C114: PowerJE®10x12 | D114: Active | E114: JMSH1001NTLQ | F114: N | G114: 100 | H114: 479 | I114: 2.8 | J114: 1.3 | K114: 1.6 | L114: - | M114: - | N114: - | O114: - | P114: ±20 | Q114: 512 | R114: 9623 | S114: 2091 | T114: 32 | U114: 155 | V114: No | W114: 2000 | X114: 10000 | Y114: 202 | Z114: 1.1 | AA114: 2023-03-14 | AC114: IPG20N10S4L-22A | AD114: - | AE114: - | AF114: - | AG114: BUK9K29-110E | AH114: - | AI114: -
A115: JMSH1001NTLQ | B115: Auto-SGT | C115: PowerJE®10x12 | D115: Active | F115: N | G115: 100 | H115: 312 | I115: 2.9 | J115: 1.7 | K115: 2.2 | L115: - | M115: - | N115: - | O115: - | P115: ±20 | Q115: 1722 | R115: 11677 | S115: 1764 | T115: 38 | U115: 169 | V115: No | W115: 2000 | X115: 10000 | Y115: 287 | Z115: 1.2 | AA115: 2024-06-04 | AC115: - | AD115: - | AE115: - | AF115: - | AH115: - | AI115: -
A116: JMSH1001PTLQ | B116: Auto-SGT | C116: PowerJE®10x12 | D116: Active | F116: N | G116: 100 | H116: 435 | I116: 2.8 | J116: 1.2 | K116: 1.6 | L116: - | M116: - | N116: - | O116: - | P116: ±20 | Q116: 2143 | R116: 14523 | S116: 2163 | T116: 45 | U116: 214 | V116: No | W116: 2000 | X116: 10000 | Y116: 257 | Z116: 1.0 | AA116: 2025-11-14
A117: JMSH1002AEQ | B117: Auto-SGT | C117: TO-263-3L | D117: Active | E117: JMSH1001NTEQ | F117: N | G117: 100 | H117: 350 | I117: 2.7 | J117: 1.6 | K117: 2 | L117: - | M117: - | N117: - | O117: - | P117: ±20 | Q117: 1250 | R117: 9623 | S117: 2091 | T117: 1.2 | U117: 155 | V117: No | W117: 800 | X117: 4000 | Y117: 248 | Z117: 1.2 | AA117: 2022-06-02 | AC117: - | AD117: - | AE117: - | AF117: - | AG117: - | AH117: - | AI117: -
A118: JMSH1002ASQ | B118: Auto-SGT | C118: TO-247-3L | D118: Active | E118: JMSH1002NSQ | F118: N | G118: 100 | H118: 333 | I118: 2.7 | J118: 1.8 | K118: 2.2 | L118: - | M118: - | N118: - | O118: - | P118: ±20 | Q118: 1458 | R118: 9623 | S118: 2091 | T118: 32 | U118: 155 | V118: No | W118: 30 | X118: 2250 | Y118: 279 | Z118: 1.0 | AA118: 2023-04-07 | AC118: - | AD118: - | AE118: - | AF118: - | AH118: - | AI118: -
A119: JMSH1002NSQ | B119: Auto-SGT | C119: TO-247-3L | D119: Active | F119: N | G119: 100 | H119: 234 | I119: 3 | J119: 2.4 | K119: 3.1 | L119: - | M119: - | N119: - | O119: - | P119: ±20 | Q119: 1722 | R119: 11677 | S119: 1764 | T119: 38 | U119: 169 | V119: No | W119: 30 | X119: 2250 | Y119: 406 | Z119: 1.0 | AA119: 2025-07-04
A120: JMSH1003PTLQ | B120: Auto-SGT | C120: PowerJE®10x12 | D120: Active | F120: N | G120: 100 | H120: 212 | I120: 3 | J120: 3 | K120: 3.9 | L120: - | M120: - | N120: - | O120: - | P120: ±20 | Q120: 850 | R120: 6190 | S120: 1035 | T120: 35 | U120: 97 | V120: No | W120: 2000 | X120: 10000 | Y120: =J120*U120 -> 291 | Z120: 1.0 | AA120: 2025-11-14
A121: JMSH1003NGQ | B121: Auto-SGT | C121: PDFN5x6-8L | D121: Active | F121: N | G121: 100 | H121: 150 | I121: 3.1 | J121: 3.1 | K121: 4 | L121: - | M121: - | N121: - | O121: - | P121: ±20 | Q121: 706 | R121: 4797 | S121: 900 | T121: 19 | U121: 84 | V121: No | W121: 5000 | X121: 50000 | Y121: 260 | Z121: 1.1 | AA121: 2025-11-14
A122: JMSH1003AE7Q | B122: Auto-SGT | C122: TO-263-7L | D122: Active | E122: JMSH1003PE7Q | F122: N | G122: 100 | H122: 196 | I122: 2.7 | J122: 2.8 | K122: 3.5 | L122: - | M122: - | N122: - | O122: - | P122: ±20 | Q122: 406 | R122: 4398 | S122: 1361 | T122: 8.5 | U122: 66 | V122: No | W122: 800 | X122: 4000 | Y122: 185 | Z122: 1.1 | AA122: 2022-04-28 | AC122: - | AD122: - | AE122: - | AF122: - | AG122: - | AH122: - | AI122: -
A123: JMSH1003AGQ | B123: Auto-SGT | C123: PDFN5x6-8L | D123: Active | E123: JMSH1003NGQ | F123: N | G123: 100 | H123: 170 | I123: 2.7 | J123: 2.8 | K123: 3.5 | L123: - | M123: - | N123: - | O123: - | P123: ±20 | Q123: 346 | R123: 4374 | S123: 1140 | T123: 4.7 | U123: 70 | V123: No | W123: 5000 | X123: 50000 | Y123: 196 | Z123: 1.2 | AA123: 2022-12-24 | AC123: - | AD123: - | AE123: - | AF123: - | AH123: - | AI123: -
A124: JMSH1003AGWQ | B124: Auto-SGT | C124: PDFN5x6-8L-W | D124: Active | E124: JMSH1003PGWQ | F124: N | G124: 100 | H124: 178 | I124: 2.9 | J124: 2.8 | K124: 3.4 | L124: - | M124: - | N124: - | O124: - | P124: ±20 | Q124: 481 | R124: 4797 | S124: 900 | T124: 19.1 | U124: 69 | V124: No | W124: 5000 | X124: 50000 | Y124: 193 | Z124: 1.1 | AA124: 2023-01-16 | AC124: - | AD124: - | AE124: =E3 -> Recommended Product Name | AF124: - | AH124: - | AI124: -
A125: JMSH1003ATLQ | B125: Auto-SGT | C125: PowerJE®10x12 | D125: Active | E125: JMSH1003PTLQ | F125: N | G125: 100 | H125: 228 | I125: 2.8 | J125: 2.7 | K125: 3.4 | L125: - | M125: - | N125: - | O125: - | P125: ±20 | Q125: 512 | R125: 4398 | S125: 1361 | T125: 8.5 | U125: 66 | V125: No | W125: 2000 | X125: 10000 | Y125: 178 | Z125: 1.0 | AA125: 2023-08-03 | AC125: IPD70N10S312ATMA1 | AD125: - | AE125: STD105N10F7AG | AF125: - | AG125: - | AH125: - | AI125: -
A126: JMSH1003PE7Q | B126: Auto-SGT | C126: TO-263-7L | D126: Active | F126: N | G126: 100 | H126: 164 | I126: 2.9 | J126: 3.5 | K126: 4.5 | L126: - | M126: - | N126: - | O126: - | P126: ±20 | Q126: 850 | R126: 5810 | S126: 831 | T126: 20 | U126: 82 | V126: No | W126: 800 | X126: 4000 | Y126: 287 | Z126: 1.0 | AA126: 2025-09-04 | AC126: - | AD126: - | AE126: - | AF126: - | AH126: - | AI126: -
A127: JMSH1004AEQ | B127: Auto-SGT | C127: TO-263-3L | D127: Active | E127: JMSH1003PEQ | F127: N | G127: 100 | H127: 216 | I127: 2.7 | J127: 3 | K127: 3.8 | L127: - | M127: - | N127: - | O127: - | P127: ±20 | Q127: 375 | R127: 4398 | S127: 1361 | T127: 8.5 | U127: 66 | V127: No | W127: 800 | X127: 4000 | Y127: =J127*U127 -> 198 | Z127: 1.1 | AA127: 2024-04-01 | AC127: - | AD127: - | AE127: - | AF127: - | AG127: - | AH127: - | AI127: -
A128: JMSH1004BEQ | B128: Auto-SGT | C128: TO-263-3L | D128: Active | F128: N | G128: 100 | H128: 160 | I128: 2.7 | J128: 3.5 | K128: 4.2 | L128: - | M128: - | N128: - | O128: - | P128: ±20 | Q128: 304 | R128: 3433 | S128: 905 | T128: 13 | U128: 57 | V128: No | W128: 800 | X128: 4000 | Y128: 200 | Z128: 1.1 | AA128: 2022-07-07 | AC128: IAUC90N10S5N062 | AD128: - | AE128: - | AF128: - | AG128: - | AH128: - | AI128: -
A129: JMSH1004BGQ | B129: Auto-SGT | C129: PDFN5x6-8L | D129: Active | E129: JMSH1003NGQ | F129: N | G129: 100 | H129: 138 | I129: 2.7 | J129: 3.3 | K129: 4.3 | L129: - | M129: - | N129: - | O129: - | P129: ±20 | Q129: 231 | R129: 3434 | S129: 906 | T129: 14 | U129: 57 | V129: No | W129: 5000 | X129: 50000 | Y129: 188 | Z129: 1.3 | AA129: 2022-12-24 | AC129: IAUC100N10S5L054 | AD129: - | AE129: STL115N10F7AG | AF129: - | AG129: - | AH129: - | AI129: -
A130: JMSH1004BGWQ | B130: Auto-SGT | C130: PDFN5x6-8L-W | D130: Active | E130: JMSH1003PGWQ | F130: N | G130: 100 | H130: 152 | I130: 2.9 | J130: 3.6 | K130: 4.3 | L130: - | M130: - | N130: - | O130: - | P130: ±20 | Q130: 450 | R130: 3434 | S130: 906 | T130: 14 | U130: 57 | V130: No | W130: 5000 | X130: 50000 | Y130: 205 | Z130: 1.1 | AA130: 2023-01-16 | AC130: - | AD130: - | AE130: - | AH130: - | AI130: -
A131: JMSH1005PGQ | B131: Auto-SGT | C131: PDFN5x6-8L | D131: Active | F131: N | G131: 100 | H131: 123 | I131: 2.9 | J131: 4.8 | K131: 6.2 | L131: - | M131: - | N131: - | O131: - | P131: ±20 | Q131: 485 | R131: 4344 | S131: 549 | T131: 16 | U131: 65 | V131: No | W131: 5000 | X131: 50000 | Y131: 312 | Z131: 1.1 | AA131: 2025-12-02
A132: JMSH1008AGQ | B132: Auto-SGT | C132: PDFN5x6-8L | D132: Active | E132: JMSH1008PGQ | F132: N | G132: 100 | H132: 87 | I132: 2.7 | J132: 6.2 | K132: 7.8 | L132: - | M132: - | N132: - | O132: - | P132: ±20 | Q132: 144 | R132: 1920 | S132: 445 | T132: 7 | U132: 30 | V132: No | W132: 5000 | X132: 50000 | Y132: =J132*U132 -> 186 | Z132: 2.0 | AA132: 2022-12-24 | AC132: - | AD132: - | AE132: - | AF132: - | AG132: - | AH132: - | AI132: -
A133: JMSH1008AKQ | B133: Auto-SGT | C133: TO-252-3L | D133: Active | E133: JMSH1008MKQ | F133: N | G133: 100 | H133: 92 | I133: 2.8 | J133: 6.9 | K133: 8.3 | L133: - | M133: - | N133: - | O133: - | P133: ±20 | Q133: 109 | R133: 2360 | S133: 368 | T133: 5.9 | U133: 34 | V133: No | W133: 2500 | X133: 25000 | Y133: 235 | Z133: 1.0 | AA133: 2022-10-08 | AC133: - | AD133: - | AE133: - | AF133: - | AG133: - | AH133: - | AI133: -
A134: JMSH1008PGQ | B134: Auto-SGT | C134: PDFN5X6-8L | D134: Active | F134: N | G134: 100 | H134: 90 | I134: 3.1 | J134: 7.4 | K134: 9.6 | L134: - | M134: - | N134: - | O134: - | P134: ±20 | Q134: 265 | R134: 2393 | S134: 426 | T134: 22 | U134: 39 | V134: No | W134: 5000 | X134: 50000 | Y134: 289 | Z134: 1.1 | AA134: 2024-05-27 | AC134: - | AD134: - | AE134: - | AF134: - | AG134: - | AH134: - | AI134: -
A135: JMSL1006AGQ | B135: Auto-SGT | C135: PDFN5x6-8L | D135: Active | E135: JMSL1006PGQ | F135: N | G135: 100 | H135: 110 | I135: 1.8 | J135: 4.7 | K135: 5.9 | L135: 5.9 | M135: 7.7 | N135: - | O135: - | P135: ±20 | Q135: 110 | R135: 2604 | S135: 567 | T135: 9.6 | U135: 42 | V135: No | W135: 5000 | X135: 50000 | Y135: 197 | Z135: 1.2 | AA135: 2022-12-23 | AC135: - | AD135: - | AE135: - | AF135: - | AG135: - | AH135: - | AI135: -
A136: JMSL1006PGQ | B136: Auto-SGT | C136: PDFN5x6-8L | D136: Active | F136: N | G136: 100 | H136: 120 | I136: 1.6 | J136: 4.5 | K136: 5.8 | L136: 5.5 | M136: 7.1 | N136: - | O136: - | P136: ±20 | Q136: 389 | R136: 4251 | S136: 658 | T136: 26 | U136: 71 | V136: No | W136: 5000 | X136: 50000 | Y136: 320 | Z136: 1.1 | AA136: 2024-06-03 | AC136: - | AD136: - | AE136: - | AF136: - | AG136: - | AH136: - | AI136: -
A137: JMSL1008AGQ | B137: Auto-SGT | C137: PDFN5x6-8L | D137: Active | E137: JMSL1008PGQ | F137: N | G137: 100 | H137: 88 | I137: 1.8 | J137: 6 | K137: 7.6 | L137: 8 | M137: 10 | N137: - | O137: - | P137: ±20 | Q137: 102 | R137: 2200 | S137: 445 | T137: 8 | U137: 34 | V137: No | W137: 5000 | X137: 50000 | Y137: 204 | Z137: 3.0 | AA137: 2022-12-23 | AC137: - | AD137: - | AE137: - | AF137: - | AG137: - | AH137: - | AI137: -
A138: JMSL1008AKQ | B138: Auto-SGT | C138: TO-252-3L | D138: Active | E138: JMSL1008MKQ | F138: N | G138: 100 | H138: 98 | I138: 1.6 | J138: 6.7 | K138: 8.1 | L138: 8.5 | M138: 11 | N138: - | O138: - | P138: ±20 | Q138: 118 | R138: 2360 | S138: 368 | T138: 5.9 | U138: 34 | V138: No | W138: 2500 | X138: 25000 | Y138: 228 | Z138: 1.1 | AA138: 2023-01-09 | AC138: - | AD138: - | AE138: - | AF138: - | AG138: - | AH138: - | AI138: -
A139: JMSL1008MKQ | B139: Auto-SGT | C139: TO-252-3L | D139: Active | F139: N | G139: 100 | H139: 56 | I139: 1.7 | J139: 6.5 | K139: 8.5 | L139: 9 | M139: 11.7 | N139: - | O139: - | P139: ±20 | Q139: 3917 | R139: 1640 | S139: 789 | T139: 18 | U139: 27 | V139: No | W139: 2500 | X139: 25000 | Y139: 176 | Z139: 1.0 | AA139: 2024-11-15 | AC139: IAUZ18N10S5L420ATMA1 | AD139: NVTFS040N10MCL | AE139: - | AF139: - | AG139: BUK9M43-100E | AH139: - | AI139: -
A140: JMSH1008MKQ | B140: Auto-SGT | C140: TO-252-3L | D140: Active | F140: N | G140: 100 | H140: 55 | I140: 2.9 | J140: 7.1 | K140: 9.2 | L140: - | M140: - | N140: - | O140: - | P140: ±20 | Q140: 212 | R140: 1380 | S140: 819 | T140: 20 | U140: 24 | V140: No | W140: 2500 | X140: 25000 | Y140: 170 | Z140: 1.0 | AA140: 2025-11-11
A141: JMSL1008PGQ | B141: Auto-SGT | C141: PDFN5x6-8L | D141: Active | F141: N | G141: 100 | H141: 92 | I141: 1.8 | J141: 6.8 | K141: 8.8 | L141: 8.3 | M141: 10.8 | N141: - | O141: - | P141: ±20 | Q141: 238 | R141: 2799 | S141: 419 | T141: 20 | U141: 47 | V141: No | W141: 5000 | X141: 50000 | Y141: =J141*U141 -> 320 | Z141: 1.2 | AA141: 2024-06-03 | AC141: - | AD141: - | AE141: - | AF141: - | AG141: - | AH141: - | AI141: -
A142: JMSL1009AGQ | B142: Auto-SGT | C142: PDFN5x6-8L | D142: Active | E142: JMSL1010MGQ | F142: N | G142: 100 | H142: 80 | I142: 1.7 | J142: 7 | K142: 8.2 | L142: 8.9 | M142: 11.2 | N142: - | O142: - | P142: ±20 | Q142: 165 | R142: 1314 | S142: 548 | T142: 26 | U142: 25 | V142: No | W142: 5000 | X142: 50000 | Y142: 175 | Z142: 1.0 | AA142: 2023-02-01 | AC142: IPG20N10S4L-22 | AD142: - | AE142: STL45N10F7AG | AF142: - | AG142: BUK9Y19-100E | AH142: - | AI142: -
A143: JMSL1009BUQ | B143: Auto-SGT | C143: PDFN3x3-8L | D143: Active | E143: JMSL1010PUQ | F143: N | G143: 100 | H143: 76 | I143: 1.7 | J143: 7.7 | K143: 9.2 | L143: 10 | M143: 13 | N143: - | O143: - | P143: ±20 | Q143: 165 | R143: 1314 | S143: 548 | T143: 26 | U143: 25 | V143: No | W143: 5000 | X143: 50000 | Y143: 193 | Z143: 1.0 | AA143: 2023-03-27 | AC143: - | AD143: - | AE143: - | AF143: - | AG143: - | AH143: - | AI143: -
A144: JMSH1010AGQ | B144: Auto-SGT | C144: PDFN5x6-8L | D144: Active | E144: JMSH1010MGQ | F144: N | G144: 100 | H144: 64 | I144: 2.7 | J144: 8.8 | K144: 11 | L144: - | M144: - | N144: - | O144: - | P144: ±20 | Q144: 94 | R144: 1372 | S144: 291 | T144: 6.2 | U144: 21 | V144: No | W144: 5000 | X144: 50000 | Y144: 185 | Z144: 1.2 | AA144: 2022-12-24 | AC144: IAUZ40N10S5L120 | AD144: NVTFS010N10MCL | AE144: - | AF144: - | AG144: BUK9Y12-100E | AH144: - | AI144: -
A145: JMSH1010AKQ | B145: Auto-SGT | C145: TO-252-3L | D145: Active | E145: JMSH1010MKQ | F145: N | G145: 100 | H145: 79 | I145: 2.8 | J145: 9.2 | K145: 11.5 | L145: - | M145: - | N145: - | O145: - | P145: ±20 | Q145: 86 | R145: 1372 | S145: 291 | T145: 6.2 | U145: 21 | V145: No | W145: 2500 | X145: 25000 | Y145: 193 | Z145: 1.0 | AA145: 2022-08-05 | AC145: - | AD145: - | AE145: - | AF145: - | AG145: - | AH145: - | AI145: -
A146: JMSH1018PGQ | B146: Auto-SGT | C146: PDFN5x6-8L | D146: Active | E146: JMSH1018PGQ | F146: N | G146: 100 | H146: 52 | I146: 3 | J146: 15.2 | K146: 21.2 | L146: - | M146: - | N146: - | O146: - | P146: ±20 | Q146: 44 | R146: 914 | S146: 383 | T146: 21 | U146: 14 | V146: No | W146: 5000 | X146: 50000 | Y146: 213 | Z146: 1.2 | AA146: 2024-11-15 | AC146: IAUZ40N10S5N130 | AD146: - | AE146: STL92N10F7AG | AF146: - | AG146: BUK7Y12-100E | AH146: - | AI146: -
A147: JMSL1010AGQ | B147: Auto-SGT | C147: PDFN5x6-8L | D147: Active | E147: JMSL1010MGQ | F147: N | G147: 100 | H147: 68 | I147: 1.9 | J147: 8 | K147: 10 | L147: 10.5 | M147: 13.7 | N147: - | O147: - | P147: ±20 | Q147: 94 | R147: 1535 | S147: 335 | T147: 8.2 | U147: 26 | V147: No | W147: 5000 | X147: 50000 | Y147: 208 | Z147: 1.2 | AA147: 2022-12-24 | AH147: - | AI147: -
A148: JMSL1010AKQ | B148: Auto-SGT | C148: TO-252-3L | D148: Active | E148: JMSL1010MKQ | F148: N | G148: 100 | H148: 86 | I148: 1.9 | J148: 8.3 | K148: 10 | L148: 10.8 | M148: 13.5 | N148: - | O148: - | P148: ±20 | Q148: 94 | R148: 1535 | S148: 335 | T148: 8.2 | U148: 26 | V148: No | W148: 2500 | X148: 25000 | Y148: 216 | Z148: 1.0 | AA148: 2022-08-24 | AC148: IAUC90N10S5N062 | AD148: - | AE148: STL115N10F7AG | AF148: - | AG148: - | AH148: - | AI148: -
A149: JMSL1010AUQ | B149: Auto-SGT | C149: PDFN3x3-8L | D149: Active | E149: JMSL1010PUQ | F149: N | G149: 100 | H149: 46 | I149: 1.9 | J149: 8.5 | K149: 10.6 | L149: 10.5 | M149: 13.7 | N149: - | O149: - | P149: ±20 | Q149: 45 | R149: 1535 | S149: 335 | T149: 8.2 | U149: 26 | V149: No | W149: 5000 | X149: 50000 | Y149: 221 | Z149: 1.2 | AA149: 2022-12-24 | AC149: IPD50N10S3L16ATMA1 | AD149: - | AE149: STD47N10F7AG | AF149: - | AG149: - | AH149: - | AI149: -
A150: JMSL1010PGWQ | B150: Auto-SGT | C150: PDFN5x6-8L-W | D150: Active | F150: N | G150: 100 | H150: 70 | I150: 1.6 | J150: 8.9 | K150: 11.5 | L150: 10.8 | M150: 14.1 | N150: - | O150: - | P150: ±20 | Q150: 188 | R150: 2001 | S150: 336 | T150: 19 | U150: 38 | V150: No | W150: 5000 | X150: 50000 | Y150: 338 | Z150: 1.0 | AA150: 2025-09-04 | AH150: - | AI150: -
A151: JMSH1010PUQ | B151: Auto-SGT | C151: PDFN3x3-8L | D151: Active | F151: N | G151: 100 | H151: 40 | I151: 2.8 | J151: 8.8 | K151: 11.4 | L151: - | M151: - | N151: - | O151: - | P151: ±20 | Q151: 324 | R151: 1128 | S151: 665 | T151: 17 | U151: 20 | V151: No | W151: 5000 | X151: 50000 | Y151: 176 | Z151: 1.0 | AA151: 2025-11-14
A152: JMSL1010PUQ | B152: Auto-SGT | C152: PDFN3x3-8L | D152: Active | F152: N | G152: 100 | H152: 41 | I152: 1.7 | J152: 8.3 | K152: 10.8 | L152: 11.1 | M152: 14.5 | N152: - | O152: - | P152: ±20 | Q152: 324 | R152: 1291 | S152: 663 | T152: 18 | U152: 23 | V152: No | W152: 5000 | X152: 50000 | Y152: 191 | Z152: 1.0 | AA152: 2025-09-04 | AH152: - | AI152: -
A153: JMSL1010MGQ | B153: Auto-SGT | C153: PDFN5x6-8L | D153: Active | F153: N | G153: 100 | H153: 66 | I153: 1.7 | J153: 8.5 | K153: 11 | L153: 10.5 | M153: 14 | N153: - | O153: - | P153: ±20 | Q153: 165 | R153: 1645 | S153: 245 | T153: 12 | U153: 31 | V153: No | W153: 5000 | X153: 50000 | Y153: 264 | Z153: 1.0 | AA153: 2025-11-11
A154: JMSH1010MGQ | B154: Auto-SGT | C154: PDFN5x6-8L | D154: Active | F154: N | G154: 100 | H154: 64 | I154: 2.9 | J154: 8.2 | K154: 11 | L154: - | M154: - | N154: - | O154: - | P154: ±20 | Q154: 165 | R154: 1093 | S154: 632 | T154: 17 | U154: 20 | V154: No | W154: 5000 | X154: 50000 | Y154: 164 | Z154: 1.0 | AA154: 2025-11-11
A155: JMSL1018AGQ | B155: Auto-SGT | C155: PDFN5x6-8L | D155: Active | E155: JMSL1018PGQ | F155: N | G155: 100 | H155: 47 | I155: 1.8 | J155: 15 | K155: 18.7 | L155: 18.7 | M155: 24.4 | N155: - | O155: - | P155: ±20 | Q155: 29 | R155: 769 | S155: 171 | T155: 5.1 | U155: 12.7 | V155: No | W155: 5000 | X155: 50000 | Y155: 191 | Z155: 1.5 | AA155: 2024-10-09 | AC155: - | AD155: - | AE155: - | AF155: - | AG155: - | AH155: - | AI155: -
A156: JMSL1018AKQ | B156: Auto-SGT | C156: TO-252-3L | D156: Active | E156: JMSL1018PKQ | F156: N | G156: 100 | H156: 45 | I156: 1.9 | J156: 15 | K156: 18.8 | L156: 19.5 | M156: 26 | N156: - | O156: - | P156: ±20 | Q156: 43 | R156: 769 | S156: 171 | T156: 5.1 | U156: 12.7 | V156: No | W156: 2500 | X156: 25000 | Y156: 191 | Z156: 1.1 | AA156: 2024-09-10 | AC156: - | AD156: - | AE156: - | AF156: - | AG156: - | AH156: - | AI156: -
A157: JMSL1018AUQ | B157: Auto-SGT | C157: PDFN3x3-8L | D157: Active | E157: JMSL1018PUQ | F157: N | G157: 100 | H157: 29 | I157: 1.8 | J157: 16.2 | K157: 20 | L157: 20.8 | M157: 27 | N157: - | O157: - | P157: ±20 | Q157: 29 | R157: 769 | S157: 171 | T157: 5.1 | U157: 12.7 | V157: No | W157: 5000 | X157: 50000 | Y157: 206 | Z157: 1.3 | AA157: 2022-12-23 | AC157: IAUT150N10S5N035 | AD157: - | AE157: - | AF157: - | AG157: - | AH157: - | AI157: -
A158: JMSL1018PGQ | B158: Auto-SGT | C158: PDFN5x6-8L | D158: Active | F158: N | G158: 100 | H158: 57 | I158: 1.5 | J158: 13.2 | K158: 17.1 | L158: 17.6 | M158: 22.9 | N158: - | O158: - | P158: ±20 | Q158: 44 | R158: 1015 | S158: 356 | T158: 19 | U158: 18 | V158: No | W158: 5000 | X158: 50000 | Y158: 238 | Z158: 1.1 | AA158: 2025-08-08 | AC158: - | AD158: - | AE158: - | AF158: - | AG158: - | AH158: - | AI158: -
A159: JMSL1018PKQ | B159: Auto-SGT | C159: TO-252-3L | D159: Active | F159: N | G159: 100 | H159: 39 | I159: 1.6 | J159: 13 | K159: 17 | L159: 18 | M159: 23 | N159: - | O159: - | P159: ±20 | Q159: 44 | R159: 1015 | S159: 356 | T159: 19 | U159: 18 | V159: No | W159: 2500 | X159: 25000 | Y159: 234 | Z159: 1.1 | AA159: 2024-12-26 | AC159: - | AD159: - | AE159: - | AF159: - | AG159: - | AH159: - | AI159: -
A160: JMSL1020AGDQ | B160: Auto-SGT | C160: PDFN5x6-8L-D | D160: Active | E160: JMSL1020PGDQ | F160: N+N | G160: 100 | H160: 27 | I160: 1.8 | J160: 16.5 | K160: 20 | L160: 21 | M160: 27 | N160: - | O160: - | P160: ±20 | Q160: 29 | R160: 769 | S160: 171 | T160: 5.1 | U160: 12.7 | V160: No | W160: 5000 | X160: 50000 | Y160: 210 | Z160: 1.3 | AA160: 2022-12-23 | AC160: - | AD160: - | AE160: - | AF160: - | AG160: - | AH160: - | AI160: -
A161: JMSL1020PGDQ | B161: Auto-SGT | C161: PDFN5x6-8L-D | D161: Active | F161: N+N | G161: 100 | H161: 30 | I161: 1.6 | J161: 14 | K161: 18 | L161: 19 | M161: 25 | N161: - | O161: - | P161: ±20 | Q161: 44 | R161: 1015 | S161: 356 | T161: 19 | U161: 18 | V161: No | W161: 5000 | X161: 50000 | Y161: 252 | Z161: 1.1 | AA161: 2024-11-15 | AC161: - | AD161: - | AE161: - | AF161: - | AG161: - | AH161: - | AI161: -
A162: JMSL1040AGDQ | B162: Auto-SGT | C162: PDFN5x6-8L-D | D162: Active | E162: JMSL1040PGDQ | F162: N+N | G162: 100 | H162: 22 | I162: 1.9 | J162: 28 | K162: 36 | L162: 40 | M162: 52 | N162: - | O162: - | P162: ±20 | Q162: 11.3 | R162: 363 | S162: 85 | T162: 3 | U162: 6.8 | V162: No | W162: 5000 | X162: 50000 | Y162: 190 | Z162: 1.1 | AA162: 2023-09-15 | AC162: - | AD162: - | AE162: - | AF162: - | AG162: - | AH162: - | AI162: -
A163: JMSL1040AGQ | B163: Auto-SGT | C163: PDFN5x6-8L | D163: Active | E163: JMSL1040PGQ | F163: N | G163: 100 | H163: 27 | I163: 1.8 | J163: 29 | K163: 36 | L163: 39 | M163: 50 | N163: - | O163: - | P163: ±20 | Q163: 14 | R163: 363 | S163: 85 | T163: 3 | U163: 6.8 | V163: No | W163: 5000 | X163: 50000 | Y163: 197 | Z163: 1.2 | AA163: 2022-12-23 | AC163: - | AD163: - | AE163: - | AF163: - | AG163: - | AH163: - | AI163: -
A164: JMSL1040AUQ | B164: Auto-SGT | C164: PDFN3x3-8L | D164: Active | E164: JMSL1040PUQ | F164: N | G164: 100 | H164: 20 | I164: 1.8 | J164: 29 | K164: 39 | L164: 39 | M164: 50 | N164: - | O164: - | P164: ±20 | Q164: 14 | R164: 363 | S164: 85 | T164: 3 | U164: 6.8 | V164: No | W164: 5000 | X164: 50000 | Y164: 197 | Z164: 1.3 | AA164: 2022-12-23 | AC164: - | AD164: - | AE164: - | AF164: - | AG164: - | AH164: - | AI164: -
A165: JMSL1040AVQ | B165: Auto-SGT | C165: U-DFN2020-6L | D165: Active | E165: JMSL1040MVQ | F165: N | G165: 100 | H165: 10.6 | I165: 1.9 | J165: 29 | K165: 36 | L165: 37 | M165: 48 | N165: - | O165: - | P165: ±20 | Q165: 11.3 | R165: 363 | S165: 85 | T165: 3 | U165: 6.8 | V165: No | W165: 3000 | X165: 30000 | Y165: 197 | Z165: 1.0 | AA165: 2023-04-07 | AC165: - | AD165: - | AE165: - | AF165: - | AG165: - | AH165: - | AI165: -
A166: JMSL1040MUQ | B166: Auto-SGT | C166: PDFN3x3-8L | D166: Active | F166: N | G166: 100 | H166: 32 | I166: 1.8 | J166: 25 | K166: 32 | L166: 32 | M166: 42 | N166: - | O166: - | P166: ±20 | Q166: 36 | R166: 513 | S166: 182 | T166: 12 | U166: 10 | V166: No | W166: 5000 | X166: 50000 | Y166: 250 | Z166: 1.0 | AA166: 2025-09-04 | AC166: - | AD166: - | AE166: - | AF166: - | AG166: - | AH166: - | AI166: -
A167: JMSL1040MUDQ | B167: Auto-SGT | C167: PDFN3x3-8L-D | D167: Active | F167: N+N | G167: 100 | H167: 19 | I167: 1.6 | J167: 29 | K167: 37 | L167: 38 | M167: 49 | N167: - | O167: - | P167: ±20 | Q167: 26 | R167: 533 | S167: 186 | T167: 11 | U167: 10 | V167: No | W167: 5000 | X167: 50000 | Y167: 290 | Z167: 1.0 | AA167: 2025-09-04 | AC167: - | AD167: - | AE167: - | AF167: - | AG167: - | AH167: - | AI167: -
A168: JMSL1040PGDQ | B168: Auto-SGT | C168: PDFN5x6-8L-D | D168: Active | F168: N+N | G168: 100 | H168: 18 | I168: 1.8 | J168: 29 | K168: 37 | L168: 36 | M168: 46 | N168: - | O168: - | P168: ±20 | Q168: 47 | R168: 749 | S168: 117 | T168: 10.4 | U168: 13 | V168: No | W168: 5000 | X168: 50000 | Y168: =J168*U168 -> 377 | Z168: 1.1 | AA168: 2024-11-15 | AC168: - | AD168: - | AE168: - | AF168: - | AG168: - | AH168: - | AI168: -
A169: JMSL1040PGQ | B169: Auto-SGT | C169: PDFN5x6-8L | D169: Active | F169: N | G169: 100 | H169: 35 | I169: 1.8 | J169: 24 | K169: 31 | L169: 30 | M169: 39 | N169: - | O169: - | P169: ±20 | Q169: 47 | R169: 749 | S169: 117 | T169: 10.4 | U169: 13 | V169: No | W169: 5000 | X169: 50000 | Y169: 312 | Z169: 1.1 | AA169: 2024-06-03 | AC169: - | AD169: - | AE169: - | AF169: - | AG169: - | AH169: - | AI169: -
A170: JMSH1504AEQ | B170: Auto-SGT | C170: TO-263-3L | D170: Active | E170: JMSH1504PEQ | F170: N | G170: 150 | H170: 210 | I170: 3.2 | J170: 3.9 | K170: 4.9 | L170: - | M170: - | N170: - | O170: - | P170: ±20 | Q170: 889 | R170: 6540 | S170: 772 | T170: 6.7 | U170: 88 | V170: No | W170: 800 | X170: 4000 | Y170: 343 | Z170: 1.0 | AA170: 2022-04-28 | AC170: AUIRFS4115-7P | AD170: FDB075N15A_F085 | AE170: - | AF170: - | AG170: - | AH170: - | AI170: -
A171: JMSH1504ASQ | B171: Auto-SGT | C171: TO-247-3L | D171: Active | E171: JMSH1504PSQ | F171: N | G171: 150 | H171: 230 | I171: 3.2 | J171: 4 | K171: 4.9 | L171: - | M171: - | N171: - | O171: - | P171: ±20 | Q171: 889 | R171: 6540 | S171: 772 | T171: 6.7 | U171: 88 | V171: No | W171: 30 | X171: 2250 | Y171: 352 | Z171: 1.1 | AA171: 2022-11-09 | AC171: - | AD171: - | AE171: - | AF171: - | AG171: - | AH171: - | AI171: -
A172: JMSH1504ATLQ | B172: Auto-SGT | C172: PowerJE®10x12 | D172: Active | E172: JMSH1504NTLQ | F172: N | G172: 150 | H172: 227 | I172: 3.2 | J172: 3.3 | K172: 4.2 | L172: - | M172: - | N172: - | O172: - | P172: ±20 | Q172: 800 | R172: 6540 | S172: 772 | T172: 6.7 | U172: 88 | V172: No | W172: 2000 | X172: 10000 | Y172: 290 | Z172: 1.0 | AA172: 2022-06-21 | AC172: IPB072N15N3G | AD172: FDB075N15A | AE172: - | AF172: - | AG172: - | AH172: - | AI172: SVGP157R2NSTR
A173: JMSH1507AEQ | B173: Auto-SGT | C173: TO-263-3L | D173: Active | E173: JMSH1507PEQ | F173: N | G173: 150 | H173: 161 | I173: 3.2 | J173: 5.2 | K173: 6.5 | L173: - | M173: - | N173: - | O173: - | P173: ±20 | Q173: 540 | R173: 4320 | S173: 535 | T173: 7.2 | U173: 68 | V173: No | W173: 800 | X173: 4000 | Y173: 354 | Z173: 1.3 | AA173: 2024-04-01 | AC173: - | AD173: - | AE173: - | AF173: - | AG173: - | AH173: - | AI173: -
A174: JMSH1508AEQ | B174: Auto-SGT | C174: TO-263-3L | D174: Active | E174: JMSH1507PEQ | F174: N | G174: 150 | H174: 117 | I174: 3.2 | J174: 6.7 | K174: 8.4 | L174: - | M174: - | N174: - | O174: - | P174: ±20 | Q174: 265 | R174: 3395 | S174: 457 | T174: 17 | U174: 47 | V174: No | W174: 800 | X174: 4000 | Y174: 315 | Z174: 1.1 | AA174: 2022-06-08 | AC174: - | AD174: - | AE174: - | AF174: - | AG174: - | AH174: - | AI174: -
A175: JMSH1504PEQ | B175: Auto-SGT | C175: TO-263-3L | D175: Active | F175: N | G175: 150 | H175: 178 | I175: 3.2 | J175: 3.7 | K175: 4.8 | L175: - | M175: - | N175: - | O175: - | P175: ±20 | Q175: 1359 | R175: 9158 | S175: 773 | T175: 20 | U175: 129 | V175: No | W175: 800 | X175: 4000 | Y175: 477 | Z175: 1.0 | AA175: 2025-11-11
A176: JMSH1509AGQ | B176: Auto-SGT | C176: PDFN5x6-8L | D176: Active | E176: JMSH1509PGQ | F176: N | G176: 150 | H176: 87 | I176: 3.2 | J176: 8.5 | K176: 9.9 | L176: - | M176: - | N176: - | O176: - | P176: ±20 | Q176: 331 | R176: 2181 | S176: 363 | T176: 7.9 | U176: 30 | V176: No | W176: 5000 | X176: 50000 | Y176: =J176*U176 -> 255 | Z176: 1.3 | AA176: 2022-12-24 | AC176: - | AD176: - | AE176: - | AF176: - | AG176: - | AH176: - | AI176: -
A177: JMSH1535AGQ | B177: Auto-SGT | C177: PDFN5x6-8L | D177: Active | F177: N | G177: 150 | H177: 29 | I177: 3.3 | J177: 27 | K177: 35 | L177: - | M177: - | N177: - | O177: - | P177: ±20 | Q177: 48 | R177: 760 | S177: 113 | T177: 23 | U177: 12.3 | V177: No | W177: 5000 | X177: 50000 | Y177: =J177*U177 -> 332 | Z177: 1.1 | AA177: 2022-12-24 | AC177: AUIRFR4615 | AD177: FDD86250_F085 | AE177: - | AF177: - | AG177: - | AH177: - | AI177: -
A178: JMSH1552PGWQ | B178: Auto-SGT | C178: PDFN5x6-8L-W | D178: Active | F178: N | G178: 150 | H178: 25 | I178: 3.3 | J178: 48 | K178: 62 | L178: - | M178: - | N178: - | O178: - | P178: ±20 | Q178: 60 | R178: 753 | S178: 77 | T178: 12 | U178: 11 | V178: No | W178: 5000 | X178: 50000 | Y178: 528 | Z178: 1.0 | AA178: 2025-09-04 | AC178: - | AD178: - | AE178: - | AF178: - | AG178: - | AH178: - | AI178: -
A179: JMSH1552PKQ | B179: Auto-SGT | C179: TO-252-3L | D179: Active | F179: N | G179: 150 | H179: 17 | I179: 3.7 | J179: 50 | K179: 65 | L179: - | M179: - | N179: - | O179: - | P179: ±20 | Q179: 60 | R179: 753 | S179: 77 | T179: 12 | U179: 11 | V179: No | W179: 2500 | X179: 25000 | Y179: 550 | Z179: 1.0 | AA179: 2025-09-04 | AC179: - | AD179: - | AE179: - | AF179: - | AG179: - | AH179: - | AI179: -
A180: JMSH1504NCQ | B180: Auto-SGT | C180: TO-220-3L | D180: Active | F180: N | G180: 150 | H180: 162 | I180: 3.6 | J180: 3.9 | K180: 5.1 | L180: - | M180: - | N180: - | O180: - | P180: ±20 | Q180: 1176 | R180: 8537 | S180: 783 | T180: 20 | U180: 122 | V180: No | W180: 1000 | X180: 5000 | Y180: 476 | Z180: 1.0 | AA180: 2025-11-11
A181: JMSH1509PGQ | B181: Auto-SGT | C181: PDFN5x6-8L | D181: Active | F181: N | G181: 150 | H181: 77.0 | I181: 2.9 | J181: 10.3 | K181: 13.4 | L181: - | M181: - | N181: - | O181: - | P181: ±20 | Q181: 423 | R181: 2542 | S181: 338 | T181: 19 | U181: 37 | V181: No | W181: 5000 | X181: 50000 | Y181: 381 | Z181: 1.0 | AA181: 2025-11-11
A182: JMSH1565AKSQ | B182: Auto-SGT | C182: TO-252-3L | D182: Active | E182: JMSH1552PKQ | F182: N | G182: 150 | H182: 26 | I182: 3.2 | J182: 52 | K182: 65 | L182: - | M182: - | N182: - | O182: - | P182: ±20 | Q182: 39 | R182: 306 | S182: 70 | T182: 3.8 | U182: 5.3 | V182: No | W182: 2500 | X182: 25000 | Y182: =J182*U182 -> 276 | Z182: 1.0 | AA182: 2023-03-10 | AC182: - | AD182: - | AE182: - | AF182: - | AG182: - | AH182: - | AI182: -
A183: JMSH1566AKQ | B183: Auto-SGT | C183: TO-252-3L | D183: Active | E183: JMSH1552PKQ | F183: N | G183: 150 | H183: 20 | I183: 3.2 | J183: 57 | K183: 72 | L183: - | M183: - | N183: - | O183: - | P183: ±20 | Q183: 10.5 | R183: 360 | S183: 54 | T183: 3.8 | U183: 5.9 | V183: No | W183: 2500 | X183: 25000 | Y183: 336 | Z183: 1.0 | AA183: 2023-09-27 | AC183: - | AD183: - | AE183: - | AF183: - | AG183: - | AH183: - | AI183: -
A184: JMSH2010PCQ | B184: Auto-SGT | C184: TO-220-3L | D184: Active | F184: N | G184: 200 | H184: 100 | I184: 3.0 | J184: 8.6 | K184: 11.2 | L184: - | M184: - | N184: - | O184: - | P184: ±20 | Q184: 494 | R184: 8788 | S184: 455 | T184: 17 | U184: 60 | V184: No | W184: 1000 | X184: 5000 | Y184: 516 | Z184: 1.1 | AA184: 2024-12-26 | AC184: - | AD184: - | AE184: - | AF184: - | AG184: - | AH184: - | AI184: -
A185: JMSH2010PEQ | B185: Auto-SGT | C185: TO-263-3L | D185: Active | F185: N | G185: 200 | H185: 106 | I185: 3.1 | J185: 8.7 | K185: 11 | L185: - | M185: - | N185: - | O185: - | P185: ±20 | Q185: 1006 | R185: 4091 | S185: 430 | T185: 11 | U185: 60 | V185: No | W185: 800 | X185: 4000 | Y185: 522 | Z185: 1.0 | AA185: 2025-12-02
A186: JMSH2010PSQ | B186: Auto-SGT | C186: TO-247-3L | D186: Active | F186: N | G186: 200 | H186: 111 | I186: 3.0 | J186: 8.6 | K186: 11.2 | L186: - | M186: - | N186: - | O186: - | P186: ±20 | Q186: 494 | R186: 8788 | S186: 455 | T186: 17 | U186: 60 | V186: No | W186: 30 | X186: 2250 | Y186: 516 | Z186: 1.0 | AA186: 2025-12-02
A187: JMTL2N7002KSQ | B187: Auto-Trench | C187: SOT-23 | D187: Active | F187: N | G187: 60 | H187: 0.8 | I187: 1.5 | J187: 577 | K187: 750 | L187: 650 | M187: 845 | N187: - | O187: - | P187: ±20 | Q187: - | R187: 55 | S187: 12.2 | T187: 6.8 | U187: 1.9 | V187: No | W187: 3000 | X187: 120000 | Y187: 1,096 | Z187: 1.2 | AA187: 2025-09-04 | AC187: - | AD187: - | AE187: - | AF187: - | AG187: - | AH187: - | AI187: -
A188: JMTK330N06AQ | B188: Auto-Trench | C188: TO-252-3L | D188: Active | F188: N | G188: 60 | H188: 24 | I188: 1.6 | J188: 28 | K188: 33.0 | L188: 31 | M188: 45 | N188: - | O188: - | P188: ±20 | Q188: 24 | R188: 1187 | S188: 56 | T188: 47 | U188: 24 | V188: No | W188: 2500 | X188: 25000 | Y188: 672 | Z188: 1.0 | AA188: 2025-12-02
A189: JMH65R040ASFDQ | B189: Auto-SJ | C189: TO-247-3L | D189: NRND | F189: N | G189: 650 | H189: 71 | I189: 4 | J189: 35 | K189: 40 | L189: - | M189: - | N189: - | O189: - | P189: ±20 | Q189: 1125 | R189: 6843 | S189: 250 | T189: 4.3 | U189: 163 | V189: No | W189: 30 | X189: 2250 | Y189: =J189*U189 -> 5,705 | Z189: 1.0 | AA189: 2023-01-31 | AC189: - | AD189: - | AE189: - | AF189: - | AG189: - | AH189: - | AI189: -
A190: JMH65R110ACFDQ | B190: Auto-SJ | C190: TO-220-3L | D190: NRND | F190: N | G190: 650 | H190: 35 | I190: 3.5 | J190: 99 | K190: 110 | L190: - | M190: - | N190: - | O190: - | P190: ±30 | Q190: 500 | R190: 2869 | S190: 93 | T190: 5.4 | U190: 72 | V190: No | W190: 1000 | X190: 5000 | Y190: 7,128 | Z190: 1.1 | AA190: 2024-04-25 | AC190: - | AD190: - | AE190: - | AF190: - | AG190: - | AH190: - | AI190: -
A191: JMH65R110AEFDQ | B191: Auto-SJ | C191: TO-263-3L | D191: NRND | F191: N | G191: 650 | H191: 35 | I191: 3.5 | J191: 98 | K191: 110 | L191: - | M191: - | N191: - | O191: - | P191: ±30 | Q191: 500 | R191: 2869 | S191: 93 | T191: 5.4 | U191: 72 | V191: No | W191: 800 | X191: 4000 | Y191: 7,056 | Z191: 1.0 | AA191: 2023-05-10 | AC191: - | AD191: - | AE191: - | AF191: - | AG191: - | AH191: - | AI191: -
A192: JMPL1025AE | B192: SGT | C192: TO-263-3L | D192: Active | F192: P | G192: -100 | H192: -49 | I192: -2.0 | J192: 21.0 | K192: 25.0 | L192: 29 | M192: 38.0 | N192: - | O192: - | P192: ±20 | Q192: 304.0 | R192: 2,525 | S192: 427.0 | T192: 32.0 | U192: 37.0 | V192: No | W192: 800 | X192: 4,000 | Y192: 777 | Z192: 1.4 | AA192: 2024-04-01 | AC192: - | AD192: - | AE192: - | AF192: - | AG192: - | AH192: - | AI192: -
A193: JMPL1025AK | B193: SGT | C193: TO-252-3L | D193: Active | F193: P | G193: -100 | H193: -46 | I193: -2.0 | J193: 22.0 | K193: 28.0 | L193: 31 | M193: 40.0 | N193: - | O193: - | P193: ±20 | Q193: 304.0 | R193: 2,525 | S193: 427.0 | T193: 32.0 | U193: 37.0 | V193: No | W193: 2,500 | X193: 25,000 | Y193: 814 | Z193: 2.0 | AA193: 2022-11-21 | AC193: - | AD193: - | AE193: - | AF193: - | AG193: - | AH193: - | AI193: -
A194: JMPL1025PE | B194: SGT | C194: TO-263-3L | D194: Active | F194: P | G194: -100 | H194: -56 | I194: -1.7 | J194: 18.0 | K194: 24.0 | L194: 24 | M194: 31.0 | N194: - | O194: - | P194: ±20 | Q194: 423.0 | R194: 3,063 | S194: 545.0 | T194: 33.0 | U194: 52.0 | V194: No | W194: 800 | X194: 4,000 | Y194: 936 | Z194: 1.0 | AA194: 2025-08-27 | AC194: - | AD194: - | AE194: - | AF194: - | AG194: - | AH194: - | AI194: -
A195: JMPL1050AE | B195: SGT | C195: TO-263-3L | D195: Active | F195: P | G195: -100 | H195: -36 | I195: -2.0 | J195: 36.0 | K195: 50.0 | L195: 50 | M195: 66.0 | N195: - | O195: - | P195: ±20 | Q195: 109.0 | R195: 1,412 | S195: 222.0 | T195: 2.6 | U195: 20.0 | V195: No | W195: 800 | X195: 4,000 | Y195: =J195*U195 -> 720 | Z195: 1.1 | AA195: 2023-04-07 | AC195: - | AD195: - | AE195: - | AF195: - | AG195: - | AH195: - | AI195: -
A196: JMPL1050AG | B196: SGT | C196: PDFN5x6-8L | D196: Active | F196: P | G196: -100 | H196: -27 | I196: -2.0 | J196: 36.0 | K196: 50.0 | L196: 48 | M196: 65.0 | N196: - | O196: - | P196: ±20 | Q196: 109.0 | R196: 1,412 | S196: 222.0 | T196: 2.6 | U196: 20.0 | V196: No | W196: 5,000 | X196: 50,000 | Y196: 720 | Z196: 1.3 | AA196: 2022-12-24 | AC196: - | AD196: - | AE196: - | AF196: - | AG196: - | AH196: - | AI196: -
A197: JMPL1050AK | B197: SGT | C197: TO-252-3L | D197: Active | F197: P | G197: -100 | H197: -30 | I197: -2.0 | J197: 37.0 | K197: 50.0 | L197: 50 | M197: 66.0 | N197: - | O197: - | P197: ±20 | Q197: 109.0 | R197: 1,412 | S197: 222.0 | T197: 2.6 | U197: 20.0 | V197: No | W197: 2,500 | X197: 25,000 | Y197: 740 | Z197: 1.1 | AA197: 2022-09-02 | AC197: - | AD197: FDMC86139P | AE197: - | AF197: - | AG197: - | AH197: - | AI197: -
A198: JMPL1050AP | B198: SGT | C198: SOP-8 | D198: Active | F198: P | G198: -100 | H198: -6.3 | I198: -2.0 | J198: 36.0 | K198: 50.0 | L198: 57 | M198: 70.0 | N198: - | O198: - | P198: ±20 | Q198: 109.0 | R198: 1,412 | S198: 222.0 | T198: 2.6 | U198: 20.0 | V198: No | W198: 2,500 | X198: 30,000 | Y198: 720 | Z198: 1.0 | AA198: 2022-05-29 | AC198: - | AD198: - | AE198: - | AF198: - | AG198: - | AH198: - | AI198: -
A199: JMPL1050APD | B199: SGT | C199: SOP-8 | D199: Active | F199: P+P | G199: -100 | H199: -6.6 | I199: -2.0 | J199: 39.0 | K199: 50.0 | L199: 57 | M199: 70.0 | N199: - | O199: - | P199: ±20 | Q199: 109.0 | R199: 1,412 | S199: 222.0 | T199: 2.6 | U199: 20.0 | V199: No | W199: 4,000 | X199: 48,000 | Y199: 780 | Z199: 1.0 | AA199: 2023-04-07 | AC199: - | AD199: - | AE199: - | AF199: - | AG199: - | AH199: - | AI199: -
A200: JMPL1050AU | B200: SGT | C200: PDFN3x3-8L | D200: Active | F200: P | G200: -100 | H200: -26 | I200: -2.0 | J200: 38.0 | K200: 50.0 | L200: 51 | M200: 66.0 | N200: - | O200: - | P200: ±20 | Q200: 109.0 | R200: 1,412 | S200: 222.0 | T200: 2.6 | U200: 20.0 | V200: No | W200: 5,000 | X200: 50,000 | Y200: 760 | Z200: 1.2 | AA200: 2022-12-24 | AC200: - | AD200: - | AE200: - | AF200: - | AG200: - | AH200: - | AI200: -
... 957 more rows

Sheet Auto-grade MOSFETs
A1: MOSFET Selection Guide: Date of Release - Dec. 9, 2025
A2: Technologies: Shielded Gate ; Auto-grade ; JPFETâ / JSFETâ Series
A3: Product Name | B3: Platform | C3: JJM Package | D3: Status | E3: Recommended Product Name | F3: Confi- guration | G3: VDS_Max | H3: ID_Max | I3: VGS_Typ | J3: RDS_Typ @ VGS = 10V | K3: RDS_Max @ VGS = 10V | L3: RDS_Typ @ VGS = 4.5V | M3: RDS_Max @ VGS = 4.5V | N3: RDS_Typ @ VGS = 2.5V | O3: RDS_Max @ VGS = 2.5V | P3: VGS_Max | Q3: EAS_Max | R3: Ciss_Typ | S3: Coss_Typ | T3: Crss_Typ | U3: Qg_Typ | V3: ESD | W3: MPQ | X3: MOQ | Y3: FOM | Z3: DataSheet Version | AA3: Date of Update | AC3: Compatible to Infineon's Product | AD3: Compatible to onsemi's Product | AE3: Compatible to ST's Product | AF3: Compatible to AOS' Product | AG3: Compatible to Nexperia's Product | AH3: Compatible to Toshiba's Product | AI3: Domestic Competition
A4: JMPL1050AGQ | B4: Auto-SGT | C4: PDFN5x6-8L | D4: Active | E4: JMPL1050PGQ | F4: P | G4: -100 | H4: -30 | I4: -2 | J4: 36 | K4: 50 | L4: 48 | M4: 65 | N4: - | O4: - | P4: ±20 | Q4: 109 | R4: 1412 | S4: 222 | T4: 2.6 | U4: 20 | V4: No | W4: 5000 | X4: 50000 | Y4: =J4*U4 -> 720 | Z4: 1.2 | AA4: 2022-12-13 | AC4: - | AD4: - | AE4: - | AF4: - | AG4: - | AH4: - | AI4: -
A5: JMPL1050AKQ | B5: Auto-SGT | C5: TO-252-3L | D5: Active | E5: JMPL1050PKQ | F5: P | G5: -100 | H5: -36 | I5: -2 | J5: 37 | K5: 50 | L5: 50 | M5: 66 | N5: - | O5: - | P5: ±20 | Q5: 109 | R5: 1412 | S5: 222 | T5: 2.6 | U5: 20 | V5: No | W5: 2500 | X5: 25000 | Y5: 740 | Z5: 1.0 | AA5: 2024-03-27 | AC5: - | AD5: - | AE5: - | AF5: - | AG5: - | AH5: - | AI5: -
A6: JMPL1050AUQ | B6: Auto-SGT | C6: PDFN3x3-8L | D6: Active | E6: JMPL1050PUQ | F6: P | G6: -100 | H6: -27 | I6: -2 | J6: 38 | K6: 50 | L6: 51 | M6: 66 | N6: - | O6: - | P6: ±20 | Q6: 109 | R6: 1412 | S6: 222 | T6: 2.6 | U6: 20 | V6: No | W6: 5000 | X6: 50000 | Y6: 760 | Z6: 1.1 | AA6: 2023-02-01 | AC6: - | AD6: - | AE6: - | AF6: - | AG6: - | AH6: - | AI6: -
A7: JMPL1050PGQ | B7: Auto-SGT | C7: PDFN5X6-8L | D7: Active | F7: P | G7: -100 | H7: -30 | I7: -1.8 | J7: 36 | K7: 50 | L7: 49 | M7: 64 | N7: - | O7: - | P7: ±20 | Q7: 144 | R7: 1535 | S7: 282 | T7: 20 | U7: 26 | V7: No | W7: 5000 | X7: 50000 | Y7: 936 | Z7: 1.0 | AA7: 2025-11-14
A8: JMPL1050PKQ | B8: Auto-SGT | C8: TO-252-3L | D8: Active | F8: P | G8: -100 | H8: -23 | I8: -1.7 | J8: 38.1 | K8: 49.5 | L8: 49.5 | M8: 64.3 | N8: - | O8: - | P8: ±20 | Q8: 144 | R8: 1497 | S8: 271 | T8: 19 | U8: 25 | V8: No | W8: 2500 | X8: 25000 | Y8: 953 | Z8: 1.1 | AA8: 2025-12-02
A9: JMPL0648PKQ | B9: Auto-SGT | C9: TO-252-3L | D9: Active | F9: P | G9: -60 | H9: -22 | I9: -1.9 | J9: 35 | K9: 46 | L9: 48 | M9: 62 | N9: - | O9: - | P9: ±20 | Q9: 74 | R9: 951 | S9: 174 | T9: 9 | U9: 14.4 | V9: No | W9: 2500 | X9: 25000 | Y9: =J9*U9 -> 504 | Z9: 1.4 | AA9: 2024-06-03 | AC9: - | AD9: - | AE9: - | AF9: - | AG9: - | AH9: - | AI9: -
A10: JMSH0401AGQ | B10: Auto-SGT | C10: PDFN5x6-8L | D10: Active | E10: JMSH0401MGQ | F10: N | G10: 40 | H10: 197 | I10: 2.8 | J10: 1.3 | K10: 1.7 | L10: - | M10: - | N10: - | O10: - | P10: ±20 | Q10: 194 | R10: 3015 | S10: 2000 | T10: 18 | U10: 42 | V10: No | W10: 5000 | X10: 50000 | Y10: 55 | Z10: 2.6 | AA10: 2024-11-13 | AC10: - | AD10: - | AE10: - | AF10: - | AG10: - | AH10: - | AI10: -
A11: JMSH0401ATLQ | B11: Auto-SGT | C11: PowerJE®10x12 | D11: Active | E11: JMSH0401PTLQ | F11: N | G11: 40 | H11: 337 | I11: 2.8 | J11: 1 | K11: 1.25 | L11: - | M11: - | N11: - | O11: - | P11: ±20 | Q11: 317 | R11: 5280 | S11: 3405 | T11: 71 | U11: 68 | V11: No | W11: 2000 | X11: 10000 | Y11: 68 | Z11: 1.2 | AA11: 2024-12-26 | AC11: IAUC45N04S6N070H | AD11: NVMFD5C466NL | AE11: STL76DN4LF7AG | AF11: - | AG11: BUK7K6R2-40E | AH11: - | AI11: -
A12: JMSH0401ATSQ | B12: Auto-SGT | C12: PowerJE®7x8 | D12: Active | E12: JMSH0401PTSQ | F12: N | G12: 40 | H12: 352 | I12: 2.8 | J12: 0.9 | K12: 1.1 | L12: - | M12: - | N12: - | O12: - | P12: ±20 | Q12: 441 | R12: 5214 | S12: 3396 | T12: 46 | U12: 66 | V12: No | W12: 2000 | X12: 10000 | Y12: 59 | Z12: 1.6 | AA12: 2025-03-03 | AC12: - | AD12: - | AE12: - | AF12: - | AG12: - | AH12: - | AI12: -
A13: JMSH0401BGQ | B13: Auto-SGT | C13: PDFN5x6-8L | D13: Active | E13: JMSH0401PGQ | F13: N | G13: 40 | H13: 276 | I13: 2.8 | J13: 0.9 | K13: 1.1 | L13: - | M13: - | N13: - | O13: - | P13: ±20 | Q13: 441 | R13: 5280 | S13: 3405 | T13: 71 | U13: 68 | V13: No | W13: 5000 | X13: 50000 | Y13: 61 | Z13: 1.3 | AA13: 2024-11-13 | AC13: - | AD13: - | AE13: - | AF13: - | AG13: - | AH13: - | AI13: -
A14: JMSH0401CGQ | B14: Auto-SGT | C14: PDFN5x6-8L | D14: Active | E14: JMSH0401NGQ | F14: N | G14: 40 | H14: 252 | I14: 2.8 | J14: 1.1 | K14: 1.4 | L14: - | M14: - | N14: - | O14: - | P14: ±20 | Q14: 600 | R14: 5304 | S14: 3832 | T14: 78 | U14: 71 | V14: No | W14: 5000 | X14: 50000 | Y14: 78 | Z14: 1.1 | AA14: 2022-12-25 | AC14: - | AD14: - | AE14: - | AF14: - | AG14: - | AH14: - | AI14: -
A15: JMSH0401MGQ | B15: Auto-SGT | C15: PDFN5X6-8L | D15: Active | F15: N | G15: 40 | H15: 223 | I15: 2.7 | J15: 1.4 | K15: 1.7 | L15: - | M15: - | N15: - | O15: - | P15: ±20 | Q15: 459 | R15: 3625 | S15: 1979 | T15: 158 | U15: 59 | V15: No | W15: 5000 | X15: 50000 | Y15: 83 | Z15: 1.5 | AA15: 2024-12-26 | AC15: IPD90N04S402ATMA1 | AD15: FDD9409L_F085 | AE15: - | AF15: - | AG15: - | AH15: - | AI15: -
A16: JMSH0401PGQ | B16: Auto-SGT | C16: PDFN5X6-8L | D16: Active | F16: N | G16: 40 | H16: 323 | I16: 2.7 | J16: 0.8 | K16: 1 | L16: - | M16: - | N16: - | O16: - | P16: ±20 | Q16: 662 | R16: 5693 | S16: 3673 | T16: 301 | U16: 90 | V16: No | W16: 5000 | X16: 50000 | Y16: 72 | Z16: 1.5 | AA16: 2024-05-27 | AC16: - | AD16: - | AE16: - | AF16: - | AG16: - | AH16: - | AI16: -
A17: JMSH0401PTSQ | B17: Auto-SGT | C17: PowerJE®7x8 | D17: Active | F17: N | G17: 40 | H17: 381 | I17: 2.6 | J17: 0.9 | K17: 1.1 | L17: - | M17: - | N17: - | O17: - | P17: ±20 | Q17: 662 | R17: 5693 | S17: 3673 | T17: 301 | U17: 90 | V17: No | W17: 2000 | X17: 10000 | Y17: 81 | Z17: 1.3 | AA17: 2024-09-05 | AC17: - | AD17: - | AE17: - | AF17: - | AG17: - | AH17: - | AI17: -
A18: JMSH0402AEQ | B18: Auto-SGT | C18: TO-263-3L | D18: Active | E18: JMSH0402PEQ | F18: N | G18: 40 | H18: 253 | I18: 2.8 | J18: 1.3 | K18: 1.7 | L18: - | M18: - | N18: - | O18: - | P18: ±20 | Q18: 726 | R18: 5280 | S18: 3405 | T18: 71 | U18: 68 | V18: No | W18: 800 | X18: 4000 | Y18: 88 | Z18: 1.0 | AA18: 2023-06-21 | AC18: - | AD18: - | AE18: - | AF18: - | AG18: - | AH18: - | AI18: -
A19: JMSH0402AGQ | B19: Auto-SGT | C19: PDFN5x6-8L | D19: Active | E19: JMSH0402MGQ | F19: N | G19: 40 | H19: 182 | I19: 2.8 | J19: 1.6 | K19: 2 | L19: - | M19: - | N19: - | O19: - | P19: ±20 | Q19: 194 | R19: 3020 | S19: 2013 | T19: 25 | U19: 41 | V19: No | W19: 5000 | X19: 50000 | Y19: 66 | Z19: 1.2 | AA19: 2024-09-05 | AC19: - | AD19: - | AE19: - | AF19: - | AG19: - | AH19: - | AI19: -
A20: JMSH0402AKQ | B20: Auto-SGT | C20: TO-252-3L | D20: Active | E20: JMSH0402PKQ | F20: N | G20: 40 | H20: 170 | I20: 2.8 | J20: 2 | K20: 2.5 | L20: - | M20: - | N20: - | O20: - | P20: ±20 | Q20: 194 | R20: 3020 | S20: 2013 | T20: 25 | U20: 41 | V20: No | W20: 2500 | X20: 25000 | Y20: 82 | Z20: 1.2 | AA20: 2022-11-21 | AC20: IPC70N04S5-4R6 | AD20: - | AE20: STL70N4LLF5 | AF20: - | AG20: BUK9Y7R6-40E | AH20: - | AI20: -
A21: JMSH0402BGQ | B21: Auto-SGT | C21: PDFN5x6-8L | D21: Active | E21: JMSH0402TGQ | F21: N | G21: 40 | H21: 166 | I21: 2.8 | J21: 2 | K21: 2.5 | L21: - | M21: - | N21: - | O21: - | P21: ±20 | Q21: 294 | R21: 2094 | S21: 1922 | T21: 100 | U21: 33 | V21: No | W21: 5000 | X21: 50000 | Y21: 66 | Z21: 1.1 | AA21: 2023-03-16 | AC21: - | AD21: - | AE21: - | AF21: - | AG21: - | AH21: - | AI21: -
A22: JMSH0403AGHWQ | B22: Auto-SGT | C22: PDFN5x6-8L-HW | D22: Active | E22: JMSH0403PGHWQ | F22: N+N | G22: 40 | H22: 111 | I22: 2.8 | J22: 2.7 | K22: 3.3 | L22: - | M22: - | N22: - | O22: - | P22: ±20 | Q22: 182 | R22: 1715 | S22: 894 | T22: 54 | U22: 25 | V22: No | W22: 5000 | X22: 50000 | Y22: 68 | Z22: 1.0 | AA22: 2024-01-08 | AC22: - | AD22: - | AE22: - | AF22: - | AG22: - | AH22: - | AI22: -
A23: JMSH0403AGQ | B23: Auto-SGT | C23: PDFN5x6-8L | D23: Active | E23: JMSH0403PGQ | F23: N | G23: 40 | H23: 121 | I23: 2.8 | J23: 2.7 | K23: 3.4 | L23: - | M23: - | N23: - | O23: - | P23: ±20 | Q23: 216 | R23: 1542 | S23: 1020 | T23: 43 | U23: 22 | V23: No | W23: 5000 | X23: 50000 | Y23: 59 | Z23: 1.2 | AA23: 2024-12-26 | AC23: IPD75N04S4-06 | AD23: NVD5C464NL | AE23: STD95N4F3 | AF23: - | AG23: - | AH23: TK65S04N1L | AI23: -
A24: JMSH0403BGQ | B24: Auto-SGT | C24: PDFN5x6-8L | D24: Active | E24: JMSH0403RGQ | F24: N | G24: 40 | H24: 145 | I24: 2.8 | J24: 2.2 | K24: 2.8 | L24: - | M24: - | N24: - | O24: - | P24: ±20 | Q24: 216 | R24: 2086 | S24: 1150 | T24: 60 | U24: 28 | V24: No | W24: 5000 | X24: 50000 | Y24: 62 | Z24: 1.1 | AA24: 2022-12-25 | AC24: - | AD24: - | AE24: - | AF24: - | AG24: - | AH24: - | AI24: -
A25: JMSH0403PGHWQ | B25: Auto-SGT | C25: PDFN5X6-8L-HW | D25: Active | F25: N+N | G25: 40 | H25: 140 | I25: 3.1 | J25: 3 | K25: 3.6 | L25: - | M25: - | N25: - | O25: - | P25: ±20 | Q25: 238 | R25: 1976 | S25: 1198 | T25: 110 | U25: 33 | V25: No | W25: 5000 | X25: 50000 | Y25: 99 | Z25: 1.3 | AA25: 2024-10-16 | AC25: - | AD25: - | AE25: - | AF25: - | AG25: - | AH25: - | AI25: -
A26: JMSH0403PGQ | B26: Auto-SGT | C26: PDFN5x6-8L | D26: Active | F26: N | G26: 40 | H26: 137 | I26: 2.8 | J26: 2.8 | K26: 3.7 | L26: - | M26: - | N26: - | O26: - | P26: ±20 | Q26: 212 | R26: 1958 | S26: 1246 | T26: 91 | U26: 30 | V26: No | W26: 5000 | X26: 50000 | Y26: 84 | Z26: 1.3 | AA26: 2025-09-05 | AC26: - | AD26: - | AE26: - | AF26: - | AG26: - | AH26: - | AI26: -
A27: JMSH0406AGDQ | B27: Auto-SGT | C27: PDFN5x6-8L-D | D27: Active | E27: JMSH0406PGDQ | F27: N+N | G27: 40 | H27: 68 | I27: 2.8 | J27: 5.2 | K27: 6.5 | L27: - | M27: - | N27: - | O27: - | P27: ±20 | Q27: 96 | R27: 1027 | S27: 662 | T27: 105 | U27: 14.9 | V27: No | W27: 5000 | X27: 50000 | Y27: 77 | Z27: 1.2 | AA27: 2024-11-13 | AC27: IPC100N04S5L-1R9 | AD27: NVMFS5C423NL | AE27: STL190N4F7AG | AF27: - | AG27: BUK9Y1R9-40H | AH27: - | AI27: -
A28: JMSH0406AGQ | B28: Auto-SGT | C28: PDFN5x6-8L | D28: Active | E28: JMSH0406PGQ | F28: N | G28: 40 | H28: 90 | I28: 2.8 | J28: 4.1 | K28: 5.1 | L28: - | M28: - | N28: - | O28: - | P28: ±20 | Q28: 96 | R28: 1027 | S28: 662 | T28: 105 | U28: 14.9 | V28: No | W28: 5000 | X28: 50000 | Y28: 61 | Z28: 1.3 | AA28: 2024-11-13 | AC28: - | AD28: - | AE28: - | AF28: - | AG28: - | AH28: - | AI28: -
A29: JMSH0406AKQ | B29: Auto-SGT | C29: TO-252-3L | D29: Active | E29: JMSH0406PKQ | F29: N | G29: 40 | H29: 73 | I29: 2.8 | J29: 5 | K29: 6.2 | L29: - | M29: - | N29: - | O29: - | P29: ±20 | Q29: 96 | R29: 1027 | S29: 662 | T29: 105 | U29: 15.2 | V29: No | W29: 2500 | X29: 25000 | Y29: 76 | Z29: 1.1 | AA29: 2022-12-13 | AC29: IPC100N04S5L-1R9 | AD29: NVMFS5C423NL | AE29: STL190N4F7AG | AF29: - | AG29: BUK9Y1R6-40H | AH29: - | AI29: -
A30: JMSH0406BUQ | B30: Auto-SGT | C30: PDFN3x3-8L | D30: Active | E30: JMSH0406PUQ | F30: N | G30: 40 | H30: 59 | I30: 2.8 | J30: 4.8 | K30: 6 | L30: - | M30: - | N30: - | O30: - | P30: ±20 | Q30: 96 | R30: 1032 | S30: 630 | T30: 34 | U30: 15.4 | V30: No | W30: 5000 | X30: 50000 | Y30: 74 | Z30: 1.1 | AA30: 2023-02-23 | AC30: - | AD30: - | AE30: - | AF30: - | AG30: - | AH30: - | AI30: -
A31: JMSH0406PGDQ | B31: Auto-SGT | C31: PDFN5X6-8L-D | D31: Active | F31: N+N | G31: 40 | H31: 51 | I31: 2.8 | J31: 5.1 | K31: 6.7 | L31: - | M31: - | N31: - | O31: - | P31: ±20 | Q31: 89 | R31: 1208 | S31: 753 | T31: 71 | U31: 20 | V31: No | W31: 5000 | X31: 50000 | Y31: 102 | Z31: 1.1 | AA31: 2024-12-26 | AC31: - | AD31: - | AE31: - | AF31: - | AG31: - | AH31: - | AI31: -
A32: JMSH0406PGQ | B32: Auto-SGT | C32: PDFN5X6-8L | D32: Active | F32: N | G32: 40 | H32: 106 | I32: 3.1 | J32: 4.1 | K32: 5.4 | L32: - | M32: - | N32: - | O32: - | P32: ±20 | Q32: 89 | R32: 1208 | S32: 753 | T32: 71 | U32: 20 | V32: No | W32: 5,000 | X32: 50,000 | Y32: 82 | Z32: 1.1 | AA32: 2024-05-27 | AC32: - | AD32: - | AE32: - | AF32: - | AG32: - | AH32: - | AI32: -
A33: JMSH0406PKQ | B33: Auto-SGT | C33: TO-252-3L | D33: Active | F33: N | G33: 40 | H33: 66 | I33: 3 | J33: 4.8 | K33: 6.2 | L33: - | M33: - | N33: - | O33: - | P33: ±20 | Q33: 89 | R33: 1208 | S33: 753 | T33: 71 | U33: 20 | V33: No | W33: 2500 | X33: 25000 | Y33: 96 | Z33: 1.0 | AA33: 2024-05-27 | AC33: IPC100N04S5-1R7 | AD33: NVMFS5C430N | AE33: STL210N4F7AG | AF33: - | AG33: BUK7Y1R7-40H | AH33: XPH1R104PS | AI33: -
A34: JMSH0406PUQ | B34: Auto-SGT | C34: PDFN3x3-8L | D34: Active | F34: N | G34: 40 | H34: 57 | I34: 2.8 | J34: 4.1 | K34: 5.4 | L34: - | M34: - | N34: - | O34: - | P34: ±20 | Q34: 89 | R34: 1208 | S34: 753 | T34: 71 | U34: 20 | V34: No | W34: 5000 | X34: 50000 | Y34: 82 | Z34: 1.0 | AA34: 2024-07-24 | AC34: - | AD34: - | AE34: - | AF34: - | AG34: - | AH34: - | AI34: -
A35: JMSH040SAGQ | B35: Auto-SGT | C35: PDFN5x6-8L | D35: Active | E35: JMSH040SPGQ | F35: N | G35: 40 | H35: 400 | I35: 2.8 | J35: 0.56 | K35: 0.68 | L35: - | M35: - | N35: - | O35: - | P35: ±20 | Q35: 864 | R35: 7445 | S35: 5755 | T35: 282 | U35: 107 | V35: No | W35: 5000 | X35: 50000 | Y35: 60 | Z35: 2.0 | AA35: 2023-04-23 | AC35: - | AD35: - | AE35: - | AF35: - | AG35: - | AH35: - | AI35: -
A36: JMSH040SPGQ | B36: Auto-SGT | C36: PDFN5X6-8L | D36: Active | F36: N | G36: 40 | H36: 342 | I36: 3.1 | J36: 0.7 | K36: 0.9 | L36: - | M36: - | N36: - | O36: - | P36: ±20 | Q36: 880 | R36: 6820 | S36: 3910 | T36: 217 | U36: 99 | V36: No | W36: 5000 | X36: 50000 | Y36: 69 | Z36: 1.4 | AA36: 2024-05-27 | AC36: IPD90N04S402ATMA1 | AD36: FDD9409L_F085 | AE36: - | AF36: - | AG36: - | AH36: - | AI36: -
A37: JMSH040SPTSQ | B37: Auto-SGT | C37: PowerJE®7x8 | D37: Active | F37: N | G37: 40 | H37: 430 | I37: 2.6 | J37: 0.85 | K37: 1.1 | L37: - | M37: - | N37: - | O37: - | P37: ±20 | Q37: 850 | R37: 7231 | S37: 3471 | T37: 232 | U37: 105 | V37: No | W37: 2000 | X37: 10000 | Y37: 89 | Z37: 1.1 | AA37: 2024-11-15 | AC37: - | AD37: - | AE37: - | AF37: - | AG37: - | AH37: - | AI37: -
A38: JMSL0401AGQ | B38: Auto-SGT | C38: PDFN5x6-8L | D38: Active | E38: JMSL0401MGQ | F38: N | G38: 40 | H38: 198 | I38: 1.6 | J38: 1.3 | K38: 1.7 | L38: 1.7 | M38: 2.3 | N38: - | O38: - | P38: ±20 | Q38: 194 | R38: 3125 | S38: 1607 | T38: 18 | U38: 47 | V38: No | W38: 5000 | X38: 50000 | Y38: 61 | Z38: 2.3 | AA38: 2024-12-26 | AC38: - | AD38: - | AE38: - | AF38: - | AG38: - | AH38: - | AI38: -
A39: JMSL0401BGQ | B39: Auto-SGT | C39: PDFN5x6-8L | D39: Active | E39: JMSL0401PGQ | F39: N | G39: 40 | H39: 299 | I39: 1.5 | J39: 0.83 | K39: 0.98 | L39: 1.2 | M39: 1.6 | N39: - | O39: - | P39: ±20 | Q39: 726 | R39: 5495 | S39: 3347 | T39: 44 | U39: 80 | V39: No | W39: 5000 | X39: 50000 | Y39: 66 | Z39: 1.3 | AA39: 2022-12-25 | AC39: - | AD39: - | AE39: - | AF39: - | AG39: - | AH39: - | AI39: -
A40: JMSL0401PGQ | B40: Auto-SGT | C40: PDFN5x6-8L | D40: Active | F40: N | G40: 40 | H40: 318 | I40: 1.6 | J40: 0.8 | K40: 1.1 | L40: 1.1 | M40: 1.4 | N40: - | O40: - | P40: ±20 | Q40: 706 | R40: 6237 | S40: 3122 | T40: 222 | U40: 106 | V40: No | W40: 5000 | X40: 50000 | Y40: 85 | Z40: 1.1 | AA40: 2025-08-08 | AC40: - | AD40: - | AE40: - | AF40: - | AG40: - | AH40: - | AI40: -
A41: JMSL0402AGQ | B41: Auto-SGT | C41: PDFN5x6-8L | D41: Active | E41: JMSL0402MGQ | F41: N | G41: 40 | H41: 183 | I41: 1.6 | J41: 1.6 | K41: 2 | L41: 2.2 | M41: 3 | N41: - | O41: - | P41: ±20 | Q41: 163 | R41: 3133 | S41: 1993 | T41: 75 | U41: 46 | V41: No | W41: 5000 | X41: 50000 | Y41: 74 | Z41: 2.4 | AA41: 2024-11-13 | AC41: - | AD41: - | AE41: - | AF41: - | AG41: - | AH41: - | AI41: -
A42: JMSL0402AKQ | B42: Auto-SGT | C42: TO-252-3L | D42: Active | E42: JMSL0402MKQ | F42: N | G42: 40 | H42: 211 | I42: 1.5 | J42: 1.9 | K42: 2.4 | L42: 2.6 | M42: 3.4 | N42: - | O42: - | P42: ±20 | Q42: 338 | R42: 3252 | S42: 1888 | T42: 55 | U42: 50 | V42: No | W42: 2500 | X42: 25000 | Y42: 95 | Z42: 2.0 | AA42: 2022-09-23 | AC42: - | AD42: - | AE42: - | AF42: - | AG42: - | AH42: - | AI42: -
A43: JMSL0402BGQ | B43: Auto-SGT | C43: PDFN5x6-8L | D43: Active | E43: JMSL0402TGQ | F43: N | G43: 40 | H43: 158 | I43: 1.6 | J43: 1.9 | K43: 2.5 | L43: 2.5 | M43: 3.4 | N43: - | O43: - | P43: ±20 | Q43: 126 | R43: 2131 | S43: 1538 | T43: 95 | U43: 36 | V43: No | W43: 5000 | X43: 50000 | Y43: 68 | Z43: 1.2 | AA43: 2022-12-25 | AC43: - | AD43: - | AE43: - | AF43: - | AG43: - | AH43: - | AI43: -
A44: JMSL0402MGQ | B44: Auto-SGT | C44: PDFN5x6-8L | D44: Active | F44: N | G44: 40 | H44: 222 | I44: 1.9 | J44: 1.8 | K44: 2.4 | L44: 2.5 | M44: 3.2 | N44: - | O44: - | P44: ±20 | Q44: 356 | R44: 4458 | S44: 2000 | T44: 154 | U44: 70 | V44: No | W44: 5000 | X44: 50000 | Y44: 126 | Z44: 1.3 | AA44: 2024-06-03 | AC44: - | AD44: - | AE44: - | AF44: - | AG44: - | AH44: - | AI44: -
A45: JMSL0403AGQ | B45: Auto-SGT | C45: PDFN5x6-8L | D45: Active | E45: JMSL0403PGQ | F45: N | G45: 40 | H45: 128 | I45: 1.5 | J45: 2.5 | K45: 3.1 | L45: 3.3 | M45: 4.5 | N45: - | O45: - | P45: ±20 | Q45: 79 | R45: 1424 | S45: 927 | T45: 48 | U45: 22 | V45: No | W45: 5000 | X45: 50000 | Y45: 55 | Z45: 1.3 | AA45: 2024-10-10 | AC45: - | AD45: - | AE45: - | AF45: - | AG45: - | AH45: - | AI45: -
A46: JMSL0403ZGQ | B46: Auto-SGT | C46: PDFN5x6-8L | D46: Active | F46: N | G46: 40 | H46: 124 | I46: 1.7 | J46: 2.8 | K46: 3.7 | L46: 3.9 | M46: 5.1 | N46: - | O46: - | P46: ±20 | Q46: 183 | R46: 1275 | S46: 788 | T46: 42 | U46: 19 | V46: No | W46: 5000 | X46: 50000 | Y46: 53 | Z46: 1.1 | AA46: 2025-09-04 | AC46: - | AD46: - | AE46: - | AF46: - | AG46: - | AH46: - | AI46: -
A47: JMSL0403PGQ | B47: Auto-SGT | C47: PDFN5x6-8L | D47: Active | F47: N | G47: 40 | H47: 165 | I47: 1.8 | J47: 2.3 | K47: 3 | L47: 3.2 | M47: 4.2 | N47: - | O47: - | P47: ±20 | Q47: 212 | R47: 2150 | S47: 1118 | T47: 83 | U47: 36 | V47: No | W47: 5000 | X47: 50000 | Y47: 83 | Z47: 1.0 | AA47: 2025-09-05
A48: JMSL04055GQ | B48: Auto-SGT | C48: PDFN5x6-8L | D48: Active | F48: N | G48: 40 | H48: 119 | I48: 1.8 | J48: 3.1 | K48: 4 | L48: 4.6 | M48: 6 | N48: - | O48: - | P48: ±20 | Q48: 106 | R48: 1474 | S48: 633 | T48: 61 | U48: 27 | V48: No | W48: 5000 | X48: 50000 | Y48: 84 | Z48: 1.0 | AA48: 2024-06-03 | AC48: - | AD48: - | AE48: - | AF48: - | AG48: - | AH48: - | AI48: -
A49: JMSL04055UQ | B49: Auto-SGT | C49: PDFN3x3-8L | D49: Active | F49: N | G49: 40 | H49: 62 | I49: 1.7 | J49: 3.5 | K49: 4.5 | L49: 5.1 | M49: 6.6 | N49: - | O49: - | P49: ±20 | Q49: 106 | R49: 1474 | S49: 633 | T49: 61 | U49: 27 | V49: No | W49: 5000 | X49: 50000 | Y49: 95 | Z49: 1.0 | AA49: 2024-06-03 | AC49: - | AD49: - | AE49: - | AF49: - | AG49: - | AH49: - | AI49: -
A50: JMSL04060GDQ | B50: Auto-SGT | C50: PDFN5x6-8L-D | D50: Active | F50: N+N | G50: 40 | H50: 95 | I50: 1.7 | J50: 4.8 | K50: 6.3 | L50: 6.4 | M50: 8.3 | N50: - | O50: - | P50: ±20 | Q50: 106 | R50: 1474 | S50: 633 | T50: 61 | U50: 27 | V50: No | W50: 5000 | X50: 50000 | Y50: 130 | Z50: 1.0 | AA50: 2024-12-12 | AC50: - | AD50: - | AE50: - | AF50: - | AG50: - | AH50: - | AI50: -
A51: JMSL0406AGDQ | B51: Auto-SGT | C51: PDFN5x6-8L-D | D51: Active | E51: JMSL04060GDQ | F51: N+N | G51: 40 | H51: 49 | I51: 1.6 | J51: 5.5 | K51: 6.9 | L51: 7 | M51: 9.5 | N51: - | O51: - | P51: ±20 | Q51: 36 | R51: 1227 | S51: 526 | T51: 55 | U51: 17.9 | V51: No | W51: 5000 | X51: 50000 | Y51: 98 | Z51: 2.3 | AA51: 2022-12-25 | AC51: - | AD51: - | AE51: - | AF51: - | AG51: - | AH51: - | AI51: -
A52: JMSL0406AGQ | B52: Auto-SGT | C52: PDFN5x6-8L | D52: Active | E52: JMSL04055GQ | F52: N | G52: 40 | H52: 90 | I52: 1.6 | J52: 4.2 | K52: 5.2 | L52: 5.8 | M52: 7.6 | N52: - | O52: - | P52: ±20 | Q52: 36 | R52: 1204 | S52: 536 | T52: 51 | U52: 17.9 | V52: No | W52: 5000 | X52: 50000 | Y52: 75 | Z52: 2.4 | AA52: 2024-12-26 | AC52: - | AD52: - | AE52: - | AF52: - | AG52: - | AH52: - | AI52: -
A53: JMSL0406AKQ | B53: Auto-SGT | C53: TO-252-3L | D53: Active | E53: JMSL04055KQ | F53: N | G53: 40 | H53: 78 | I53: 1.6 | J53: 4.7 | K53: 5.6 | L53: 6 | M53: 7.8 | N53: - | O53: - | P53: ±20 | Q53: 36 | R53: 1204 | S53: 536 | T53: 51 | U53: 17.9 | V53: No | W53: 2500 | X53: 25000 | Y53: 84 | Z53: 1.3 | AA53: 2025-08-08 | AC53: - | AD53: - | AE53: - | AF53: - | AG53: - | AH53: - | AI53: -
A54: JMSL0406AUQ | B54: Auto-SGT | C54: PDFN3x3-8L | D54: Active | E54: JMSL04055UQ | F54: N | G54: 40 | H54: 57 | I54: 1.6 | J54: 4.5 | K54: 5.6 | L54: 5.9 | M54: 7.8 | N54: - | O54: - | P54: ±20 | Q54: 36 | R54: 1204 | S54: 536 | T54: 51 | U54: 17.9 | V54: No | W54: 5000 | X54: 50000 | Y54: 81 | Z54: 1.3 | AA54: 2022-12-25 | AC54: - | AD54: - | AE54: - | AF54: - | AG54: - | AH54: - | AI54: -
A55: JMSL040SAGQ | B55: Auto-SGT | C55: PDFN5x6-8L | D55: Active | E55: JMSL040SPGQ | F55: N | G55: 40 | H55: 387 | I55: 1.5 | J55: 0.58 | K55: 0.75 | L55: 0.8 | M55: 0.99 | N55: - | O55: - | P55: ±20 | Q55: 506 | R55: 7654 | S55: 3738 | T55: 44 | U55: 114 | V55: No | W55: 5000 | X55: 50000 | Y55: 66 | Z55: 1.2 | AA55: 2022-12-25 | AC55: - | AD55: - | AE55: - | AF55: - | AG55: - | AH55: - | AI55: -
A56: JMSH060SPGWQ | B56: Auto-SGT | C56: PDFN5x6-8L-W | D56: Active | F56: N | G56: 60 | H56: 256 | I56: 2.8 | J56: 1.1 | K56: 1.4 | L56: - | M56: - | N56: - | O56: - | P56: ±20 | Q56: 800 | R56: 7004 | S56: 2411 | T56: 95 | U56: 111 | V56: No | W56: 5000 | X56: 50000 | Y56: =J56*U56 -> 122 | Z56: 1.0 | AA56: 2025-11-14
A57: JMSL060SMGQ | B57: Auto-SGT | C57: PDFN5x6-8L | D57: Active | F57: N | G57: 60 | H57: 301 | I57: 1.5 | J57: 0.9 | K57: 1.1 | L57: 1.1 | M57: 1.5 | N57: - | O57: - | P57: ±20 | Q57: 900 | R57: 8100 | S57: 3299 | T57: 149 | U57: 136 | V57: No | W57: 5000 | X57: 50000 | Y57: 122 | Z57: 1.0 | AA57: 2025-11-14
A58: JMSL060SPGQ | B58: Auto-SGT | C58: PDFN5x6-8L | D58: Active | F58: N | G58: 60 | H58: 283 | I58: 1.7 | J58: 1 | K58: 1.3 | L58: 1.4 | M58: 1.9 | N58: - | O58: - | P58: ±20 | Q58: 800 | R58: 7593 | S58: 3302 | T58: 109 | U58: 122 | V58: No | W58: 5000 | X58: 50000 | Y58: 122 | Z58: 1.0 | AA58: 2024-11-15 | AC58: - | AD58: NVTYS005N06CL | AE58: - | AF58: - | AG58: - | AH58: - | AI58: -
A59: JMSH060SMTLQ | B59: Auto-SGT | C59: PowerJE®10x12 | D59: Active | F59: N | G59: 60 | H59: 368 | I59: 2.5 | J59: 1.2 | K59: 1.6 | L59: - | M59: - | N59: - | O59: - | P59: ±20 | Q59: 900 | R59: 7106 | S59: 3416 | T59: 119 | U59: 106 | V59: No | W59: 2000 | X59: 10000 | Y59: 127 | Z59: 1.1 | AA59: 2025-09-04 | AC59: - | AD59: - | AE59: - | AF59: - | AG59: - | AH59: - | AI59: -
A60: JMSH0601AGQ | B60: Auto-SGT | C60: PDFN5x6-8L | D60: Active | E60: JMSH0602MGQ | F60: N | G60: 60 | H60: 225 | I60: 2.8 | J60: 1.3 | K60: 1.7 | L60: - | M60: - | N60: - | O60: - | P60: ±20 | Q60: 375 | R60: 5874 | S60: 1375 | T60: 45 | U60: 81 | V60: No | W60: 5000 | X60: 50000 | Y60: 105 | Z60: 1.2 | AA60: 2022-12-23 | AC60: - | AD60: - | AE60: - | AF60: - | AG60: - | AH60: - | AI60: -
A61: JMSH0601ATLQ | B61: Auto-SGT | C61: PowerJE®10x12 | D61: Active | E61: JMSH060SMTLQ | F61: N | G61: 60 | H61: 348 | I61: 2.8 | J61: 1.2 | K61: 1.6 | L61: - | M61: - | N61: - | O61: - | P61: ±20 | Q61: 480 | R61: 7312 | S61: 2239 | T61: 53 | U61: 102 | V61: No | W61: 2000 | X61: 10000 | Y61: 122 | Z61: 1.1 | AA61: 2022-05-30 | AC61: IPG20N06S4-15 | AD61: NVMFD5C674NL | AE61: - | AF61: - | AG61: BUK9K13-60E | AH61: - | AI61: -
A62: JMSH0601BGQ | B62: Auto-SGT | C62: PDFN5x6-8L | D62: Active | E62: JMSH060STGQ | F62: N | G62: 60 | H62: 314 | I62: 2.8 | J62: 1 | K62: 1.3 | L62: - | M62: - | N62: - | O62: - | P62: ±20 | Q62: 1014 | R62: 7219 | S62: 1841 | T62: 47 | U62: 102 | V62: No | W62: 5000 | X62: 50000 | Y62: 102 | Z62: 1.1 | AA62: 2022-12-23 | AC62: IPG20N06S4L-11 | AD62: NVMFD5C672NL | AE62: - | AF62: - | AG62: BUK9K12-60E | AH62: - | AI62: -
A63: JMSL0601TGQ | B63: Auto-SGT | C63: PDFN5x6-8L | D63: Active | F63: N | G63: 60 | H63: 260 | I63: 1.4 | J63: 1.1 | K63: 1.5 | L63: 1.5 | M63: 1.9 | N63: - | O63: - | P63: ±20 | Q63: 576 | R63: 5625 | S63: 2527 | T63: 139 | U63: 98 | V63: No | W63: 5000 | X63: 50000 | Y63: 108 | Z63: 1.0 | AA63: 2025-11-14
A64: JMSH0602AEQ | B64: Auto-SGT | C64: TO-263-3L | D64: Active | E64: JMSH0602PEQ | F64: N | G64: 60 | H64: 224 | I64: 2.8 | J64: 2 | K64: 2.5 | L64: - | M64: - | N64: - | O64: - | P64: ±20 | Q64: 338 | R64: 5783 | S64: 1695 | T64: 39 | U64: 81 | V64: No | W64: 800 | X64: 4000 | Y64: 162 | Z64: 1.0 | AA64: 2023-01-03 | AC64: - | AD64: - | AE64: - | AF64: - | AG64: - | AH64: - | AI64: -
A65: JMSH0602AGQ | B65: Auto-SGT | C65: PDFN5x6-8L | D65: Active | E65: JMSH0603MGQ | F65: N | G65: 60 | H65: 168 | I65: 2.8 | J65: 1.9 | K65: 2.4 | L65: - | M65: - | N65: - | O65: - | P65: ±20 | Q65: 240 | R65: 3562 | S65: 896 | T65: 43 | U65: 50 | V65: No | W65: 5000 | X65: 50000 | Y65: 95 | Z65: 1.1 | AA65: 2022-12-23 | AC65: - | AD65: - | AE65: - | AF65: - | AG65: - | AH65: - | AI65: -
A66: JMSH0602PGQ | B66: Auto-SGT | C66: PDFN5X6-8L | D66: Active | F66: N | G66: 60 | H66: 179 | I66: 3 | J66: 1.6 | K66: 2.1 | L66: - | M66: - | N66: - | O66: - | P66: ±20 | Q66: 497 | R66: 4574 | S66: 2330 | T66: 102 | U66: 70 | V66: No | W66: 5000 | X66: 50000 | Y66: 112 | Z66: 1.2 | AA66: 2024-11-15 | AC66: - | AD66: - | AE66: - | AF66: - | AG66: - | AH66: - | AI66: -
A67: JMSL0602TGQ | B67: Auto-SGT | C67: PDFN5x6-8L | D67: Active | F67: N | G67: 60 | H67: 220 | I67: 1.5 | J67: 1.6 | K67: 2 | L67: 2.2 | M67: 2.9 | N67: - | O67: - | P67: ±20 | Q67: 423 | R67: 3672 | S67: 1222 | T67: 58 | U67: 65 | V67: No | W67: 5000 | X67: 50000 | Y67: 104 | Z67: 1.0 | AA67: 2025-11-14
A68: JMSH0603AKQ | B68: Auto-SGT | C68: TO-252-3L | D68: Active | E68: JMSH0603PKQ | F68: N | G68: 60 | H68: 151 | I68: 2.8 | J68: 2.6 | K68: 3.3 | L68: - | M68: - | N68: - | O68: - | P68: ±20 | Q68: 338 | R68: 2312 | S68: 1654 | T68: 180 | U68: 51 | V68: No | W68: 2500 | X68: 25000 | Y68: 133 | Z68: 1.0 | AA68: 2023-01-06 | AC68: - | AD68: - | AE68: - | AF68: - | AG68: - | AH68: - | AI68: -
A69: JMSH0603MGQ | B69: Auto-SGT | C69: PDFN5x6-8L | D69: Active | F69: N | G69: 60 | H69: 163 | I69: 2.8 | J69: 2.3 | K69: 2.9 | L69: - | M69: - | N69: - | O69: - | P69: ±20 | Q69: 423 | R69: 2996 | S69: 1493 | T69: 71 | U69: 47 | V69: No | W69: 5000 | X69: 50000 | Y69: 108 | Z69: 1.2 | AA69: 2024-11-15 | AC69: - | AD69: - | AE69: - | AF69: - | AG69: - | AH69: - | AI69: -
A70: JMSH0603PGQ | B70: Auto-SGT | C70: PDFN5x6-8L | D70: Active | F70: N | G70: 60 | H70: 152 | I70: 2.6 | J70: 2.6 | K70: 2.6 | L70: 3.4 | M70: - | N70: - | O70: - | P70: ±20 | Q70: 423 | R70: 2996 | S70: 1493 | T70: 71 | U70: 47 | V70: No | W70: 5000 | X70: 50000 | Y70: 122 | Z70: 1.1 | AA70: 2024-11-15 | AC70: - | AD70: - | AE70: - | AF70: - | AG70: - | AH70: - | AI70: -
A71: JMSH0605AGDQ | B71: Auto-SGT | C71: PDFN5x6-8L-D | D71: Active | E71: JMSH0606PGDQ | F71: N+N | G71: 60 | H71: 56 | I71: 2.8 | J71: 4.7 | K71: 5.8 | L71: - | M71: - | N71: - | O71: - | P71: ±20 | Q71: 216 | R71: 1492 | S71: 940 | T71: 109 | U71: 34 | V71: No | W71: 5000 | X71: 50000 | Y71: 160 | Z71: 1.0 | AA71: 2023-03-04 | AC71: IAUC120N06S5N017 | AD71: NVMFS5C604N | AE71: STL225N6F7AG | AF71: - | AG71: BUK762R4-60E | AH71: - | AI71: -
A72: JMSH0606AGQ | B72: Auto-SGT | C72: PDFN5x6-8L | D72: Active | E72: JMSH0606PGQ | F72: N | G72: 60 | H72: 103 | I72: 2.9 | J72: 3.7 | K72: 4.7 | L72: - | M72: - | N72: - | O72: - | P72: ±20 | Q72: 216 | R72: 1492 | S72: 940 | T72: 109 | U72: 34 | V72: No | W72: 5000 | X72: 50000 | Y72: 126 | Z72: 1.1 | AA72: 2023-01-06 | AC72: - | AD72: - | AE72: - | AF72: - | AG72: - | AH72: - | AI72: -
A73: JMSH0606AKQ | B73: Auto-SGT | C73: TO-252-3L | D73: Active | E73: JMSH06060KQ | F73: N | G73: 60 | H73: 95 | I73: 2.8 | J73: 4.4 | K73: 5.5 | L73: - | M73: - | N73: - | O73: - | P73: ±20 | Q73: 216 | R73: 1492 | S73: 940 | T73: 109 | U73: 34 | V73: No | W73: 2500 | X73: 25000 | Y73: 150 | Z73: 1.0 | AA73: 2023-01-06 | AC73: IAUC120N06S5N011ATMA1 | AD73: NVMFS5C604N | AE73: STL225N6F7AG | AF73: - | AG73: BUK762R4-60E | AH73: - | AI73: -
A74: JMSH0606PGDQ | B74: Auto-SGT | C74: PDFN5x6-8L-D | D74: Active | F74: N+N | G74: 60 | H74: 61 | I74: 2.7 | J74: 4.1 | K74: 5.4 | L74: - | M74: - | N74: - | O74: - | P74: ±20 | Q74: 212 | R74: 2124 | S74: 1081 | T74: 46 | U74: 34 | V74: No | W74: 5000 | X74: 50000 | Y74: 139 | Z74: 1.0 | AA74: 2025-04-24 | AC74: - | AD74: - | AE74: - | AF74: - | AG74: - | AH74: - | AI74: -
A75: JMSH0606PGQ | B75: Auto-SGT | C75: PDFN5X6-8L | D75: Active | F75: N | G75: 60 | H75: 118 | I75: 2.8 | J75: 4.5 | K75: 5.1 | L75: - | M75: - | N75: - | O75: - | P75: ±20 | Q75: 188 | R75: 1770 | S75: 907 | T75: 49 | U75: 29 | V75: No | W75: 5000 | X75: 50000 | Y75: 131 | Z75: 1.4 | AA75: 2024-12-26 | AC75: - | AD75: - | AE75: - | AF75: - | AG75: - | AH75: - | AI75: -
A76: JMSH060STGQ | B76: Auto-SGT | C76: PDFN5x6-8L | D76: Active | F76: N | G76: 60 | H76: 303 | I76: 2.7 | J76: 0.85 | K76: 1.1 | L76: - | M76: - | N76: - | O76: - | P76: ±20 | Q76: 850 | R76: 6832 | S76: 3238 | T76: 90 | U76: 100 | V76: No | W76: 5000 | X76: 50000 | Y76: 85 | Z76: 1.0 | AA76: 2025-09-04 | AC76: - | AD76: - | AE76: - | AF76: - | AG76: - | AH76: - | AI76: -
A77: JMSL0601AGQ | B77: Auto-SGT | C77: PDFN5x6-8L | D77: Active | E77: JMSL060SMGQ | F77: N | G77: 60 | H77: 315 | I77: 1.5 | J77: 0.9 | K77: 1.2 | L77: 1.3 | M77: 1.7 | N77: - | O77: - | P77: ±20 | Q77: 1176 | R77: 7325 | S77: 1821 | T77: 45 | U77: 114 | V77: No | W77: 5000 | X77: 50000 | Y77: =J77*U77 -> 103 | Z77: 2.1 | AA77: 2022-12-23 | AC77: - | AD77: - | AE77: - | AF77: - | AG77: - | AH77: - | AI77: -
A78: JMSL0601BGQ | B78: Auto-SGT | C78: PDFN5x6-8L | D78: Active | E78: JMSL0601TGQ | F78: N | G78: 60 | H78: 252 | I78: 1.6 | J78: 1.25 | K78: 1.6 | L78: 1.8 | M78: 2.5 | N78: - | O78: - | P78: ±20 | Q78: 1634 | R78: 4685 | S78: 1429 | T78: 40 | U78: 75 | V78: No | W78: 5000 | X78: 50000 | Y78: =J78*U78 -> 94 | Z78: 1.1 | AA78: 2022-12-23 | AC78: IAUC41N06S5L100 | AD78: - | AE78: - | AF78: - | AG78: - | AH78: - | AI78: -
A79: JMSL0602AGQ | B79: Auto-SGT | C79: PDFN5x6-8L | D79: Active | E79: JMSL0602TGQ | F79: N | G79: 60 | H79: 172 | I79: 1.7 | J79: 1.8 | K79: 2.3 | L79: 2.4 | M79: 3.2 | N79: - | O79: - | P79: ±20 | Q79: 240 | R79: 2880 | S79: 958 | T79: 44 | U79: 48 | V79: No | W79: 5000 | X79: 50000 | Y79: =J79*U79 -> 86 | Z79: 1.2 | AA79: 2022-12-23 | AC79: - | AD79: NVTYS010N06CL | AE79: - | AF79: - | AG79: BUK9M12-60E | AH79: - | AI79: -
A80: JMSL0602PKQ | B80: Auto-SGT | C80: TO-252-3L | D80: Active | F80: N | G80: 60 | H80: 125 | I80: 1.6 | J80: 1.7 | K80: 2.2 | L80: 2.3 | M80: 3 | N80: - | O80: - | P80: ±20 | Q80: 536 | R80: 5548 | S80: 2529 | T80: 111 | U80: 95 | V80: No | W80: 2500 | X80: 25000 | Y80: 162 | Z80: 1.0 | AA80: 2025-09-04 | AC80: - | AD80: - | AE80: - | AF80: - | AG80: - | AH80: - | AI80: -
A81: JMSL0603BGQ | B81: Auto-SGT | C81: PDFN5x6-8L | D81: Active | E81: JMSL0603PGQ | F81: N | G81: 60 | H81: 147 | I81: 1.6 | J81: 2.4 | K81: 3 | L81: 3.4 | M81: 4.4 | N81: - | O81: - | P81: ±20 | Q81: 338 | R81: 3174 | S81: 872 | T81: 39 | U81: 51 | V81: No | W81: 5000 | X81: 50000 | Y81: =J81*U81 -> 122 | Z81: 1.2 | AA81: 2022-12-23 | AC81: - | AD81: - | AE81: - | AF81: - | AG81: - | AH81: - | AI81: -
A82: JMSL0604AGQ | B82: Auto-SGT | C82: PDFN5x6-8L | D82: Active | E82: JMSL0606MGQ | F82: N | G82: 60 | H82: 112 | I82: 1.6 | J82: 3.6 | K82: 4.5 | L82: 4.7 | M82: 5.9 | N82: - | O82: - | P82: ±20 | Q82: 94 | R82: 2030 | S82: 445 | T82: 4.4 | U82: 32 | V82: No | W82: 5000 | X82: 50000 | Y82: =J82*U82 -> 115 | Z82: 1.3 | AA82: 2023-01-05 | AC82: IAUC41N06S5L100 | AD82: - | AE82: - | AF82: - | AG82: - | AH82: - | AI82: -
A83: JMSL0605AGDQ | B83: Auto-SGT | C83: PDFN5x6-8L-D | D83: Active | E83: JMSL0606PGDQ | F83: N+N | G83: 60 | H83: 61 | I83: 1.6 | J83: 4.4 | K83: 5.5 | L83: 5.6 | M83: 7.3 | N83: - | O83: - | P83: ±20 | Q83: 182 | R83: 1966 | S83: 596 | T83: 36 | U83: 33 | V83: No | W83: 5000 | X83: 50000 | Y83: =J83*U83 -> 145 | Z83: 2.1 | AA83: 2022-12-23 | AC83: - | AD83: - | AE83: - | AF83: - | AG83: - | AH83: - | AI83: -
A84: JMSL0606PGDQ | B84: Auto-SGT | C84: PDFN5x6-8L-D | D84: Active | F84: N+N | G84: 60 | H84: 114 | I84: 1.5 | J84: 4.1 | K84: 5.3 | L84: 5.3 | M84: 6.9 | N84: - | O84: - | P84: ±20 | Q84: 188 | R84: 2241 | S84: 1019 | T84: 47 | U84: 39 | V84: No | W84: 5000 | X84: 50000 | Y84: 160 | Z84: 1.0 | AA84: 2025-11-11
A85: JMSL0606AGQ | B85: Auto-SGT | C85: PDFN5x6-8L | D85: Active | E85: JMSL0606MGQ | F85: N | G85: 60 | H85: 103 | I85: 1.6 | J85: 4 | K85: 5 | L85: 5.2 | M85: 6.5 | N85: - | O85: - | P85: ±20 | Q85: 94 | R85: 2030 | S85: 445 | T85: 4.4 | U85: 32 | V85: No | W85: 5000 | X85: 50000 | Y85: =J85*U85 -> 128 | Z85: 2.2 | AA85: 2024-12-26 | AC85: - | AD85: NVTYS008N06CL | AE85: - | AF85: - | AG85: - | AH85: - | AI85: -
A86: JMSL0606AKQ | B86: Auto-SGT | C86: TO-252-3L | D86: Active | E86: JMSL0606PKQ | F86: N | G86: 60 | H86: 93 | I86: 1.6 | J86: 4.6 | K86: 5.8 | L86: 6 | M86: 7.5 | N86: - | O86: - | P86: ±20 | Q86: 94 | R86: 2122 | S86: 440 | T86: 4.4 | U86: 32 | V86: No | W86: 2500 | X86: 25000 | Y86: =J86*U86 -> 147 | Z86: 1.2 | AA86: 2022-04-28 | AC86: - | AD86: NVMFS5C645N | AE86: - | AF86: - | AG86: BUK9Y6R0-60E | AH86: - | AI86: -
A87: JMSL0606AUQ | B87: Auto-SGT | C87: PDFN3x3-8L | D87: Active | E87: JMSL0606PUQ | F87: N | G87: 60 | H87: 59 | I87: 1.6 | J87: 5 | K87: 6.2 | L87: 6 | M87: 7.8 | N87: - | O87: - | P87: ±20 | Q87: 94 | R87: 2122 | S87: 440 | T87: 4.4 | U87: 32 | V87: No | W87: 5000 | X87: 50000 | Y87: =J87*U87 -> 160 | Z87: 1.3 | AA87: 2022-12-23 | AC87: - | AD87: NVMFS5C645N | AE87: - | AF87: - | AG87: BUK9Y6R0-60E | AH87: - | AI87: -
A88: JMSL06060GQ | B88: Auto-SGT | C88: PDFN5x6-8L | D88: Active | F88: N | G88: 60 | H88: 120 | I88: 1.6 | J88: 3.5 | K88: 4.6 | L88: 4.6 | M88: 5.9 | N88: - | O88: - | P88: ±20 | Q88: 165 | R88: 2118 | S88: 929 | T88: 56 | U88: 38 | V88: No | W88: 5000 | X88: 50000 | Y88: 133 | Z88: 1.1 | AA88: 2025-11-11
A89: JMSL0606PKQ | B89: Auto-SGT | C89: TO-252-3L | D89: Active | F89: N | G89: 60 | H89: 74 | I89: 1.6 | J89: 4 | K89: 5.2 | L89: 5.1 | M89: 6.7 | N89: - | O89: - | P89: ±20 | Q89: 165 | R89: 2097 | S89: 832 | T89: 53 | U89: 37 | V89: No | W89: 2500 | X89: 25000 | Y89: 148 | Z89: 1.0 | AA89: 2025-12-02
A90: JMSL0606PUQ | B90: Auto-SGT | C90: PDFN3x3-8L | D90: Active | F90: N | G90: 60 | H90: 57 | I90: 1.6 | J90: 4 | K90: 5.5 | L90: 5 | M90: 6.5 | N90: - | O90: - | P90: ±20 | Q90: 165 | R90: 2097 | S90: 832 | T90: 53 | U90: 37 | V90: No | W90: 5000 | X90: 50000 | Y90: 148 | Z90: 1.1 | AA90: 2025-12-02
A91: JMSL0609AGQ | B91: Auto-SGT | C91: PDFN5x6-8L | D91: Active | E91: JMSL0609PGQ | F91: N | G91: 60 | H91: 67 | I91: 1.6 | J91: 7.2 | K91: 9.4 | L91: 9 | M91: 12 | N91: - | O91: - | P91: ±20 | Q91: 34 | R91: 1087 | S91: 309 | T91: 8.5 | U91: 16.6 | V91: No | W91: 5000 | X91: 50000 | Y91: =J91*U91 -> 120 | Z91: 2.1 | AA91: 2022-12-23 | AC91: - | AD91: - | AE91: - | AF91: - | AG91: - | AH91: - | AI91: -
A92: JMSL0609PKQ | B92: Auto-SGT | C92: TO-252-3L | D92: Active | F92: N | G92: 60 | H92: 59 | I92: 1.6 | J92: 5.5 | K92: 7.2 | L92: 7.3 | M92: 9.5 | N92: - | O92: - | P92: ±20 | Q92: 89 | R92: 1214 | S92: 565 | T92: 31 | U92: 22 | V92: No | W92: 2500 | X92: 25000 | Y92: =J92*U92 -> 121 | Z92: 1.0 | AA92: 2025-11-14
A93: JMSL0609AKQ | B93: Auto-SGT | C93: TO-252-3L | D93: Active | E93: JMSL0609PKQ | F93: N | G93: 60 | H93: 59 | I93: 1.6 | J93: 7.4 | K93: 9.4 | L93: 9.5 | M93: 12.4 | N93: - | O93: - | P93: ±20 | Q93: 74 | R93: 1110 | S93: 352 | T93: 12 | U93: 18.3 | V93: No | W93: 2500 | X93: 25000 | Y93: =J93*U93 -> 135 | Z93: 1.0 | AA93: 2022-12-12 | AC93: IPD90N06S4L06ATMA2 | AD93: NVD5C668NL | AE93: STD80N6F6 | AF93: - | AG93: - | AH93: - | AI93: -
A94: JMSL0609AUQ | B94: Auto-SGT | C94: PDFN3x3-8L | D94: Active | E94: JMSL0609PUQ | F94: N | G94: 60 | H94: 44 | I94: 1.6 | J94: 7.5 | K94: 9.4 | L94: 9.4 | M94: 12.2 | N94: - | O94: - | P94: ±20 | Q94: 34 | R94: 1087 | S94: 309 | T94: 8.5 | U94: 16.6 | V94: No | W94: 5000 | X94: 50000 | Y94: =J94*U94 -> 125 | Z94: 1.3 | AA94: 2022-12-23 | AC94: - | AD94: - | AE94: - | AF94: - | AG94: - | AH94: - | AI94: -
A95: JMSL0609PGQ | B95: Auto-SGT | C95: PDFN5x6-8L | D95: Active | F95: N | G95: 60 | H95: 91 | I95: 1.5 | J95: 5.1 | K95: 6.6 | L95: 6.7 | M95: 8.8 | N95: - | O95: - | P95: ±20 | Q95: 89 | R95: 1233 | S95: 560 | T95: 32 | U95: 22 | V95: No | W95: 5000 | X95: 50000 | Y95: 112 | Z95: 1.0 | AA95: 2025-11-11
A96: JMSL0610AGDQ | B96: Auto-SGT | C96: PDFN5x6-8L-D | D96: Active | E96: JMSL0610PGDQ | F96: N+N | G96: 60 | H96: 38 | I96: 1.6 | J96: 8.5 | K96: 10.6 | L96: 10.2 | M96: 13 | N96: - | O96: - | P96: ±20 | Q96: 34 | R96: 1087 | S96: 309 | T96: 8.5 | U96: 16.6 | V96: No | W96: 5000 | X96: 50000 | Y96: =J96*U96 -> 141 | Z96: 1.3 | AA96: 2022-12-23 | AC96: - | AD96: - | AE96: - | AF96: - | AG96: - | AH96: - | AI96: -
A97: JMSL06120UQ | B97: Auto-SGT | C97: PDFN3x3-8L | D97: Active | F97: N | G97: 60 | H97: 42 | I97: 2 | J97: 7.3 | K97: 9.5 | L97: 10.9 | M97: 14.2 | N97: - | O97: - | P97: ±20 | Q97: 74 | R97: 1110 | S97: 443 | T97: 34 | U97: 19 | V97: No | W97: 5000 | X97: 50000 | Y97: 139 | Z97: 1.1 | AA97: 2024-11-15 | AC97: - | AD97: - | AE97: - | AF97: - | AG97: - | AH97: - | AI97: -
A98: JMSL0612AGQ | B98: Auto-SGT | C98: PDFN5x6-8L | D98: Active | E98: JMSL0612PGQ | F98: N | G98: 60 | H98: 52 | I98: 1.6 | J98: 9.5 | K98: 12 | L98: 12 | M98: 16 | N98: - | O98: - | P98: ±20 | Q98: 20 | R98: 731 | S98: 224 | T98: 7.4 | U98: 13.9 | V98: No | W98: 5000 | X98: 50000 | Y98: 132 | Z98: 2.1 | AA98: 2022-12-23 | AC98: IPD50N06S4L12ATMA2 | AD98: - | AE98: - | AF98: - | AG98: - | AH98: - | AI98: -
A99: JMSL0612AKQ | B99: Auto-SGT | C99: TO-252-3L | D99: Active | E99: JMSL0612PKQ | F99: N | G99: 60 | H99: 57 | I99: 1.7 | J99: 9.9 | K99: 12 | L99: 12.6 | M99: 16 | N99: - | O99: - | P99: ±20 | Q99: 58 | R99: 734 | S99: 204 | T99: 26 | U99: 13.1 | V99: No | W99: 2500 | X99: 25000 | Y99: 130 | Z99: 2.1 | AA99: 2022-09-09 | AC99: - | AD99: - | AE99: - | AF99: - | AG99: - | AH99: - | AI99: -
A100: JMSL0612PKQ | B100: Auto-SGT | C100: TO-252-3L | D100: Active | F100: N | G100: 60 | H100: 42 | I100: 1.6 | J100: 10.4 | K100: 13.5 | L100: 13.3 | M100: 17.3 | N100: - | O100: - | P100: ±20 | Q100: 74 | R100: 1110 | S100: 443 | T100: 34 | U100: 19 | V100: No | W100: 2500 | X100: 25000 | Y100: 198 | Z100: 1.0 | AA100: 2025-12-02
A101: JMSL0612NKQ | B101: Auto-SGT | C101: TO-252-3L | D101: Active | F101: N | G101: 60 | H101: 65 | I101: 1.7 | J101: 8.1 | K101: 11 | L101: 11 | M101: 14 | N101: - | O101: - | P101: ±20 | Q101: 60 | R101: 834 | S101: 376 | T101: 24 | U101: 15 | V101: No | W101: 2500 | X101: 25000 | Y101: 122 | Z101: 1.0 | AA101: 2025-11-11
A102: JMSL0612AUQ | B102: Auto-SGT | C102: PDFN3x3-8L | D102: Active | E102: JMSL06120UQ | F102: N | G102: 60 | H102: 36 | I102: 1.6 | J102: 10 | K102: 12.5 | L102: 12.3 | M102: 16 | N102: - | O102: - | P102: ±20 | Q102: 20 | R102: 731 | S102: 224 | T102: 7.4 | U102: 13.9 | V102: No | W102: 5000 | X102: 50000 | Y102: 139 | Z102: 1.4 | AA102: 2022-12-23 | AC102: - | AD102: - | AE102: - | AF102: - | AG102: - | AH102: - | AI102: -
A103: JMSL0612PGQ | B103: Auto-SGT | C103: PDFN5x6-8L | D103: Active | F103: N | G103: 60 | H103: 72 | I103: 1.9 | J103: 7.4 | K103: 9.7 | L103: 10.5 | M103: 13.7 | N103: - | O103: - | P103: ±20 | Q103: 74 | R103: 1110 | S103: 443 | T103: 34 | U103: 19 | V103: No | W103: 5000 | X103: 50000 | Y103: 141 | Z103: 1.2 | AA103: 2024-06-03 | AC103: - | AD103: - | AE103: - | AF103: - | AG103: - | AH103: - | AI103: -
A104: JMSL0615AGDQ | B104: Auto-SGT | C104: PDFN5x6-8L-D | D104: Active | E104: JMSL0615PGDQ | F104: N+N | G104: 60 | H104: 33 | I104: 1.6 | J104: 10.5 | K104: 13.5 | L104: 13.5 | M104: 17.5 | N104: - | O104: - | P104: ±20 | Q104: 20 | R104: 731 | S104: 224 | T104: 7.4 | U104: 13.9 | V104: No | W104: 5000 | X104: 50000 | Y104: 146 | Z104: 2.2 | AA104: 2022-12-23 | AC104: - | AD104: - | AE104: - | AF104: - | AG104: - | AH104: - | AI104: -
A105: JMSL0615PGDQ | B105: Auto-SGT | C105: PDFN5x6-8L-D | D105: Active | F105: N+N | G105: 60 | H105: 78 | I105: 1.9 | J105: 8.3 | K105: 10.8 | L105: 12.1 | M105: 15.7 | N105: - | O105: - | P105: ±20 | Q105: 74 | R105: 1125 | S105: 444 | T105: 31 | U105: 19 | V105: No | W105: 5000 | X105: 50000 | Y105: 158 | Z105: 1.2 | AA105: 2024-10-16 | AC105: - | AD105: - | AE105: - | AF105: - | AG105: - | AH105: - | AI105: -
A106: JMSL0620AGDEQ | B106: Auto-SGT | C106: PDFN5x6-8L-D | D106: Active | E106: JMSL0620PGDEQ | F106: N+N | G106: 60 | H106: 23 | I106: 1.8 | J106: 18 | K106: 23 | L106: 25 | M106: 33 | N106: - | O106: - | P106: ±20 | Q106: 26 | R106: 409 | S106: 143 | T106: 24 | U106: 7.5 | V106: Yes | W106: 5000 | X106: 50000 | Y106: 135 | Z106: 1.2 | AA106: 2023-03-07 | AC106: - | AD106: - | AE106: - | AF106: - | AG106: - | AH106: - | AI106: -
A107: JMSL0620PGEQ | B107: Auto-SGT | C107: PDFN5x6-8L | D107: Active | F107: N | G107: 60 | H107: 40 | I107: 1.7 | J107: 12.0 | K107: 15.0 | L107: 17 | M107: 22.0 | N107: - | O107: - | P107: ±20 | Q107: 36.0 | R107: 593 | S107: 287.0 | T107: 18.0 | U107: 11.0 | V107: Yes | W107: 5000 | X107: 50000 | Y107: 132 | Z107: 1.1 | AA107: 2025-12-02 | AC107: - | AD107: - | AE107: - | AF107: - | AG107: - | AH107: - | AI107: -
A108: JMSL0620PGDEQ | B108: Auto-SGT | C108: PDFN5x6-8L-D | D108: Active | F108: N+N | G108: 60 | H108: 29 | I108: 1.7 | J108: 12.6 | K108: 16.3 | L108: 17.6 | M108: 22.8 | N108: - | O108: - | P108: ±20 | Q108: 36.0 | R108: 602 | S108: 283.0 | T108: 17.0 | U108: 11.0 | V108: Yes | W108: 5000 | X108: 50000 | Y108: 139 | Z108: 1.1 | AA108: 2025-12-02 | AC108: - | AD108: - | AE108: - | AF108: - | AG108: - | AH108: - | AI108: -
A109: JMSL0620PUDEQ | B109: Auto-SGT | C109: PDFN3x3-8L-D | D109: Active | F109: N+N | G109: 60 | H109: 29 | I109: 1.7 | J109: 14.0 | K109: 18.0 | L109: 19 | M109: 24.0 | N109: - | O109: - | P109: ±20 | Q109: 36.0 | R109: 589 | S109: 277.0 | T109: 18.0 | U109: 11.0 | V109: No | W109: 5000 | X109: 50000 | Y109: 154 | Z109: 1.0 | AA109: 2025-09-04 | AC109: - | AD109: - | AE109: - | AF109: - | AG109: - | AH109: - | AI109: -
A110: JMSL0620AGEQ | B110: Auto-SGT | C110: PDFN5x6-8L | D110: Active | E110: JMSL0620PGEQ | F110: N | G110: 60 | H110: 32 | I110: 1.8 | J110: 16 | K110: 20 | L110: 23 | M110: 30 | N110: - | O110: - | P110: ±20 | Q110: 26 | R110: 409 | S110: 143 | T110: 24 | U110: 7.5 | V110: Yes | W110: 5000 | X110: 50000 | Y110: 120 | Z110: 1.1 | AA110: 2022-12-23 | AC110: - | AD110: - | AE110: - | AF110: - | AG110: - | AH110: - | AI110: -
A111: JMTL2310AQ | B111: Auto-SGT | C111: SOT-23 | D111: Active | F111: N | G111: 60 | H111: 3 | I111: 1.5 | J111: 75 | K111: 98 | L111: 86 | M111: 112 | N111: - | O111: - | P111: ±20 | Q111: 6 | R111: 422 | S111: 21 | T111: 17 | U111: 10 | V111: No | W111: 3000 | X111: 120000 | Y111: 750 | Z111: 1.0 | AA111: 2025-12-02
A112: JMSH0801PTLQ | B112: Auto-SGT | C112: PowerJE®10x12 | D112: Active | F112: N | G112: 80 | H112: 400 | I112: 2.9 | J112: 1.1 | K112: 1.4 | L112: - | M112: - | N112: - | O112: - | P112: ±20 | Q112: 2065 | R112: 13653 | S112: 4421 | T112: 110 | U112: 200 | V112: No | W112: 2000 | X112: 10000 | Y112: 220 | Z112: 1.0 | AA112: 2025-11-14
A113: JMSH1001AE7Q | B113: Auto-SGT | C113: TO-263-7L | D113: Active | E113: JMSH 1001NE7Q | F113: N | G113: 100 | H113: 350 | I113: 2.8 | J113: 1.6 | K113: 2 | L113: - | M113: - | N113: - | O113: - | P113: ±20 | Q113: 512 | R113: 9623 | S113: 2091 | T113: 1.2 | U113: 155 | V113: No | W113: 800 | X113: 4000 | Y113: =J113*U113 -> 248 | Z113: 1.0 | AA113: 2023-02-07 | AC113: - | AD113: - | AE113: - | AF113: - | AG113: - | AH113: - | AI113: -
A114: JMSH1001ATLQ | B114: Auto-SGT | C114: PowerJE®10x12 | D114: Active | E114: JMSH1001NTLQ | F114: N | G114: 100 | H114: 479 | I114: 2.8 | J114: 1.3 | K114: 1.6 | L114: - | M114: - | N114: - | O114: - | P114: ±20 | Q114: 512 | R114: 9623 | S114: 2091 | T114: 32 | U114: 155 | V114: No | W114: 2000 | X114: 10000 | Y114: 202 | Z114: 1.1 | AA114: 2023-03-14 | AC114: IPG20N10S4L-22A | AD114: - | AE114: - | AF114: - | AG114: BUK9K29-110E | AH114: - | AI114: -
A115: JMSH1001NTLQ | B115: Auto-SGT | C115: PowerJE®10x12 | D115: Active | F115: N | G115: 100 | H115: 312 | I115: 2.9 | J115: 1.7 | K115: 2.2 | L115: - | M115: - | N115: - | O115: - | P115: ±20 | Q115: 1722 | R115: 11677 | S115: 1764 | T115: 38 | U115: 169 | V115: No | W115: 2000 | X115: 10000 | Y115: 287 | Z115: 1.2 | AA115: 2024-06-04 | AC115: - | AD115: - | AE115: - | AF115: - | AH115: - | AI115: -
A116: JMSH1001PTLQ | B116: Auto-SGT | C116: PowerJE®10x12 | D116: Active | F116: N | G116: 100 | H116: 435 | I116: 2.8 | J116: 1.2 | K116: 1.6 | L116: - | M116: - | N116: - | O116: - | P116: ±20 | Q116: 2143 | R116: 14523 | S116: 2163 | T116: 45 | U116: 214 | V116: No | W116: 2000 | X116: 10000 | Y116: 257 | Z116: 1.0 | AA116: 2025-11-14
A117: JMSH1002AEQ | B117: Auto-SGT | C117: TO-263-3L | D117: Active | E117: JMSH1001NTEQ | F117: N | G117: 100 | H117: 350 | I117: 2.7 | J117: 1.6 | K117: 2 | L117: - | M117: - | N117: - | O117: - | P117: ±20 | Q117: 1250 | R117: 9623 | S117: 2091 | T117: 1.2 | U117: 155 | V117: No | W117: 800 | X117: 4000 | Y117: =J117*U117 -> 248 | Z117: 1.2 | AA117: 2022-06-02 | AC117: - | AD117: - | AE117: - | AF117: - | AG117: - | AH117: - | AI117: -
A118: JMSH1002ASQ | B118: Auto-SGT | C118: TO-247-3L | D118: Active | E118: JMSH1002NSQ | F118: N | G118: 100 | H118: 333 | I118: 2.7 | J118: 1.8 | K118: 2.2 | L118: - | M118: - | N118: - | O118: - | P118: ±20 | Q118: 1458 | R118: 9623 | S118: 2091 | T118: 32 | U118: 155 | V118: No | W118: 30 | X118: 2250 | Y118: 279 | Z118: 1.0 | AA118: 2023-04-07 | AC118: - | AD118: - | AE118: - | AF118: - | AH118: - | AI118: -
A119: JMSH1002NSQ | B119: Auto-SGT | C119: TO-247-3L | D119: Active | F119: N | G119: 100 | H119: 234 | I119: 3 | J119: 2.4 | K119: 3.1 | L119: - | M119: - | N119: - | O119: - | P119: ±20 | Q119: 1722 | R119: 11677 | S119: 1764 | T119: 38 | U119: 169 | V119: No | W119: 30 | X119: 2250 | Y119: 406 | Z119: 1.0 | AA119: 2025-07-04
A120: JMSH1003PTLQ | B120: Auto-SGT | C120: PowerJE®10x12 | D120: Active | F120: N | G120: 100 | H120: 212 | I120: 3 | J120: 3 | K120: 3.9 | L120: - | M120: - | N120: - | O120: - | P120: ±20 | Q120: 850 | R120: 6190 | S120: 1035 | T120: 35 | U120: 97 | V120: No | W120: 2000 | X120: 10000 | Y120: =J120*U120 -> 291 | Z120: 1.0 | AA120: 2025-11-14
A121: JMSH1003NGQ | B121: Auto-SGT | C121: PDFN5x6-8L | D121: Active | F121: N | G121: 100 | H121: 150 | I121: 3.1 | J121: 3.1 | K121: 4 | L121: - | M121: - | N121: - | O121: - | P121: ±20 | Q121: 706 | R121: 4797 | S121: 900 | T121: 19 | U121: 84 | V121: No | W121: 5000 | X121: 50000 | Y121: 260 | Z121: 1.1 | AA121: 2025-11-14
A122: JMSH1003AE7Q | B122: Auto-SGT | C122: TO-263-7L | D122: Active | E122: JMSH1003PE7Q | F122: N | G122: 100 | H122: 196 | I122: 2.7 | J122: 2.8 | K122: 3.5 | L122: - | M122: - | N122: - | O122: - | P122: ±20 | Q122: 406 | R122: 4398 | S122: 1361 | T122: 8.5 | U122: 66 | V122: No | W122: 800 | X122: 4000 | Y122: 185 | Z122: 1.1 | AA122: 2022-04-28 | AC122: - | AD122: - | AE122: - | AF122: - | AG122: - | AH122: - | AI122: -
A123: JMSH1003AGQ | B123: Auto-SGT | C123: PDFN5x6-8L | D123: Active | E123: JMSH1003NGQ | F123: N | G123: 100 | H123: 170 | I123: 2.7 | J123: 2.8 | K123: 3.5 | L123: - | M123: - | N123: - | O123: - | P123: ±20 | Q123: 346 | R123: 4374 | S123: 1140 | T123: 4.7 | U123: 70 | V123: No | W123: 5000 | X123: 50000 | Y123: 196 | Z123: 1.2 | AA123: 2022-12-24 | AC123: - | AD123: - | AE123: - | AF123: - | AH123: - | AI123: -
A124: JMSH1003AGWQ | B124: Auto-SGT | C124: PDFN5x6-8L-W | D124: Active | E124: JMSH1003PGWQ | F124: N | G124: 100 | H124: 178 | I124: 2.9 | J124: 2.8 | K124: 3.4 | L124: - | M124: - | N124: - | O124: - | P124: ±20 | Q124: 481 | R124: 4797 | S124: 900 | T124: 19.1 | U124: 69 | V124: No | W124: 5000 | X124: 50000 | Y124: 193 | Z124: 1.1 | AA124: 2023-01-16 | AC124: - | AD124: - | AE124: =E3 -> Recommended Product Name | AF124: - | AH124: - | AI124: -
A125: JMSH1003ATLQ | B125: Auto-SGT | C125: PowerJE®10x12 | D125: Active | E125: JMSH1003PTLQ | F125: N | G125: 100 | H125: 228 | I125: 2.8 | J125: 2.7 | K125: 3.4 | L125: - | M125: - | N125: - | O125: - | P125: ±20 | Q125: 512 | R125: 4398 | S125: 1361 | T125: 8.5 | U125: 66 | V125: No | W125: 2000 | X125: 10000 | Y125: 178 | Z125: 1.0 | AA125: 2023-08-03 | AC125: IPD70N10S312ATMA1 | AD125: - | AE125: STD105N10F7AG | AF125: - | AG125: - | AH125: - | AI125: -
A126: JMSH1003PE7Q | B126: Auto-SGT | C126: TO-263-7L | D126: Active | F126: N | G126: 100 | H126: 164 | I126: 2.9 | J126: 3.5 | K126: 4.5 | L126: - | M126: - | N126: - | O126: - | P126: ±20 | Q126: 850 | R126: 5810 | S126: 831 | T126: 20 | U126: 82 | V126: No | W126: 800 | X126: 4000 | Y126: 287 | Z126: 1.0 | AA126: 2025-09-04 | AC126: - | AD126: - | AE126: - | AF126: - | AH126: - | AI126: -
A127: JMSH1004AEQ | B127: Auto-SGT | C127: TO-263-3L | D127: Active | E127: JMSH1003PEQ | F127: N | G127: 100 | H127: 216 | I127: 2.7 | J127: 3 | K127: 3.8 | L127: - | M127: - | N127: - | O127: - | P127: ±20 | Q127: 375 | R127: 4398 | S127: 1361 | T127: 8.5 | U127: 66 | V127: No | W127: 800 | X127: 4000 | Y127: =J127*U127 -> 198 | Z127: 1.1 | AA127: 2024-04-01 | AC127: - | AD127: - | AE127: - | AF127: - | AG127: - | AH127: - | AI127: -
A128: JMSH1004BEQ | B128: Auto-SGT | C128: TO-263-3L | D128: Active | F128: N | G128: 100 | H128: 160 | I128: 2.7 | J128: 3.5 | K128: 4.2 | L128: - | M128: - | N128: - | O128: - | P128: ±20 | Q128: 304 | R128: 3433 | S128: 905 | T128: 13 | U128: 57 | V128: No | W128: 800 | X128: 4000 | Y128: 200 | Z128: 1.1 | AA128: 2022-07-07 | AC128: IAUC90N10S5N062 | AD128: - | AE128: - | AF128: - | AG128: - | AH128: - | AI128: -
A129: JMSH1004BGQ | B129: Auto-SGT | C129: PDFN5x6-8L | D129: Active | E129: JMSH1003NGQ | F129: N | G129: 100 | H129: 138 | I129: 2.7 | J129: 3.3 | K129: 4.3 | L129: - | M129: - | N129: - | O129: - | P129: ±20 | Q129: 231 | R129: 3434 | S129: 906 | T129: 14 | U129: 57 | V129: No | W129: 5000 | X129: 50000 | Y129: 188 | Z129: 1.3 | AA129: 2022-12-24 | AC129: IAUC100N10S5L054 | AD129: - | AE129: STL115N10F7AG | AF129: - | AG129: - | AH129: - | AI129: -
A130: JMSH1004BGWQ | B130: Auto-SGT | C130: PDFN5x6-8L-W | D130: Active | E130: JMSH1003PGWQ | F130: N | G130: 100 | H130: 152 | I130: 2.9 | J130: 3.6 | K130: 4.3 | L130: - | M130: - | N130: - | O130: - | P130: ±20 | Q130: 450 | R130: 3434 | S130: 906 | T130: 14 | U130: 57 | V130: No | W130: 5000 | X130: 50000 | Y130: 205 | Z130: 1.1 | AA130: 2023-01-16 | AC130: - | AD130: - | AE130: - | AH130: - | AI130: -
A131: JMSH1005PGQ | B131: Auto-SGT | C131: PDFN5x6-8L | D131: Active | F131: N | G131: 100 | H131: 123 | I131: 2.9 | J131: 4.8 | K131: 6.2 | L131: - | M131: - | N131: - | O131: - | P131: ±20 | Q131: 485 | R131: 4344 | S131: 549 | T131: 16 | U131: 65 | V131: No | W131: 5000 | X131: 50000 | Y131: 312 | Z131: 1.1 | AA131: 2025-12-02
A132: JMSH1008AGQ | B132: Auto-SGT | C132: PDFN5x6-8L | D132: Active | E132: JMSH1008PGQ | F132: N | G132: 100 | H132: 87 | I132: 2.7 | J132: 6.2 | K132: 7.8 | L132: - | M132: - | N132: - | O132: - | P132: ±20 | Q132: 144 | R132: 1920 | S132: 445 | T132: 7 | U132: 30 | V132: No | W132: 5000 | X132: 50000 | Y132: 186 | Z132: 2.0 | AA132: 2022-12-24 | AC132: - | AD132: - | AE132: - | AF132: - | AG132: - | AH132: - | AI132: -
A133: JMSH1008AKQ | B133: Auto-SGT | C133: TO-252-3L | D133: Active | E133: JMSH1008MKQ | F133: N | G133: 100 | H133: 92 | I133: 2.8 | J133: 6.9 | K133: 8.3 | L133: - | M133: - | N133: - | O133: - | P133: ±20 | Q133: 109 | R133: 2360 | S133: 368 | T133: 5.9 | U133: 34 | V133: No | W133: 2500 | X133: 25000 | Y133: 235 | Z133: 1.0 | AA133: 2022-10-08 | AC133: - | AD133: - | AE133: - | AF133: - | AG133: - | AH133: - | AI133: -
A134: JMSH1008PGQ | B134: Auto-SGT | C134: PDFN5X6-8L | D134: Active | F134: N | G134: 100 | H134: 90 | I134: 3.1 | J134: 7.4 | K134: 9.6 | L134: - | M134: - | N134: - | O134: - | P134: ±20 | Q134: 265 | R134: 2393 | S134: 426 | T134: 22 | U134: 39 | V134: No | W134: 5000 | X134: 50000 | Y134: 289 | Z134: 1.1 | AA134: 2024-05-27 | AC134: - | AD134: - | AE134: - | AF134: - | AG134: - | AH134: - | AI134: -
A135: JMSL1006AGQ | B135: Auto-SGT | C135: PDFN5x6-8L | D135: Active | E135: JMSL1006PGQ | F135: N | G135: 100 | H135: 110 | I135: 1.8 | J135: 4.7 | K135: 5.9 | L135: 5.9 | M135: 7.7 | N135: - | O135: - | P135: ±20 | Q135: 110 | R135: 2604 | S135: 567 | T135: 9.6 | U135: 42 | V135: No | W135: 5000 | X135: 50000 | Y135: 197 | Z135: 1.2 | AA135: 2022-12-23 | AC135: - | AD135: - | AE135: - | AF135: - | AG135: - | AH135: - | AI135: -
A136: JMSL1006PGQ | B136: Auto-SGT | C136: PDFN5x6-8L | D136: Active | F136: N | G136: 100 | H136: 120 | I136: 1.6 | J136: 4.5 | K136: 5.8 | L136: 5.5 | M136: 7.1 | N136: - | O136: - | P136: ±20 | Q136: 389 | R136: 4251 | S136: 658 | T136: 26 | U136: 71 | V136: No | W136: 5000 | X136: 50000 | Y136: 320 | Z136: 1.1 | AA136: 2024-06-03 | AC136: - | AD136: - | AE136: - | AF136: - | AG136: - | AH136: - | AI136: -
A137: JMSL1008AGQ | B137: Auto-SGT | C137: PDFN5x6-8L | D137: Active | E137: JMSL1008PGQ | F137: N | G137: 100 | H137: 88 | I137: 1.8 | J137: 6 | K137: 7.6 | L137: 8 | M137: 10 | N137: - | O137: - | P137: ±20 | Q137: 102 | R137: 2200 | S137: 445 | T137: 8 | U137: 34 | V137: No | W137: 5000 | X137: 50000 | Y137: 204 | Z137: 3.0 | AA137: 2022-12-23 | AC137: - | AD137: - | AE137: - | AF137: - | AG137: - | AH137: - | AI137: -
A138: JMSL1008AKQ | B138: Auto-SGT | C138: TO-252-3L | D138: Active | E138: JMSL1008MKQ | F138: N | G138: 100 | H138: 98 | I138: 1.6 | J138: 6.7 | K138: 8.1 | L138: 8.5 | M138: 11 | N138: - | O138: - | P138: ±20 | Q138: 118 | R138: 2360 | S138: 368 | T138: 5.9 | U138: 34 | V138: No | W138: 2500 | X138: 25000 | Y138: 228 | Z138: 1.1 | AA138: 2023-01-09 | AC138: - | AD138: - | AE138: - | AF138: - | AG138: - | AH138: - | AI138: -
A139: JMSL1008MKQ | B139: Auto-SGT | C139: TO-252-3L | D139: Active | F139: N | G139: 100 | H139: 56 | I139: 1.7 | J139: 6.5 | K139: 8.5 | L139: 9 | M139: 11.7 | N139: - | O139: - | P139: ±20 | Q139: 3917 | R139: 1640 | S139: 789 | T139: 18 | U139: 27 | V139: No | W139: 2500 | X139: 25000 | Y139: 176 | Z139: 1.0 | AA139: 2024-11-15 | AC139: IAUZ18N10S5L420ATMA1 | AD139: NVTFS040N10MCL | AE139: - | AF139: - | AG139: BUK9M43-100E | AH139: - | AI139: -
A140: JMSH1008MKQ | B140: Auto-SGT | C140: TO-252-3L | D140: Active | F140: N | G140: 100 | H140: 55 | I140: 2.9 | J140: 7.1 | K140: 9.2 | L140: - | M140: - | N140: - | O140: - | P140: ±20 | Q140: 212 | R140: 1380 | S140: 819 | T140: 20 | U140: 24 | V140: No | W140: 2500 | X140: 25000 | Y140: 170 | Z140: 1.0 | AA140: 2025-11-11
A141: JMSL1008PGQ | B141: Auto-SGT | C141: PDFN5x6-8L | D141: Active | F141: N | G141: 100 | H141: 92 | I141: 1.8 | J141: 6.8 | K141: 8.8 | L141: 8.3 | M141: 10.8 | N141: - | O141: - | P141: ±20 | Q141: 238 | R141: 2799 | S141: 419 | T141: 20 | U141: 47 | V141: No | W141: 5000 | X141: 50000 | Y141: =J141*U141 -> 320 | Z141: 1.2 | AA141: 2024-06-03 | AC141: - | AD141: - | AE141: - | AF141: - | AG141: - | AH141: - | AI141: -
A142: JMSL1009AGQ | B142: Auto-SGT | C142: PDFN5x6-8L | D142: Active | E142: JMSL1010MGQ | F142: N | G142: 100 | H142: 80 | I142: 1.7 | J142: 7 | K142: 8.2 | L142: 8.9 | M142: 11.2 | N142: - | O142: - | P142: ±20 | Q142: 165 | R142: 1314 | S142: 548 | T142: 26 | U142: 25 | V142: No | W142: 5000 | X142: 50000 | Y142: 175 | Z142: 1.0 | AA142: 2023-02-01 | AC142: IPG20N10S4L-22 | AD142: - | AE142: STL45N10F7AG | AF142: - | AG142: BUK9Y19-100E | AH142: - | AI142: -
A143: JMSL1009BUQ | B143: Auto-SGT | C143: PDFN3x3-8L | D143: Active | E143: JMSL1010PUQ | F143: N | G143: 100 | H143: 76 | I143: 1.7 | J143: 7.7 | K143: 9.2 | L143: 10 | M143: 13 | N143: - | O143: - | P143: ±20 | Q143: 165 | R143: 1314 | S143: 548 | T143: 26 | U143: 25 | V143: No | W143: 5000 | X143: 50000 | Y143: 193 | Z143: 1.0 | AA143: 2023-03-27 | AC143: - | AD143: - | AE143: - | AF143: - | AG143: - | AH143: - | AI143: -
A144: JMSH1010AGQ | B144: Auto-SGT | C144: PDFN5x6-8L | D144: Active | E144: JMSH1010MGQ | F144: N | G144: 100 | H144: 64 | I144: 2.7 | J144: 8.8 | K144: 11 | L144: - | M144: - | N144: - | O144: - | P144: ±20 | Q144: 94 | R144: 1372 | S144: 291 | T144: 6.2 | U144: 21 | V144: No | W144: 5000 | X144: 50000 | Y144: 185 | Z144: 1.2 | AA144: 2022-12-24 | AC144: IAUZ40N10S5L120 | AD144: NVTFS010N10MCL | AE144: - | AF144: - | AG144: BUK9Y12-100E | AH144: - | AI144: -
A145: JMSH1010AKQ | B145: Auto-SGT | C145: TO-252-3L | D145: Active | E145: JMSH1010MKQ | F145: N | G145: 100 | H145: 79 | I145: 2.8 | J145: 9.2 | K145: 11.5 | L145: - | M145: - | N145: - | O145: - | P145: ±20 | Q145: 86 | R145: 1372 | S145: 291 | T145: 6.2 | U145: 21 | V145: No | W145: 2500 | X145: 25000 | Y145: 193 | Z145: 1.0 | AA145: 2022-08-05 | AC145: - | AD145: - | AE145: - | AF145: - | AG145: - | AH145: - | AI145: -
A146: JMSH1018PGQ | B146: Auto-SGT | C146: PDFN5x6-8L | D146: Active | E146: JMSH1018PGQ | F146: N | G146: 100 | H146: 52 | I146: 3 | J146: 15.2 | K146: 21.2 | L146: - | M146: - | N146: - | O146: - | P146: ±20 | Q146: 44 | R146: 914 | S146: 383 | T146: 21 | U146: 14 | V146: No | W146: 5000 | X146: 50000 | Y146: 213 | Z146: 1.2 | AA146: 2024-11-15 | AC146: IAUZ40N10S5N130 | AD146: - | AE146: STL92N10F7AG | AF146: - | AG146: BUK7Y12-100E | AH146: - | AI146: -
A147: JMSL1010AGQ | B147: Auto-SGT | C147: PDFN5x6-8L | D147: Active | E147: JMSL1010MGQ | F147: N | G147: 100 | H147: 68 | I147: 1.9 | J147: 8 | K147: 10 | L147: 10.5 | M147: 13.7 | N147: - | O147: - | P147: ±20 | Q147: 94 | R147: 1535 | S147: 335 | T147: 8.2 | U147: 26 | V147: No | W147: 5000 | X147: 50000 | Y147: =J147*U147 -> 208 | Z147: 1.2 | AA147: 2022-12-24 | AH147: - | AI147: -
A148: JMSL1010AKQ | B148: Auto-SGT | C148: TO-252-3L | D148: Active | E148: JMSL1010MKQ | F148: N | G148: 100 | H148: 86 | I148: 1.9 | J148: 8.3 | K148: 10 | L148: 10.8 | M148: 13.5 | N148: - | O148: - | P148: ±20 | Q148: 94 | R148: 1535 | S148: 335 | T148: 8.2 | U148: 26 | V148: No | W148: 2500 | X148: 25000 | Y148: 216 | Z148: 1.0 | AA148: 2022-08-24 | AC148: IAUC90N10S5N062 | AD148: - | AE148: STL115N10F7AG | AF148: - | AG148: - | AH148: - | AI148: -
A149: JMSL1010AUQ | B149: Auto-SGT | C149: PDFN3x3-8L | D149: Active | E149: JMSL1010PUQ | F149: N | G149: 100 | H149: 46 | I149: 1.9 | J149: 8.5 | K149: 10.6 | L149: 10.5 | M149: 13.7 | N149: - | O149: - | P149: ±20 | Q149: 45 | R149: 1535 | S149: 335 | T149: 8.2 | U149: 26 | V149: No | W149: 5000 | X149: 50000 | Y149: 221 | Z149: 1.2 | AA149: 2022-12-24 | AC149: IPD50N10S3L16ATMA1 | AD149: - | AE149: STD47N10F7AG | AF149: - | AG149: - | AH149: - | AI149: -
A150: JMSL1010PGWQ | B150: Auto-SGT | C150: PDFN5x6-8L-W | D150: Active | F150: N | G150: 100 | H150: 70 | I150: 1.6 | J150: 8.9 | K150: 11.5 | L150: 10.8 | M150: 14.1 | N150: - | O150: - | P150: ±20 | Q150: 188 | R150: 2001 | S150: 336 | T150: 19 | U150: 38 | V150: No | W150: 5000 | X150: 50000 | Y150: 338 | Z150: 1.0 | AA150: 2025-09-04 | AH150: - | AI150: -
A151: JMSH1010PUQ | B151: Auto-SGT | C151: PDFN3x3-8L | D151: Active | F151: N | G151: 100 | H151: 40 | I151: 2.8 | J151: 8.8 | K151: 11.4 | L151: - | M151: - | N151: - | O151: - | P151: ±20 | Q151: 324 | R151: 1128 | S151: 665 | T151: 17 | U151: 20 | V151: No | W151: 5000 | X151: 50000 | Y151: 176 | Z151: 1.0 | AA151: 2025-11-14
A152: JMSL1010PUQ | B152: Auto-SGT | C152: PDFN3x3-8L | D152: Active | F152: N | G152: 100 | H152: 41 | I152: 1.7 | J152: 8.3 | K152: 10.8 | L152: 11.1 | M152: 14.5 | N152: - | O152: - | P152: ±20 | Q152: 324 | R152: 1291 | S152: 663 | T152: 18 | U152: 23 | V152: No | W152: 5000 | X152: 50000 | Y152: 191 | Z152: 1.0 | AA152: 2025-09-04 | AH152: - | AI152: -
A153: JMSL1010MGQ | B153: Auto-SGT | C153: PDFN5x6-8L | D153: Active | F153: N | G153: 100 | H153: 66 | I153: 1.7 | J153: 8.5 | K153: 11 | L153: 10.5 | M153: 14 | N153: - | O153: - | P153: ±20 | Q153: 165 | R153: 1645 | S153: 245 | T153: 12 | U153: 31 | V153: No | W153: 5000 | X153: 50000 | Y153: 264 | Z153: 1.0 | AA153: 2025-11-11
A154: JMSH1010MGQ | B154: Auto-SGT | C154: PDFN5x6-8L | D154: Active | F154: N | G154: 100 | H154: 64 | I154: 2.9 | J154: 8.2 | K154: 11 | L154: - | M154: - | N154: - | O154: - | P154: ±20 | Q154: 165 | R154: 1093 | S154: 632 | T154: 17 | U154: 20 | V154: No | W154: 5000 | X154: 50000 | Y154: 164 | Z154: 1.0 | AA154: 2025-11-11
A155: JMSL1018AGQ | B155: Auto-SGT | C155: PDFN5x6-8L | D155: Active | E155: JMSL1018PGQ | F155: N | G155: 100 | H155: 47 | I155: 1.8 | J155: 15 | K155: 18.7 | L155: 18.7 | M155: 24.4 | N155: - | O155: - | P155: ±20 | Q155: 29 | R155: 769 | S155: 171 | T155: 5.1 | U155: 12.7 | V155: No | W155: 5000 | X155: 50000 | Y155: 191 | Z155: 1.5 | AA155: 2024-10-09 | AC155: - | AD155: - | AE155: - | AF155: - | AG155: - | AH155: - | AI155: -
A156: JMSL1018AKQ | B156: Auto-SGT | C156: TO-252-3L | D156: Active | E156: JMSL1018PKQ | F156: N | G156: 100 | H156: 45 | I156: 1.9 | J156: 15 | K156: 18.8 | L156: 19.5 | M156: 26 | N156: - | O156: - | P156: ±20 | Q156: 43 | R156: 769 | S156: 171 | T156: 5.1 | U156: 12.7 | V156: No | W156: 2500 | X156: 25000 | Y156: 191 | Z156: 1.1 | AA156: 2024-09-10 | AC156: - | AD156: - | AE156: - | AF156: - | AG156: - | AH156: - | AI156: -
A157: JMSL1018AUQ | B157: Auto-SGT | C157: PDFN3x3-8L | D157: Active | E157: JMSL1018PUQ | F157: N | G157: 100 | H157: 29 | I157: 1.8 | J157: 16.2 | K157: 20 | L157: 20.8 | M157: 27 | N157: - | O157: - | P157: ±20 | Q157: 29 | R157: 769 | S157: 171 | T157: 5.1 | U157: 12.7 | V157: No | W157: 5000 | X157: 50000 | Y157: 206 | Z157: 1.3 | AA157: 2022-12-23 | AC157: IAUT150N10S5N035 | AD157: - | AE157: - | AF157: - | AG157: - | AH157: - | AI157: -
A158: JMSL1018PGQ | B158: Auto-SGT | C158: PDFN5x6-8L | D158: Active | F158: N | G158: 100 | H158: 57 | I158: 1.5 | J158: 13.2 | K158: 17.1 | L158: 17.6 | M158: 22.9 | N158: - | O158: - | P158: ±20 | Q158: 44 | R158: 1015 | S158: 356 | T158: 19 | U158: 18 | V158: No | W158: 5000 | X158: 50000 | Y158: =J158*U158 -> 238 | Z158: 1.1 | AA158: 2025-08-08 | AC158: - | AD158: - | AE158: - | AF158: - | AG158: - | AH158: - | AI158: -
A159: JMSL1018PKQ | B159: Auto-SGT | C159: TO-252-3L | D159: Active | F159: N | G159: 100 | H159: 39 | I159: 1.6 | J159: 13 | K159: 17 | L159: 18 | M159: 23 | N159: - | O159: - | P159: ±20 | Q159: 44 | R159: 1015 | S159: 356 | T159: 19 | U159: 18 | V159: No | W159: 2500 | X159: 25000 | Y159: 234 | Z159: 1.1 | AA159: 2024-12-26 | AC159: - | AD159: - | AE159: - | AF159: - | AG159: - | AH159: - | AI159: -
A160: JMSL1020AGDQ | B160: Auto-SGT | C160: PDFN5x6-8L-D | D160: Active | E160: JMSL1020PGDQ | F160: N+N | G160: 100 | H160: 27 | I160: 1.8 | J160: 16.5 | K160: 20 | L160: 21 | M160: 27 | N160: - | O160: - | P160: ±20 | Q160: 29 | R160: 769 | S160: 171 | T160: 5.1 | U160: 12.7 | V160: No | W160: 5000 | X160: 50000 | Y160: 210 | Z160: 1.3 | AA160: 2022-12-23 | AC160: - | AD160: - | AE160: - | AF160: - | AG160: - | AH160: - | AI160: -
A161: JMSL1020PGDQ | B161: Auto-SGT | C161: PDFN5x6-8L-D | D161: Active | F161: N+N | G161: 100 | H161: 30 | I161: 1.6 | J161: 14 | K161: 18 | L161: 19 | M161: 25 | N161: - | O161: - | P161: ±20 | Q161: 44 | R161: 1015 | S161: 356 | T161: 19 | U161: 18 | V161: No | W161: 5000 | X161: 50000 | Y161: 252 | Z161: 1.1 | AA161: 2024-11-15 | AC161: - | AD161: - | AE161: - | AF161: - | AG161: - | AH161: - | AI161: -
A162: JMSL1040AGDQ | B162: Auto-SGT | C162: PDFN5x6-8L-D | D162: Active | E162: JMSL1040PGDQ | F162: N+N | G162: 100 | H162: 22 | I162: 1.9 | J162: 28 | K162: 36 | L162: 40 | M162: 52 | N162: - | O162: - | P162: ±20 | Q162: 11.3 | R162: 363 | S162: 85 | T162: 3 | U162: 6.8 | V162: No | W162: 5000 | X162: 50000 | Y162: 190 | Z162: 1.1 | AA162: 2023-09-15 | AC162: - | AD162: - | AE162: - | AF162: - | AG162: - | AH162: - | AI162: -
A163: JMSL1040AGQ | B163: Auto-SGT | C163: PDFN5x6-8L | D163: Active | E163: JMSL1040PGQ | F163: N | G163: 100 | H163: 27 | I163: 1.8 | J163: 29 | K163: 36 | L163: 39 | M163: 50 | N163: - | O163: - | P163: ±20 | Q163: 14 | R163: 363 | S163: 85 | T163: 3 | U163: 6.8 | V163: No | W163: 5000 | X163: 50000 | Y163: 197 | Z163: 1.2 | AA163: 2022-12-23 | AC163: - | AD163: - | AE163: - | AF163: - | AG163: - | AH163: - | AI163: -
A164: JMSL1040AUQ | B164: Auto-SGT | C164: PDFN3x3-8L | D164: Active | E164: JMSL1040PUQ | F164: N | G164: 100 | H164: 20 | I164: 1.8 | J164: 29 | K164: 39 | L164: 39 | M164: 50 | N164: - | O164: - | P164: ±20 | Q164: 14 | R164: 363 | S164: 85 | T164: 3 | U164: 6.8 | V164: No | W164: 5000 | X164: 50000 | Y164: 197 | Z164: 1.3 | AA164: 2022-12-23 | AC164: - | AD164: - | AE164: - | AF164: - | AG164: - | AH164: - | AI164: -
A165: JMSL1040AVQ | B165: Auto-SGT | C165: U-DFN2020-6L | D165: Active | E165: JMSL1040MVQ | F165: N | G165: 100 | H165: 10.6 | I165: 1.9 | J165: 29 | K165: 36 | L165: 37 | M165: 48 | N165: - | O165: - | P165: ±20 | Q165: 11.3 | R165: 363 | S165: 85 | T165: 3 | U165: 6.8 | V165: No | W165: 3000 | X165: 30000 | Y165: 197 | Z165: 1.0 | AA165: 2023-04-07 | AC165: - | AD165: - | AE165: - | AF165: - | AG165: - | AH165: - | AI165: -
A166: JMSL1040MUQ | B166: Auto-SGT | C166: PDFN3x3-8L | D166: Active | F166: N | G166: 100 | H166: 32 | I166: 1.8 | J166: 25 | K166: 32 | L166: 32 | M166: 42 | N166: - | O166: - | P166: ±20 | Q166: 36 | R166: 513 | S166: 182 | T166: 12 | U166: 10 | V166: No | W166: 5000 | X166: 50000 | Y166: 250 | Z166: 1.0 | AA166: 2025-09-04 | AC166: - | AD166: - | AE166: - | AF166: - | AG166: - | AH166: - | AI166: -
A167: JMSL1040MUDQ | B167: Auto-SGT | C167: PDFN3x3-8L-D | D167: Active | F167: N+N | G167: 100 | H167: 19 | I167: 1.6 | J167: 29 | K167: 37 | L167: 38 | M167: 49 | N167: - | O167: - | P167: ±20 | Q167: 26 | R167: 533 | S167: 186 | T167: 11 | U167: 10 | V167: No | W167: 5000 | X167: 50000 | Y167: 290 | Z167: 1.0 | AA167: 2025-09-04 | AC167: - | AD167: - | AE167: - | AF167: - | AG167: - | AH167: - | AI167: -
A168: JMSL1040PGDQ | B168: Auto-SGT | C168: PDFN5x6-8L-D | D168: Active | F168: N+N | G168: 100 | H168: 18 | I168: 1.8 | J168: 29 | K168: 37 | L168: 36 | M168: 46 | N168: - | O168: - | P168: ±20 | Q168: 47 | R168: 749 | S168: 117 | T168: 10.4 | U168: 13 | V168: No | W168: 5000 | X168: 50000 | Y168: =J168*U168 -> 377 | Z168: 1.1 | AA168: 2024-11-15 | AC168: - | AD168: - | AE168: - | AF168: - | AG168: - | AH168: - | AI168: -
A169: JMSL1040PGQ | B169: Auto-SGT | C169: PDFN5x6-8L | D169: Active | F169: N | G169: 100 | H169: 35 | I169: 1.8 | J169: 24 | K169: 31 | L169: 30 | M169: 39 | N169: - | O169: - | P169: ±20 | Q169: 47 | R169: 749 | S169: 117 | T169: 10.4 | U169: 13 | V169: No | W169: 5000 | X169: 50000 | Y169: 312 | Z169: 1.1 | AA169: 2024-06-03 | AC169: - | AD169: - | AE169: - | AF169: - | AG169: - | AH169: - | AI169: -
A170: JMSH1504AEQ | B170: Auto-SGT | C170: TO-263-3L | D170: Active | E170: JMSH1504PEQ | F170: N | G170: 150 | H170: 210 | I170: 3.2 | J170: 3.9 | K170: 4.9 | L170: - | M170: - | N170: - | O170: - | P170: ±20 | Q170: 889 | R170: 6540 | S170: 772 | T170: 6.7 | U170: 88 | V170: No | W170: 800 | X170: 4000 | Y170: 343 | Z170: 1.0 | AA170: 2022-04-28 | AC170: AUIRFS4115-7P | AD170: FDB075N15A_F085 | AE170: - | AF170: - | AG170: - | AH170: - | AI170: -
A171: JMSH1504ASQ | B171: Auto-SGT | C171: TO-247-3L | D171: Active | E171: JMSH1504PSQ | F171: N | G171: 150 | H171: 230 | I171: 3.2 | J171: 4 | K171: 4.9 | L171: - | M171: - | N171: - | O171: - | P171: ±20 | Q171: 889 | R171: 6540 | S171: 772 | T171: 6.7 | U171: 88 | V171: No | W171: 30 | X171: 2250 | Y171: 352 | Z171: 1.1 | AA171: 2022-11-09 | AC171: - | AD171: - | AE171: - | AF171: - | AG171: - | AH171: - | AI171: -
A172: JMSH1504ATLQ | B172: Auto-SGT | C172: PowerJE®10x12 | D172: Active | E172: JMSH1504NTLQ | F172: N | G172: 150 | H172: 227 | I172: 3.2 | J172: 3.3 | K172: 4.2 | L172: - | M172: - | N172: - | O172: - | P172: ±20 | Q172: 800 | R172: 6540 | S172: 772 | T172: 6.7 | U172: 88 | V172: No | W172: 2000 | X172: 10000 | Y172: 290 | Z172: 1.0 | AA172: 2022-06-21 | AC172: IPB072N15N3G | AD172: FDB075N15A | AE172: - | AF172: - | AG172: - | AH172: - | AI172: SVGP157R2NSTR
A173: JMSH1507AEQ | B173: Auto-SGT | C173: TO-263-3L | D173: Active | E173: JMSH1507PEQ | F173: N | G173: 150 | H173: 161 | I173: 3.2 | J173: 5.2 | K173: 6.5 | L173: - | M173: - | N173: - | O173: - | P173: ±20 | Q173: 540 | R173: 4320 | S173: 535 | T173: 7.2 | U173: 68 | V173: No | W173: 800 | X173: 4000 | Y173: 354 | Z173: 1.3 | AA173: 2024-04-01 | AC173: - | AD173: - | AE173: - | AF173: - | AG173: - | AH173: - | AI173: -
A174: JMSH1508AEQ | B174: Auto-SGT | C174: TO-263-3L | D174: Active | E174: JMSH1507PEQ | F174: N | G174: 150 | H174: 117 | I174: 3.2 | J174: 6.7 | K174: 8.4 | L174: - | M174: - | N174: - | O174: - | P174: ±20 | Q174: 265 | R174: 3395 | S174: 457 | T174: 17 | U174: 47 | V174: No | W174: 800 | X174: 4000 | Y174: 315 | Z174: 1.1 | AA174: 2022-06-08 | AC174: - | AD174: - | AE174: - | AF174: - | AG174: - | AH174: - | AI174: -
A175: JMSH1504PEQ | B175: Auto-SGT | C175: TO-263-3L | D175: Active | F175: N | G175: 150 | H175: 178 | I175: 3.2 | J175: 3.7 | K175: 4.8 | L175: - | M175: - | N175: - | O175: - | P175: ±20 | Q175: 1359 | R175: 9158 | S175: 773 | T175: 20 | U175: 129 | V175: No | W175: 800 | X175: 4000 | Y175: 477 | Z175: 1.0 | AA175: 2025-11-11
A176: JMSH1509AGQ | B176: Auto-SGT | C176: PDFN5x6-8L | D176: Active | E176: JMSH1509PGQ | F176: N | G176: 150 | H176: 87 | I176: 3.2 | J176: 8.5 | K176: 9.9 | L176: - | M176: - | N176: - | O176: - | P176: ±20 | Q176: 331 | R176: 2181 | S176: 363 | T176: 7.9 | U176: 30 | V176: No | W176: 5000 | X176: 50000 | Y176: 255 | Z176: 1.3 | AA176: 2022-12-24 | AC176: - | AD176: - | AE176: - | AF176: - | AG176: - | AH176: - | AI176: -
A177: JMSH1535AGQ | B177: Auto-SGT | C177: PDFN5x6-8L | D177: Active | F177: N | G177: 150 | H177: 29 | I177: 3.3 | J177: 27 | K177: 35 | L177: - | M177: - | N177: - | O177: - | P177: ±20 | Q177: 48 | R177: 760 | S177: 113 | T177: 23 | U177: 12.3 | V177: No | W177: 5000 | X177: 50000 | Y177: 332 | Z177: 1.1 | AA177: 2022-12-24 | AC177: AUIRFR4615 | AD177: FDD86250_F085 | AE177: - | AF177: - | AG177: - | AH177: - | AI177: -
A178: JMSH1552PGWQ | B178: Auto-SGT | C178: PDFN5x6-8L-W | D178: Active | F178: N | G178: 150 | H178: 25 | I178: 3.3 | J178: 48 | K178: 62 | L178: - | M178: - | N178: - | O178: - | P178: ±20 | Q178: 60 | R178: 753 | S178: 77 | T178: 12 | U178: 11 | V178: No | W178: 5000 | X178: 50000 | Y178: 528 | Z178: 1.0 | AA178: 2025-09-04 | AC178: - | AD178: - | AE178: - | AF178: - | AG178: - | AH178: - | AI178: -
A179: JMSH1552PKQ | B179: Auto-SGT | C179: TO-252-3L | D179: Active | F179: N | G179: 150 | H179: 17 | I179: 3.7 | J179: 50 | K179: 65 | L179: - | M179: - | N179: - | O179: - | P179: ±20 | Q179: 60 | R179: 753 | S179: 77 | T179: 12 | U179: 11 | V179: No | W179: 2500 | X179: 25000 | Y179: 550 | Z179: 1.0 | AA179: 2025-09-04 | AC179: - | AD179: - | AE179: - | AF179: - | AG179: - | AH179: - | AI179: -
A180: JMSH1504NCQ | B180: Auto-SGT | C180: TO-220-3L | D180: Active | F180: N | G180: 150 | H180: 162 | I180: 3.6 | J180: 3.9 | K180: 5.1 | L180: - | M180: - | N180: - | O180: - | P180: ±20 | Q180: 1176 | R180: 8537 | S180: 783 | T180: 20 | U180: 122 | V180: No | W180: 1000 | X180: 5000 | Y180: 476 | Z180: 1.0 | AA180: 2025-11-11
A181: JMSH1509PGQ | B181: Auto-SGT | C181: PDFN5x6-8L | D181: Active | F181: N | G181: 150 | H181: 77.0 | I181: 2.9 | J181: 10.3 | K181: 13.4 | L181: - | M181: - | N181: - | O181: - | P181: ±20 | Q181: 423 | R181: 2542 | S181: 338 | T181: 19 | U181: 37 | V181: No | W181: 5000 | X181: 50000 | Y181: 381 | Z181: 1.0 | AA181: 2025-11-11
A182: JMSH1565AKSQ | B182: Auto-SGT | C182: TO-252-3L | D182: Active | E182: JMSH1552PKQ | F182: N | G182: 150 | H182: 26 | I182: 3.2 | J182: 52 | K182: 65 | L182: - | M182: - | N182: - | O182: - | P182: ±20 | Q182: 39 | R182: 306 | S182: 70 | T182: 3.8 | U182: 5.3 | V182: No | W182: 2500 | X182: 25000 | Y182: 276 | Z182: 1.0 | AA182: 2023-03-10 | AC182: - | AD182: - | AE182: - | AF182: - | AG182: - | AH182: - | AI182: -
A183: JMSH1566AKQ | B183: Auto-SGT | C183: TO-252-3L | D183: Active | E183: JMSH1552PKQ | F183: N | G183: 150 | H183: 20 | I183: 3.2 | J183: 57 | K183: 72 | L183: - | M183: - | N183: - | O183: - | P183: ±20 | Q183: 10.5 | R183: 360 | S183: 54 | T183: 3.8 | U183: 5.9 | V183: No | W183: 2500 | X183: 25000 | Y183: 336 | Z183: 1.0 | AA183: 2023-09-27 | AC183: - | AD183: - | AE183: - | AF183: - | AG183: - | AH183: - | AI183: -
A184: JMSH2010PCQ | B184: Auto-SGT | C184: TO-220-3L | D184: Active | F184: N | G184: 200 | H184: 100 | I184: 3.0 | J184: 8.6 | K184: 11.2 | L184: - | M184: - | N184: - | O184: - | P184: ±20 | Q184: 494 | R184: 8788 | S184: 455 | T184: 17 | U184: 60 | V184: No | W184: 1000 | X184: 5000 | Y184: 516 | Z184: 1.1 | AA184: 2024-12-26 | AC184: - | AD184: - | AE184: - | AF184: - | AG184: - | AH184: - | AI184: -
A185: JMSH2010PEQ | B185: Auto-SGT | C185: TO-263-3L | D185: Active | F185: N | G185: 200 | H185: 106 | I185: 3.1 | J185: 8.7 | K185: 11 | L185: - | M185: - | N185: - | O185: - | P185: ±20 | Q185: 1006 | R185: 4091 | S185: 430 | T185: 11 | U185: 60 | V185: No | W185: 800 | X185: 4000 | Y185: 522 | Z185: 1.0 | AA185: 2025-12-02
A186: JMSH2010PSQ | B186: Auto-SGT | C186: TO-247-3L | D186: Active | F186: N | G186: 200 | H186: 111 | I186: 3.0 | J186: 8.6 | K186: 11.2 | L186: - | M186: - | N186: - | O186: - | P186: ±20 | Q186: 494 | R186: 8788 | S186: 455 | T186: 17 | U186: 60 | V186: No | W186: 30 | X186: 2250 | Y186: 516 | Z186: 1.0 | AA186: 2025-12-02
A187: JMTL2N7002KSQ | B187: Auto-Trench | C187: SOT-23 | D187: Active | F187: N | G187: 60 | H187: 0.8 | I187: 1.5 | J187: 577 | K187: 750 | L187: 650 | M187: 845 | N187: - | O187: - | P187: ±20 | Q187: - | R187: 55 | S187: 12.2 | T187: 6.8 | U187: 1.9 | V187: No | W187: 3000 | X187: 120000 | Y187: 1,096 | Z187: 1.2 | AA187: 2025-09-04 | AC187: - | AD187: - | AE187: - | AF187: - | AG187: - | AH187: - | AI187: -
A188: JMTK330N06AQ | B188: Auto-Trench | C188: TO-252-3L | D188: Active | F188: N | G188: 60 | H188: 24 | I188: 1.6 | J188: 28 | K188: 33.0 | L188: 31 | M188: 45 | N188: - | O188: - | P188: ±20 | Q188: 24 | R188: 1187 | S188: 56 | T188: 47 | U188: 24 | V188: No | W188: 2500 | X188: 25000 | Y188: 672 | Z188: 1.0 | AA188: 2025-12-02
A189: JMH65R040ASFDQ | B189: Auto-SJ | C189: TO-247-3L | D189: NRND | F189: N | G189: 650 | H189: 71 | I189: 4 | J189: 35 | K189: 40 | L189: - | M189: - | N189: - | O189: - | P189: ±20 | Q189: 1125 | R189: 6843 | S189: 250 | T189: 4.3 | U189: 163 | V189: No | W189: 30 | X189: 2250 | Y189: 5,705 | Z189: 1.0 | AA189: 2023-01-31 | AC189: - | AD189: - | AE189: - | AF189: - | AG189: - | AH189: - | AI189: -
A190: JMH65R110ACFDQ | B190: Auto-SJ | C190: TO-220-3L | D190: NRND | F190: N | G190: 650 | H190: 35 | I190: 3.5 | J190: 99 | K190: 110 | L190: - | M190: - | N190: - | O190: - | P190: ±30 | Q190: 500 | R190: 2869 | S190: 93 | T190: 5.4 | U190: 72 | V190: No | W190: 1000 | X190: 5000 | Y190: 7,128 | Z190: 1.1 | AA190: 2024-04-25 | AC190: - | AD190: - | AE190: - | AF190: - | AG190: - | AH190: - | AI190: -
A191: JMH65R110AEFDQ | B191: Auto-SJ | C191: TO-263-3L | D191: NRND | F191: N | G191: 650 | H191: 35 | I191: 3.5 | J191: 98 | K191: 110 | L191: - | M191: - | N191: - | O191: - | P191: ±30 | Q191: 500 | R191: 2869 | S191: 93 | T191: 5.4 | U191: 72 | V191: No | W191: 800 | X191: 4000 | Y191: 7,056 | Z191: 1.0 | AA191: 2023-05-10 | AC191: - | AD191: - | AE191: - | AF191: - | AG191: - | AH191: - | AI191: -

Sheet SGT MOSFETs
A1: MOSFET Selection Guide: Date of Release - Dec. 9, 2025
A2: Technologies: Shielded Gate ; Auto-grade ; JPFETâ / JSFETâ Series
A3: Product Name | B3: Platform | C3: JJM Package | D3: Status | E3: Recommended Product Name | F3: Confi- guration | G3: VDS_Max | H3: ID_Max | I3: VGS_Typ | J3: RDS_Typ @ VGS = 10V | K3: RDS_Max @ VGS = 10V | L3: RDS_Typ @ VGS = 4.5V | M3: RDS_Max @ VGS = 4.5V | N3: RDS_Typ @ VGS = 2.5V | O3: RDS_Max @ VGS = 2.5V | P3: VGS_Max | Q3: EAS_Max | R3: Ciss_Typ | S3: Coss_Typ | T3: Crss_Typ | U3: Qg_Typ | V3: ESD | W3: MPQ | X3: MOQ | Y3: FOM | Z3: DataSheet Version # | AA3: Date of Update | AC3: Compatible to Infineon's Product | AD3: Compatible to onsemi's Product | AE3: Compatible to ST's Product | AF3: Compatible to AOS' Product | AG3: Compatible to Nexperia's Product | AH3: Compatible to Toshiba's Product | AI3: Domestic Competition
A4: JMPL1025AE | B4: SGT | C4: TO-263-3L | D4: Active | F4: P | G4: -100 | H4: -49 | I4: -2.0 | J4: 21.0 | K4: 25.0 | L4: 29 | M4: 38.0 | N4: - | O4: - | P4: ±20 | Q4: 304.0 | R4: 2,525 | S4: 427.0 | T4: 32.0 | U4: 37.0 | V4: No | W4: 800 | X4: 4,000 | Y4: =J4*U4 -> 777 | Z4: 1.4 | AA4: 2024-04-01 | AC4: - | AD4: - | AE4: - | AF4: - | AG4: - | AH4: - | AI4: -
A5: JMPL1025AK | B5: SGT | C5: TO-252-3L | D5: Active | F5: P | G5: -100 | H5: -46 | I5: -2.0 | J5: 22.0 | K5: 28.0 | L5: 31 | M5: 40.0 | N5: - | O5: - | P5: ±20 | Q5: 304.0 | R5: 2,525 | S5: 427.0 | T5: 32.0 | U5: 37.0 | V5: No | W5: 2,500 | X5: 25,000 | Y5: 814 | Z5: 2.0 | AA5: 2022-11-21 | AC5: - | AD5: - | AE5: - | AF5: - | AG5: - | AH5: - | AI5: -
A6: JMPL1025PE | B6: SGT | C6: TO-263-3L | D6: Active | F6: P | G6: -100 | H6: -56 | I6: -1.7 | J6: 18.0 | K6: 24.0 | L6: 24 | M6: 31.0 | N6: - | O6: - | P6: ±20 | Q6: 423.0 | R6: 3,063 | S6: 545.0 | T6: 33.0 | U6: 52.0 | V6: No | W6: 800 | X6: 4,000 | Y6: 936 | Z6: 1.0 | AA6: 2025-08-27 | AC6: - | AD6: - | AE6: - | AF6: - | AG6: - | AH6: - | AI6: -
A7: JMPL1050AE | B7: SGT | C7: TO-263-3L | D7: Active | F7: P | G7: -100 | H7: -36 | I7: -2.0 | J7: 36.0 | K7: 50.0 | L7: 50 | M7: 66.0 | N7: - | O7: - | P7: ±20 | Q7: 109.0 | R7: 1,412 | S7: 222.0 | T7: 2.6 | U7: 20.0 | V7: No | W7: 800 | X7: 4,000 | Y7: =J7*U7 -> 720 | Z7: 1.1 | AA7: 2023-04-07 | AC7: - | AD7: - | AE7: - | AF7: - | AG7: - | AH7: - | AI7: -
A8: JMPL1050AG | B8: SGT | C8: PDFN5x6-8L | D8: Active | F8: P | G8: -100 | H8: -27 | I8: -2.0 | J8: 36.0 | K8: 50.0 | L8: 48 | M8: 65.0 | N8: - | O8: - | P8: ±20 | Q8: 109.0 | R8: 1,412 | S8: 222.0 | T8: 2.6 | U8: 20.0 | V8: No | W8: 5,000 | X8: 50,000 | Y8: =J8*U8 -> 720 | Z8: 1.3 | AA8: 2022-12-24 | AC8: - | AD8: - | AE8: - | AF8: - | AG8: - | AH8: - | AI8: -
A9: JMPL1050AK | B9: SGT | C9: TO-252-3L | D9: Active | F9: P | G9: -100 | H9: -30 | I9: -2.0 | J9: 37.0 | K9: 50.0 | L9: 50 | M9: 66.0 | N9: - | O9: - | P9: ±20 | Q9: 109.0 | R9: 1,412 | S9: 222.0 | T9: 2.6 | U9: 20.0 | V9: No | W9: 2,500 | X9: 25,000 | Y9: 740 | Z9: 1.1 | AA9: 2022-09-02 | AC9: - | AD9: FDMC86139P | AE9: - | AF9: - | AG9: - | AH9: - | AI9: -
A10: JMPL1050AP | B10: SGT | C10: SOP-8 | D10: Active | F10: P | G10: -100 | H10: -6.3 | I10: -2.0 | J10: 36.0 | K10: 50.0 | L10: 57 | M10: 70.0 | N10: - | O10: - | P10: ±20 | Q10: 109.0 | R10: 1,412 | S10: 222.0 | T10: 2.6 | U10: 20.0 | V10: No | W10: 2,500 | X10: 30,000 | Y10: 720 | Z10: 1.0 | AA10: 2022-05-29 | AC10: - | AD10: - | AE10: - | AF10: - | AG10: - | AH10: - | AI10: -
A11: JMPL1050APD | B11: SGT | C11: SOP-8 | D11: Active | F11: P+P | G11: -100 | H11: -6.6 | I11: -2.0 | J11: 39.0 | K11: 50.0 | L11: 57 | M11: 70.0 | N11: - | O11: - | P11: ±20 | Q11: 109.0 | R11: 1,412 | S11: 222.0 | T11: 2.6 | U11: 20.0 | V11: No | W11: 4,000 | X11: 48,000 | Y11: =J11*U11 -> 780 | Z11: 1.0 | AA11: 2023-04-07 | AC11: - | AD11: - | AE11: - | AF11: - | AG11: - | AH11: - | AI11: -
A12: JMPL1050AU | B12: SGT | C12: PDFN3x3-8L | D12: Active | F12: P | G12: -100 | H12: -26 | I12: -2.0 | J12: 38.0 | K12: 50.0 | L12: 51 | M12: 66.0 | N12: - | O12: - | P12: ±20 | Q12: 109.0 | R12: 1,412 | S12: 222.0 | T12: 2.6 | U12: 20.0 | V12: No | W12: 5,000 | X12: 50,000 | Y12: 760 | Z12: 1.2 | AA12: 2022-12-24 | AC12: - | AD12: - | AE12: - | AF12: - | AG12: - | AH12: - | AI12: -
A13: JMPL1050AY | B13: SGT | C13: SOT-223-3L | D13: Active | F13: P | G13: -100 | H13: -9.7 | I13: -2.0 | J13: 40.0 | K13: 52.0 | L13: 53 | M13: 68.0 | N13: - | O13: - | P13: ±20 | Q13: 109.0 | R13: 1,412 | S13: 222.0 | T13: 2.6 | U13: 20.0 | V13: No | W13: 4,000 | X13: 48,000 | Y13: 800 | Z13: 1.1 | AA13: 2023-03-15 | AC13: - | AD13: - | AE13: - | AF13: - | AG13: - | AH13: - | AI13: -
A14: JMPL1050PG | B14: SGT | C14: PDFN5x6-8L | D14: Active | F14: P | G14: -100 | H14: -28 | I14: -1.7 | J14: 37.0 | K14: 48.0 | L14: 51 | M14: 66.0 | N14: - | O14: - | P14: ±20 | Q14: 165.0 | R14: 1,765 | S14: 205.0 | T14: 17.0 | U14: 27.0 | V14: No | W14: 5,000 | X14: 50,000 | Y14: 999 | Z14: 1.0 | AA14: 2024-11-27
A15: JMPL1050PK | B15: SGT | C15: TO-252-3L | D15: Active | F15: P | G15: -100 | H15: -22.0 | I15: -1.7 | J15: 48.0 | K15: 62.0 | L15: 60.0 | M15: 78.0 | N15: - | O15: - | P15: ±20 | Q15: 165 | R15: 1,755.0 | S15: 319.0 | T15: 24.0 | U15: 27.0 | V15: No | W15: 2,500 | X15: 25,000 | Y15: 1,296 | Z15: 1.0 | AA15: 2024-12-31 | AC15: - | AD15: - | AE15: - | AF15: - | AG15: - | AH15: - | AI15: -
A16: JMPL1050PU | B16: SGT | C16: PDFN3x3-8L | D16: Active | F16: P | G16: -100 | H16: -17.0 | I16: -1.7 | J16: 39.0 | K16: 51.0 | L16: 51.0 | M16: 67.0 | N16: - | O16: - | P16: ±20 | Q16: 165 | R16: 1,765.0 | S16: 205.0 | T16: 17.0 | U16: 27.0 | V16: No | W16: 5,000 | X16: 50,000 | Y16: 1,053 | Z16: 1.0 | AA16: 2024-12-31 | AC16: - | AD16: - | AE16: - | AF16: - | AG16: - | AH16: - | AI16: -
A17: JMPL1050PY | B17: SGT | C17: SOT-223-3L | D17: Active | F17: P | G17: -100 | H17: -15.0 | I17: -1.7 | J17: 42.0 | K17: 55.0 | L17: 54.0 | M17: 70.0 | N17: - | O17: - | P17: ±20 | Q17: 165 | R17: 1,539.0 | S17: 268.0 | T17: 19.0 | U17: 27.0 | V17: No | W17: 4,000 | X17: 48,000 | Y17: 1,134 | Z17: 1.0 | AA17: 2025-08-27 | AC17: - | AD17: - | AE17: - | AF17: - | AG17: - | AH17: - | AI17: -
A18: JMPL0622AK | B18: SGT | C18: TO-252-3L | D18: Active | F18: P | G18: -60 | H18: -46 | I18: -2.0 | J18: 19.8 | K18: 25.0 | L18: 34 | M18: 44.0 | N18: - | O18: - | P18: ±20 | Q18: 182.0 | R18: 1,713 | S18: 302.0 | T18: 13.5 | U18: 26.0 | V18: No | W18: 2,500 | X18: 25,000 | Y18: 515 | Z18: 1.1 | AA18: 2025-03-03 | AC18: - | AD18: - | AE18: - | AF18: - | AG18: - | AH18: - | AI18: -
A19: JMPL0625AP | B19: SGT | C19: SOP-8 | D19: Active | F19: P | G19: -60 | H19: -7.8 | I19: -1.9 | J19: 20.0 | K19: 25.0 | L19: 26 | M19: 34.0 | N19: - | O19: - | P19: ±20 | Q19: 165.0 | R19: 1,623 | S19: 400.0 | T19: 14.0 | U19: 4.4 | V19: No | W19: 4,000 | X19: 48,000 | Y19: 88 | Z19: 1.0 | AA19: 2024-04-25 | AC19: - | AD19: - | AE19: - | AF19: - | AG19: - | AH19: - | AI19: -
A20: JMPL0648AG | B20: SGT | C20: PDFN5x6-8L | D20: Active | F20: P | G20: -60 | H20: -24 | I20: -2.0 | J20: 40.0 | K20: 50.0 | L20: 55 | M20: 72.0 | N20: - | O20: - | P20: ±20 | Q20: 75.0 | R20: 855 | S20: 189.0 | T20: 9.5 | U20: 13.5 | V20: No | W20: 5,000 | X20: 50,000 | Y20: 540 | Z20: 2.0 | AA20: 2023-02-13 | AC20: - | AD20: - | AE20: - | AF20: - | AG20: - | AH20: - | AI20: -
A21: JMPL0648AK | B21: SGT | C21: TO-252-3L | D21: Active | F21: P | G21: -60 | H21: -23 | I21: -2.0 | J21: 40.0 | K21: 50.0 | L21: 55 | M21: 72.0 | N21: - | O21: - | P21: ±20 | Q21: 75.0 | R21: 855 | S21: 189.0 | T21: 9.5 | U21: 13.5 | V21: No | W21: 2,500 | X21: 25,000 | Y21: 540 | Z21: 2.0 | AA21: 2023-02-13 | AC21: - | AD21: - | AE21: - | AF21: - | AG21: - | AH21: - | AI21: -
A22: JMPL0648AU | B22: SGT | C22: PDFN3x3-8L | D22: Active | F22: P | G22: -60 | H22: -22 | I22: -2.0 | J22: 40.0 | K22: 50.0 | L22: 55 | M22: 72.0 | N22: - | O22: - | P22: ±20 | Q22: 75.0 | R22: 855 | S22: 189.0 | T22: 9.5 | U22: 13.5 | V22: No | W22: 5,000 | X22: 50,000 | Y22: 540 | Z22: 2.0 | AA22: 2023-02-13 | AC22: - | AD22: - | AE22: - | AF22: - | AG22: - | AH22: - | AI22: -
A23: JMSL030SAG | B23: SGT | C23: PDFN5x6-8L | D23: Active | E23: JMSL030STG | F23: N | G23: 30 | H23: 327 | I23: 1.7 | J23: 0.6 | K23: 0.7 | L23: 0.8 | M23: 1.0 | N23: - | O23: - | P23: ±20 | Q23: 342.0 | R23: 7,543 | S23: 5,253.0 | T23: 422.0 | U23: 120.0 | V23: No | W23: 5,000 | X23: 50,000 | Y23: =J23*U23 -> 66 | Z23: 2.1 | AA23: 2022-12-24 | AC23: BSC005N03LS5 | AD23: NTMFS4C020N; NTMFS4C324N | AE23: - | AF23: AONS34304C | AG23: PSMNR58-30YLH | AH23: - | AI23: SIRA90ADP; CSD17570Q5B
A24: JMSL030SPG | B24: SGT | C24: PDFN5X6-8L | D24: Active | F24: N | G24: 30 | H24: 358 | I24: 1.6 | J24: 0.6 | K24: 0.8 | L24: 0.88 | M24: 1.1 | N24: - | O24: - | P24: ±20 | Q24: 850.0 | R24: 7,728 | S24: 3,845.0 | T24: 100.0 | U24: 116.0 | V24: No | W24: 5,000 | X24: 50,000 | Y24: =J24*U24 -> 70 | Z24: 1.2 | AA24: 2025-11-10 | AC24: - | AD24: - | AE24: - | AF24: - | AG24: - | AH24: - | AI24: -
A25: JMSL030STG | B25: SGT | C25: PDFN5X6-8L | D25: Active | F25: N | G25: 30 | H25: 358 | I25: 1.6 | J25: 0.48 | K25: 0.72 | L25: - | M25: - | N25: - | O25: - | P25: ±20 | Q25: 1,176.0 | R25: 12,048 | S25: 9,449.0 | T25: 275.0 | U25: 153.0 | V25: No | W25: 5,000 | X25: 50,000 | Y25: =J25*U25 -> 73 | Z25: 1.2 | AA25: 2025-05-15 | AC25: - | AD25: - | AE25: - | AF25: - | AG25: - | AH25: - | AI25: -
A26: JMSL0301AG | B26: SGT | C26: PDFN5x6-8L | D26: Active | E26: JMSL0301TG | F26: N | G26: 30 | H26: 245 | I26: 1.7 | J26: 0.9 | K26: 1.1 | L26: 1.3 | M26: 1.7 | N26: - | O26: - | P26: ±20 | Q26: 205.0 | R26: 4,185 | S26: 2,860.0 | T26: 233.0 | U26: 64.0 | V26: No | W26: 5,000 | X26: 50,000 | Y26: =J26*U26 -> 54 | Z26: 1.4 | AA26: 2022-12-24 | AC26: BSC011N03LS | AD26: NTMFS4C302N | AE26: - | AF26: AON6500 | AG26: PSMN1R0-30YLD | AH26: TPHR9003NL | AI26: SIRC18DP; NCEP30T17GU
A27: JMSL0301TG | B27: SGT | C27: PDFN5X6-8L | D27: Active | F27: N | G27: 30 | H27: 248 | I27: 1.7 | J27: 0.9 | K27: 1.1 | L27: 1.2 | M27: 1.6 | N27: - | O27: - | P27: ±20 | Q27: 459.0 | R27: 4,164.0 | S27: 2,132.0 | T27: 50.0 | U27: 62.0 | V27: No | W27: 5,000 | X27: 50,000 | Y27: =J27*U27 -> 56 | Z27: 1.1 | AA27: 2025-12-02 | AC27: - | AD27: - | AE27: - | AF27: - | AG27: - | AH27: - | AI27: -
A28: JMSL0302AG | B28: SGT | C28: PDFN5x6-8L | D28: NRND | E28: JMSL0302PG | F28: N | G28: 30 | H28: 214 | I28: 1.5 | J28: 1.3 | K28: 1.7 | L28: 1.9 | M28: 2.5 | N28: - | O28: - | P28: ±20 | Q28: 294.0 | R28: 2,936.0 | S28: 1,716.0 | T28: 50.0 | U28: 47.0 | V28: No | W28: 5,000 | X28: 50,000 | Y28: =J28*U28 -> 61 | Z28: 4.3 | AA28: 2025-11-03 | AC28: BSC016N03MSGATMA1 | AD28: NTMFS4C022N | AE28: - | AF28: AON6512 | AG28: PSMN1R2-30YLD | AH28: TPH1R403NL | AI28: QN3109M6N; HYG015N03; HYG013N03
A29: JMSL0302AK | B29: SGT | C29: TO-252-3L | D29: NRND | E29: JMSL0302PK | F29: N | G29: 30 | H29: 161 | I29: 1.6 | J29: 1.7 | K29: 2.2 | L29: 2.2 | M29: 2.9 | N29: - | O29: - | P29: ±20 | Q29: 205.0 | R29: 4,185 | S29: 2,861.0 | T29: 233.0 | U29: 64.0 | V29: No | W29: 2,500 | X29: 25,000 | Y29: 109 | Z29: 1.1 | AA29: 2022-09-04 | AC29: IRFR8314TRPBF | AD29: - | AE29: - | AF29: AOD508 | AG29: - | AH29: - | AI29: -
A30: JMSL0302AU | B30: SGT | C30: PDFN3x3-8L | D30: NRND | E30: JMSL0302PU | F30: N | G30: 30 | H30: 125 | I30: 1.5 | J30: 1.4 | K30: 2.0 | L30: 2.0 | M30: 2.6 | N30: - | O30: - | P30: ±20 | Q30: 294.0 | R30: 2,936.0 | S30: 1,716.0 | T30: 50.0 | U30: 47.0 | V30: No | W30: 5,000 | X30: 50,000 | Y30: =J30*U30 -> 66 | Z30: 3.4 | AA30: 2025-11-03 | AC30: BSZ0500NSI | AD30: - | AE30: - | AF30: AONR34332C | AG30: PSMN1R6-30MLH | AH30: TPN1R603NL | AI30: QN3108M3N
A31: JMSL0302BU | B31: SGT | C31: PDFN3x3-8L | D31: NRND | E31: JMSL0302PU | F31: N | G31: 30 | H31: 135 | I31: 1.6 | J31: 1.5 | K31: 1.9 | L31: 2.2 | M31: 2.8 | N31: - | O31: - | P31: ±20 | Q31: 94.0 | R31: 2,526 | S31: 1,924.0 | T31: 186.0 | U31: 40.0 | V31: No | W31: 5,000 | X31: 50,000 | Y31: 60 | Z31: 1.4 | AA31: 2022-12-24 | AC31: ISZ019N03L5SATMA1 | AD31: - | AE31: - | AF31: AON7442 | AG31: PSMN1R6-30MLH | AH31: - | AI31: -
A32: JMSL0302DG | B32: SGT | C32: PDFN5x6-8L | D32: NRND | E32: JMSL0302PG | F32: N | G32: 30 | H32: 174 | I32: 1.7 | J32: 1.3 | K32: 1.7 | L32: 2.1 | M32: 2.9 | N32: - | O32: - | P32: ±20 | Q32: 118.0 | R32: 2,628 | S32: 1,298.0 | T32: 64.0 | U32: 44.0 | V32: No | W32: 5,000 | X32: 50,000 | Y32: 57 | Z32: 1.2 | AA32: 2022-12-24 | AC32: - | AD32: - | AE32: - | AF32: - | AG32: - | AH32: - | AI32: -
A33: JMSL0302PG | B33: SGT | C33: PDFN5x6-8L | D33: Active | F33: N | G33: 30 | H33: 214 | I33: 1.5 | J33: 1.3 | K33: 1.7 | L33: 1.9 | M33: 2.5 | N33: - | O33: - | P33: ±20 | Q33: 294.0 | R33: 2,936.0 | S33: 1,716.0 | T33: 50.0 | U33: 47.0 | V33: No | W33: 5,000 | X33: 50,000 | Y33: 61 | Z33: 1.2 | AA33: 2025-11-03 | AC33: - | AD33: - | AE33: - | AF33: - | AG33: - | AH33: - | AI33: -
A34: JMSL0302PU | B34: SGT | C34: PDFN3X3-8L | D34: Active | F34: N | G34: 30 | H34: 125 | I34: 1.5 | J34: 1.4 | K34: 2.0 | L34: 2.0 | M34: 2.6 | N34: - | O34: - | P34: ±20 | Q34: 294.0 | R34: 2,936.0 | S34: 1,716.0 | T34: 50.0 | U34: 47.0 | V34: No | W34: 5,000 | X34: 50,000 | Y34: 66 | Z34: 1.2 | AA34: 2025-11-03 | AC34: - | AD34: - | AE34: - | AF34: - | AG34: - | AH34: - | AI34: -
A35: JMSL0303AG | B35: SGT | C35: PDFN5x6-8L | D35: Active | E35: JMSL0303TG | F35: N | G35: 30 | H35: 136 | I35: 1.6 | J35: 1.7 | K35: 2.2 | L35: 2.4 | M35: 3.2 | N35: - | O35: - | P35: ±20 | Q35: 61.0 | R35: 2,091 | S35: 1,539.0 | T35: 147.0 | U35: 32.0 | V35: No | W35: 5,000 | X35: 50,000 | Y35: 54 | Z35: 1.3 | AA35: 2022-12-24 | AC35: BSC0502NSIATMA1 | AD35: NTMFS4C054N | AE35: - | AF35: AONS32304 | AG35: PSMN2R2-30YLC | AH35: - | AI35: -
A36: JMSL0303AK | B36: SGT | C36: TO-252-3L | D36: Active | F36: N | G36: 30 | H36: 118 | I36: 1.6 | J36: 2.7 | K36: 3.5 | L36: 3.5 | M36: 4.5 | N36: - | O36: - | P36: ±20 | Q36: 94.0 | R36: 2,526 | S36: 1,924.0 | T36: 186.0 | U36: 40.0 | V36: No | W36: 2,500 | X36: 25,000 | Y36: 108 | Z36: 1.1 | AA36: 2022-09-04 | AC36: IRLR8743TRPBF | AD36: - | AE36: - | AF36: AOD32324 | AG36: - | AH36: - | AI36: FTD025N03A
A37: JMSL0303AU | B37: SGT | C37: PDFN3x3-8L | D37: Active | E37: JMSL0303TU | F37: N | G37: 30 | H37: 119 | I37: 1.6 | J37: 1.8 | K37: 2.2 | L37: 2.7 | M37: 3.5 | N37: - | O37: - | P37: ±20 | Q37: 61.0 | R37: 2,091 | S37: 1,539.0 | T37: 147.0 | U37: 32.0 | V37: No | W37: 5,000 | X37: 50,000 | Y37: =J37*U37 -> 58 | Z37: 1.3 | AA37: 2022-12-24 | AC37: BSZ0901NSIATMA1 | AD37: - | AE37: - | AF37: AONR32318 | AG37: PSMN1R8-30MLH | AH37: TPN2R703NL | AI37: -
A38: JMSL0303TG | B38: SGT | C38: PDFN5x6-8L | D38: Active | F38: N | G38: 30 | H38: 157 | I38: 1.6 | J38: 1.8 | K38: 2.3 | L38: 2.5 | M38: 3.3 | N38: - | O38: - | P38: ±20 | Q38: 212.0 | R38: 2,102 | S38: 1,229.0 | T38: 34.0 | U38: 33.0 | V38: No | W38: 5,000 | X38: 50,000 | Y38: =J38*U38 -> 59 | Z38: 1.1 | AA38: 2025-12-02 | AC38: - | AD38: - | AE38: - | AF38: - | AG38: - | AH38: - | AI38: -
A39: JMSL0303TG-13-P | B39: SGT | C39: PDFN5x6-8L | D39: Active | F39: N | G39: 30 | H39: 158 | I39: 1.6 | J39: 1.8 | K39: 2.3 | L39: 2.5 | M39: 3.3 | N39: - | O39: - | P39: ±20 | Q39: 165.0 | R39: 2,386 | S39: 2,238.0 | T39: 102.0 | U39: 36.0 | V39: No | W39: 5,000 | X39: 50,000 | Y39: =J39*U39 -> 65 | Z39: 1.0 | AA39: 2025-12-09
A40: JMSL0303TU | B40: SGT | C40: PDFN3X3-8L | D40: Active | F40: N | G40: 30 | H40: 87 | I40: 1.6 | J40: 1.9 | K40: 2.4 | L40: 2.7 | M40: 3.5 | N40: - | O40: - | P40: ±20 | Q40: 212.0 | R40: 2,102 | S40: 1,229.0 | T40: 34.0 | U40: 33.0 | V40: No | W40: 5,000 | X40: 50,000 | Y40: =J40*U40 -> 63 | Z40: 1.1 | AA40: 2025-12-04 | AC40: - | AD40: - | AE40: - | AF40: - | AG40: - | AH40: - | AI40: -
A41: JMSL0306PU-13-P | B41: SGT | C41: PDFN3x3-8L | D41: Active | F41: N | G41: 30 | H41: 70 | I41: 2.0 | J41: 4.4 | K41: 5.8 | L41: 7.2 | M41: 9.4 | N41: - | O41: - | P41: ±20 | Q41: 74.0 | R41: 1,082 | S41: 536.0 | T41: 27.0 | U41: 18.0 | V41: No | W41: 5,000 | X41: 50,000 | Y41: =J41*U41 -> 79 | Z41: 1.0 | AA41: 2025-12-09
A42: JMSL0306PG | B42: SGT | C42: PDFN5x6-8L | D42: Active | F42: N | G42: 30 | H42: 58 | I42: 2.1 | J42: 5.7 | K42: 7.4 | L42: 8.8 | M42: 11.4 | N42: - | O42: - | P42: ±20 | Q42: 60.0 | R42: 1,090 | S42: 538.0 | T42: 28.0 | U42: 18.0 | V42: No | W42: 5,000 | X42: 50,000 | Y42: =J42*U42 -> 103 | Z42: 1.0 | AA42: 2025-12-09
A43: JMSL0307AG | B43: SGT | C43: PDFN5x6-8L | D43: Active | E43: JMSL0307PG | F43: N | G43: 30 | H43: 65 | I43: 1.7 | J43: 3.8 | K43: 4.8 | L43: 5.8 | M43: 7.5 | N43: - | O43: - | P43: ±20 | Q43: 20.0 | R43: 866 | S43: 739.0 | T43: 54.0 | U43: 13.5 | V43: No | W43: 5,000 | X43: 50,000 | Y43: =J43*U43 -> 51 | Z43: 1.2 | AA43: 2022-12-13 | AC43: BSC052N03LSATMA1 | AD43: NTMFS4C027N | AE43: - | AF43: AON6576 | AG43: PSMN4R5-30YLC | AH43: TPH4R803PL | AI43: -
A44: JMSL0307AV | B44: SGT | C44: DFN2020-6L | D44: Active | E44: JMSL0307PV | F44: N | G44: 30 | H44: 29 | I44: 1.6 | J44: 3.7 | K44: 4.8 | L44: 5.3 | M44: 7.0 | N44: - | O44: - | P44: ±20 | Q44: 20.0 | R44: 866 | S44: 739.0 | T44: 54.0 | U44: 13.5 | V44: No | W44: 3,000 | X44: 30,000 | Y44: 50 | Z44: 1.2 | AA44: 2022-09-01 | AC44: - | AD44: NTLJS5D0N03C | AE44: - | AF44: - | AG44: - | AH44: - | AI44: -
A45: JMSL0307MG-13-P | B45: SGT | C45: TO-252-3L | D45: Active | F45: N | G45: 30 | H45: 56 | I45: 1.6 | J45: 5.5 | K45: 7.2 | L45: 8.2 | M45: 10.7 | N45: - | O45: - | P45: ±20 | Q45: 47.0 | R45: 726 | S45: 286.0 | T45: 30.0 | U45: 12.0 | V45: No | W45: 2,500 | X45: 25,000 | Y45: 66 | Z45: 1.0 | AA45: 2025-11-06
A46: JMSL0307TG-13-P | B46: SGT | C46: PDFN5x6-8L | D46: Active | F46: N | G46: 30 | H46: 72 | I46: 1.6 | J46: 4.7 | K46: 6.1 | L46: 6.8 | M46: 8.8 | N46: - | O46: - | P46: ±20 | Q46: 47.0 | R46: 743 | S46: 331.0 | T46: 32.0 | U46: 13.0 | V46: No | W46: 5,000 | X46: 50,000 | Y46: 61 | Z46: 1.0 | AA46: 2025-11-06
A47: JMSL0310AU | B47: SGT | C47: PDFN3x3-8L | D47: Active | E47: JMSL0310PU | F47: N | G47: 30 | H47: 60 | I47: 1.7 | J47: 4.0 | K47: 5.0 | L47: 6 | M47: 8.0 | N47: - | O47: - | P47: ±20 | Q47: 20.0 | R47: 866 | S47: 739.0 | T47: 54.0 | U47: 13.5 | V47: No | W47: 5,000 | X47: 50,000 | Y47: =J47*U47 -> 54 | Z47: 1.3 | AA47: 2022-12-24 | AC47: BSZ050N03LSGATMA1 | AD47: - | AE47: - | AF47: AONR36368 | AG47: PSMN6R4-30MLD | AH47: TPN6R003NL | AI47: -
A48: JMSL0315AG | B48: SGT | C48: PDFN5x6-8L | D48: Active | E48: JMSL0315PG | F48: N | G48: 30 | H48: 44 | I48: 1.7 | J48: 7.0 | K48: 8.8 | L48: 10 | M48: 13.0 | N48: - | O48: - | P48: ±20 | Q48: 5.0 | R48: 468 | S48: 363.0 | T48: 41.0 | U48: 7.7 | V48: No | W48: 5,000 | X48: 50,000 | Y48: =J48*U48 -> 54 | Z48: 1.2 | AA48: 2022-12-24 | AC48: BSC080N03LSGATMA1 | AD48: NTMF4C13N | AE48: - | AF48: AONS32314 | AG48: PSMN9R5-30YLC | AH48: - | AI48: -
A49: JMSL0315AGD | B49: SGT | C49: PDFN5x6-8L-D | D49: Active | E49: JMSL0315PGD | F49: N+N | G49: 30 | H49: 37 | I49: 1.7 | J49: 7.5 | K49: 9.5 | L49: 10.5 | M49: 14.0 | N49: - | O49: - | P49: ±20 | Q49: 5.0 | R49: 468 | S49: 363.0 | T49: 41.0 | U49: 7.7 | V49: No | W49: 5,000 | X49: 50,000 | Y49: =J49*U49 -> 58 | Z49: 1.2 | AA49: 2022-12-24 | AC49: - | AD49: - | AE49: - | AF49: - | AG49: - | AH49: - | AI49: VS3622DP
A50: JMSL0315AK | B50: SGT | C50: TO-252-3L | D50: Active | E50: JMSL0315PK | F50: N | G50: 30 | H50: 41 | I50: 1.7 | J50: 9.5 | K50: 11.8 | L50: 13 | M50: 15.9 | N50: - | O50: - | P50: ±20 | Q50: 5 | R50: 468.0 | S50: 363.0 | T50: 41.0 | U50: 7.7 | V50: No | W50: 2,500.0 | X50: 25,000.0 | Y50: 73 | Z50: 1.1 | AA50: 2022-09-04 | AC50: IPD135N03LGATMA1 | AD50: - | AE50: - | AF50: - | AG50: - | AH50: - | AI50: -
A51: JMSL0315AP | B51: SGT | C51: SOP-8 | D51: Active | E51: JMSL0315PP | F51: N | G51: 30 | H51: 14 | I51: 1.6 | J51: 8.2 | K51: 10.0 | L51: 11.4 | M51: 15.0 | N51: - | O51: - | P51: ±20 | Q51: 6.0 | R51: 468 | S51: 363.0 | T51: 41.0 | U51: 7.7 | V51: No | W51: 2,500 | X51: 30,000 | Y51: 63 | Z51: 1.1 | AA51: 2022-09-01 | AC51: BSO110N03MS G | AD51: - | AE51: - | AF51: AOSP32314 | AG51: - | AH51: - | AI51: VS3622AS
A52: JMSL0315APD | B52: SGT | C52: SOP-8 | D52: Active | E52: JMSL0315PPD | F52: N+N | G52: 30 | H52: 12.4 | I52: 1.6 | J52: 9.5 | K52: 12.0 | L52: 12.3 | M52: 15.6 | N52: - | O52: - | P52: ±20 | Q52: 6.1 | R52: 468 | S52: 363.0 | T52: 41.0 | U52: 7.7 | V52: No | W52: 2,500 | X52: 30,000 | Y52: 73 | Z52: 1.1 | AA52: 2022-09-01 | AC52: BSO150N03MDGXUMA1 | AD52: - | AE52: - | AF52: AO4838 | AG52: - | AH52: - | AI52: -
A53: JMSL0315ARD | B53: SGT | C53: W-DFN3030-8L | D53: Active | E53: JMSL0315PRD | F53: N+N | G53: 30 | H53: 37 | I53: 1.7 | J53: 6.5 | K53: 8.5 | L53: 10 | M53: 13.0 | N53: - | O53: - | P53: ±20 | Q53: 8.5 | R53: 469 | S53: 363.0 | T53: 41.0 | U53: 7.7 | V53: No | W53: 3,000 | X53: 30,000 | Y53: 50 | Z53: 1.0 | AA53: 2022-05-01 | AC53: - | AD53: FDS8978 | AE53: - | AF53: AONU32320 | AG53: - | AH53: - | AI53: -
A54: JMSL0315AU | B54: SGT | C54: PDFN3x3-8L | D54: Active | E54: JMSL0315PU | F54: N | G54: 30 | H54: 43 | I54: 1.7 | J54: 7.0 | K54: 8.8 | L54: 10.6 | M54: 13.8 | N54: - | O54: - | P54: ±20 | Q54: 8.5 | R54: 468 | S54: 363.0 | T54: 41.0 | U54: 7.7 | V54: No | W54: 5,000 | X54: 50,000 | Y54: =J54*U54 -> 54 | Z54: 2.3 | AA54: 2022-12-24 | AC54: BSZ088N03LSGATMA1 | AD54: - | AE54: - | AF54: AONR32314 | AG54: PSMN9R8-30MLC | AH54: - | AI54: -
A55: JMSL0315AUD | B55: SGT | C55: PDFN3x3-8L-D | D55: Active | E55: JMSL0315PUD | F55: N+N | G55: 30 | H55: 36 | I55: 1.7 | J55: 8.8 | K55: 11.0 | L55: 12.4 | M55: 16.0 | N55: - | O55: - | P55: ±20 | Q55: 8.5 | R55: 468 | S55: 363.0 | T55: 41.0 | U55: 7.7 | V55: No | W55: 5,000 | X55: 50,000 | Y55: =J55*U55 -> 68 | Z55: 1.3 | AA55: 2022-12-24 | AC55: - | AD55: - | AE55: - | AF55: - | AG55: - | AH55: - | AI55: VS3622DE
A56: JMSL0315AV | B56: SGT | C56: DFN2020-6L | D56: Active | E56: JMSL0315PV | F56: N | G56: 30 | H56: 22 | I56: 1.6 | J56: 7.2 | K56: 9.0 | L56: 10.5 | M56: 13.6 | N56: - | O56: - | P56: ±20 | Q56: 8.5 | R56: 468 | S56: 363.0 | T56: 41.0 | U56: 7.7 | V56: No | W56: 3,000 | X56: 30,000 | Y56: =J56*U56 -> 55 | Z56: 1.3 | AA56: 2022-09-01 | AC56: IRLHS6342TRPBF | AD56: - | AE56: - | AF56: AON2420 | AG56: - | AH56: - | AI56: -
A57: JMSL0315PU | B57: SGT | C57: PDFN3X3-8L | D57: Active | F57: N | G57: 30 | H57: 40 | I57: 1.4 | J57: 7.7 | K57: 10.0 | L57: 12.6 | M57: 16.3 | N57: - | O57: - | P57: ±20 | Q57: 26.0 | R57: 547 | S57: 422.0 | T57: 43.0 | U57: 10.0 | V57: No | W57: 5,000 | X57: 50,000 | Y57: =J57*U57 -> 77 | Z57: 1.0 | AA57: 2025-12-09
A58: JMSL0315PGD | B58: SGT | C58: PDFN5X6-8L-D | D58: Active | F58: N+N | G58: 30 | H58: 38 | I58: 1.7 | J58: 8.0 | K58: 10.4 | L58: 12.9 | M58: 16.8 | N58: - | O58: - | P58: ±20 | Q58: 26.0 | R58: 549 | S58: 416.0 | T58: 35.0 | U58: 10.0 | V58: No | W58: 5,000 | X58: 50,000 | Y58: =J58*U58 -> 80 | Z58: 1.0 | AA58: 2025-12-09
A59: JMSL0315PK | B59: SGT | C59: TO-252-3L | D59: Active | F59: N | G59: 30 | H59: 37 | I59: 1.7 | J59: 10.5 | K59: 13.6 | L59: 15.4 | M59: 20.0 | N59: - | O59: - | P59: ±20 | Q59: 18.0 | R59: 547 | S59: 428.0 | T59: 43.0 | U59: 10.0 | V59: No | W59: 2,500 | X59: 25,000 | Y59: =J59*U59 -> 105 | Z59: 1.0 | AA59: 2025-12-09
A60: JMSH0401AG | B60: SGT | C60: PDFN5x6-8L | D60: NRND | E60: JMSH0402PG | F60: N | G60: 40 | H60: 190 | I60: 2.8 | J60: 1.3 | K60: 1.7 | L60: - | M60: - | N60: - | O60: - | P60: ±20 | Q60: 194.0 | R60: 3,015 | S60: 2,000.0 | T60: 18.0 | U60: 42.0 | V60: No | W60: 5,000 | X60: 50,000 | Y60: =J60*U60 -> 55 | Z60: 1.4 | AA60: 2023-09-07 | AC60: - | AD60: - | AE60: - | AF60: - | AG60: - | AH60: - | AI60: -
A61: JMSH0401ATL | B61: SGT | C61: PowerJE®10x12 | D61: NRND | E61: JMSH0401PTL | F61: N | G61: 40 | H61: 336 | I61: 2.5 | J61: 1.0 | K61: 1.3 | L61: - | M61: - | N61: - | O61: - | P61: ±20 | Q61: 317.0 | R61: 5,978 | S61: 3,004.0 | T61: 114.0 | U61: 89.0 | V61: No | W61: 2,000 | X61: 10,000 | Y61: 89 | Z61: 1.2 | AA61: 2022-08-31 | AC61: - | AD61: - | AE61: - | AF61: - | AG61: - | AH61: - | AI61: -
A62: JMSH0401BG | B62: SGT | C62: PDFN5x6-8L | D62: NRND | E62: JMSH0401PG | F62: N | G62: 40 | H62: 265 | I62: 2.8 | J62: 0.9 | K62: 1.1 | L62: - | M62: - | N62: - | O62: - | P62: ±20 | Q62: 441.0 | R62: 5,280 | S62: 3,405.0 | T62: 71.0 | U62: 68.0 | V62: No | W62: 5,000 | X62: 50,000 | Y62: =J62*U62 -> 61 | Z62: 1.2 | AA62: 2022-12-24 | AC62: - | AD62: - | AE62: - | AF62: - | AG62: - | AH62: - | AI62: -
A63: JMSH0401CG | B63: SGT | C63: PDFN5x6-8L | D63: Active | E63: JMSH0402PG | F63: N | G63: 40 | H63: 240 | I63: 2.8 | J63: 1.1 | K63: 1.4 | L63: - | M63: - | N63: - | O63: - | P63: ±20 | Q63: 600.0 | R63: 5,304 | S63: 3,832.0 | T63: 78.0 | U63: 71.0 | V63: No | W63: 5,000 | X63: 50,000 | Y63: 78 | Z63: 1.0 | AA63: 2023-03-09 | AC63: - | AD63: - | AE63: - | AF63: - | AG63: - | AH63: - | AI63: -
A64: JMSH0401PE | B64: SGT | C64: TO-263-3L | D64: Active | F64: N | G64: 40 | H64: 224 | I64: 2.9 | J64: 2.1 | K64: 2.8 | L64: - | M64: - | N64: - | O64: - | P64: ±20 | Q64: 618.0 | R64: 5,760 | S64: 3,292.0 | T64: 252.0 | U64: 91.0 | V64: No | W64: 800 | X64: 4,000 | Y64: 191 | Z64: 1.0 | AA64: 2024-10-10 | AC64: - | AD64: - | AE64: - | AF64: - | AG64: - | AH64: - | AI64: -
A65: JMSH0401PG | B65: SGT | C65: PDFN5x6-8L | D65: Active | F65: N | G65: 40 | H65: 306 | I65: 3.0 | J65: 0.8 | K65: 1.0 | L65: - | M65: - | N65: - | O65: - | P65: ±20 | Q65: 662.0 | R65: 5,693 | S65: 3,673.0 | T65: 301.0 | U65: 90.0 | V65: No | W65: 5,000 | X65: 50,000 | Y65: 72 | Z65: 1.1 | AA65: 2025-09-10 | AC65: - | AD65: - | AE65: - | AF65: - | AG65: - | AH65: - | AI65: -
A66: JMSH0401PTS | B66: SGT | C66: PowerJE®7x8 | D66: Active | F66: N | G66: 40 | H66: 361 | I66: 2.6 | J66: 0.9 | K66: 1.1 | L66: - | M66: - | N66: - | O66: - | P66: ±20 | Q66: 662.0 | R66: 5,693 | S66: 3,673.0 | T66: 301.0 | U66: 90.0 | V66: No | W66: 2,000 | X66: 10,000 | Y66: 81 | Z66: 1.0 | AA66: 2024-10-29 | AC66: - | AD66: - | AE66: - | AF66: - | AG66: - | AH66: - | AI66: -
A67: JMSH0402PG | B67: SGT | C67: PDFN5x6-8L | D67: Active | F67: N | G67: 40 | H67: 202 | I67: 2.7 | J67: 1.4 | K67: 1.8 | L67: - | M67: - | N67: - | O67: - | P67: ±20 | Q67: 459.0 | R67: 3,733 | S67: 2,042.0 | T67: 156.0 | U67: 59.0 | V67: No | W67: 5,000 | X67: 50,000 | Y67: 83 | Z67: 1.0 | AA67: 2024-06-03 | AC67: - | AD67: - | AE67: - | AF67: - | AG67: - | AH67: - | AI67: -
A68: JMSH0403AG | B68: SGT | C68: PDFN5x6-8L | D68: Active | E68: JMSH0403TG | F68: N | G68: 40 | H68: 117 | I68: 2.8 | J68: 2.7 | K68: 3.4 | L68: - | M68: - | N68: - | O68: - | P68: ±20 | Q68: 216.0 | R68: 1,542 | S68: 1,020.0 | T68: 43.0 | U68: 22.0 | V68: No | W68: 5,000 | X68: 50,000 | Y68: 59 | Z68: 1.0 | AA68: 2023-06-05 | AC68: - | AD68: - | AE68: - | AF68: - | AG68: - | AH68: - | AI68: -
A69: JMSH0403BG | B69: SGT | C69: PDFN5x6-8L | D69: Active | E69: JMSH0403RG | F69: N | G69: 40 | H69: 139 | I69: 2.8 | J69: 2.2 | K69: 2.8 | L69: - | M69: - | N69: - | O69: - | P69: ±20 | Q69: 216.0 | R69: 2,086 | S69: 1,150.0 | T69: 60.0 | U69: 28.0 | V69: No | W69: 5,000 | X69: 50,000 | Y69: 62 | Z69: 1.0 | AA69: 2023-06-05 | AC69: - | AD69: - | AE69: - | AF69: - | AG69: - | AH69: - | AI69: -
A70: JMSH0403PG | B70: SGT | C70: PDFN5X6-8L | D70: Active | F70: N | G70: 40 | H70: 135 | I70: 3.1 | J70: 2.6 | K70: 3.3 | L70: - | M70: - | N70: - | O70: - | P70: ±20 | Q70: 238.0 | R70: 1,976 | S70: 1,198.0 | T70: 110.0 | U70: 33.0 | V70: No | W70: 5,000 | X70: 50,000 | Y70: 86 | Z70: 1.0 | AA70: 2024-07-03 | AC70: - | AD70: - | AE70: - | AF70: - | AG70: - | AH70: - | AI70: -
A71: JMSH0403PGHW | B71: SGT | C71: PDFN5X6-8L-HW | D71: Active | F71: N+N | G71: 40 | H71: 131 | I71: 3.1 | J71: 3.0 | K71: 3.6 | L71: - | M71: - | N71: - | O71: - | P71: ±20 | Q71: 238.0 | R71: 1,976 | S71: 1,198.0 | T71: 110.0 | U71: 33.0 | V71: No | W71: 5,000 | X71: 50,000 | Y71: 99 | Z71: 1.0 | AA71: 2024-07-31 | AC71: - | AD71: - | AE71: - | AF71: - | AG71: - | AH71: - | AI71: -
A72: JMSH0403PU | B72: SGT | C72: PDFN3x3-8L | D72: Active | F72: N | G72: 40 | H72: 75 | I72: 2.7 | J72: 2.4 | K72: 3.1 | L72: - | M72: - | N72: - | O72: - | P72: ±20 | Q72: 238.0 | R72: 1,987 | S72: 1,077.0 | T72: 87.0 | U72: 32.0 | V72: No | W72: 5,000 | X72: 50,000 | Y72: 77 | Z72: 1.0 | AA72: 2024-11-27 | AC72: - | AD72: - | AE72: - | AF72: - | AG72: - | AH72: - | AI72: -
A73: JMSH0406AG | B73: SGT | C73: PDFN5x6-8L | D73: NRND | E73: JMSH0406PG | F73: N | G73: 40 | H73: 86 | I73: 2.8 | J73: 4.1 | K73: 5.1 | L73: - | M73: - | N73: - | O73: - | P73: ±20 | Q73: 96.0 | R73: 1,027 | S73: 662.0 | T73: 105.0 | U73: 14.9 | V73: No | W73: 5,000 | X73: 50,000 | Y73: 61 | Z73: 1.0 | AA73: 2023-04-12 | AC73: - | AD73: - | AE73: - | AF73: - | AG73: - | AH73: - | AI73: -
A74: JMSH0406AGD | B74: SGT | C74: PDFN5x6-8L-D | D74: Active | E74: JMSH0406PGD | F74: N+N | G74: 40 | H74: 64 | I74: 2.8 | J74: 5.2 | K74: 6.5 | L74: - | M74: - | N74: - | O74: - | P74: ±20 | Q74: 96.0 | R74: 1,027 | S74: 662.0 | T74: 105.0 | U74: 14.9 | V74: No | W74: 5,000 | X74: 50,000 | Y74: 77 | Z74: 1.0 | AA74: 2023-06-05 | AC74: - | AD74: - | AE74: - | AF74: - | AG74: - | AH74: - | AI74: -
A75: JMSH0406AK | B75: SGT | C75: TO-252-3L | D75: Active | E75: JMSH0406PK | F75: N | G75: 40 | H75: 70 | I75: 2.8 | J75: 5.0 | K75: 6.2 | L75: - | M75: - | N75: - | O75: - | P75: ±20 | Q75: 96.0 | R75: 1,027 | S75: 662.0 | T75: 105.0 | U75: 14.9 | V75: No | W75: 2,500 | X75: 25,000 | Y75: 75 | Z75: 1.0 | AA75: 2023-05-04 | AC75: - | AD75: - | AE75: - | AF75: - | AG75: - | AH75: - | AI75: -
A76: JMSH0406AU | B76: SGT | C76: PDFN3x3-8L | D76: Active | E76: JMSH0406PU | F76: N | G76: 40 | H76: 58 | I76: 2.8 | J76: 4.3 | K76: 5.4 | L76: - | M76: - | N76: - | O76: - | P76: ±20 | Q76: 96.0 | R76: 1,027 | S76: 662.0 | T76: 105.0 | U76: 14.9 | V76: No | W76: 5,000 | X76: 50,000 | Y76: 64 | Z76: 1.0 | AA76: 2023-05-04 | AC76: - | AD76: - | AE76: - | AF76: - | AG76: - | AH76: - | AI76: -
A77: JMSH0406PG | B77: SGT | C77: PDFN5X6-8L | D77: Active | F77: N | G77: 40 | H77: 103 | I77: 2.8 | J77: 3.9 | K77: 5.1 | L77: - | M77: - | N77: - | O77: - | P77: ±20 | Q77: 89.0 | R77: 1,208 | S77: 753.0 | T77: 71.0 | U77: 20.0 | V77: No | W77: 5,000 | X77: 50,000 | Y77: 78 | Z77: 1.0 | AA77: 2024-09-03 | AC77: - | AD77: - | AE77: - | AF77: - | AG77: - | AH77: - | AI77: -
A78: JMSH0406PGD | B78: SGT | C78: PDFN5x6-8L-D | D78: Active | F78: N+N | G78: 40 | H78: 50 | I78: 2.8 | J78: 4.9 | K78: 6.3 | L78: - | M78: - | N78: - | O78: - | P78: ±20 | Q78: 89.0 | R78: 1,208 | S78: 753.0 | T78: 71.0 | U78: 20.0 | V78: No | W78: 5,000 | X78: 50,000 | Y78: 98 | Z78: 1.1 | AA78: 2025-05-22 | AC78: - | AD78: - | AE78: - | AF78: - | AG78: - | AH78: - | AI78: -
A79: JMSH0406PK | B79: SGT | C79: TO-252-3L | D79: Active | F79: N | G79: 40 | H79: 57 | I79: 2.9 | J79: 5.7 | K79: 7.4 | L79: - | M79: - | N79: - | O79: - | P79: ±20 | Q79: 89.0 | R79: 1,208 | S79: 753.0 | T79: 71.0 | U79: 20.0 | V79: No | W79: 2,500 | X79: 25,000 | Y79: 114 | Z79: 1.1 | AA79: 2024-09-03 | AC79: - | AD79: - | AE79: - | AF79: - | AG79: - | AH79: - | AI79: -
A80: JMSH0406PU | B80: SGT | C80: PDFN3X3-8L | D80: Active | F80: N | G80: 40 | H80: 54 | I80: 2.8 | J80: 4.1 | K80: 5.4 | L80: - | M80: - | N80: - | O80: - | P80: ±20 | Q80: 89.0 | R80: 1,208 | S80: 753.0 | T80: 71.0 | U80: 20.0 | V80: No | W80: 5,000 | X80: 50,000 | Y80: 82 | Z80: 1.0 | AA80: 2024-07-03 | AC80: - | AD80: - | AE80: - | AF80: - | AG80: - | AH80: - | AI80: -
A81: JMSH040SAG | B81: SGT | C81: PDFN5x6-8L | D81: NRND | E81: JMSH040SPG | F81: N | G81: 40 | H81: 400 | I81: 2.8 | J81: 0.6 | K81: 0.7 | L81: - | M81: - | N81: - | O81: - | P81: ±20 | Q81: 864.0 | R81: 7,445 | S81: 5,755.0 | T81: 282.0 | U81: 107.0 | V81: No | W81: 5,000 | X81: 50,000 | Y81: 60 | Z81: 1.2 | AA81: 2023-02-07 | AC81: - | AD81: - | AE81: - | AF81: - | AG81: - | AH81: - | AI81: -
A82: JMSH040SPG | B82: SGT | C82: PDFN5X6-8L | D82: Active | F82: N | G82: 40 | H82: 251 | I82: 3.1 | J82: 1.2 | K82: 1.5 | L82: - | M82: - | N82: - | O82: - | P82: ±20 | Q82: 880.0 | R82: 6,820 | S82: 3,910.0 | T82: 217.0 | U82: 99.0 | V82: No | W82: 5,000 | X82: 50,000 | Y82: 119 | Z82: 1.0 | AA82: 2024-05-28 | AC82: - | AD82: - | AE82: - | AF82: - | AG82: - | AH82: - | AI82: -
A83: JMSH040SNTL | B83: SGT | C83: PowerJE®10x12 | D83: Active | F83: N | G83: 40 | H83: 455 | I83: 2.7 | J83: 0.8 | K83: 1.0 | L83: - | M83: - | N83: - | O83: - | P83: ±20 | Q83: 850.0 | R83: 8,310 | S83: 4,538.0 | T83: 254.0 | U83: 125.0 | V83: No | W83: 2,000 | X83: 10,000 | Y83: 94 | Z83: 1.0 | AA83: 2025-12-04
A84: JMSL0401AG | B84: SGT | C84: PDFN5x6-8L | D84: Active | E84: JMSL0401TG | F84: N | G84: 40 | H84: 189 | I84: 1.5 | J84: 1.3 | K84: 1.7 | L84: 1.7 | M84: 2.3 | N84: - | O84: - | P84: ±20 | Q84: 163.0 | R84: 3,133 | S84: 1,993.0 | T84: 75.0 | U84: 46.0 | V84: No | W84: 5,000 | X84: 50,000 | Y84: 60 | Z84: 1.2 | AA84: 2022-12-24 | AC84: ISC017N04M5 | AD84: NVMFS5C430N | AE84: - | AF84: AONS66402 | AG84: BUK7Y1R7-40H | AH84: TPH2R104PL | AI84: NCEP40T13; MXP4002JGL
A85: JMSL0401BG | B85: SGT | C85: PDFN5x6-8L | D85: NRND | E85: JMSL0401PG | F85: N | G85: 40 | H85: 243 | I85: 1.5 | J85: 0.8 | K85: 1.0 | L85: 1.2 | M85: 1.6 | N85: - | O85: - | P85: ±20 | Q85: 317.0 | R85: 5,490 | S85: 3,080.0 | T85: 125.0 | U85: 82.0 | V85: No | W85: 5,000 | X85: 50,000 | Y85: 68 | Z85: 1.3 | AA85: 2022-12-24 | AC85: BSC010N04LSATMA1 | AD85: NVMTS1D0N04CL | AE85: - | AF85: AON6590A | AG85: PSMN1R0-40YSH | AH85: TPH1R204PB | AI85: -
A86: JMSL0401PG | B86: SGT | C86: PDFN5x6-8L | D86: Active | F86: N | G86: 40 | H86: 297 | I86: 1.8 | J86: 0.8 | K86: 1.1 | L86: 1.2 | M86: 1.7 | N86: - | O86: - | P86: ±20 | Q86: 706.0 | R86: 6,608 | S86: 2,793.0 | T86: 234.0 | U86: 108.0 | V86: No | W86: 5,000 | X86: 50,000 | Y86: 86 | Z86: 1.0 | AA86: 2024-10-10 | AC86: - | AD86: - | AE86: - | AF86: - | AG86: - | AH86: - | AI86: -
A87: JMSL0402AG | B87: SGT | C87: PDFN5x6-8L | D87: Active | E87: JMSL0402PG | F87: N | G87: 40 | H87: 168 | I87: 1.5 | J87: 1.6 | K87: 2.0 | L87: 2.2 | M87: 3.0 | N87: - | O87: - | P87: ±20 | Q87: 163.0 | R87: 3,133 | S87: 1,993.0 | T87: 75.0 | U87: 46.0 | V87: No | W87: 5,000 | X87: 50,000 | Y87: 74 | Z87: 1.2 | AA87: 2022-12-24 | AC87: BSC022N04LS6ATMA1 | AD87: - | AE87: - | AF87: - | AG87: PSMN2R2-40YSD | AH87: - | AI87: NCEP40T13; MXP4002JGL
A88: JMSL0402AK | B88: SGT | C88: TO-252-3L | D88: Active | E88: JMMSL0402PK | F88: N | G88: 40 | H88: 150 | I88: 1.5 | J88: 1.8 | K88: 2.2 | L88: 2.2 | M88: 3.0 | N88: - | O88: - | P88: ±20 | Q88: 163.0 | R88: 3,133 | S88: 1,993.0 | T88: 75.0 | U88: 46.0 | V88: No | W88: 2,500 | X88: 25,000 | Y88: 83 | Z88: 1.1 | AA88: 2022-09-04 | AC88: IRFR7440TRPBF | AD88: - | AE88: - | AF88: AOD2144 | AG88: - | AH88: - | AI88: SKD030N04L
A89: JMSL0402AU | B89: SGT | C89: PDFN3x3-8L | D89: Active | E89: JMSL0403PU | F89: N | G89: 40 | H89: 119 | I89: 1.5 | J89: 2.0 | K89: 2.5 | L89: 2.7 | M89: 3.5 | N89: - | O89: - | P89: ±20 | Q89: 126.0 | R89: 2,131 | S89: 1,538.0 | T89: 95.0 | U89: 36.0 | V89: No | W89: 5,000 | X89: 50,000 | Y89: =J89*U89 -> 72 | Z89: 1.3 | AA89: 2022-12-24 | AC89: - | AD89: - | AE89: - | AF89: - | AG89: - | AH89: - | AI89: -
A90: JMSL0402BG | B90: SGT | C90: PDFN5x6-8L | D90: Active | E90: JMSL0402TG | F90: N | G90: 40 | H90: 130 | I90: 1.5 | J90: 1.9 | K90: 2.5 | L90: 2.5 | M90: 3.4 | N90: - | O90: - | P90: ±20 | Q90: 126.0 | R90: 2,131 | S90: 1,538.0 | T90: 95.0 | U90: 36.0 | V90: No | W90: 5,000 | X90: 50,000 | Y90: 68 | Z90: 1.3 | AA90: 2022-12-24 | AC90: BSC019N04LS | AD90: - | AE90: - | AF90: AOUS66414 | AG90: PSMN2R2-40YSD | AH90: - | AI90: VSP003N04MS-G;MXP4002JGL,SVT042R5NL5
A91: JMSL0402MTL | B91: SGT | C91: PowerJE®10x12 | D91: Active | F91: N | G91: 40 | H91: 367 | I91: 1.6 | J91: 1.0 | K91: 1.3 | L91: 1.04 | M91: 1.4 | N91: - | O91: - | P91: ±20 | Q91: 662.0 | R91: 6,796 | S91: 3,117.0 | T91: 275.0 | U91: 118.0 | V91: No | W91: 2,000 | X91: 10,000 | Y91: 114 | Z91: 1.0 | AA91: 2024-07-31 | AC91: - | AD91: - | AE91: - | AF91: - | AG91: - | AH91: - | AI91: -
A92: JMSL0402PG | B92: SGT | C92: PDFN5x6-8L | D92: Active | F92: N | G92: 40 | H92: 233 | I92: 1.4 | J92: 1.3 | K92: 1.8 | L92: 1.5 | M92: 2.1 | N92: - | O92: - | P92: ±20 | Q92: 497.0 | R92: 7,212 | S92: 3,354.0 | T92: 223.0 | U92: 112.0 | V92: N0 | W92: 5,000 | X92: 50,000 | Y92: 146 | Z92: 1.0 | AA92: 2024-04-25 | AC92: - | AD92: - | AE92: - | AF92: - | AG92: - | AH92: - | AI92: -
A93: JMSL0402PTL | B93: SGT | C93: PowerJE®10x12 | D93: Active | F93: N | G93: 40 | H93: 352 | I93: 1.6 | J93: 0.9 | K93: 1.3 | L93: - | M93: - | N93: - | O93: - | P93: ±20 | Q93: 497.0 | R93: 7,212 | S93: 3,354.0 | T93: 223.0 | U93: 112.0 | V93: No | W93: 2,000 | X93: 10,000 | Y93: 101 | Z93: 1.0 | AA93: 2024-06-03 | AC93: - | AD93: - | AE93: - | AF93: - | AG93: - | AH93: - | AI93: -
A94: JMSL0402TG | B94: SGT | C94: PDFN5x6-8L | D94: Active | F94: N | G94: 40 | H94: 163 | I94: 1.7 | J94: 1.9 | K94: 2.5 | L94: 2.9 | M94: 3.7 | N94: - | O94: - | P94: ±20 | Q94: 212.0 | R94: 2,510 | S94: 1,233.0 | T94: 108.0 | U94: 42.0 | V94: No | W94: 5,000 | X94: 50,000 | Y94: 80 | Z94: 1.0 | AA94: 2024-11-12 | AC94: - | AD94: - | AE94: - | AF94: - | AG94: - | AH94: - | AI94: -
A95: JMSL0403AG | B95: SGT | C95: PDFN5x6-8L | D95: Active | E95: JMSL0403PG | F95: N | G95: 40 | H95: 109 | I95: 1.5 | J95: 2.5 | K95: 3.1 | L95: 3.3 | M95: 4.5 | N95: - | O95: - | P95: ±20 | Q95: 79.0 | R95: 1,424 | S95: 927.0 | T95: 48.0 | U95: 22.0 | V95: No | W95: 5,000 | X95: 50,000 | Y95: 55 | Z95: 1.3 | AA95: 2022-12-24 | AC95: - | AD95: - | AE95: - | AF95: - | AG95: - | AH95: - | AI95: -
A96: JMSL0403AU | B96: SGT | C96: PDFN3x3-8L | D96: Active | E96: JMSL0403PU | F96: N | G96: 40 | H96: 99 | I96: 1.6 | J96: 2.5 | K96: 3.1 | L96: 3.5 | M96: 4.6 | N96: - | O96: - | P96: ±20 | Q96: 79.0 | R96: 1,424 | S96: 927.0 | T96: 48.0 | U96: 22.0 | V96: No | W96: 5,000 | X96: 50,000 | Y96: 55 | Z96: 1.3 | AA96: 2022-12-24 | AC96: - | AD96: - | AE96: - | AF96: - | AG96: - | AH96: - | AI96: -
A97: JMSL0403PG | B97: SGT | C97: PDFN5x6-8L | D97: Active | F97: N | G97: 40 | H97: 130 | I97: 1.9 | J97: 3.0 | K97: 3.9 | L97: 4.1 | M97: 5.3 | N97: - | O97: - | P97: ±20 | Q97: 212.0 | R97: 2,510 | S97: 1,233.0 | T97: 108.0 | U97: 42.0 | V97: No | W97: 5,000 | X97: 50,000 | Y97: 126 | Z97: 1.0 | AA97: 2024-04-25 | AC97: - | AD97: - | AE97: - | AF97: - | AG97: - | AH97: - | AI97: -
A98: JMSL0403PK | B98: SGT | C98: TO-252-3L | D98: Active | F98: N | G98: 40 | H98: 78.0 | I98: 1.6 | J98: 3.7 | K98: 4.8 | L98: 4.5 | M98: 5.8 | N98: - | O98: - | P98: ±20 | Q98: 188.0 | R98: 2,325.0 | S98: 1,155.0 | T98: 104.0 | U98: 40.0 | V98: No | W98: 2,500 | X98: 25,000 | Y98: 148 | Z98: 1.0 | AA98: 2024-12-31 | AC98: - | AD98: - | AE98: - | AF98: - | AG98: - | AH98: - | AI98: -
A99: JMSL0403PU | B99: SGT | C99: PDFN3x3-8L | D99: Active | F99: N | G99: 40 | H99: 85 | I99: 1.7 | J99: 1.9 | K99: 2.5 | L99: 2.8 | M99: 3.6 | N99: - | O99: - | P99: ±20 | Q99: 212.0 | R99: 2,510 | S99: 1,233.0 | T99: 108.0 | U99: 42.0 | V99: No | W99: 5,000 | X99: 50,000 | Y99: 80 | Z99: 1.0 | AA99: 2024-07-03 | AC99: - | AD99: - | AE99: - | AF99: - | AG99: - | AH99: - | AI99: -
A100: JMSL0406AG | B100: SGT | C100: PDFN5x6-8L | D100: Active | E100: JMSL0406PG | F100: N | G100: 40 | H100: 70 | I100: 1.7 | J100: 4.2 | K100: 5.2 | L100: 5.8 | M100: 7.6 | N100: - | O100: - | P100: ±20 | Q100: 36.0 | R100: 1,204 | S100: 536.0 | T100: 51.0 | U100: 17.9 | V100: No | W100: 5,000 | X100: 50,000 | Y100: 75 | Z100: 1.4 | AA100: 2022-12-24 | AC100: BSC054N04NSGATMA1 | AD100: NVMFS5C460N | AE100: - | AF100: AON6442 | AG100: PSMN5R8-40YS | AH100: TPH6R004PL | AI100: -
A101: JMSL0406AGD | B101: SGT | C101: PDFN5x6-8L-D | D101: Active | E101: JMSL0406PGD | F101: N+N | G101: 40 | H101: 43 | I101: 1.7 | J101: 5.7 | K101: 6.9 | L101: 7.2 | M101: 9.5 | N101: - | O101: - | P101: ±20 | Q101: 22.0 | R101: 1,227 | S101: 526.0 | T101: 55.0 | U101: 19.4 | V101: No | W101: 5,000 | X101: 50,000 | Y101: 111 | Z101: 1.5 | AA101: 2022-12-24 | AC101: - | AD101: NTMFD5C466NL | AE101: - | AF101: - | AG101: - | AH101: - | AI101: -
A102: JMSL0406AK | B102: SGT | C102: TO-252-3L | D102: Active | E102: JMSL0406PK | F102: N | G102: 40 | H102: 73 | I102: 1.7 | J102: 4.5 | K102: 5.4 | L102: 6.2 | M102: 7.8 | N102: - | O102: - | P102: ±20 | Q102: 36.0 | R102: 1,204 | S102: 536.0 | T102: 51.0 | U102: 17.9 | V102: No | W102: 2,500 | X102: 25,000 | Y102: 81 | Z102: 1.2 | AA102: 2022-09-04 | AC102: IRLR3114ZTRPBF | AD102: - | AE102: - | AF102: - | AG102: - | AH102: - | AI102: -
A103: JMSL0406AP | B103: SGT | C103: SOP-8 | D103: Active | E103: JMSL0406PP | F103: N | G103: 40 | H103: 17.8 | I103: 1.7 | J103: 4.8 | K103: 6.0 | L103: 6 | M103: 7.8 | N103: - | O103: - | P103: ±20 | Q103: 36.0 | R103: 1,204 | S103: 536.0 | T103: 51.0 | U103: 17.9 | V103: No | W103: 2,500 | X103: 30,000 | Y103: 86 | Z103: 1.2 | AA103: 2022-11-29 | AC103: - | AD103: - | AE103: - | AF103: - | AG103: - | AH103: - | AI103: -
A104: JMSL0406AU | B104: SGT | C104: PDFN3x3-8L | D104: Active | E104: JMSL0406PU | F104: N | G104: 40 | H104: 55 | I104: 1.7 | J104: 4.5 | K104: 5.6 | L104: 5.9 | M104: 7.8 | N104: - | O104: - | P104: ±20 | Q104: 36.0 | R104: 1,204 | S104: 536.0 | T104: 51.0 | U104: 17.9 | V104: No | W104: 5,000 | X104: 50,000 | Y104: =J104*U104 -> 81 | Z104: 1.7 | AA104: 2022-12-24 | AC104: BSZ040N04LSGATMA1 | AD104: - | AE104: - | AF104: AON7240 | AG104: PSMN6R7-40MLD | AH104: - | AI104: -
A105: JMSL0406PG | B105: SGT | C105: PDFN5x6-8L | D105: Active | F105: N | G105: 40 | H105: 103 | I105: 1.8 | J105: 3.7 | K105: 4.9 | L105: 5.3 | M105: 6.9 | N105: - | O105: - | P105: ±20 | Q105: 106.0 | R105: 1,474 | S105: 633.0 | T105: 61.0 | U105: 27.0 | V105: No | W105: 5,000 | X105: 50,000 | Y105: 100 | Z105: 1.0 | AA105: 2024-06-03 | AC105: - | AD105: - | AE105: - | AF105: - | AG105: - | AH105: - | AI105: -
A106: JMSL0406PGD | B106: SGT | C106: PDFN5x6-8L-D | D106: Active | F106: N+N | G106: 40 | H106: 50 | I106: 1.6 | J106: 4.9 | K106: 6.3 | L106: 5.4 | M106: 7.1 | N106: - | O106: - | P106: ±20 | Q106: 106.0 | R106: 1,431 | S106: 645.0 | T106: 66.0 | U106: 27.0 | V106: No | W106: 5,000 | X106: 50,000 | Y106: 132 | Z106: 1.0 | AA106: 2024-11-27 | AC106: - | AD106: - | AE106: - | AF106: - | AG106: - | AH106: - | AI106: -
A107: JMSL0406PK | B107: SGT | C107: TO-252-3L | D107: Active | F107: N | G107: 40 | H107: 97.0 | I107: 1.7 | J107: 4.1 | K107: 5.4 | L107: 5.6 | M107: 7.3 | N107: - | O107: - | P107: ±20 | Q107: 106.0 | R107: 1,361.0 | S107: 690.0 | T107: 67.0 | U107: 25.0 | V107: No | W107: 2,500 | X107: 25,000 | Y107: 103 | Z107: 1.0 | AA107: 2024-12-31 | AC107: - | AD107: - | AE107: - | AF107: - | AG107: - | AH107: - | AI107: -
A108: JMSL0406PU | B108: SGT | C108: PDFN3X3-8L | D108: Active | F108: N | G108: 40 | H108: 59 | I108: 1.6 | J108: 3.5 | K108: 4.5 | L108: 4.7 | M108: 6.0 | N108: - | O108: - | P108: ±20 | Q108: 106.0 | R108: 1,474 | S108: 633.0 | T108: 61.0 | U108: 27.0 | V108: No | W108: 5,000 | X108: 50,000 | Y108: 95 | Z108: 1.0 | AA108: 2024-07-03 | AC108: - | AD108: - | AE108: - | AF108: - | AG108: - | AH108: - | AI108: -
A109: JMSL040SAG | B109: SGT | C109: PDFN5x6-8L | D109: NRND | E109: JMSL040SPG | F109: N | G109: 40 | H109: 349 | I109: 1.5 | J109: 0.6 | K109: 0.8 | L109: 0.8 | M109: 1.0 | N109: - | O109: - | P109: ±20 | Q109: 506.0 | R109: 7,622 | S109: 4,052.0 | T109: 184.0 | U109: 116.0 | V109: No | W109: 5,000 | X109: 50,000 | Y109: 67 | Z109: 1.3 | AA109: 2022-12-24 | AC109: BSC007N04LS6 | AD109: NTMFS5C404NLT | AE109: - | AF109: AON6590A | AG109: PSMNR90-40YLH | AH109: TPHR7404PU | AI109: -
A110: JMSL040SMTL | B110: SGT | C110: PowerJE®10x12 | D110: Active | F110: N | G110: 40 | H110: 486 | I110: 1.5 | J110: 0.6 | K110: 0.8 | L110: 0.7 | M110: 1.0 | N110: - | O110: - | P110: ±20 | Q110: 1,488.0 | R110: 15,401 | S110: 7,538.0 | T110: 440.0 | U110: 247.0 | V110: No | W110: 2,000 | X110: 10,000 | Y110: 148 | Z110: 1.0 | AA110: 2024-10-29 | AC110: - | AD110: - | AE110: - | AF110: - | AG110: - | AH110: - | AI110: -
A111: JMSL040SPG | B111: SGT | C111: PDFN5x6-8L | D111: Active | F111: N | G111: 40 | H111: 330.0 | I111: 1.5 | J111: 0.7 | K111: 0.9 | L111: 1.0 | M111: 1.3 | N111: - | O111: - | P111: ±20 | Q111: 265.0 | R111: 7,681.0 | S111: 3,563.0 | T111: 240.0 | U111: 123.0 | V111: No | W111: 5,000 | X111: 50,000 | Y111: 86 | Z111: 1.0 | AA111: 2024-12-31 | AC111: - | AD111: - | AE111: - | AF111: - | AG111: - | AH111: - | AI111: -
A112: JMSH0601AG | B112: SGT | C112: PDFN5x6-8L | D112: NRND | E112: JMSH0602PG | F112: N | G112: 60 | H112: 197 | I112: 3.0 | J112: 1.4 | K112: 1.8 | L112: - | M112: - | N112: - | O112: - | P112: ±20 | Q112: 375.0 | R112: 6,035 | S112: 1,365.0 | T112: 35.0 | U112: 78.0 | V112: No | W112: 5,000 | X112: 50,000 | Y112: 109 | Z112: 1.2 | AA112: 2022-12-24 | AC112: - | AD112: - | AE112: - | AF112: - | AG112: - | AH112: - | AI112: -
A113: JMSH0601ATL | B113: SGT | C113: PowerJE®10x12 | D113: Active | E113: JMSH0601PTL | F113: N | G113: 60 | H113: 348 | I113: 2.8 | J113: 1.2 | K113: 1.6 | L113: - | M113: - | N113: - | O113: - | P113: ±20 | Q113: 480.0 | R113: 7,312 | S113: 2,239.0 | T113: 53.0 | U113: 102.0 | V113: No | W113: 2,000 | X113: 10,000 | Y113: 122 | Z113: 1.2 | AA113: 2022-05-30 | AC113: - | AD113: - | AE113: - | AF113: - | AG113: - | AH113: - | AI113: -
A114: JMSH0601BG | B114: SGT | C114: PDFN5x6-8L | D114: Active | E114: JMSH0601TG | F114: N | G114: 60 | H114: 303 | I114: 2.8 | J114: 1.0 | K114: 1.3 | L114: - | M114: - | N114: - | O114: - | P114: ±20 | Q114: 1,014.0 | R114: 7,219 | S114: 1,841.0 | T114: 47.0 | U114: 102.0 | V114: No | W114: 5,000 | X114: 50,000 | Y114: =J114*U114 -> 102 | Z114: 1.1 | AA114: 2022-12-24 | AC114: - | AD114: - | AE114: - | AF114: - | AG114: - | AH114: - | AI114: -
A115: JMSH0601TG | B115: SGT | C115: PDFN5x6-8L | D115: Active | F115: N | G115: 60 | H115: 290 | I115: 2.8 | J115: 0.9 | K115: 1.2 | L115: - | M115: - | N115: - | O115: - | P115: ±20 | Q115: 953.0 | R115: 7,038 | S115: 3,117.0 | T115: 138.0 | U115: 107.0 | V115: No | W115: 5,000 | X115: 50,000 | Y115: 96 | Z115: 1.0 | AA115: 2025-08-26 | AC115: - | AD115: - | AE115: - | AF115: - | AG115: - | AH115: - | AI115: -
A116: JMSH0601PTL | B116: SGT | C116: PowerJE®10x12 | D116: Active | F116: N | G116: 60 | H116: 332 | I116: 2.5 | J116: 1.2 | K116: 1.6 | L116: - | M116: - | N116: - | O116: - | P116: ±20 | Q116: 900.0 | R116: 6,784 | S116: 3,024.0 | T116: 90.0 | U116: 95.0 | V116: No | W116: 2,000 | X116: 10,000 | Y116: 114 | Z116: 1.0 | AA116: 2024-09-03 | AC116: - | AD116: - | AE116: - | AF116: - | AG116: - | AH116: - | AI116: -
A117: JMSH0601PE | B117: SGT | C117: TO-263-3L | D117: Active | F117: N | G117: 60 | H117: 251 | I117: 3.0 | J117: 1.2 | K117: 1.6 | L117: - | M117: - | N117: - | O117: - | P117: ±20 | Q117: 900.0 | R117: 6,784 | S117: 3,024.0 | T117: 90.0 | U117: 95.0 | V117: No | W117: 800 | X117: 4,000 | Y117: 114 | Z117: 1.0 | AA117: 2025-12-04
A118: JMSH0601PE7 | B118: SGT | C118: TO-263-7L | D118: Active | F118: N | G118: 60 | H118: 319 | I118: 2.9 | J118: 1.4 | K118: 1.8 | L118: - | M118: - | N118: - | O118: - | P118: ±20 | Q118: 900.0 | R118: 6,784 | S118: 3,024.0 | T118: 90.0 | U118: 95.0 | V118: No | W118: 800 | X118: 4,000 | Y118: 133 | Z118: 1.0 | AA118: 2025-12-04
A119: JMSH0602AC | B119: SGT | C119: TO-220-3L | D119: NRND | E119: JMSH0602PC | F119: N | G119: 60 | H119: 195 | I119: 3.0 | J119: 2.0 | K119: 2.5 | L119: - | M119: - | N119: - | O119: - | P119: ±20 | Q119: 375.0 | R119: 6,035 | S119: 1,365.0 | T119: 35.0 | U119: 78.0 | V119: No | W119: 1,000 | X119: 5,000 | Y119: 156 | Z119: 1.2 | AA119: 2022-05-30 | AC119: IRFB7534PbF | AD119: FDP025N06 | AE119: STP220N6F7 | AF119: AOT66613L | AG119: - | AH119: TK100A06N1 | AI119: -
A120: JMSH0602AE | B120: SGT | C120: TO-263-3L | D120: NRND | E120: JMSH0602PE | F120: N | G120: 60 | H120: 195 | I120: 3.0 | J120: 1.8 | K120: 2.3 | L120: - | M120: - | N120: - | O120: - | P120: ±20 | Q120: 375.0 | R120: 6,035 | S120: 1,365.0 | T120: 35.0 | U120: 78.0 | V120: No | W120: 800 | X120: 4,000 | Y120: 140 | Z120: 1.2 | AA120: 2023-04-07 | AC120: IRFS7534PbF | AD120: FDB024N06 | AE120: STH260N6F6 | AF120: AOB66613L | AG120: - | AH120: - | AI120: -
A121: JMSH0602AG | B121: SGT | C121: PDFN5x6-8L | D121: NRND | E121: JMSH0603PG | F121: N | G121: 60 | H121: 151 | I121: 2.8 | J121: 1.9 | K121: 2.4 | L121: - | M121: - | N121: - | O121: - | P121: ±20 | Q121: 240.0 | R121: 3,562 | S121: 896.0 | T121: 43.0 | U121: 50.0 | V121: No | W121: 5,000 | X121: 50,000 | Y121: 95 | Z121: 1.0 | AA121: 2023-03-09 | AC121: - | AD121: - | AE121: - | AF121: - | AG121: - | AH121: - | AI121: -
A122: JMSH0602AK | B122: SGT | C122: TO-252-3L | D122: NRND | E122: JMSH0602PK | F122: N | G122: 60 | H122: 195 | I122: 3.0 | J122: 2.2 | K122: 2.8 | L122: - | M122: - | N122: - | O122: - | P122: ±20 | Q122: 600.0 | R122: 6,240 | S122: 3,779.0 | T122: 247.0 | U122: 81.0 | V122: No | W122: 2,500 | X122: 25,000 | Y122: 178 | Z122: 1.0 | AA122: 2023-03-09 | AC122: - | AD122: - | AE122: - | AF122: - | AG122: - | AH122: - | AI122: -
A123: JMSH0602PC | B123: SGT | C123: TO-220-3L | D123: Active | F123: N | G123: 60 | H123: 178 | I123: 2.9 | J123: 2.4 | K123: 3.4 | L123: - | M123: - | N123: - | O123: - | P123: ±20 | Q123: 697.0 | R123: 4,716 | S123: 2,175.0 | T123: 49.0 | U123: 71.0 | V123: N0 | W123: 50 | X123: 5,000 | Y123: 170 | Z123: 1.0 | AA123: 2024-04-25 | AC123: - | AD123: - | AE123: - | AF123: - | AG123: - | AH123: - | AI123: -
A124: JMSH0602PF | B124: SGT | C124: TO-220FP-3L | D124: Active | F124: N | G124: 60 | H124: 111 | I124: 2.9 | J124: 2.3 | K124: 3.0 | L124: - | M124: - | N124: - | O124: - | P124: ±20 | Q124: 618.0 | R124: 4,901 | S124: 2,382.0 | T124: 88.0 | U124: 74.0 | V124: No | W124: 50 | X124: 5,000 | Y124: 170 | Z124: 1.0 | AA124: 2025-08-21 | AC124: - | AD124: - | AE124: - | AF124: - | AG124: - | AH124: - | AI124: -
A125: JMSH0602PE | B125: SGT | C125: TO-263-3L | D125: Active | F125: N | G125: 60 | H125: 218 | I125: 2.8 | J125: 1.9 | K125: 2.5 | L125: - | M125: - | N125: - | O125: - | P125: ±20 | Q125: 497.0 | R125: 4,574 | S125: 2,330.0 | T125: 102.0 | U125: 70.0 | V125: No | W125: 800 | X125: 4,000 | Y125: 133 | Z125: 1.0 | AA125: 2024-07-31 | AC125: - | AD125: - | AE125: - | AF125: - | AG125: - | AH125: - | AI125: -
A126: JMSH0602PG | B126: SGT | C126: PDFN5x6-8L | D126: Active | F126: N | G126: 60 | H126: 200 | I126: 3.0 | J126: 1.6 | K126: 1.9 | L126: - | M126: - | N126: - | O126: - | P126: ±20 | Q126: 497.0 | R126: 4,574 | S126: 2,330.0 | T126: 102.0 | U126: 70.0 | V126: No | W126: 5,000 | X126: 50,000 | Y126: 112 | Z126: 1.1 | AA126: 2024-11-12 | AC126: - | AD126: - | AE126: - | AF126: - | AG126: - | AH126: - | AI126: -
A127: JMSH0602PK | B127: SGT | C127: TO-252-3L | D127: Active | F127: N | G127: 60 | H127: 112 | I127: 2.6 | J127: 1.9 | K127: 2.7 | L127: - | M127: - | N127: - | O127: - | P127: ±20 | Q127: 497.0 | R127: 4,574 | S127: 2,330.0 | T127: 102.0 | U127: 70.0 | V127: No | W127: 2,500 | X127: 25,000 | Y127: 133 | Z127: 1.0 | AA127: 2024-09-03 | AC127: - | AD127: - | AE127: - | AF127: - | AG127: - | AH127: - | AI127: -
A128: JMSH0603AK | B128: SGT | C128: TO-252-3L | D128: NRND | E128: JMSH0603PK | F128: N | G128: 60 | H128: 145 | I128: 2.8 | J128: 2.6 | K128: 3.3 | L128: - | M128: - | N128: - | O128: - | P128: ±20 | Q128: 338.0 | R128: 2,312 | S128: 1,654.0 | T128: 180.0 | U128: 51.0 | V128: No | W128: 2,500 | X128: 25,000 | Y128: 133 | Z128: 1.0 | AA128: 2023-02-05 | AC128: - | AD128: - | AE128: - | AF128: - | AG128: - | AH128: - | AI128: -
A129: JMSH0603PE | B129: SGT | C129: TO-263-3L | D129: Active | F129: N | G129: 60 | H129: 184.0 | I129: 2.6 | J129: 2.5 | K129: 3.3 | L129: - | M129: - | N129: - | O129: - | P129: ±20 | Q129: 389.0 | R129: 2,862.0 | S129: 1,515.0 | T129: 79.0 | U129: 48.0 | V129: No | W129: 800 | X129: 4,000 | Y129: 120 | Z129: 1.0 | AA129: 2024-12-31 | AC129: - | AD129: - | AE129: - | AF129: - | AG129: - | AH129: - | AI129: -
A130: JMSH0603PG | B130: SGT | C130: PDFN5x6-8L | D130: Active | F130: N | G130: 60 | H130: 145 | I130: 2.8 | J130: 2.6 | K130: 3.4 | L130: - | M130: - | N130: - | O130: - | P130: ±20 | Q130: 324.0 | R130: 2,965 | S130: 1,635.0 | T130: 71.0 | U130: 45.0 | V130: No | W130: 5,000 | X130: 50,000 | Y130: 117 | Z130: 1.2 | AA130: 2025-09-10 | AC130: - | AD130: - | AE130: - | AF130: - | AG130: - | AH130: - | AI130: -
A131: JMSH0603PK | B131: SGT | C131: TO-252-3L | D131: Active | F131: N | G131: 60 | H131: 86 | I131: 2.7 | J131: 2.8 | K131: 3.7 | L131: - | M131: - | N131: - | O131: - | P131: ±20 | Q131: 330.0 | R131: 2,965 | S131: 1,635.0 | T131: 71.0 | U131: 45.0 | V131: No | W131: 2,500 | X131: 25,000 | Y131: 126 | Z131: 1.2 | AA131: 2024-05-15 | AC131: - | AD131: - | AE131: - | AF131: - | AG131: - | AH131: - | AI131: -
A132: JMSH0605AGD | B132: SGT | C132: PDFN5x6-8L-D | D132: Active | E132: JMSH0606PGD | F132: N+N | G132: 60 | H132: 54 | I132: 2.8 | J132: 4.7 | K132: 5.8 | L132: - | M132: - | N132: - | O132: - | P132: ±20 | Q132: 216.0 | R132: 1,492 | S132: 940.0 | T132: 109.0 | U132: 34.0 | V132: No | W132: 5,000 | X132: 50,000 | Y132: 160 | Z132: 1.0 | AA132: 2023-04-13 | AC132: - | AD132: - | AE132: - | AF132: - | AG132: - | AH132: - | AI132: -
A133: JMSH0606AG | B133: SGT | C133: PDFN5x6-8L | D133: NRND | E133: JMSH0606PG | F133: N | G133: 60 | H133: 98 | I133: 2.9 | J133: 3.7 | K133: 4.7 | L133: - | M133: - | N133: - | O133: - | P133: ±20 | Q133: 216.0 | R133: 1,492 | S133: 940.0 | T133: 109.0 | U133: 34.0 | V133: No | W133: 5,000 | X133: 50,000 | Y133: 126 | Z133: 1.0 | AA133: 2023-03-23 | AC133: - | AD133: - | AE133: - | AF133: - | AG133: - | AH133: - | AI133: -
A134: JMSH0606AK | B134: SGT | C134: TO-252-3L | D134: Active | E134: JMSH0606PK | F134: N | G134: 60 | H134: 90 | I134: 2.8 | J134: 4.4 | K134: 5.5 | L134: - | M134: - | N134: - | O134: - | P134: ±20 | Q134: 216.0 | R134: 1,492 | S134: 940.0 | T134: 109.0 | U134: 34.0 | V134: No | W134: 2,500 | X134: 25,000 | Y134: 150 | Z134: 1.0 | AA134: 2023-05-05 | AC134: - | AD134: - | AE134: - | AF134: - | AG134: - | AH134: - | AI134: -
A135: JMSH0606AU | B135: SGT | C135: PDFN3x3-8L | D135: Active | E135: JMSH0606PU | F135: N | G135: 60 | H135: 62 | I135: 2.8 | J135: 4.6 | K135: 5.5 | L135: - | M135: - | N135: - | O135: - | P135: ±20 | Q135: 216.0 | R135: 1,492 | S135: 940.0 | T135: 109.0 | U135: 34.0 | V135: No | W135: 5,000 | X135: 50,000 | Y135: 156 | Z135: 1.0 | AA135: 2023-05-06 | AC135: - | AD135: - | AE135: - | AF135: - | AG135: - | AH135: - | AI135: -
A136: JMSH0606PC | B136: SGT | C136: TO-220-3L | D136: Active | F136: N | G136: 60 | H136: 103 | I136: 3.0 | J136: 4.8 | K136: 6.2 | L136: - | M136: - | N136: - | O136: - | P136: ±20 | Q136: 212.0 | R136: 1,852 | S136: 794.0 | T136: 47.0 | U136: 29.0 | V136: No | W136: 50 | X136: 5,000 | Y136: 139 | Z136: 1.0 | AA136: 2024-10-29 | AC136: - | AD136: - | AE136: - | AF136: - | AG136: - | AH136: - | AI136: -
A137: JMSH0606PG | B137: SGT | C137: PDFN5x6-8L | D137: Active | F137: N | G137: 60 | H137: 114 | I137: 2.9 | J137: 4.5 | K137: 5.8 | L137: - | M137: - | N137: - | O137: - | P137: ±20 | Q137: 188.0 | R137: 1,770 | S137: 907.0 | T137: 49.0 | U137: 29.0 | V137: No | W137: 5,000 | X137: 50,000 | Y137: 131 | Z137: 1.1 | AA137: 2024-11-12 | AC137: - | AD137: - | AE137: - | AF137: - | AG137: - | AH137: - | AI137: -
A138: JMSH0606PGD | B138: SGT | C138: PDFN5X6-8L-D | D138: Active | F138: N+N | G138: 60 | H138: 88.0 | I138: 2.7 | J138: 4.1 | K138: 5.4 | L138: - | M138: - | N138: - | O138: - | P138: ±20 | Q138: 212.0 | R138: 2,113.0 | S138: 1,079.0 | T138: 42.0 | U138: 33.0 | V138: No | W138: 5,000 | X138: 50,000 | Y138: 135 | Z138: 1.0 | AA138: 2024-12-31 | AC138: - | AD138: - | AE138: - | AF138: - | AG138: - | AH138: - | AI138: -
A139: JMSH0606PK | B139: SGT | C139: TO-252-3L | D139: Active | F139: N | G139: 60 | H139: 68 | I139: 2.9 | J139: 4.5 | K139: 5.8 | L139: - | M139: - | N139: - | O139: - | P139: ±20 | Q139: 188.0 | R139: 1,770 | S139: 907.0 | T139: 49.0 | U139: 29.0 | V139: No | W139: 2,500 | X139: 25,000 | Y139: 131 | Z139: 1.0 | AA139: 2024-07-31 | AC139: - | AD139: - | AE139: - | AF139: - | AG139: - | AH139: - | AI139: -
A140: JMSH0606PU | B140: SGT | C140: PDFN3x3-8L | D140: Active | F140: N | G140: 60 | H140: 55 | I140: 3.0 | J140: 4.5 | K140: 5.9 | L140: - | M140: - | N140: - | O140: - | P140: ±20 | Q140: 165.0 | R140: 1,794 | S140: 814.0 | T140: 49.0 | U140: 29.0 | V140: No | W140: 5,000 | X140: 50,000 | Y140: 131 | Z140: 1.0 | AA140: 2024-10-10 | AC140: - | AD140: - | AE140: - | AF140: - | AG140: - | AH140: - | AI140: -
A141: JMSL0601AG | B141: SGT | C141: PDFN5x6-8L | D141: NRND | E141: JMSL0602MG | F141: N | G141: 60 | H141: 275 | I141: 1.5 | J141: 0.9 | K141: 1.2 | L141: 1.3 | M141: 1.7 | N141: - | O141: - | P141: ±20 | Q141: 480.0 | R141: 6,338 | S141: 2,157.0 | T141: 34.0 | U141: 102.0 | V141: No | W141: 5,000 | X141: 50,000 | Y141: 92 | Z141: 1.3 | AA141: 2022-12-24 | AC141: - | AD141: - | AE141: - | AF141: - | AG141: - | AH141: - | AI141: -
A142: JMSL0601BG | B142: SGT | C142: PDFN5x6-8L | D142: Active | E142: JMSL0601TG | F142: N | G142: 60 | H142: 226 | I142: 1.6 | J142: 1.3 | K142: 1.6 | L142: 1.8 | M142: 2.4 | N142: - | O142: - | P142: ±20 | Q142: 375.0 | R142: 4,685 | S142: 1,429.0 | T142: 40.0 | U142: 75.0 | V142: No | W142: 5,000 | X142: 50,000 | Y142: 94 | Z142: 1.2 | AA142: 2022-12-24 | AC142: BSC027N06LS5 | AD142: NVMJS1D6N06CL | AE142: STL140N6F7 | AF142: - | AG142: PSMN4R1-60YL | AH142: TPH2R306NH | AI142: -
A143: JMSL0601TG | B143: SGT | C143: PDFN5X6-8L | D143: Active | F143: N | G143: 60 | H143: 294.0 | I143: 1.3 | J143: 0.9 | K143: 1.1 | L143: 1.1 | M143: 1.5 | N143: - | O143: - | P143: ±20 | Q143: 850.0 | R143: 7,849.0 | S143: 3,438.0 | T143: 139.0 | U143: 133.0 | V143: No | W143: 5,000 | X143: 50,000 | Y143: 120 | Z143: 1.0 | AA143: 2024-12-31 | AC143: - | AD143: - | AE143: - | AF143: - | AG143: - | AH143: - | AI143: -
A144: JMSL0602AG | B144: SGT | C144: PDFN5x6-8L | D144: NRND | E144: JMSL0603PG | F144: N | G144: 60 | H144: 147 | I144: 1.7 | J144: 1.9 | K144: 2.5 | L144: 2.5 | M144: 3.5 | N144: - | O144: - | P144: ±20 | Q144: 240.0 | R144: 2,880 | S144: 958.0 | T144: 44.0 | U144: 48.0 | V144: No | W144: 5,000 | X144: 50,000 | Y144: 91 | Z144: 1.2 | AA144: 2022-12-24 | AC144: - | AD144: - | AE144: - | AF144: - | AG144: - | AH144: - | AI144: -
A145: JMSL0602MG | B145: SGT | C145: PDFN5x6-8L | D145: Active | F145: N | G145: 60 | H145: 257 | I145: 1.4 | J145: 1.0 | K145: 1.3 | L145: 1.3 | M145: 1.7 | N145: - | O145: - | P145: ±20 | Q145: 850.0 | R145: 6,859 | S145: 2,504.0 | T145: 38.0 | U145: 114.0 | V145: N0 | W145: 5,000 | X145: 50,000 | Y145: =J145*U145 -> 114 | Z145: 1.2 | AA145: 2024-11-27 | AC145: - | AD145: - | AE145: - | AF145: - | AG145: - | AH145: - | AI145: -
A146: JMSL0602PK | B146: SGT | C146: TO-252-3L | D146: Active | F146: N | G146: 60 | H146: 123 | I146: 1.6 | J146: 1.7 | K146: 2.2 | L146: 2 | M146: 2.7 | N146: - | O146: - | P146: ±20 | Q146: 536.0 | R146: 5,576 | S146: 2,500.0 | T146: 116.0 | U146: 97.0 | V146: No | W146: 2,500 | X146: 25,000 | Y146: 165 | Z146: 1.0 | AA146: 2025-08-21 | AC146: - | AD146: - | AE146: - | AF146: - | AG146: - | AH146: - | AI146: -
A147: JMSL0602PG | B147: SGT | C147: PDFN5x6-8L | D147: Active | F147: N | G147: 60 | H147: 209 | I147: 1.6 | J147: 1.7 | K147: 2.2 | L147: 2.1 | M147: 2.7 | N147: - | O147: - | P147: ±20 | Q147: 489.0 | R147: 5,584 | S147: 2,623.0 | T147: 135.0 | U147: 96.0 | V147: N0 | W147: 5,000 | X147: 50,000 | Y147: 163 | Z147: 1.0 | AA147: 2024-04-25 | AC147: - | AD147: - | AE147: - | AF147: - | AG147: - | AH147: - | AI147: -
A148: JMSL0603AK | B148: SGT | C148: TO-252-3L | D148: Active | E148: JMSL0603PK | F148: N | G148: 60 | H148: 145 | I148: 1.6 | J148: 2.6 | K148: 3.3 | L148: 3.3 | M148: 4.3 | N148: - | O148: - | P148: ±20 | Q148: 338.0 | R148: 2,764 | S148: 1,039.0 | T148: 39.0 | U148: 49.0 | V148: No | W148: 2,500 | X148: 25,000 | Y148: 127 | Z148: 1.0 | AA148: 2023-04-13 | AC148: - | AD148: - | AE148: - | AF148: - | AG148: - | AH148: - | AI148: -
A149: JMSL0603BG | B149: SGT | C149: PDFN5x6-8L | D149: NRND | E149: JMSL0603PG | F149: N | G149: 60 | H149: 142 | I149: 1.6 | J149: 2.4 | K149: 3.0 | L149: 3.4 | M149: 4.4 | N149: - | O149: - | P149: ±20 | Q149: 338.0 | R149: 3,174 | S149: 872.0 | T149: 39.0 | U149: 51.0 | V149: No | W149: 5,000 | X149: 50,000 | Y149: 122 | Z149: 1.0 | AA149: 2023-02-05 | AC149: - | AD149: - | AE149: - | AF149: - | AG149: - | AH149: - | AI149: -
A150: JMSL0603PG | B150: SGT | C150: PDFN5x6-8L | D150: Active | F150: N | G150: 60 | H150: 154 | I150: 1.6 | J150: 2.1 | K150: 2.9 | L150: 2.7 | M150: 3.8 | N150: - | O150: - | P150: ±20 | Q150: 324.0 | R150: 3,566 | S150: 1,749.0 | T150: 103.0 | U150: 62.0 | V150: No | W150: 5,000 | X150: 50,000 | Y150: 130 | Z150: 1.0 | AA150: 2024-03-27 | AC150: - | AD150: - | AE150: - | AF150: - | AG150: - | AH150: - | AI150: -
A151: JMSL0603PK | B151: SGT | C151: TO-252-3L | D151: Active | F151: N | G151: 60 | H151: 91 | I151: 1.5 | J151: 2.6 | K151: 3.3 | L151: 3.2 | M151: 4.2 | N151: - | O151: - | P151: ±20 | Q151: 324.0 | R151: 3,566 | S151: 1,749.0 | T151: 103.0 | U151: 62.0 | V151: No | W151: 2,500 | X151: 25,000 | Y151: 161 | Z151: 1.0 | AA151: 2025-05-22 | AC151: - | AD151: - | AE151: - | AF151: - | AG151: - | AH151: - | AI151: -
A152: JMSL0604AG | B152: SGT | C152: PDFN5x6-8L | D152: Active | E152: JMSL0606PG | F152: N | G152: 60 | H152: 98 | I152: 1.8 | J152: 3.9 | K152: 4.9 | L152: 5 | M152: 6.3 | N152: - | O152: - | P152: ±20 | Q152: 109.0 | R152: 2,030 | S152: 445.0 | T152: 4.4 | U152: 32.0 | V152: No | W152: 5,000 | X152: 50,000 | Y152: 125 | Z152: 1.2 | AA152: 2022-12-24 | AC152: - | AD152: - | AE152: - | AF152: - | AG152: - | AH152: - | AI152: -
A153: JMSL0605AGD | B153: SGT | C153: PDFN5x6-8L-D | D153: Active | E153: JMSL0606PGD | F153: N+N | G153: 60 | H153: 59 | I153: 1.6 | J153: 4.4 | K153: 5.5 | L153: 5.6 | M153: 7.3 | N153: - | O153: - | P153: ±20 | Q153: 182.0 | R153: 1,966 | S153: 596.0 | T153: 36.0 | U153: 33.0 | V153: No | W153: 5,000 | X153: 50,000 | Y153: 145 | Z153: 1.0 | AA153: 2023-03-09 | AC153: - | AD153: - | AE153: - | AF153: - | AG153: - | AH153: - | AI153: -
A154: JMSL0605PG | B154: SGT | C154: PDFN5x6-8L | D154: Active | F154: N | G154: 60 | H154: 100 | I154: 1.7 | J154: 3.9 | K154: 5.1 | L154: 5.5 | M154: 7.1 | N154: - | O154: - | P154: ±20 | Q154: 188.0 | R154: 1,474 | S154: 1,045.0 | T154: 44.0 | U154: 25.0 | V154: No | W154: 5,000 | X154: 50,000 | Y154: 98 | Z154: 1.1 | AA154: 2024-04-25 | AC154: - | AD154: - | AE154: - | AF154: - | AG154: - | AH154: - | AI154: -
A155: JMSL0606AC | B155: SGT | C155: TO-220-3L | D155: NRND | E155: JMSL0606PC | F155: N | G155: 60 | H155: 115 | I155: 1.8 | J155: 5.2 | K155: 6.3 | L155: 7 | M155: 8.8 | N155: - | O155: - | P155: ±20 | Q155: 80.0 | R155: 2,030 | S155: 445.0 | T155: 4.4 | U155: 32.0 | V155: No | W155: 1,000 | X155: 5,000 | Y155: 166 | Z155: 1.4 | AA155: 2022-09-04 | AC155: IPP060N06N | AD155: FDP070AN06A0 | AE155: - | AF155: - | AG155: PSMN7R6-60PS | AH155: - | AI155: -
A156: JMSL0606AE | B156: SGT | C156: TO-263-3L | D156: NRND | E156: JMSL0606PE | F156: N | G156: 60 | H156: 115 | I156: 1.8 | J156: 5.2 | K156: 6.3 | L156: 7 | M156: 8.8 | N156: - | O156: - | P156: ±20 | Q156: 80.0 | R156: 2,030 | S156: 445.0 | T156: 4.4 | U156: 32.0 | V156: No | W156: 800 | X156: 4,000 | Y156: =J156*U156 -> 166 | Z156: 1.4 | AA156: 2023-04-07 | AC156: IPB057N06NATMA1 | AD156: FDB070AN06A0 | AE156: - | AF156: AOB2606L | AG156: PSMN7R6-60BS | AH156: - | AI156: -
A157: JMSL0606AG | B157: SGT | C157: PDFN5x6-8L | D157: Active | E157: JMSL0606PG | F157: N | G157: 60 | H157: 97 | I157: 1.8 | J157: 4.0 | K157: 5.0 | L157: 5.2 | M157: 6.5 | N157: - | O157: - | P157: ±20 | Q157: 76.0 | R157: 2,030 | S157: 445.0 | T157: 4.4 | U157: 32.0 | V157: No | W157: 5,000 | X157: 50,000 | Y157: =J157*U157 -> 128 | Z157: 1.3 | AA157: 2022-12-24 | AC157: IRFH7545TRPBF | AD157: NTMFS5C646NL | AE157: - | AF157: AON6262E | AG157: PSMN5R2-60YL | AH157: TPH5R906NH | AI157: -
A158: JMSL0606AGD | B158: SGT | C158: PDFN5x6-8L-D | D158: Active | E158: JMSL0606PGD | F158: N+N | G158: 60 | H158: 55 | I158: 1.8 | J158: 6.4 | K158: 7.8 | L158: 7.6 | M158: 9.7 | N158: - | O158: - | P158: ±20 | Q158: 76.0 | R158: 2,030 | S158: 445.0 | T158: 4.4 | U158: 32.0 | V158: No | W158: 5,000 | X158: 50,000 | Y158: =J158*U158 -> 205 | Z158: 1.2 | AA158: 2022-12-24 | AC158: - | AD158: NVMFD5C668NL | AE158: - | AF158: - | AG158: - | AH158: - | AI158: -
A159: JMSL0606AK | B159: SGT | C159: TO-252-3L | D159: NRND | E159: JMSL0606PK | F159: N | G159: 60 | H159: 90 | I159: 1.7 | J159: 4.6 | K159: 5.8 | L159: 6 | M159: 7.5 | N159: - | O159: - | P159: ±20 | Q159: 51.0 | R159: 2,122 | S159: 440.0 | T159: 4.4 | U159: 31.0 | V159: No | W159: 2,500 | X159: 25,000 | Y159: 143 | Z159: 1.1 | AA159: 2022-09-04 | AC159: IPD053N06NATMA1 | AD159: - | AE159: - | AF159: - | AG159: - | AH159: - | AI159: -
A160: JMSL0606AP | B160: SGT | C160: SOP-8 | D160: Active | E160: JMSL0606PP | F160: N | G160: 60 | H160: 15.3 | I160: 1.8 | J160: 5.3 | K160: 6.4 | L160: 6.7 | M160: 8.4 | N160: - | O160: - | P160: ±20 | Q160: 80.0 | R160: 2,030 | S160: 445.0 | T160: 4.4 | U160: 32.0 | V160: No | W160: 2,500 | X160: 30,000 | Y160: 170 | Z160: 1.2 | AA160: 2022-09-01 | AC160: IRF7855TRPBF | AD160: - | AE160: - | AF160: AO4264E | AG160: - | AH160: - | AI160: -
A161: JMSL0606AU | B161: SGT | C161: PDFN3x3-8L | D161: NRND | E161: JMSL0606PU | F161: N | G161: 60 | H161: 52 | I161: 1.5 | J161: 5.0 | K161: 6.2 | L161: 6.6 | M161: 8.3 | N161: - | O161: - | P161: ±20 | Q161: 80.0 | R161: 2,122 | S161: 440.0 | T161: 4.4 | U161: 31.0 | V161: No | W161: 5,000 | X161: 50,000 | Y161: =J161*U161 -> 155 | Z161: 1.4 | AA161: 2022-12-24 | AC161: BSZ065N06LS5ATMA1 | AD161: - | AE161: - | AF161: AON7262E | AG161: - | AH161: - | AI161: -
A162: JMSL0606PC | B162: SGT | C162: TO-220-3L | D162: Active | F162: N | G162: 60 | H162: 123 | I162: 1.7 | J162: 3.9 | K162: 5.1 | L162: 5.1 | M162: 6.6 | N162: - | O162: - | P162: ±20 | Q162: 188.0 | R162: 2,090 | S162: 853.0 | T162: 54.0 | U162: 36.0 | V162: No | W162: 1,000 | X162: 5,000 | Y162: 140 | Z162: 1.0 | AA162: 2025-08-26 | AC162: - | AD162: - | AE162: - | AF162: - | AG162: - | AH162: - | AI162: -
A163: JMSL0606PE | B163: SGT | C163: TO-263-3L | D163: Active | F163: N | G163: 60 | H163: 117 | I163: 1.6 | J163: 4.2 | K163: 5.9 | L163: 5.3 | M163: 7.4 | N163: - | O163: - | P163: ±20 | Q163: 188.0 | R163: 2,090 | S163: 853.0 | T163: 54.0 | U163: 36.0 | V163: No | W163: 800 | X163: 4,000 | Y163: 151 | Z163: 1.0 | AA163: 2024-10-29 | AC163: - | AD163: - | AE163: - | AF163: - | AG163: - | AH163: - | AI163: -
A164: JMSL0606PG | B164: SGT | C164: PDFN5x6-8L | D164: Active | F164: N | G164: 60 | H164: 114 | I164: 1.8 | J164: 3.2 | K164: 4.2 | L164: 4.5 | M164: 5.6 | N164: - | O164: - | P164: ±20 | Q164: 182.0 | R164: 2,405 | S164: 1,178.0 | T164: 50.0 | U164: 39.0 | V164: No | W164: 5,000 | X164: 50,000 | Y164: 125 | Z164: 1.0 | AA164: 2023-06-29 | AC164: - | AD164: - | AE164: - | AF164: - | AG164: - | AH164: - | AI164: -
A165: JMSL0606PGD | B165: SGT | C165: PDFN5x6-8L-D | D165: Active | F165: N+N | G165: 60 | H165: 54 | I165: 1.7 | J165: 4.5 | K165: 5.9 | L165: 5.5 | M165: 7.1 | N165: - | O165: - | P165: ±20 | Q165: 144.0 | R165: 2,115 | S165: 918.0 | T165: 50.0 | U165: 37.0 | V165: No | W165: 5,000 | X165: 50,000 | Y165: 167 | Z165: 1.0 | AA165: 2025-08-26 | AC165: - | AD165: - | AE165: - | AF165: - | AG165: - | AH165: - | AI165: -
A166: JMSL0606PU | B166: SGT | C166: PDFN3x3-8L | D166: Active | F166: N | G166: 60 | H166: 69 | I166: 1.8 | J166: 3.9 | K166: 4.7 | L166: 5.1 | M166: 6.4 | N166: - | O166: - | P166: ±20 | Q166: 182.0 | R166: 2,410 | S166: 1,178.0 | T166: 44.0 | U166: 39.0 | V166: No | W166: 5,000 | X166: 50,000 | Y166: 152 | Z166: 1.0 | AA166: 2023-06-29 | AC166: - | AD166: - | AE166: - | AF166: - | AG166: - | AH166: - | AI166: -
A167: JMSL0608PG | B167: SGT | C167: PDFN5x6-8L | D167: Active | F167: N | G167: 60 | H167: 79 | I167: 1.7 | J167: 6.2 | K167: 8.0 | L167: 8 | M167: 10.4 | N167: - | O167: - | P167: ±20 | Q167: 89.0 | R167: 1,193 | S167: 525.0 | T167: 36.0 | U167: 22.0 | V167: No | W167: 5,000 | X167: 50,000 | Y167: 136 | Z167: 1.1 | AA167: 2024-04-25 | AC167: - | AD167: - | AE167: - | AF167: - | AG167: - | AH167: - | AI167: -
A168: JMSL0608PGD | B168: SGT | C168: PDFN5x6-8L-D | D168: Active | F168: N+N | G168: 60 | H168: 37 | I168: 1.7 | J168: 8.0 | K168: 11.0 | L168: 11 | M168: 14.0 | N168: - | O168: - | P168: ±20 | Q168: 89.0 | R168: 1,124 | S168: 502.0 | T168: 30.0 | U168: 19.0 | V168: No | W168: 5,000 | X168: 50,000 | Y168: 152 | Z168: 1.0 | AA168: 2024-11-27 | AC168: - | AD168: - | AE168: - | AF168: - | AG168: - | AH168: - | AI168: -
A169: JMSL0608PK | B169: SGT | C169: TO-252-3L | D169: Active | F169: N | G169: 60 | H169: 53 | I169: 1.7 | J169: 6.8 | K169: 8.8 | L169: 8.7 | M169: 11.3 | N169: - | O169: - | P169: ±20 | Q169: 74.0 | R169: 1,178 | S169: 513.0 | T169: 34.0 | U169: 21.0 | V169: No | W169: 2,500 | X169: 25,000 | Y169: 143 | Z169: 1.1 | AA169: 2024-04-25 | AC169: - | AD169: - | AE169: - | AF169: - | AG169: - | AH169: - | AI169: -
A170: JMSL0608PP | B170: SGT | C170: SOP-8 | D170: Active | F170: N | G170: 60 | H170: 14 | I170: 1.7 | J170: 7.9 | K170: 10.3 | L170: 9.4 | M170: 12.2 | N170: - | O170: - | P170: ±20 | Q170: 74.0 | R170: 1,178 | S170: 513.0 | T170: 34.0 | U170: 21.0 | V170: No | W170: 4,000 | X170: 48,000 | Y170: 166 | Z170: 1.1 | AA170: 2024-04-25 | AC170: - | AD170: - | AE170: - | AF170: - | AG170: - | AH170: - | AI170: -
A171: JMSL0608PU | B171: SGT | C171: PDFN3x3-8L | D171: Active | F171: N | G171: 60 | H171: 47 | I171: 1.7 | J171: 6.3 | K171: 8.1 | L171: 8.2 | M171: 10.7 | N171: - | O171: - | P171: ±20 | Q171: 74.0 | R171: 1,178 | S171: 513.0 | T171: 34.0 | U171: 21.0 | V171: No | W171: 5,000 | X171: 50,000 | Y171: 132 | Z171: 1.0 | AA171: 2024-03-27 | AC171: - | AD171: - | AE171: - | AF171: - | AG171: - | AH171: - | AI171: -
A172: JMSL0609AG | B172: SGT | C172: PDFN5x6-8L | D172: NRND | E172: JMSL0608PG | F172: N | G172: 60 | H172: 43 | I172: 1.5 | J172: 7.2 | K172: 9.4 | L172: 9 | M172: 12.0 | N172: - | O172: - | P172: ±20 | Q172: 34.0 | R172: 1,087 | S172: 309.0 | T172: 8.5 | U172: 16.6 | V172: No | W172: 5,000 | X172: 50,000 | Y172: 120 | Z172: 1.3 | AA172: 2022-12-24 | AC172: BSC094N06LS5ATMA1 | AD172: NTMFS5C673NL | AE172: - | AF172: AON6264E | AG172: PSMN8R5-60YS | AH172: TPH9R506PL | AI172: -
A173: JMSL0609AK | B173: SGT | C173: TO-252-3L | D173: NRND | E173: JMSL0608PK | F173: N | G173: 60 | H173: 56 | I173: 1.6 | J173: 7.4 | K173: 9.4 | L173: 9.5 | M173: 12.4 | N173: - | O173: - | P173: ±20 | Q173: 74.0 | R173: 1,110 | S173: 352.0 | T173: 12.0 | U173: 18.3 | V173: No | W173: 2,500 | X173: 25,000 | Y173: 135 | Z173: 1.0 | AA173: 2023-03-09 | AC173: - | AD173: - | AE173: - | AF173: - | AG173: - | AH173: - | AI173: -
A174: JMSL0609AP | B174: SGT | C174: SOP-8 | D174: NRND | E174: JMSL0608PP | F174: N | G174: 60 | H174: 13.6 | I174: 1.7 | J174: 7.5 | K174: 9.5 | L174: 9.5 | M174: 12.5 | N174: - | O174: - | P174: ±20 | Q174: 34.0 | R174: 1,083 | S174: 349.0 | T174: 8.5 | U174: 17.2 | V174: No | W174: 2,500 | X174: 30,000 | Y174: 129 | Z174: 1.1 | AA174: 2022-09-05 | AC174: - | AD174: - | AE174: - | AF174: - | AG174: - | AH174: - | AI174: -
A175: JMSL0609APD | B175: SGT | C175: SOP-8 | D175: NRND | E175: JMSL0609PPD | F175: N+N | G175: 60 | H175: 10 | I175: 1.7 | J175: 7.0 | K175: 9.2 | L175: 9.5 | M175: 12.5 | N175: - | O175: - | P175: ±20 | Q175: 80.0 | R175: 2,122 | S175: 440.0 | T175: 4.4 | U175: 31.0 | V175: No | W175: 2,500 | X175: 30,000 | Y175: 217 | Z175: 1.3 | AA175: 2022-09-01 | AC175: IRF7351PBF | AD175: - | AE175: - | AF175: AOSD62666E | AG175: - | AH175: - | AI175: -
A176: JMSL0609AU | B176: SGT | C176: PDFN3x3-8L | D176: NRND | E176: JMSL0608PU | F176: N | G176: 60 | H176: 39 | I176: 1.5 | J176: 7.5 | K176: 9.4 | L176: 9.4 | M176: 12.2 | N176: - | O176: - | P176: ±20 | Q176: 34.0 | R176: 1,087 | S176: 309.0 | T176: 8.5 | U176: 16.6 | V176: No | W176: 5,000 | X176: 50,000 | Y176: =J176*U176 -> 125 | Z176: 1.4 | AA176: 2022-12-24 | AC176: BSZ099N06LS5 | AD176: - | AE176: - | AF176: AON7264E | AG176: - | AH176: - | AI176: -
A177: JMSL0609PPD | B177: SGT | C177: SOP-8 | D177: Active | F177: N+N | G177: 60 | H177: 11 | I177: 1.8 | J177: 9.5 | K177: 12.3 | L177: 11.7 | M177: 15.2 | N177: - | O177: - | P177: ±20 | Q177: 74.0 | R177: 1,201 | S177: 513.0 | T177: 34.0 | U177: 21.0 | V177: No | W177: 4,000 | X177: 48,000 | Y177: 200 | Z177: 1.1 | AA177: 2024-10-09 | AC177: - | AD177: - | AE177: - | AF177: - | AG177: - | AH177: - | AI177: -
A178: JMSL0610AGD | B178: SGT | C178: PDFN5x6-8L-D | D178: Active | E178: JMSL0610PGD | F178: N+N | G178: 60 | H178: 35 | I178: 1.5 | J178: 8.5 | K178: 10.6 | L178: 10.2 | M178: 13.0 | N178: - | O178: - | P178: ±20 | Q178: 34.0 | R178: 1,087 | S178: 309.0 | T178: 8.5 | U178: 16.6 | V178: No | W178: 5,000 | X178: 50,000 | Y178: 141 | Z178: 1.2 | AA178: 2022-12-24 | AC178: - | AD178: - | AE178: - | AF178: - | AG178: - | AH178: - | AI178: -
A179: JMSL0611PG | B179: SGT | C179: PDFN5x6-8L | D179: Active | F179: N | G179: 60 | H179: 69 | I179: 1.8 | J179: 9.1 | K179: 11.8 | L179: 12.3 | M179: 16.0 | N179: - | O179: - | P179: ±20 | Q179: 60.0 | R179: 787 | S179: 350.0 | T179: 26.0 | U179: 14.0 | V179: No | W179: 5,000 | X179: 50,000 | Y179: 127 | Z179: 1.0 | AA179: 2024-04-25 | AC179: - | AD179: - | AE179: - | AF179: - | AG179: - | AH179: - | AI179: -
A180: JMSL0611PGD | B180: SGT | C180: PDFN5X6-8L-D | D180: Active | F180: N+N | G180: 60 | H180: 31 | I180: 1.6 | J180: 10.7 | K180: 14.0 | L180: 13.7 | M180: 17.8 | N180: - | O180: - | P180: ±20 | Q180: 47.0 | R180: 723 | S180: 371.0 | T180: 26.0 | U180: 19.0 | V180: No | W180: 5,000 | X180: 50,000 | Y180: 203 | Z180: 1.0 | AA180: 2024-09-03 | AC180: - | AD180: - | AE180: - | AF180: - | AG180: - | AH180: - | AI180: -
A181: JMSL0611PK | B181: SGT | C181: TO-252-3L | D181: Active | F181: N | G181: 60 | H181: 39 | I181: 1.8 | J181: 10.0 | K181: 13.0 | L181: 13 | M181: 18.0 | N181: - | O181: - | P181: ±20 | Q181: 60.0 | R181: 786 | S181: 352.0 | T181: 26.0 | U181: 14.0 | V181: No | W181: 2,500 | X181: 25,000 | Y181: 140 | Z181: 1.0 | AA181: 2025-08-26 | AC181: - | AD181: - | AE181: - | AF181: - | AG181: - | AH181: - | AI181: -
A182: JMSL0611PP | B182: SGT | C182: SOP-8 | D182: Active | F182: N | G182: 60 | H182: 10 | I182: 1.8 | J182: 9.1 | K182: 11.8 | L182: 12.3 | M182: 16.0 | N182: - | O182: - | P182: ±20 | Q182: 60.0 | R182: 787 | S182: 350.0 | T182: 26.0 | U182: 14.0 | V182: No | W182: 4,000 | X182: 48,000 | Y182: 127 | Z182: 1.0 | AA182: 2024-05-28 | AC182: - | AD182: - | AE182: - | AF182: - | AG182: - | AH182: - | AI182: -
A183: JMSL0611PU | B183: SGT | C183: PDFN3x3-8L | D183: Active | F183: N | G183: 60 | H183: 34 | I183: 1.7 | J183: 9.0 | K183: 11.7 | L183: 12.2 | M183: 15.8 | N183: - | O183: - | P183: ±20 | Q183: 60.0 | R183: 787 | S183: 350.0 | T183: 26.0 | U183: 14.0 | V183: No | W183: 5,000 | X183: 50,000 | Y183: 126 | Z183: 1.0 | AA183: 2024-05-28 | AC183: - | AD183: - | AE183: - | AF183: - | AG183: - | AH183: - | AI183: -
A184: JMSL0611PUD | B184: SGT | C184: PDFN3x3-8L-D | D184: Active | F184: N+N | G184: 60 | H184: 34.0 | I184: 1.6 | J184: 11.3 | K184: 14.7 | L184: 14.6 | M184: 19.0 | N184: - | O184: - | P184: ±20 | Q184: 47.0 | R184: 758.0 | S184: 385.0 | T184: 26.0 | U184: 14.0 | V184: No | W184: 5,000 | X184: 50,000 | Y184: 158 | Z184: 1.1 | AA184: 2025-02-07 | AC184: - | AD184: - | AE184: - | AF184: - | AG184: - | AH184: - | AI184: -
A185: JMSL0612AG | B185: SGT | C185: PDFN5x6-8L | D185: NRND | E185: JMSL0611PG | F185: N | G185: 60 | H185: 34 | I185: 1.6 | J185: 9.5 | K185: 12.0 | L185: 12 | M185: 16.0 | N185: - | O185: - | P185: ±20 | Q185: 20.0 | R185: 731 | S185: 224.0 | T185: 7.4 | U185: 13.9 | V185: No | W185: 5,000 | X185: 50,000 | Y185: 132 | Z185: 1.3 | AA185: 2022-12-24 | AC185: BSC112N06LD | AD185: NTMFS5H610NL | AE185: - | AF185: AON6266E | AG185: - | AH185: - | AI185: -
A186: JMSL0612AK | B186: SGT | C186: TO-252-3L | D186: Active | E186: JMSL0612PK | F186: N | G186: 60 | H186: 52 | I186: 1.6 | J186: 9.9 | K186: 12.0 | L186: 12.6 | M186: 16.0 | N186: - | O186: - | P186: ±20 | Q186: 20.0 | R186: 731 | S186: 224.0 | T186: 7.4 | U186: 13.9 | V186: No | W186: 2,500 | X186: 25,000 | Y186: 138 | Z186: 1.1 | AA186: 2022-09-04 | AC186: IRFR3806 | AD186: FDD86580 | AE186: - | AF186: AOD2610E | AG186: - | AH186: - | AI186: -
A187: JMSL0612AU | B187: SGT | C187: PDFN3x3-8L | D187: NRND | E187: JMSL0611PU | F187: N | G187: 60 | H187: 38 | I187: 1.6 | J187: 10.0 | K187: 12.5 | L187: 12.3 | M187: 16.0 | N187: - | O187: - | P187: ±20 | Q187: 20.0 | R187: 731 | S187: 224.0 | T187: 7.4 | U187: 13.9 | V187: No | W187: 5,000 | X187: 50,000 | Y187: =J187*U187 -> 139 | Z187: 1.3 | AA187: 2022-12-24 | AC187: - | AD187: - | AE187: - | AF187: - | AG187: - | AH187: - | AI187: -
A188: JMSL0612PG | B188: SGT | C188: PDFN5x6-8L | D188: Active | F188: N | G188: 60 | H188: 67 | I188: 1.9 | J188: 7.4 | K188: 9.7 | L188: 10.5 | M188: 13.7 | N188: - | O188: - | P188: ±20 | Q188: 74.0 | R188: 1,110 | S188: 443.0 | T188: 34.0 | U188: 19.0 | V188: No | W188: 5,000 | X188: 50,000 | Y188: 141 | Z188: 1.0 | AA188: 2024-04-25 | AC188: - | AD188: - | AE188: - | AF188: - | AG188: - | AH188: - | AI188: -
A189: JMSL0612PK | B189: SGT | C189: TO-252-3L | D189: Active | F189: N | G189: 60 | H189: 51 | I189: 1.7 | J189: 6.8 | K189: 8.8 | L189: 9.3 | M189: 12.1 | N189: - | O189: - | P189: ±20 | Q189: 74.0 | R189: 1,110 | S189: 443.0 | T189: 34.0 | U189: 19.0 | V189: No | W189: 2,500 | X189: 25,000 | Y189: 129 | Z189: 1.0 | AA189: 2024-11-27 | AC189: - | AD189: - | AE189: - | AF189: - | AG189: - | AH189: - | AI189: -
A190: JMSL0612PP | B190: SGT | C190: SOP-8 | D190: Active | F190: N | G190: 60 | H190: 11 | I190: 1.9 | J190: 8.0 | K190: 10.4 | L190: 11.4 | M190: 14.8 | N190: - | O190: - | P190: ±20 | Q190: 74.0 | R190: 1,071 | S190: 471.0 | T190: 35.0 | U190: 19.0 | V190: No | W190: 4,000 | X190: 48,000 | Y190: 152 | Z190: 1.0 | AA190: 2024-11-27 | AC190: - | AD190: - | AE190: - | AF190: - | AG190: - | AH190: - | AI190: -
A191: JMSL0612PPD | B191: SGT | C191: SOP-8 | D191: Active | F191: N+N | G191: 60 | H191: 9.3 | I191: 1.9 | J191: 10.3 | K191: 13.4 | L191: 13.8 | M191: 17.9 | N191: - | O191: - | P191: ±20 | Q191: 74.0 | R191: 1,077 | S191: 461.0 | T191: 32.0 | U191: 19.0 | V191: No | W191: 4,000 | X191: 48,000 | Y191: 196 | Z191: 1.0 | AA191: 2024-11-27 | AC191: - | AD191: - | AE191: - | AF191: - | AG191: - | AH191: - | AI191: -
A192: JMSL0612PU | B192: SGT | C192: PDFN3x3-8L | D192: Active | F192: N | G192: 60 | H192: 40 | I192: 1.9 | J192: 7.4 | K192: 9.6 | L192: 10.6 | M192: 13.8 | N192: - | O192: - | P192: ±20 | Q192: 74.0 | R192: 1,125 | S192: 444.0 | T192: 31.0 | U192: 19.0 | V192: No | W192: 5,000 | X192: 50,000 | Y192: 141 | Z192: 1.0 | AA192: 2024-07-31 | AC192: - | AD192: - | AE192: - | AF192: - | AG192: - | AH192: - | AI192: -
A193: JMSL0613APD | B193: SGT | C193: SOP-8 | D193: NRND | E193: JMSL0608PPD | F193: N+N | G193: 60 | H193: 10.2 | I193: 1.7 | J193: 10.5 | K193: 13.5 | L193: 12.5 | M193: 16.5 | N193: - | O193: - | P193: ±20 | Q193: 34.0 | R193: 1,083 | S193: 349.0 | T193: 8.5 | U193: 17.2 | V193: No | W193: 2,500 | X193: 30,000 | Y193: 181 | Z193: 1.1 | AA193: 2022-09-01 | AC193: - | AD193: - | AE193: - | AF193: - | AG193: - | AH193: - | AI193: -
A194: JMSL0615AGD | B194: SGT | C194: PDFN5x6-8L-D | D194: Active | E194: JMSL0615PGD | F194: N+N | G194: 60 | H194: 31 | I194: 1.6 | J194: 10.5 | K194: 13.5 | L194: 13.5 | M194: 17.5 | N194: - | O194: - | P194: ±20 | Q194: 20.0 | R194: 731 | S194: 224.0 | T194: 7.4 | U194: 13.9 | V194: No | W194: 5,000 | X194: 50,000 | Y194: =J194*U194 -> 146 | Z194: 1.3 | AA194: 2023-02-23 | AC194: - | AD194: - | AE194: - | AF194: - | AG194: - | AH194: - | AI194: -
A195: JMSL0615AP | B195: SGT | C195: SOP-8 | D195: NRND | E195: JMSL0611PP | F195: N | G195: 60 | H195: 12.7 | I195: 1.7 | J195: 10.0 | K195: 12.5 | L195: 13 | M195: 16.9 | N195: - | O195: - | P195: ±20 | Q195: 20.0 | R195: 731 | S195: 224.0 | T195: 7.4 | U195: 13.9 | V195: No | W195: 2,500 | X195: 30,000 | Y195: 139 | Z195: 1.1 | AA195: 2022-09-01 | AC195: IRF7855TRPBF | AD195: - | AE195: - | AF195: AO4266E | AG195: - | AH195: - | AI195: -
A196: JMSL0615APD | B196: SGT | C196: SOP-8 | D196: Active | E196: JMSL0615PPD | F196: N+N | G196: 60 | H196: 9.7 | I196: 1.7 | J196: 12.0 | K196: 15.0 | L196: 15 | M196: 20.0 | N196: - | O196: - | P196: ±20 | Q196: 20.0 | R196: 731 | S196: 224.0 | T196: 7.4 | U196: 13.9 | V196: No | W196: 2,500 | X196: 30,000 | Y196: 167 | Z196: 1.1 | AA196: 2022-09-01 | AC196: - | AD196: - | AE196: - | AF196: AOSD62666E | AG196: - | AH196: - | AI196: -
A197: JMSL0615AUD | B197: SGT | C197: PDFN3x3-8L-D | D197: Active | E197: JMSL0615PUD | F197: N+N | G197: 60 | H197: 24 | I197: 1.7 | J197: 11.0 | K197: 13.8 | L197: 14 | M197: 18.4 | N197: - | O197: - | P197: ±20 | Q197: 26.0 | R197: 731 | S197: 224.0 | T197: 7.4 | U197: 13.9 | V197: No | W197: 5,000 | X197: 50,000 | Y197: 153 | Z197: 1.3 | AA197: 2022-12-24 | AC197: IRF7351TRPBF | AD197: - | AE197: - | AF197: - | AG197: - | AH197: - | AI197: -
A198: JMSL0615AV | B198: SGT | C198: DFN2020-6L | D198: Active | E198: JMSL0615PV | F198: N | G198: 60 | H198: 21 | I198: 1.6 | J198: 9.8 | K198: 12.8 | L198: 12.5 | M198: 16.3 | N198: - | O198: - | P198: ±20 | Q198: 20.0 | R198: 731 | S198: 224.0 | T198: 7.4 | U198: 13.9 | V198: No | W198: 3,000 | X198: 30,000 | Y198: 136 | Z198: 1.1 | AA198: 2022-09-01 | AC198: - | AD198: - | AE198: - | AF198: - | AG198: - | AH198: - | AI198: -
A199: JMSL0620AGDE | B199: SGT | C199: PDFN5x6-8L-D | D199: Active | E199: JMSL0620PGD | F199: N+N | G199: 60 | H199: 23 | I199: 1.8 | J199: 18.0 | K199: 23.0 | L199: 25 | M199: 33.0 | N199: - | O199: - | P199: ±20 | Q199: 26.0 | R199: 409 | S199: 143.0 | T199: 24.0 | U199: 7.5 | V199: Yes | W199: 5,000 | X199: 50,000 | Y199: =J199*U199 -> 135 | Z199: 1.2 | AA199: 2023-03-09 | AC199: - | AD199: - | AE199: - | AF199: - | AG199: - | AH199: - | AI199: -
A200: JMSL0620AGE | B200: SGT | C200: PDFN5x6-8L | D200: Active | E200: JMSL0620PG | F200: N | G200: 60 | H200: 31 | I200: 1.8 | J200: 16.0 | K200: 20.0 | L200: 23 | M200: 30.0 | N200: - | O200: - | P200: ±20 | Q200: 26.0 | R200: 409 | S200: 143.0 | T200: 24.0 | U200: 7.5 | V200: Yes | W200: 5,000 | X200: 50,000 | Y200: 120 | Z200: 2.1 | AA200: 2022-12-24 | AC200: - | AD200: - | AE200: - | AF200: - | AG200: - | AH200: - | AI200: -
... 305 more rows

Sheet Trench MOSFETs
A1: MOSFET Selection Guide: Date of Release - Dec. 9, 2025
A2: Technology: Trench ; JMT Series
A3: Product Name | B3: Platform | C3: JJM Package | D3: Status | E3: Recommended Product Name | F3: Confi- guration | G3: VDS_Max | H3: ID_Max | I3: VGS_Typ | J3: RDS_Typ @ VGS = 10V | K3: RDS_Max @ VGS = 10V | L3: RDS_Typ @ VGS = 4.5V | M3: RDS_Max @ VGS = 4.5V | N3: RDS_Typ @ VGS = 2.5V | O3: RDS_Max @ VGS = 2.5V | P3: VGS_Max | Q3: EAS_Max | R3: Ciss_Typ | S3: Coss_Typ | T3: Crss_Typ | U3: Qg_Typ | V3: ESD | W3: MPQ | X3: MOQ | Y3: FOM | Z3: DataSheet Version # | AA3: Date of Update | AC3: Compatible to Infineon's Product | AD3: Compatible to onsemi's Product | AE3: Compatible to ST's Product | AF3: Compatible to AOS' Product | AG3: Compatible to Nexperia's Product | AH3: Compatible to Toshiba's Product | AI3: Domestic Competition
A4: JMTL84K | B4: Trench | C4: SOT-23 | D4: Active | F4: P | G4: -50 | H4: -0.44 | I4: -1.4 | J4: 2000.0 | K4: 2,600.0 | L4: 2,100.0 | M4: 3,600.0 | N4: - | O4: - | P4: ±20 | Q4: - | R4: 55 | S4: 13.0 | T4: 6.7 | U4: 1.7 | V4: Yes | W4: 3,000 | X4: 120,000 | Y4: =U4*J4 -> 3,400 | Z4: 1.1 | AA4: 2025-10-20
A5: JMTK085P04A | B5: Trench | C5: TO-252-3L | D5: Active | F5: P | G5: -40 | H5: -70.0 | I5: -1.5 | J5: 7.1 | K5: 9.2 | L5: 9.3 | M5: 13.0 | N5: - | O5: - | P5: ±20 | Q5: 182.0 | R5: 7,200 | S5: 625.0 | T5: 437.0 | U5: 115.0 | V5: No | W5: 2,500 | X5: 5,000 | Y5: =U5*J5 -> 817 | Z5: 1.1 | AA5: 2022-07-01 | AC5: IPD70P04P4L-08 | AD5: FDD9509L-F085 | AE5: - | AF5: - | AG5: - | AH5: - | AI5: -
A6: JMTC085P04A | B6: Trench | C6: TO-220C-3L | D6: Active | F6: P | G6: -40 | H6: -70.0 | I6: -1.5 | J6: 8.0 | K6: 10.0 | L6: 11.0 | M6: 15.0 | N6: - | O6: - | P6: ±20 | Q6: 324.0 | R6: 7,200 | S6: 625.0 | T6: 437.0 | U6: 115.0 | V6: No | W6: 1,000 | X6: 5,000 | Y6: 920 | Z6: 1.0 | AA6: 2022-07-01 | AC6: - | AD6: - | AE6: - | AF6: - | AG6: - | AH6: - | AI6: -
A7: JMTK130P04A | B7: Trench | C7: TO-252-3L | D7: Active | F7: P | G7: -40 | H7: -40.0 | I7: -1.7 | J7: 10.0 | K7: 13.0 | L7: 15.0 | M7: 22.0 | N7: - | O7: - | P7: ±20 | Q7: 144.0 | R7: 3,800 | S7: 329.0 | T7: 289.0 | U7: 68.0 | V7: No | W7: 2,500 | X7: 5,000 | Y7: 680 | Z7: 1.2 | AA7: 2020-09-28 | AC7: IPD50P04P4L-11 | AD7: FDD9510L-F085 | AE7: - | AF7: AOD4185 | AG7: - | AH7: - | AI7: -
A8: JMTG130P04A | B8: Trench | C8: PDFN5x6-8L | D8: Active | F8: P | G8: -40 | H8: -35.0 | I8: -1.7 | J8: 9.4 | K8: 12.5 | L8: 13.4 | M8: 18.5 | N8: - | O8: - | P8: ±20 | Q8: 121.0 | R8: 3,800 | S8: 329.0 | T8: 289.0 | U8: 68.0 | V8: No | W8: 2,500 | X8: 5,000 | Y8: 639 | Z8: 1.1 | AA8: 2025-04-02 | AC8: - | AD8: - | AE8: - | AF8: - | AG8: - | AH8: - | AI8: -
A9: JMTP130P04A | B9: Trench | C9: SOP-8 | D9: Active | F9: P | G9: -40 | H9: -12.0 | I9: -1.7 | J9: 11.0 | K9: 14.3 | L9: 15.5 | M9: 22.0 | N9: - | O9: - | P9: ±20 | Q9: - | R9: 3,800 | S9: 329.0 | T9: 289.0 | U9: 68.0 | V9: No | W9: 4,000 | X9: 8,000 | Y9: 748 | Z9: 1.2 | AA9: 2021-05-06 | AC9: IRF7240 | AD9: FDS4141 | AE9: - | AF9: AO4485 | AG9: - | AH9: - | AI9: -
A10: JMTQ130P04A | B10: Trench | C10: PDFN3x3-8L | D10: Active | F10: P | G10: -40 | H10: -36.0 | I10: -1.5 | J10: 9.0 | K10: 13.0 | L10: 10.6 | M10: 19.0 | N10: - | O10: - | P10: ±20 | Q10: 110.0 | R10: 3,639 | S10: 311.0 | T10: 247.0 | U10: 69.0 | V10: No | W10: 5,000 | X10: 10,000 | Y10: 621 | Z10: 1.3 | AA10: 2025-08-15 | AC10: - | AD10: NVTYS014P04M8 | AE10: - | AF10: - | AG10: - | AH10: - | AI10: -
A11: JMTP520P04A | B11: Trench | C11: SOP-8 | D11: Active | F11: P | G11: -40 | H11: -5.5 | I11: -1.6 | J11: 39.0 | K11: 51.0 | L11: 56.0 | M11: 78.0 | N11: - | O11: - | P11: ±20 | Q11: - | R11: 869 | S11: 94.0 | T11: 69.0 | U11: 17.3 | V11: No | W11: 4,000 | X11: 8,000 | Y11: 675 | Z11: 1.0 | AA11: 2020-11-24 | AC11: - | AD11: - | AE11: - | AF11: - | AG11: - | AH11: - | AI11: -
A12: JMTK440P04A | B12: Trench | C12: TO-252-3L | D12: Active | F12: P | G12: -40 | H12: -10.0 | I12: -1.7 | J12: 30.0 | K12: 39.0 | L12: 37.0 | M12: 48.0 | N12: - | O12: - | P12: ±20 | Q12: 30.0 | R12: 1,244 | S12: 97.0 | T12: 80.0 | U12: 23.0 | V12: No | W12: 2,500 | X12: 5,000 | Y12: 690 | Z12: 1.2 | AA12: 2023-08-11 | AC12: - | AD12: - | AE12: - | AF12: AOD413A | AG12: - | AH12: - | AI12: -
A13: JMTQ440P04A | B13: Trench | C13: PDFN3x3-8L | D13: Active | F13: P | G13: -40 | H13: -8.0 | I13: -1.7 | J13: 28.0 | K13: 36.0 | L13: 34.0 | M13: 44.0 | N13: - | O13: - | P13: ±20 | Q13: 25.0 | R13: 1,244 | S13: 97.0 | T13: 80.0 | U13: 23.0 | V13: No | W13: 5,000 | X13: 10,000 | Y13: 644 | Z13: 1.2 | AA13: 2023-08-11 | AC13: - | AD13: - | AE13: - | AF13: - | AG13: - | AH13: - | AI13: -
A14: JMTP440P04A | B14: Trench | C14: SOP-8 | D14: Active | F14: P | G14: -40 | H14: -6.0 | I14: -1.7 | J14: 29.0 | K14: 38.0 | L14: 35.0 | M14: 46.0 | N14: - | O14: - | P14: ±20 | Q14: 25.0 | R14: 1,244 | S14: 97.0 | T14: 80.0 | U14: 23.0 | V14: No | W14: 4,000 | X14: 8,000 | Y14: 667 | Z14: 1.2 | AA14: 2023-11-01 | AC14: IRF7241 | AD14: - | AE14: - | AF14: AO4443 | AG14: - | AH14: - | AI14: -
A15: JMTP850P04A | B15: Trench | C15: SOP-8 | D15: Active | F15: P | G15: -40 | H15: -5.0 | I15: -1.6 | J15: 54.0 | K15: 75.0 | L15: 72.0 | M15: 100.0 | N15: - | O15: - | P15: ±20 | Q15: 12.0 | R15: 546 | S15: 52.0 | T15: 43.0 | U15: 11.0 | V15: No | W15: 4,000 | X15: 8,000 | Y15: 594 | Z15: 1.1 | AA15: 2024-07-31 | AC15: - | AD15: - | AE15: - | AF15: - | AG15: - | AH15: - | AI15: -
A16: JMTL850P04A | B16: Trench | C16: SOT-23 | D16: Active | F16: P | G16: -40 | H16: -2.8 | I16: -1.6 | J16: 61.0 | K16: 88.0 | L16: 74.0 | M16: 117 | N16: - | O16: - | P16: ±20 | Q16: 20 | R16: 546 | S16: 52 | T16: 43 | U16: 11.0 | V16: No | W16: 3,000 | X16: 120,000 | Y16: 671 | Z16: 1.3 | AA16: 2024-10-10 | AC16: - | AD16: - | AE16: - | AF16: - | AG16: - | AH16: - | AI16: -
A17: JMTM850P04A | B17: Trench | C17: SOT-23-6L | D17: Active | F17: P | G17: -40 | H17: -5 | I17: -1.6 | J17: 66.0 | K17: 85.0 | L17: 82.0 | M17: 115 | N17: - | O17: - | P17: ±20 | Q17: - | R17: 573 | S17: 53 | T17: 42 | U17: 7.1 | V17: No | W17: 3,000 | X17: 30,000 | Y17: 469 | Z17: 1.0 | AA17: 2021-10-25 | AC17: - | AD17: - | AE17: - | AF17: - | AG17: - | AH17: - | AI17: -
A18: JMTK050P03A | B18: Trench | C18: TO-252-3L | D18: Active | F18: P | G18: -30 | H18: -100 | I18: -1.5 | J18: 4.0 | K18: 5.3 | L18: 5.8 | M18: 8 | N18: - | O18: - | P18: ±20 | Q18: 225 | R18: 9,400 | S18: 1,000 | T18: 767 | U18: 42.0 | V18: No | W18: 2,500 | X18: 5,000 | Y18: 168 | Z18: 1.0 | AA18: 2020-09-02 | AC18: IPD90P03P4L-04 | AD18: - | AE18: - | AF18: - | AG18: - | AH18: - | AI18: -
A19: JMTK060P03A | B19: Trench | C19: TO-252-3L | D19: Active | F19: P | G19: -30 | H19: -90 | I19: -1.8 | J19: 4.2 | K19: 6.4 | L19: 6.3 | M19: 11 | N19: - | O19: - | P19: ±20 | Q19: 398 | R19: 6,564 | S19: 684 | T19: 567 | U19: 110 | V19: No | W19: 2,500 | X19: 5,000 | Y19: 462 | Z19: 1.2 | AA19: 2024-03-27 | AC19: IPD80P03P4L-07 | AD19: - | AE19: - | AF19: - | AG19: - | AH19: - | AI19: -
A20: JMTG060P03A | B20: Trench | C20: PDFN5x6-8L | D20: Active | F20: P | G20: -30 | H20: -111 | I20: -1.8 | J20: 3.8 | K20: 5.4 | L20: 5.8 | M20: 9 | N20: - | O20: - | P20: ±20 | Q20: 248 | R20: 6,609 | S20: 687 | T20: 575 | U20: 110 | V20: No | W20: 2,500 | X20: 5,000 | Y20: 418 | Z20: 1.3 | AA20: 2025-01-15 | AC20: - | AD20: FDMS6673BZ | AE20: - | AF20: - | AG20: - | AH20: - | AI20: -
A21: JMTQ080P03A | B21: Trench | C21: PDFN3x3-8L | D21: Active | F21: P | G21: -30 | H21: -50 | I21: -1.5 | J21: 5.9 | K21: 7.4 | L21: 8.1 | M21: 10 | N21: - | O21: - | P21: ±20 | Q21: 133 | R21: 3,366 | S21: 471 | T21: 324 | U21: 59 | V21: No | W21: 5,000 | X21: 50,000 | Y21: 348 | Z21: 1.5 | AA21: 2024-08-12 | AC21: - | AD21: NVTFS015P03P8Z | AE21: - | AF21: AONR21357 | AG21: PxP6R7-30QL | AH21: - | AI21: -
A22: JMTK080P03A | B22: Trench | C22: TO-252-3L | D22: Active | F22: P | G22: -30 | H22: -60 | I22: -1.8 | J22: 5.0 | K22: 6.5 | L22: 7.8 | M22: 10 | N22: - | O22: - | P22: ±20 | Q22: 156 | R22: 3,366 | S22: 471 | T22: 324 | U22: 59 | V22: No | W22: 2,500 | X22: 5,000 | Y22: 295 | Z22: 1.3 | AA22: 2023-08-11 | AC22: - | AD22: - | AE22: - | AF22: AOD21357 | AG22: - | AH22: - | AI22: -
A23: JMTI080P03A | B23: Trench | C23: TO-251-3L | D23: Active | F23: P | G23: -30 | H23: -60.0 | I23: -1.5 | J23: 5.8 | K23: 7.5 | L23: 9.0 | M23: 12.6 | N23: - | O23: - | P23: ±20 | Q23: 144.0 | R23: 4,650 | S23: 550.0 | T23: 486.0 | U23: 45.0 | V23: No | W23: 4,950 | X23: 4,950 | Y23: 261 | Z23: 1.1 | AA23: 2020-09-27 | AC23: - | AD23: - | AE23: - | AF23: AOI21357 | AG23: - | AH23: - | AI23: -
A24: JMTG080P03A | B24: Trench | C24: PDFN5x6-8L | D24: Active | F24: P | G24: -30 | H24: -97.0 | I24: -1.6 | J24: 5.0 | K24: 7.0 | L24: 7.3 | M24: 10.0 | N24: - | O24: - | P24: ±20 | Q24: 133.0 | R24: 3,366 | S24: 471.0 | T24: 324.0 | U24: 59.0 | V24: No | W24: 5,000 | X24: 50,000 | Y24: 295 | Z24: 1.5 | AA24: 2024-10-09 | AC24: - | AD24: - | AE24: - | AF24: AONS21357 | AG24: - | AH24: - | AI24: -
A25: JMTG050P03A | B25: Trench | C25: PDFN5x6-8L | D25: Active | F25: P | G25: -30 | H25: -80.0 | I25: -1.7 | J25: 3.7 | K25: 4.1 | L25: 5.2 | M25: 6.6 | N25: - | O25: - | P25: ±20 | Q25: 363.0 | R25: 7,747 | S25: 871.0 | T25: 559.0 | U25: 121.0 | V25: No | W25: 5,000 | X25: 50,000 | Y25: 448 | Z25: 1.3 | AA25: 2024-02-27 | AC25: IRFH9310 | AD25: - | AE25: - | AF25: AON6407 | AG25: - | AH25: - | AI25: -
A26: JMTP080P03A | B26: Trench | C26: SOP-8 | D26: Active | F26: P | G26: -30 | H26: -15.0 | I26: -1.8 | J26: 7.0 | K26: 9.0 | L26: 10.0 | M26: 14.0 | N26: - | O26: - | P26: ±20 | Q26: 132.0 | R26: 3,366 | S26: 471.0 | T26: 324.0 | U26: 59.0 | V26: No | W26: 4,000 | X26: 8,000 | Y26: 413 | Z26: 1.3 | AA26: 2023-12-04 | AC26: IRF9321 | AD26: FDS6679AZ | AE26: - | AF26: AOSP21357 | AG26: - | AH26: - | AI26: -
A27: JMTQ100P03A | B27: Trench | C27: PDFN3x3-8L | D27: Active | F27: P | G27: -30 | H27: -40.0 | I27: -1.6 | J27: 6.4 | K27: 9.4 | L27: 9.3 | M27: 15.1 | N27: - | O27: - | P27: ±20 | Q27: 206.0 | R27: 3,458 | S27: 397.0 | T27: 336.0 | U27: 62.0 | V27: No | W27: 5,000 | X27: 50,000 | Y27: 397 | Z27: 1.7 | AA27: 2025-04-18 | AC27: - | AD27: - | AE27: - | AF27: AON7401 | AG27: PxP9R1-30QL | AH27: - | AI27: -
A28: JMTK100P03A | B28: Trench | C28: TO-252-3L | D28: Active | F28: P | G28: -30 | H28: -55.0 | I28: -1.6 | J28: 6.1 | K28: 10.0 | L28: 8.9 | M28: 16.0 | N28: - | O28: - | P28: ±20 | Q28: 206.0 | R28: 3,485 | S28: 397.0 | T28: 336.0 | U28: 62.0 | V28: No | W28: 2,500 | X28: 5,000 | Y28: 378 | Z28: 1.2 | AA28: 2024-07-01 | AC28: - | AD28: - | AE28: - | AF28: - | AG28: - | AH28: - | AI28: -
A29: JMTQ11DP03A | B29: Trench | C29: PDFN3X3-8L | D29: Active | F29: P | G29: -30 | H29: -12.0 | I29: -1.7 | J29: 62.0 | K29: 80.0 | L29: 87.0 | M29: 113.0 | N29: - | O29: - | P29: ±20 | Q29: - | R29: 262 | S29: 42.0 | T29: 31.0 | U29: 5.7 | V29: No | W29: 5,000 | X29: 50,000 | Y29: 353 | Z29: 1.0 | AA29: 2024-09-03 | AC29: - | AD29: - | AE29: - | AF29: - | AG29: - | AH29: - | AI29: -
A30: JMTG100P03A | B30: Trench | C30: PDFN5x6-8L | D30: Active | F30: P | G30: -30 | H30: -45.0 | I30: -1.6 | J30: 6.5 | K30: 9.5 | L30: 9.3 | M30: 15.6 | N30: - | O30: - | P30: ±20 | Q30: 206.0 | R30: 3,485 | S30: 397.0 | T30: 336.0 | U30: 62.0 | V30: No | W30: 5,000 | X30: 50,000 | Y30: 403 | Z30: 1.2 | AA30: 2024-07-01 | AC30: - | AD30: - | AE30: - | AF30: AONS21307 | AG30: - | AH30: - | AI30: -
A31: JMTK50P03A | B31: Trench | C31: TO-252-3L | D31: Active | F31: P | G31: -30 | H31: -50.0 | I31: -1.7 | J31: 7.1 | K31: 9.2 | L31: 10.3 | M31: 13.4 | N31: - | O31: - | P31: ±20 | Q31: 100.0 | R31: 2,252 | S31: 306.0 | T31: 222.0 | U31: 41.0 | V31: No | W31: 2,500 | X31: 5,000 | Y31: 291 | Z31: 1.4 | AA31: 2023-09-07 | AC31: IPD50P03P4L-11 | AD31: - | AE31: - | AF31: - | AG31: - | AH31: - | AI31: -
A32: JMTQ4407A | B32: Trench | C32: PDFN3x3-8L | D32: Active | F32: P | G32: -30 | H32: -35.0 | I32: -1.7 | J32: 7.6 | K32: 10.0 | L32: 10.7 | M32: 14.0 | N32: - | O32: - | P32: ±20 | Q32: 64.0 | R32: 2,252 | S32: 306.0 | T32: 222.0 | U32: 41.0 | V32: No | W32: 5,000 | X32: 10,000 | Y32: 312 | Z32: 1.4 | AA32: 2023-08-11 | AC32: IRFHM9331 | AD32: - | AE32: - | AF32: AONR21307 | AG32: - | AH32: - | AI32: -
A33: JMTP4407A | B33: Trench | C33: SOP-8 | D33: Active | F33: P | G33: -30 | H33: -12.0 | I33: -1.7 | J33: 9.4 | K33: 14.0 | L33: 14.0 | M33: 20.0 | N33: - | O33: - | P33: ±20 | Q33: 64.0 | R33: 2,252 | S33: 306.0 | T33: 222.0 | U33: 41.0 | V33: No | W33: 4,000 | X33: 8,000 | Y33: 385 | Z33: 1.2 | AA33: 2023-12-01 | AC33: IRF9328; IRF7424 | AD33: - | AE33: - | AF33: AO4407A | AG33: - | AH33: - | AI33: -
A34: JMTK160P03A | B34: Trench | C34: TO-252-3L | D34: Active | F34: P | G34: -30 | H34: -39.0 | I34: -1.6 | J34: 9.6 | K34: 14.0 | L34: 13.7 | M34: 22.5 | N34: - | O34: - | P34: ±20 | Q34: 110.0 | R34: 2,542 | S34: 248.0 | T34: 215.0 | U34: 45.0 | V34: No | W34: 2,500 | X34: 5,000 | Y34: 432 | Z34: 1.2 | AA34: 2024-11-27 | AC34: - | AD34: - | AE34: - | AF34: - | AG34: - | AH34: - | AI34: -
A35: JMTP160P03D | B35: Trench | C35: SOP-8 | D35: Active | F35: P+P | G35: -30 | H35: -11.0 | I35: -1.7 | J35: 12.0 | K35: 17.0 | L35: 16.0 | M35: 27.0 | N35: - | O35: - | P35: ±20 | Q35: 65.0 | R35: 2,468 | S35: 258.0 | T35: 230.0 | U35: 7.0 | V35: No | W35: 4,000 | X35: 8,000 | Y35: 84 | Z35: 1.2 | AA35: 2024-07-31 | AC35: - | AD35: - | AE35: - | AF35: AO4805 | AG35: - | AH35: - | AI35: -
A36: JMTQ160P03A | B36: Trench | C36: PDFN3x3-8L | D36: Active | F36: P | G36: -30 | H36: -15.0 | I36: -1.6 | J36: 11.0 | K36: 14.0 | L36: 17.0 | M36: 24.0 | N36: - | O36: - | P36: ±20 | Q36: 40.0 | R36: 2,070 | S36: 273.0 | T36: 246.0 | U36: 22.0 | V36: No | W36: 5,000 | X36: 10,000 | Y36: 242 | Z36: 1.1 | AA36: 2022-08-12 | AC36: - | AD36: - | AE36: - | AF36: AON7401 | AG36: PxP013-30QL | AH36: - | AI36: -
A37: JMTP4407B | B37: Trench | C37: SOP-8 | D37: Active | F37: P | G37: -30 | H37: -11.0 | I37: -1.5 | J37: 12.7 | K37: 16.5 | L37: 19.0 | M37: 26.5 | N37: - | O37: - | P37: ±20 | Q37: 64.0 | R37: 2,130 | S37: 280.0 | T37: 252.0 | U37: 40.0 | V37: No | W37: 4,000 | X37: 8,000 | Y37: =U37*J37 -> 508 | Z37: 1.1 | AA37: 2020-04-23 | AC37: IRF9332; IRF9358 | AD37: SI4435DY | AE37: - | AF37: AOSP21321 | AG37: - | AH37: - | AI37: -
A38: JMTV200P03A | B38: Trench | C38: DFN2020-6L | D38: Active | F38: P | G38: -30 | H38: -11.0 | I38: -1.6 | J38: 13.6 | K38: 17.7 | L38: 17.9 | M38: 23.3 | N38: - | O38: - | P38: ±20 | Q38: 36.0 | R38: 1,267 | S38: 166.0 | T38: 126.0 | U38: 23.0 | V38: No | W38: 3,000 | X38: 30,000 | Y38: 313 | Z38: 1.1 | AA38: 2023-08-11 | AC38: - | AD38: - | AE38: - | AF38: - | AG38: - | AH38: - | AI38: -
A39: JMTQ200P03A | B39: Trench | C39: PDFN3x3-8L | D39: Active | F39: P | G39: -30 | H39: -12.0 | I39: -1.6 | J39: 13.4 | K39: 17.4 | L39: 17.7 | M39: 23.0 | N39: - | O39: - | P39: ±20 | Q39: 7.8 | R39: 1,267 | S39: 166.0 | T39: 126.0 | U39: 23.0 | V39: No | W39: 5,000 | X39: 10,000 | Y39: 308 | Z39: 1.3 | AA39: 2023-08-11 | AC39: - | AD39: FDMC4435BZ | AE39: - | AF39: AON7403 | AG39: - | AH39: - | AI39: -
A40: JMTQ100P03A-P | B40: Trench | C40: PDFN3x3-8L | D40: Active | F40: P | G40: -30 | H40: -40.0 | I40: -1.6 | J40: 6.4 | K40: 9.4 | L40: 9.3 | M40: 15.1 | N40: - | O40: - | P40: ±25 | Q40: 206.0 | R40: 3,485 | S40: 397.0 | T40: 336.0 | U40: 62.0 | V40: No | W40: 5,000 | X40: 10,000 | Y40: 397 | Z40: 1.0 | AA40: 2025-10-20
A41: JMTQ200P03A-P | B41: Trench | C41: PDFN3x3-8L | D41: Active | F41: P | G41: -30 | H41: -12.0 | I41: -1.6 | J41: 13.4 | K41: 17.4 | L41: 17.7 | M41: 23.0 | N41: - | O41: - | P41: ±25 | Q41: 7.8 | R41: 1,267 | S41: 166.0 | T41: 126.0 | U41: 23.0 | V41: No | W41: 5,000 | X41: 10,000 | Y41: 308 | Z41: 1.0 | AA41: 2025-10-20
A42: JMTP4435A | B42: Trench | C42: SOP-8 | D42: Active | F42: P | G42: -30 | H42: -10.0 | I42: -1.6 | J42: 12.8 | K42: 16.6 | L42: 18.1 | M42: 23.5 | N42: - | O42: - | P42: ±20 | Q42: 7.8 | R42: 1,267 | S42: 166.0 | T42: 126.0 | U42: 23.0 | V42: No | W42: 4,000 | X42: 8,000 | Y42: 294 | Z42: 1.3 | AA42: 2023-08-11 | AC42: IRF9333 | AD42: - | AE42: - | AF42: AO4419 | AG42: - | AH42: - | AI42: -
A43: JMTK340P03A | B43: Trench | C43: TO-252-3L | D43: Active | F43: P | G43: -30 | H43: -20.0 | I43: -1.7 | J43: 20.6 | K43: 26.8 | L43: 28.7 | M43: 37.3 | N43: - | O43: - | P43: ±20 | Q43: 25.0 | R43: 890 | S43: 112.0 | T43: 90.0 | U43: 17.0 | V43: No | W43: 2,500 | X43: 5,000 | Y43: 350 | Z43: 1.1 | AA43: 8/8/2023 | AC43: - | AD43: - | AE43: - | AF43: AOD417 | AG43: - | AH43: - | AI43: -
A44: JMTP250P03A | B44: Trench | C44: SOP-8 | D44: Active | F44: P | G44: -30 | H44: -9.0 | I44: -1.5 | J44: 19.0 | K44: 25.0 | L44: 27.0 | M44: 38.0 | N44: - | O44: - | P44: ±20 | Q44: 25.0 | R44: 1,200 | S44: 155.0 | T44: 139.0 | U44: 52.0 | V44: No | W44: 4,000 | X44: 8,000 | Y44: 988 | Z44: 1.0 | AA44: 2022-03-08 | AC44: - | AD44: - | AE44: - | AF44: - | AG44: - | AH44: - | AI44: -
A45: JMTP340P03A | B45: Trench | C45: SOP-8 | D45: Active | F45: P | G45: -30 | H45: -7.0 | I45: -1.7 | J45: 19.7 | K45: 25.6 | L45: 27.5 | M45: 35.8 | N45: - | O45: - | P45: ±20 | Q45: - | R45: 860 | S45: 109.0 | T45: 84.0 | U45: 16.0 | V45: No | W45: 4,000 | X45: 8,000 | Y45: 315 | Z45: 1.1 | AA45: 2023-11-01 | AC45: - | AD45: - | AE45: - | AF45: AO4449 | AG45: - | AH45: - | AI45: -
A46: JMTL3407A | B46: Trench | C46: SOT-23 | D46: Active | F46: P | G46: -30 | H46: -4.1 | I46: -1.8 | J46: 35.0 | K46: 46.0 | L46: 49.0 | M46: 64.0 | N46: - | O46: - | P46: ±20 | Q46: - | R46: 540 | S46: 75.0 | T46: 57.0 | U46: 11.0 | V46: No | W46: 3,000 | X46: 30,000 | Y46: 385 | Z46: 1.4 | AA46: 2025-02-07 | AC46: IRLML9301 | AD46: NTR4171P | AE46: - | AF46: AO3407 | AG46: - | AH46: - | AI46: -
A47: JMTP4953A | B47: Trench | C47: SOP-8 | D47: Active | F47: P+P | G47: -30 | H47: -5.1 | I47: -1.8 | J47: 33.0 | K47: 43.0 | L47: 49.0 | M47: 64.0 | N47: - | O47: - | P47: ±20 | Q47: 12.0 | R47: 540 | S47: 75.0 | T47: 57.0 | U47: 11.0 | V47: No | W47: 4,000 | X47: 8,000 | Y47: 363 | Z47: 1.2 | AA47: 2023-08-11 | AC47: - | AD47: - | AE47: - | AF47: AO4803 | AG47: - | AH47: - | AI47: -
A48: JMTP9435A | B48: Trench | C48: SOP-8 | D48: Active | F48: P | G48: -30 | H48: -5.1 | I48: -1.8 | J48: 31.0 | K48: 40.0 | L48: 46.0 | M48: 60.0 | N48: - | O48: - | P48: ±20 | Q48: 12.0 | R48: 540 | S48: 75.0 | T48: 57.0 | U48: 11.0 | V48: No | W48: 4,000 | X48: 8,000 | Y48: 341 | Z48: 1.2 | AA48: 2023-08-11 | AC48: IRF9335 | AD48: - | AE48: - | AF48: AO4405 | AG48: - | AH48: - | AI48: -
A49: JMTJ3407A | B49: Trench | C49: SOT-23-3L | D49: Active | F49: P | G49: -30 | H49: -4.1 | I49: -1.8 | J49: 35.0 | K49: 46.0 | L49: 49.0 | M49: 60.0 | N49: - | O49: - | P49: ±20 | Q49: - | R49: 540 | S49: 75.0 | T49: 57.0 | U49: 11.0 | V49: No | W49: 3,000 | X49: 30,000 | Y49: 385 | Z49: 1.2 | AA49: 2023-08-11 | AC49: - | AD49: - | AE49: - | AF49: - | AG49: - | AH49: - | AI49: -
A50: JMTL3401A | B50: Trench | C50: SOT-23 | D50: Active | F50: P | G50: -30 | H50: -4.2 | I50: -0.9 | J50: 36.0 | K50: 47.0 | L50: 41.0 | M50: 53.0 | N50: 52.0 | O50: 68.0 | P50: ±12 | Q50: - | R50: 762 | S50: 74.0 | T50: 61.0 | U50: 8.0 | V50: No | W50: 3,000 | X50: 30,000 | Y50: 288 | Z50: 1.6 | AA50: 2023-05-05 | AC50: - | AD50: NTR4171P | AE50: - | AF50: AO3401 | AG50: - | AH50: - | AI50: -
A51: JMTL3401B | B51: Trench | C51: SOT-23 | D51: Active | F51: P | G51: -30 | H51: -4.0 | I51: -1.0 | J51: 48.0 | K51: 62.0 | L51: 56.0 | M51: 73.0 | N51: 75.0 | O51: 98.0 | P51: ±12 | Q51: - | R51: 553 | S51: 57.0 | T51: 35.0 | U51: 6.5 | V51: No | W51: 3,000 | X51: 120,000 | Y51: 312 | Z51: 1.1 | AA51: 2024-07-15 | AC51: - | AD51: NTR4171P | AE51: - | AF51: AO3401 | AG51: - | AH51: - | AI51: -
A52: JMTJ3401A | B52: Trench | C52: SOT-23-3L | D52: Active | F52: P | G52: -30 | H52: -4.2 | I52: -0.9 | J52: 36.0 | K52: 47.0 | L52: 41.0 | M52: 53.0 | N52: 52.0 | O52: 68.0 | P52: ±12 | Q52: - | R52: 762 | S52: 74.0 | T52: 61.0 | U52: 8.0 | V52: No | W52: 3,000 | X52: 30,000 | Y52: 288 | Z52: 1.1 | AA52: 2023-05-05 | AC52: - | AD52: - | AE52: - | AF52: - | AG52: - | AH52: - | AI52: -
A53: JMTJ3401B | B53: Trench | C53: SOT-23-3L | D53: Active | F53: P | G53: -30 | H53: -4.0 | I53: -1.0 | J53: 49.0 | K53: 64.0 | L53: 57.0 | M53: 74.0 | N53: 74.0 | O53: 96.0 | P53: ±12 | Q53: - | R53: 553 | S53: 57.0 | T53: 35.0 | U53: 6.5 | V53: No | W53: 3,000 | X53: 30,000 | Y53: 319 | Z53: 1.0 | AA53: 2023-05-05 | AC53: - | AD53: - | AE53: - | AF53: - | AG53: - | AH53: - | AI53: -
A54: JMTG030P02A | B54: Trench | C54: PDFN5x6-8L | D54: Active | F54: P | G54: -20 | H54: -85.0 | I54: -0.6 | J54: - | K54: - | L54: 2.3 | M54: 3.0 | N54: 3.0 | O54: 3.8 | P54: ±12 | Q54: 150.0 | R54: 10,526 | S54: 1,308.0 | T54: 888.0 | U54: 95.0 | V54: No | W54: 5,000 | X54: 50,000 | Y54: 219 | Z54: 1.2 | AA54: 2024-06-03 | AC54: - | AD54: - | AE54: - | AF54: AONS21113 | AG54: - | AH54: - | AI54: -
A55: JMTQ55P02A | B55: Trench | C55: PDFN3x3-8L | D55: Active | F55: P | G55: -20 | H55: -55.0 | I55: -0.7 | J55: - | K55: - | L55: 6.6 | M55: 8.3 | N55: 8.0 | O55: 10.4 | P55: ±12 | Q55: 90.0 | R55: 4,770 | S55: 570.0 | T55: 502.0 | U55: 56.0 | V55: No | W55: 5,000 | X55: 50,000 | Y55: 370 | Z55: 1.4 | AA55: 2024-05-15 | AC55: - | AD55: - | AE55: - | AF55: AON7407 | AG55: - | AH55: - | AI55: -
A56: JMTK50P02A | B56: Trench | C56: TO-252-3L | D56: Active | F56: P | G56: -20 | H56: -60.0 | I56: -0.9 | J56: - | K56: - | L56: 6.6 | M56: 8.5 | N56: 8.0 | O56: 12.0 | P56: ±12 | Q56: - | R56: 4,590 | S56: 505.0 | T56: 440.0 | U56: 56.0 | V56: No | W56: 2,500 | X56: 5,000 | Y56: 370 | Z56: 1.0 | AA56: 2022-10-10 | AC56: - | AD56: - | AE56: - | AF56: - | AG56: - | AH56: - | AI56: -
A57: JMTI210P02A | B57: Trench | C57: TO-251-3L | D57: Active | F57: P | G57: -20 | H57: -20.0 | I57: -0.7 | J57: - | K57: - | L57: 12.0 | M57: 16.0 | N57: 17.0 | O57: 24.0 | P57: ±12 | Q57: 36.0 | R57: 2,000 | S57: 242.0 | T57: 231.0 | U57: 16.0 | V57: No | W57: 4,950 | X57: 4,950 | Y57: 192 | Z57: 1.0 | AA57: 2022-03-22 | AC57: - | AD57: - | AE57: - | AF57: - | AG57: - | AH57: - | AI57: -
A58: JMTP085P02A | B58: Trench | C58: SOP-8 | D58: Active | F58: P | G58: -20 | H58: -15.0 | I58: -0.7 | J58: - | K58: - | L58: 7.0 | M58: 9.0 | N58: 9.0 | O58: 13.0 | P58: ±12 | Q58: 56.0 | R58: 4,600 | S58: 460.0 | T58: 459.0 | U58: 56.0 | V58: No | W58: 4,000 | X58: 8,000 | Y58: 392 | Z58: 1.0 | AA58: 2022-04-19 | AC58: - | AD58: - | AE58: - | AF58: - | AG58: - | AH58: - | AI58: -
A59: JMTD3139K | B59: Trench | C59: DFN1006-3L | D59: Active | F59: P | G59: -20 | H59: -1.2 | I59: -0.7 | J59: - | K59: - | L59: 271.0 | M59: 352.0 | N59: 360.0 | O59: 467.0 | P59: ±10 | Q59: - | R59: 69 | S59: 18.0 | T59: 9.1 | U59: 1.0 | V59: No | W59: 10,000 | X59: 400,000 | Y59: 271 | Z59: 1.0 | AA59: 2025-08-27 | AC59: - | AD59: - | AE59: - | AF59: - | AG59: - | AH59: - | AI59: -
A60: JMTL3139K | B60: Trench | C60: SOT-23 | D60: Active | F60: P | G60: -20 | H60: -1.1 | I60: -0.7 | J60: - | K60: - | L60: 285.0 | M60: 370.0 | N60: 377.0 | O60: 600.0 | P60: ±10 | Q60: - | R60: 69 | S60: 18.0 | T60: 10.0 | U60: 1.0 | V60: No | W60: 3,000 | X60: 30,000 | Y60: 285 | Z60: 1.0 | AA60: 2025-08-27 | AC60: - | AD60: - | AE60: - | AF60: - | AG60: - | AH60: - | AI60: -
A61: JMTL3139KT5 | B61: Trench | C61: SOT-523-3L | D61: Active | F61: P | G61: -20 | H61: -0.7 | I61: -0.7 | J61: - | K61: - | L61: 307.0 | M61: 399.0 | N61: 394.0 | O61: 600.0 | P61: ±10 | Q61: - | R61: 70 | S61: 18.0 | T61: 10.0 | U61: 1.0 | V61: No | W61: 3,000 | X61: 30,000 | Y61: 307 | Z61: 1.0 | AA61: 2025-08-27 | AC61: - | AD61: - | AE61: - | AF61: - | AG61: - | AH61: - | AI61: -
A62: JMTV210P02A | B62: Trench | C62: DFN2020-6L | D62: Active | F62: P | G62: -20 | H62: -12.0 | I62: -0.8 | J62: - | K62: - | L62: 11.6 | M62: 15.1 | N62: 15.9 | O62: 20.7 | P62: ±12 | Q62: 25.0 | R62: 1,797 | S62: 213.0 | T62: 180.0 | U62: 16.0 | V62: No | W62: 3,000 | X62: 30,000 | Y62: 186 | Z62: 1.6 | AA62: 2023-12-01 | AC62: IRLHS2242 | AD62: - | AE62: - | AF62: AON2405 | AG62: - | AH62: - | AI62: -
A63: JMTV250P02A | B63: Trench | C63: DFN2020-6L | D63: Active | F63: P | G63: -20 | H63: -10.0 | I63: -0.7 | J63: - | K63: - | L63: 15.3 | M63: 19.2 | N63: 21.4 | O63: 27.8 | P63: ±12 | Q63: 25.0 | R63: 1,200 | S63: 191.0 | T63: 168.0 | U63: 14.0 | V63: No | W63: 3,000 | X63: 30,000 | Y63: 238 | Z63: 1.0 | AA63: 2022-10-20 | AC63: - | AD63: - | AE63: - | AF63: - | AG63: - | AH63: - | AI63: -
A64: JMTV2305A | B64: Trench | C64: DFN2020-6L | D64: Active | F64: P | G64: -20 | H64: -7.0 | I64: -0.7 | J64: - | K64: - | L64: 25.0 | M64: 31.0 | N64: 36.0 | O64: 47.0 | P64: ±12 | Q64: 16.0 | R64: 830 | S64: 132.0 | T64: 85.0 | U64: 8.8 | V64: No | W64: 3,000 | X64: 30,000 | Y64: 220 | Z64: 1.0 | AA64: 2022-10-20 | AC64: - | AD64: - | AE64: - | AF64: - | AG64: - | AH64: - | AI64: -
A65: JMTJ210P02A | B65: Trench | C65: SOT-23-3L | D65: Active | F65: P | G65: -20 | H65: -7.0 | I65: -0.8 | J65: - | K65: - | L65: 14.4 | M65: 18.7 | N65: 18.8 | O65: 24.4 | P65: ±12 | Q65: - | R65: 1,797 | S65: 213.0 | T65: 180.0 | U65: 16.0 | V65: No | W65: 3,000 | X65: 30,000 | Y65: 230 | Z65: 1.4 | AA65: 2023-09-07 | AC65: - | AD65: - | AE65: - | AF65: - | AG65: - | AH65: - | AI65: -
A66: JMTJ250P02A | B66: Trench | C66: SOT-23-3L | D66: Active | F66: P | G66: -20 | H66: -5.0 | I66: -0.7 | J66: - | K66: - | L66: 20.0 | M66: 26.0 | N66: 27.0 | O66: 37.0 | P66: ±12 | Q66: - | R66: 1,200 | S66: 191.0 | T66: 168.0 | U66: 33.7 | V66: No | W66: 3,000 | X66: 30,000 | Y66: 674 | Z66: 1.1 | AA66: 2021-01-06 | AC66: - | AD66: - | AE66: - | AF66: - | AG66: - | AH66: - | AI66: -
A67: JMTJ3415KL | B67: Trench | C67: SOT-23-3L | D67: Active | F67: P | G67: -20 | H67: -4.1 | I67: -0.7 | J67: - | K67: - | L67: 29.0 | M67: 38.0 | N67: 38.0 | O67: 53.0 | P67: ±10 | Q67: - | R67: 289 | S67: 98.0 | T67: 22.0 | U67: 33.7 | V67: No | W67: 3,000 | X67: 30,000 | Y67: 977 | Z67: 1.0 | AA67: 2022-03-23 | AC67: - | AD67: - | AE67: - | AF67: - | AG67: - | AH67: - | AI67: -
A68: JMTL2305A | B68: Trench | C68: SOT-23 | D68: Active | F68: P | G68: -20 | H68: -4.1 | I68: -0.7 | J68: - | K68: - | L68: 27.0 | M68: 35.0 | N68: 38.0 | O68: 53.0 | P68: ±12 | Q68: - | R68: 830 | S68: 132.0 | T68: 85.0 | U68: 8.8 | V68: No | W68: 3,000 | X68: 30,000 | Y68: 238 | Z68: 1.4 | AA68: 2023-12-01 | AC68: IRLML2244 | AD68: FDN304P | AE68: - | AF68: - | AG68: PMV32UP | AH68: - | AI68: -
A69: JMTL3415KL | B69: Trench | C69: SOT-23 | D69: Active | F69: P | G69: -20 | H69: -4.1 | I69: -0.7 | J69: - | K69: - | L69: 23.8 | M69: 40.0 | N69: 32.2 | O69: 56.0 | P69: ±10 | Q69: - | R69: 893 | S69: 91.0 | T69: 52.0 | U69: 9.0 | V69: Yes | W69: 3,000 | X69: 120,000 | Y69: 214 | Z69: 1.5 | AA69: 2024-06-06 | AC69: - | AD69: - | AE69: - | AF69: - | AG69: - | AH69: - | AI69: -
A70: JMTP4953B | B70: Trench | C70: SOP-8 | D70: Active | F70: P+P | G70: -20 | H70: -4.0 | I70: -0.7 | J70: - | K70: - | L70: 50.0 | M70: 65.0 | N70: 65.0 | O70: 90.0 | P70: ±12 | Q70: - | R70: 503 | S70: 67.0 | T70: 58.0 | U70: 4.1 | V70: No | W70: 4,000 | X70: 8,000 | Y70: 205 | Z70: 1.0 | AA70: 2022-03-08 | AC70: - | AD70: - | AE70: - | AF70: - | AG70: - | AH70: - | AI70: -
A71: JMTM3415KL | B71: Trench | C71: SOT-23-6L | D71: Active | F71: P | G71: -20 | H71: -4.1 | I71: -0.7 | J71: - | K71: - | L71: 30.0 | M71: 39.0 | N71: 40.0 | O71: 56.0 | P71: ±10 | Q71: - | R71: 289 | S71: 98.0 | T71: 22.0 | U71: 4.1 | V71: Yes | W71: 3,000 | X71: 30,000 | Y71: 123 | Z71: 1.0 | AA71: 2022-03-01 | AC71: - | AD71: - | AE71: - | AF71: - | AG71: - | AH71: - | AI71: -
A72: JMTL2301C | B72: Trench | C72: SOT-23 | D72: Active | F72: P | G72: -20 | H72: -3.0 | I72: -0.6 | J72: - | K72: - | L72: 40.0 | M72: 52.0 | N72: 51.0 | O72: 66.0 | P72: ±12 | Q72: - | R72: 534 | S72: 62.0 | T72: 50.0 | U72: 5.6 | V72: No | W72: 3,000 | X72: 120,000 | Y72: 224 | Z72: 1.4 | AA72: 2024-07-15 | AC72: - | AD72: NTR4101P | AE72: - | AF72: AO3413 | AG72: PMV65xP | AH72: - | AI72: -
A73: JMTL2301B | B73: Trench | C73: SOT-23 | D73: Active | F73: P | G73: -20 | H73: -2.5 | I73: -0.7 | J73: - | K73: - | L73: 80.0 | M73: 104.0 | N73: 110.0 | O73: 154.0 | P73: ±12 | Q73: - | R73: 248 | S73: 42.0 | T73: 31.0 | U73: 2.9 | V73: No | W73: 3,000 | X73: 30,000 | Y73: 232 | Z73: 1.3 | AA73: 2022-08-16 | AC73: - | AD73: - | AE73: - | AF73: - | AG73: - | AH73: - | AI73: -
A74: JMTL2301E | B74: Trench | C74: SOT-23 | D74: Active | F74: P | G74: -20 | H74: -2.0 | I74: -0.7 | J74: - | K74: - | L74: 88.0 | M74: 125.0 | N74: 116.0 | O74: 190.0 | P74: ±12 | Q74: - | R74: 234 | S74: 34.0 | T74: 24.0 | U74: 2.4 | V74: No | W74: 3,000 | X74: 30,000 | Y74: 211 | Z74: 1.4 | AA74: 2025-03-03 | AC74: IRLML2246 | AD74: - | AE74: - | AF74: - | AG74: - | AH74: - | AI74: -
A75: JMTV220P02A | B75: Trench | C75: DFN2020-6L | D75: Active | F75: P | G75: -16 | H75: -7.7 | I75: -0.6 | J75: - | K75: - | L75: 17.0 | M75: 23.0 | N75: 22.0 | O75: 29.0 | P75: ±10 | Q75: 15.0 | R75: 1,352 | S75: 190.0 | T75: 167.0 | U75: 14.0 | V75: No | W75: 3,000 | X75: 30,000 | Y75: 238 | Z75: 1.0 | AA75: 2025-08-27 | AC75: - | AD75: - | AE75: - | AF75: - | AG75: - | AH75: - | AI75: -
A76: JMTV2333A | B76: Trench | C76: DFN2020-6L | D76: Active | F76: P | G76: -12 | H76: -8.0 | I76: -0.7 | J76: - | K76: - | L76: 12.0 | M76: 15.6 | N76: 16.0 | O76: 20.8 | P76: ±12 | Q76: - | R76: 1,821 | S76: 201.0 | T76: 169.0 | U76: 36.0 | V76: No | W76: 3,000 | X76: 30,000 | Y76: 432 | Z76: 1.1 | AA76: 2023-11-01 | AC76: - | AD76: - | AE76: - | AF76: - | AG76: - | AH76: - | AI76: -
A77: JMTJ2333A | B77: Trench | C77: SOT-23-3L | D77: Active | F77: P | G77: -12 | H77: -7.0 | I77: -0.7 | J77: - | K77: - | L77: 16.0 | M77: 21.0 | N77: 20.0 | O77: 26.0 | P77: ±12 | Q77: - | R77: 1,821 | S77: 201.0 | T77: 169.0 | U77: 10.5 | V77: No | W77: 3,000 | X77: 30,000 | Y77: 169 | Z77: 1.1 | AA77: 2023-11-01 | AC77: - | AD77: - | AE77: - | AF77: - | AG77: - | AH77: - | AI77: -
A78: JMTL2305B | B78: Trench | C78: SOT-23 | D78: Active | F78: P | G78: -12 | H78: -4.1 | I78: -0.65 | J78: - | K78: - | L78: 26.0 | M78: 36.0 | N78: 35.0 | O78: 53.0 | P78: ±8 | Q78: - | R78: 905 | S78: 210.0 | T78: 195.0 | U78: 7.8 | V78: No | W78: 3,000 | X78: 120,000 | Y78: 203 | Z78: 1.5 | AA78: 2024-04-25 | AC78: IRLML6401 | AD78: FDN306P | AE78: - | AF78: - | AG78: - | AH78: - | AI78: -
A79: JMTQ025N02A | B79: Trench | C79: PDFN3x3-8L | D79: Active | F79: N | G79: 20 | H79: 80.0 | I79: 1.0 | J79: 2.1 | K79: 2.7 | L79: 2.3 | M79: 3.0 | N79: 3.2 | O79: 4.2 | P79: ±12 | Q79: 210.0 | R79: 6,215 | S79: 824.0 | T79: 723.0 | U79: 64.0 | V79: No | W79: 5,000 | X79: 10,000 | Y79: =U79*J79 -> 134 | Z79: 1.3 | AA79: 2023-03-29 | AC79: IRLHM620 | AD79: - | AE79: - | AF79: - | AG79: - | AH79: - | AI79: -
A80: JMTK90N02A | B80: Trench | C80: TO-252-3L | D80: Active | F80: N | G80: 20 | H80: 90.0 | I80: 0.8 | J80: - | K80: - | L80: 2.8 | M80: 3.6 | N80: 3.8 | O80: 4.9 | P80: ±12 | Q80: 156.0 | R80: 3,476 | S80: 528.0 | T80: 464.0 | U80: 65.0 | V80: No | W80: 2,500 | X80: 5,000 | Y80: 182 | Z80: 1.2 | AA80: 2023-03-29 | AC80: IRLR6225 | AD80: - | AE80: - | AF80: - | AG80: - | AH80: - | AI80: -
A81: JMTG90N02A | B81: Trench | C81: PDFN5x6-8L | D81: Active | F81: N | G81: 20 | H81: 75.0 | I81: 0.8 | J81: - | K81: - | L81: 2.8 | M81: 3.6 | N81: 3.6 | O81: 4.7 | P81: ±12 | Q81: 156.0 | R81: 3,476 | S81: 528.0 | T81: 464.0 | U81: 65.0 | V81: No | W81: 5,000 | X81: 10,000 | Y81: 182 | Z81: 1.2 | AA81: 2023-03-29 | AC81: - | AD81: - | AE81: - | AF81: - | AG81: - | AH81: - | AI81: -
A82: JMTQ90N02A | B82: Trench | C82: PDFN3x3-8L | D82: Active | F82: N | G82: 20 | H82: 60.0 | I82: 0.8 | J82: - | K82: - | L82: 3.0 | M82: 3.9 | N82: 3.8 | O82: 4.9 | P82: ±12 | Q82: 121.0 | R82: 3,476 | S82: 528.0 | T82: 464.0 | U82: 65.0 | V82: No | W82: 5,000 | X82: 10,000 | Y82: 195 | Z82: 1.3 | AA82: 2023-03-29 | AC82: - | AD82: - | AE82: - | AF82: - | AG82: - | AH82: - | AI82: -
A83: JMTK75N02A | B83: Trench | C83: TO-252-3L | D83: Active | F83: N | G83: 20 | H83: 75.0 | I83: 0.8 | J83: - | K83: - | L83: 3.8 | M83: 4.9 | N83: 5.0 | O83: 6.5 | P83: ±12 | Q83: 100.0 | R83: 3,174 | S83: 396.0 | T83: 365.0 | U83: 36.0 | V83: No | W83: 2,500 | X83: 5,000 | Y83: =L83*U83 -> 137 | Z83: 1.3 | AA83: 2023-05-05 | AC83: - | AD83: - | AE83: - | AF83: - | AG83: - | AH83: - | AI83: -
A84: JMTI080N02A | B84: Trench | C84: TO-251-3L | D84: Active | F84: N | G84: 20 | H84: 50.0 | I84: 0.8 | J84: - | K84: - | L84: 5.8 | M84: 7.5 | N84: 7.8 | O84: 10.1 | P84: ±12 | Q84: 49.0 | R84: 1,613 | S84: 228.0 | T84: 200.0 | U84: 18.0 | V84: No | W84: 4,950 | X84: 4,950 | Y84: =L84*U84 -> 104 | Z84: 1.1 | AA84: 2023-06-27 | AC84: - | AD84: - | AE84: - | AF84: - | AG84: - | AH84: - | AI84: -
A85: JMTQ050N02A | B85: Trench | C85: PDFN3x3-8L | D85: Active | F85: N | G85: 20 | H85: 50.0 | I85: 0.8 | J85: - | K85: - | L85: 3.8 | M85: 4.9 | N85: 5.0 | O85: 6.5 | P85: ±12 | Q85: 90.0 | R85: 3,174 | S85: 396.0 | T85: 365.0 | U85: 36.0 | V85: No | W85: 5,000 | X85: 10,000 | Y85: =L85*U85 -> 137 | Z85: 1.2 | AA85: 2023-05-05 | AC85: - | AD85: - | AE85: - | AF85: AON7404 | AG85: - | AH85: - | AI85: -
A86: JMTK2006A | B86: Trench | C86: TO-252-3L | D86: Active | F86: N | G86: 20 | H86: 60.0 | I86: 0.9 | J86: - | K86: - | L86: 4.8 | M86: 6.2 | N86: 6.5 | O86: 8.5 | P86: ±12 | Q86: 64.0 | R86: 2,007 | S86: 278.0 | T86: 252.0 | U86: 23.0 | V86: No | W86: 2,500 | X86: 5,000 | Y86: =L86*U86 -> 110 | Z86: 1.2 | AA86: 2023-05-05 | AC86: - | AD86: - | AE86: - | AF86: - | AG86: - | AH86: - | AI86: -
A87: JMTK2007A | B87: Trench | C87: TO-252-3L | D87: Active | F87: N | G87: 20 | H87: 50.0 | I87: 0.8 | J87: - | K87: - | L87: 6.2 | M87: 8.1 | N87: 8.2 | O87: 10.7 | P87: ±12 | Q87: 49.0 | R87: 1,613 | S87: 228.0 | T87: 200.0 | U87: 18.0 | V87: No | W87: 2,500 | X87: 5,000 | Y87: =L87*U87 -> 112 | Z87: 1.0 | AA87: 2023-03-29 | AC87: - | AD87: - | AE87: - | AF87: - | AG87: - | AH87: - | AI87: -
A88: JMTQ070N02A | B88: Trench | C88: PDFN3x3-8L | D88: Active | F88: N | G88: 20 | H88: 63.0 | I88: 0.8 | J88: 4.8 | K88: 6.2 | L88: 6.4 | M88: 8.3 | N88: - | O88: - | P88: ±12 | Q88: 59.0 | R88: 1,992 | S88: 280.0 | T88: 253.0 | U88: 23.0 | V88: No | W88: 5,000 | X88: 10,000 | Y88: =U88*J88 -> 110 | Z88: 1.0 | AA88: 2025-12-09
A89: JMTK100N02A | B89: Trench | C89: TO-252-3L | D89: Active | F89: N | G89: 20 | H89: 30.0 | I89: 0.8 | J89: - | K89: - | L89: 8.0 | M89: 10.4 | N89: 10.1 | O89: 13.1 | P89: ±12 | Q89: 30.0 | R89: 1,195 | S89: 175.0 | T89: 150.0 | U89: 13.0 | V89: No | W89: 2,500 | X89: 5,000 | Y89: 104 | Z89: 1.1 | AA89: 2023-09-07 | AC89: - | AD89: - | AE89: - | AF89: - | AG89: - | AH89: - | AI89: -
A90: JMTV070N02A | B90: Trench | C90: DFN2020-6L | D90: Active | F90: N | G90: 20 | H90: 25.0 | I90: 0.7 | J90: - | K90: - | L90: 5.3 | M90: 6.6 | N90: 7.4 | O90: 9.6 | P90: ±12 | Q90: 49.0 | R90: 1,567 | S90: 281.0 | T90: 239.0 | U90: 19.0 | V90: No | W90: 3,000 | X90: 30,000 | Y90: 101 | Z90: 1.0 | AA90: 2022-10-20 | AC90: - | AD90: - | AE90: - | AF90: - | AG90: - | AH90: - | AI90: -
A91: JMTV080N02A | B91: Trench | C91: DFN2020-6L | D91: Active | F91: N | G91: 20 | H91: 20.0 | I91: 0.8 | J91: - | K91: - | L91: 6.9 | M91: 9.0 | N91: 9.0 | O91: 11.7 | P91: ±12 | Q91: 36.0 | R91: 1,613 | S91: 228.0 | T91: 200.0 | U91: 17.0 | V91: No | W91: 3,000 | X91: 30,000 | Y91: 117 | Z91: 1.0 | AA91: 2023-03-29 | AC91: - | AD91: - | AE91: - | AF91: - | AG91: - | AH91: - | AI91: -
A92: JMTV100N02A | B92: Trench | C92: DFN2020-6L | D92: Active | F92: N | G92: 20 | H92: 10.0 | I92: 0.8 | J92: - | K92: - | L92: 7.5 | M92: 9.8 | N92: 9.6 | O92: 12.5 | P92: ±12 | Q92: 30.0 | R92: 1,195 | S92: 175.0 | T92: 150.0 | U92: 13.0 | V92: No | W92: 3,000 | X92: 30,000 | Y92: =L92*U92 -> 98 | Z92: 1.2 | AA92: 2023-09-07 | AC92: - | AD92: - | AE92: - | AF92: AON2408 | AG92: - | AH92: - | AI92: -
A93: JMTJ100N02A | B93: Trench | C93: SOT-23-3L | D93: Active | F93: N | G93: 20 | H93: 8.0 | I93: 0.8 | J93: - | K93: - | L93: 8.2 | M93: 10.7 | N93: 10.2 | O93: 13.3 | P93: ±12 | Q93: - | R93: 1,195 | S93: 175.0 | T93: 150.0 | U93: 13.0 | V93: No | W93: 3,000 | X93: 120,000 | Y93: - | Z93: 1.3 | AA93: 2025-02-07 | AC93: - | AD93: - | AE93: - | AF93: - | AG93: - | AH93: - | AI93: -
A94: JMTL2312A | B94: Trench | C94: SOT-23 | D94: Active | F94: N | G94: 20 | H94: 6.8 | I94: 0.8 | J94: - | K94: - | L94: 16.0 | M94: 21.0 | N94: 19.0 | O94: 25.0 | P94: ±12 | Q94: - | R94: 712 | S94: 116.0 | T94: 103.0 | U94: 9.0 | V94: No | W94: 3,000 | X94: 120,000 | Y94: 144 | Z94: 1.5 | AA94: 2024-07-16 | AC94: IRLML6244 | AD94: FDN028N20 | AE94: - | AF94: AOSS32136C | AG94: PMV16xN | AH94: - | AI94: -
A95: JMTL3416KS | B95: Trench | C95: SOT-23 | D95: Active | F95: N | G95: 20 | H95: 5.0 | I95: 0.7 | J95: - | K95: - | L95: 17.0 | M95: 22.0 | N95: 26.0 | O95: 36.0 | P95: ±10 | Q95: - | R95: 545 | S95: 103.0 | T95: 90.0 | U95: 8.0 | V95: Yes | W95: 3,000 | X95: 30,000 | Y95: - | Z95: 1.0 | AA95: 2021-09-10 | AC95: - | AD95: - | AE95: - | AF95: AO3416 | AG95: - | AH95: - | AI95: -
A96: JMTM8205A | B96: Trench | C96: SOT-23-6L | D96: Active | F96: N+N | G96: 20 | H96: 5.0 | I96: 0.7 | J96: - | K96: - | L96: 18.5 | M96: 24.1 | N96: 22.8 | O96: 29.6 | P96: ±12 | Q96: - | R96: 447 | S96: 64.0 | T96: 52.0 | U96: 5.2 | V96: No | W96: 3,000 | X96: 30,000 | Y96: 96 | Z96: 1.0 | AA96: 2023-06-27 | AC96: - | AD96: - | AE96: - | AF96: - | AG96: - | AH96: - | AI96: -
A97: JMTL2302C | B97: Trench | C97: SOT-23 | D97: Active | F97: N | G97: 20 | H97: 4.0 | I97: 0.8 | J97: - | K97: - | L97: 22.0 | M97: 29.0 | N97: 27.0 | O97: 35.0 | P97: ±12 | Q97: - | R97: 455 | S97: 64.0 | T97: 55.0 | U97: 6.0 | V97: No | W97: 3,000 | X97: 120,000 | Y97: 132 | Z97: 1.6 | AA97: 2024-07-16 | AC97: - | AD97: FDN339AN | AE97: - | AF97: AO3420 | AG97: PMV30UN2 | AH97: - | AI97: -
A98: JMTL2312L | B98: Trench | C98: SOT-23 | D98: Active | F98: N | G98: 20 | H98: 6.0 | I98: 0.7 | J98: - | K98: - | L98: 16.0 | M98: 21.0 | N98: 19.0 | O98: 25.0 | P98: ±12 | Q98: - | R98: 754 | S98: 94.0 | T98: 83.0 | U98: 9.3 | V98: No | W98: 3,000 | X98: 120,000 | Y98: 189 | Z98: 1.2 | AA98: 2024-07-16 | AC98: - | AD98: - | AE98: - | AF98: - | AG98: - | AH98: - | AI98: -
A99: JMTJ2302C | B99: Trench | C99: SOT-23-3L | D99: Active | F99: N | G99: 20 | H99: 4.0 | I99: 0.8 | J99: - | K99: - | L99: 22.0 | M99: 29.0 | N99: 27.0 | O99: 35.0 | P99: ±12 | Q99: - | R99: 455 | S99: 64.0 | T99: 55.0 | U99: 6.0 | V99: No | W99: 3,000 | X99: 30,000 | Y99: =L99*U99 -> 132 | Z99: 1.2 | AA99: 2023-09-07 | AC99: - | AD99: - | AE99: - | AF99: - | AG99: - | AH99: - | AI99: -
A100: JMTM8810KS | B100: Trench | C100: SOT-23-6L | D100: Active | F100: N+N | G100: 20 | H100: 4.8 | I100: 0.7 | J100: - | K100: - | L100: 15.0 | M100: 20.0 | N100: 25.0 | O100: 35.0 | P100: ±10 | Q100: - | R100: 545 | S100: 103.0 | T100: 90.0 | U100: 5.6 | V100: Yes | W100: 3,000 | X100: 30,000 | Y100: - | Z100: 1.0 | AA100: 2022-03-01 | AC100: - | AD100: - | AE100: - | AF100: - | AG100: - | AH100: - | AI100: -
A101: JMTM8205B | B101: Trench | C101: SOT-23-6L | D101: Active | F101: N+N | G101: 20 | H101: 6.0 | I101: 0.7 | J101: - | K101: - | L101: 17.4 | M101: 22.6 | N101: 22.0 | O101: 28.6 | P101: ±12 | Q101: - | R101: 583 | S101: 79.0 | T101: 68.0 | U101: 6.7 | V101: No | W101: 3,000 | X101: 30,000 | Y101: 119 | Z101: 1.0 | AA101: 2023-09-08 | AC101: - | AD101: - | AE101: - | AF101: - | AG101: - | AH101: - | AI101: -
A102: JMTT8810KS | B102: Trench | C102: TSSOP-8 | D102: Active | F102: N+N | G102: 20 | H102: 4.8 | I102: 0.7 | J102: - | K102: - | L102: 17.0 | M102: 22.0 | N102: 25.0 | O102: 35.0 | P102: ±10 | Q102: - | R102: 545 | S102: 103.0 | T102: 90.0 | U102: 8.0 | V102: Yes | W102: 5,000 | X102: 10,000 | Y102: - | Z102: 1.0 | AA102: 2022-03-01 | AC102: - | AD102: - | AE102: - | AF102: - | AG102: - | AH102: - | AI102: -
A103: JMTP9926A | B103: Trench | C103: SOP-8 | D103: Active | F103: N+N | G103: 20 | H103: 6.5 | I103: 0.8 | J103: - | K103: - | L103: 13.0 | M103: 17.0 | N103: 17.0 | O103: 21.0 | P103: ±12 | Q103: 16.0 | R103: 712 | S103: 106.0 | T103: 113.0 | U103: 9.0 | V103: No | W103: 4,000 | X103: 8,000 | Y103: 117 | Z103: 1.4 | AA103: 2023-09-07 | AC103: - | AD103: - | AE103: - | AF103: - | AG103: - | AH103: - | AI103: -
A104: JMTP9926B | B104: Trench | C104: SOP-8 | D104: Active | F104: N+N | G104: 20 | H104: 6.0 | I104: 0.8 | J104: - | K104: - | L104: 21.0 | M104: 27.0 | N104: 25.0 | O104: 33.0 | P104: ±12 | Q104: 7.5 | R104: 455 | S104: 64.0 | T104: 55.0 | U104: 6.0 | V104: No | W104: 4,000 | X104: 8,000 | Y104: 126 | Z104: 1.1 | AA104: 2023-09-07 | AC104: - | AD104: FDS9926A | AE104: - | AF104: AO9926B | AG104: - | AH104: - | AI104: -
A105: JMTL2302B | B105: Trench | C105: SOT-23 | D105: Active | F105: N | G105: 20 | H105: 3.0 | I105: 0.8 | J105: - | K105: - | L105: 47.0 | M105: 61.0 | N105: 59.0 | O105: 77.0 | P105: ±12 | Q105: - | R105: 200 | S105: 35.0 | T105: 28.0 | U105: 3.0 | V105: No | W105: 3,000 | X105: 30,000 | Y105: 141 | Z105: 1.4 | AA105: 2023-09-07 | AC105: BSS205N | AD105: FDN335N | AE105: - | AF105: AO3494 | AG105: NxV40UN | AH105: - | AI105: -
A106: JMTD3134K | B106: Trench | C106: DFN1006-3L | D106: Active | F106: N | G106: 20 | H106: 0.8 | I106: 0.7 | J106: - | K106: - | L106: 125.0 | M106: 240.0 | N106: 185.0 | O106: 280.0 | P106: ±10 | Q106: - | R106: 60 | S106: 22.0 | T106: 12.0 | U106: 1.0 | V106: Yes | W106: 10,000 | X106: 400,000 | Y106: - | Z106: 1.1 | AA106: 2022-03-01 | AC106: - | AD106: - | AE106: - | AF106: - | AG106: - | AH106: - | AI106: -
A107: JMTL3134KT5 | B107: Trench | C107: SOT-523-3L | D107: Active | F107: N | G107: 20 | H107: 0.8 | I107: 0.7 | J107: - | K107: - | L107: 145.0 | M107: 240.0 | N107: 225.0 | O107: 315.0 | P107: ±10 | Q107: - | R107: 60 | S107: 22.0 | T107: 12.0 | U107: 1.0 | V107: Yes | W107: 3,000 | X107: 30,000 | Y107: - | Z107: 1.1 | AA107: 2022-03-01 | AC107: - | AD107: - | AE107: - | AF107: - | AG107: - | AH107: - | AI107: -
A108: JMTL3134KT7 | B108: Trench | C108: SOT-723-3L | D108: Active | F108: N | G108: 20 | H108: 0.8 | I108: 0.7 | J108: - | K108: - | L108: 120.0 | M108: 240.0 | N108: 180.0 | O108: 280.0 | P108: ±10 | Q108: - | R108: 60 | S108: 22.0 | T108: 12.0 | U108: 1.0 | V108: Yes | W108: 10,000 | X108: 400,000 | Y108: - | Z108: 1.2 | AA108: 2022-08-09 | AC108: - | AD108: - | AE108: - | AF108: - | AG108: - | AH108: - | AI108: -
A109: JMTL3134K | B109: Trench | C109: SOT-23 | D109: Active | F109: N | G109: 20 | H109: 0.9 | I109: 0.7 | J109: - | K109: - | L109: 135.0 | M109: 240.0 | N109: 195.0 | O109: 280.0 | P109: ±10 | Q109: - | R109: 60 | S109: 22.0 | T109: 12.0 | U109: 1.0 | V109: Yes | W109: 3,000 | X109: 30,000 | Y109: - | Z109: 1.2 | AA109: 2022-03-01 | AC109: - | AD109: - | AE109: - | AF109: - | AG109: - | AH109: - | AI109: -
A110: JMTLA3134K | B110: Trench | C110: SOT-323-3L | D110: Active | F110: N | G110: 20 | H110: 0.9 | I110: 0.7 | J110: - | K110: - | L110: 135.0 | M110: 240.0 | N110: 195.0 | O110: 280.0 | P110: ±10 | Q110: - | R110: 60 | S110: 22.0 | T110: 12.0 | U110: 1.0 | V110: Yes | W110: 3,000 | X110: 45,000 | Y110: - | Z110: 1.1 | AA110: 2022-03-01 | AC110: - | AD110: - | AE110: - | AF110: - | AG110: - | AH110: - | AI110: -
A111: JMTLB3134K | B111: Trench | C111: SOT-363-6L | D111: Active | F111: N+N | G111: 20 | H111: 0.9 | I111: 0.7 | J111: - | K111: - | L111: 135.0 | M111: 240.0 | N111: 195.0 | O111: 280.0 | P111: ±10 | Q111: - | R111: 60 | S111: 22.0 | T111: 12.0 | U111: 1.0 | V111: Yes | W111: 3,000 | X111: 45,000 | Y111: - | Z111: 1.1 | AA111: 2022-03-01 | AC111: - | AD111: - | AE111: - | AF111: - | AG111: - | AH111: - | AI111: -
A112: JMTL3404B | B112: Trench | C112: SOT-23 | D112: Active | F112: N | G112: 30 | H112: 5.0 | I112: 1.5 | J112: 21.0 | K112: 27.0 | L112: 27.0 | M112: 35.0 | N112: - | O112: - | P112: ±20 | Q112: - | R112: 388 | S112: 57.0 | T112: 45.0 | U112: 9.0 | V112: No | W112: 3,000 | X112: 120,000 | Y112: =U112*J112 -> 189 | Z112: 1.1 | AA112: 2024-07-16 | AC112: - | AD112: - | AE112: - | AF112: - | AG112: - | AH112: - | AI112: -
A113: JMTG3002B | B113: Trench | C113: PDFN5x6-8L | D113: Active | F113: N | G113: 30 | H113: 120.0 | I113: 1.9 | J113: 1.7 | K113: 2.2 | L113: 3.0 | M113: 3.9 | N113: - | O113: - | P113: ±20 | Q113: 289.0 | R113: 5,065 | S113: 574.0 | T113: 472.0 | U113: 97.0 | V113: No | W113: 5,000 | X113: 10,000 | Y113: 165 | Z113: 1.5 | AA113: 2023-05-05 | AC113: - | AD113: NTMFS4845 | AE113: - | AF113: - | AG113: - | AH113: - | AI113: -
A114: JMTC018N03A | B114: Trench | C114: TO-220-3L | D114: Active | F114: N | G114: 30 | H114: 190.0 | I114: 1.5 | J114: 2.2 | K114: 2.7 | L114: 2.8 | M114: 4.2 | N114: - | O114: - | P114: ±20 | Q114: 271.0 | R114: 6,278 | S114: 863.0 | T114: 532.0 | U114: 108.0 | V114: No | W114: 50 | X114: 5,000 | Y114: 238 | Z114: 1.1 | AA114: 2024-06-03 | AC114: IRLB8314 | AD114: - | AE114: - | AF114: - | AG114: PSMN2R7-30PL | AH114: - | AI114: -
A115: JMTK018N03A | B115: Trench | C115: TO-252-3L | D115: Active | F115: N | G115: 30 | H115: 190.0 | I115: 1.6 | J115: 2.0 | K115: 2.6 | L115: 2.5 | M115: 4.2 | N115: - | O115: - | P115: ±20 | Q115: 271.0 | R115: 6,278 | S115: 863.0 | T115: 532.0 | U115: 108.0 | V115: No | W115: 2,500 | X115: 5,000 | Y115: 216 | Z115: 1.2 | AA115: 2024-06-03 | AC115: IRFR8314 | AD115: - | AE115: - | AF115: - | AG115: - | AH115: - | AI115: -
A116: JMTC3002B | B116: Trench | C116: TO-220-3L | D116: Active | F116: N | G116: 30 | H116: 165.0 | I116: 1.8 | J116: 2.4 | K116: 3.1 | L116: 3.5 | M116: 4.6 | N116: - | O116: - | P116: ±20 | Q116: 237.0 | R116: 5,180 | S116: 657.0 | T116: 537.0 | U116: 97.0 | V116: No | W116: 50 | X116: 5,000 | Y116: 233 | Z116: 1.0 | AA116: 2024-10-09 | AC116: - | AD116: - | AE116: - | AF116: - | AG116: - | AH116: - | AI116: -
A117: JMTQ3400D | B117: Trench | C117: PDFN3X3-8L | D117: Active | F117: N | G117: 30 | H117: 40.0 | I117: 1.0 | J117: 10.6 | K117: 13.8 | L117: 11.3 | M117: 14.7 | N117: - | O117: - | P117: ±12 | Q117: 31.0 | R117: 1,533 | S117: 118.0 | T117: 94.0 | U117: 16.0 | V117: No | W117: 5,000 | X117: 50,000 | Y117: 170 | Z117: 1.0 | AA117: 2024-10-09 | AC117: - | AD117: - | AE117: - | AF117: - | AG117: - | AH117: - | AI117: -
A118: JMTG018N03A | B118: Trench | C118: PDFN5x6-8L | D118: Active | F118: N | G118: 30 | H118: 130.0 | I118: 1.5 | J118: 1.5 | K118: 1.8 | L118: 2.0 | M118: 3.0 | N118: - | O118: - | P118: ±20 | Q118: 271.0 | R118: 6,278 | S118: 863.0 | T118: 532.0 | U118: 108.0 | V118: No | W118: 5,000 | X118: 50,000 | Y118: 162 | Z118: 1.3 | AA118: 2024-06-03 | AC118: - | AD118: - | AE118: - | AF118: AONS32304 | AG118: - | AH118: - | AI118: -
A119: JMTE3002B | B119: Trench | C119: TO-263-3L | D119: Active | F119: N | G119: 30 | H119: 180.0 | I119: 1.9 | J119: 2.0 | K119: 2.6 | L119: 3.2 | M119: 4.2 | N119: - | O119: - | P119: ±20 | Q119: 306.0 | R119: 5,065 | S119: 574.0 | T119: 472.0 | U119: 97.0 | V119: No | W119: 800 | X119: 4,000 | Y119: 194 | Z119: 1.4 | AA119: 2023-05-05 | AC119: IPB80N03S4L-02 | AD119: - | AE119: - | AF119: - | AG119: PSMN2R7-30BL | AH119: - | AI119: -
A120: JMTK3002B | B120: Trench | C120: TO-252-3L | D120: Active | F120: N | G120: 30 | H120: 180.0 | I120: 1.9 | J120: 2.0 | K120: 2.6 | L120: 3.3 | M120: 4.3 | N120: - | O120: - | P120: ±20 | Q120: 289.0 | R120: 5,065 | S120: 574.0 | T120: 472.0 | U120: 97.0 | V120: No | W120: 2,500 | X120: 5,000 | Y120: 194 | Z120: 1.1 | AA120: 2023-05-05 | AC120: - | AD120: - | AE120: - | AF120: AOD508 | AG120: - | AH120: - | AI120: -
A121: JMTR3002A | B121: Trench | C121: DFN3333-8L | D121: Active | F121: N | G121: 30 | H121: 100.0 | I121: 1.9 | J121: 2.3 | K121: 3.0 | L121: 3.6 | M121: 4.7 | N121: - | O121: - | P121: ±20 | Q121: 256.0 | R121: 5,065 | S121: 574.0 | T121: 472.0 | U121: 97.0 | V121: No | W121: 5,000 | X121: 10,000 | Y121: 223 | Z121: 1.0 | AA121: 2023-03-29 | AC121: - | AD121: - | AE121: - | AF121: - | AG121: - | AH121: - | AI121: -
A122: JMTE3003A | B122: Trench | C122: TO-263-3L | D122: Active | F122: N | G122: 30 | H122: 150.0 | I122: 1.9 | J122: 2.2 | K122: 2.9 | L122: 5.0 | M122: 6.5 | N122: - | O122: - | P122: ±20 | Q122: 210.0 | R122: 3,650 | S122: 494.0 | T122: 366.0 | U122: 67.0 | V122: No | W122: 800 | X122: 4,000 | Y122: 147 | Z122: 1.2 | AA122: 2023-03-29 | AC122: IRL7833S | AD122: - | AE122: - | AF122: - | AG122: PSMN3R4-30BL | AH122: - | AI122: -
A123: JMTE018N03A | B123: Trench | C123: TO-263-3L | D123: Active | F123: N | G123: 30 | H123: 190.0 | I123: 1.5 | J123: 1.9 | K123: 2.4 | L123: - | M123: - | N123: - | O123: - | P123: ±20 | Q123: 271.0 | R123: 6,278 | S123: 863.0 | T123: 532.0 | U123: 108.0 | V123: No | W123: 800 | X123: 4,000 | Y123: 205 | Z123: 1.2 | AA123: 2024-02-27 | AC123: - | AD123: - | AE123: - | AF123: - | AG123: - | AH123: - | AI123: -
A124: JMTC3003A | B124: Trench | C124: TO-220C-3L | D124: Active | F124: N | G124: 30 | H124: 150.0 | I124: 1.9 | J124: 2.5 | K124: 3.3 | L124: 4.8 | M124: 6.2 | N124: - | O124: - | P124: ±20 | Q124: 210.0 | R124: 3,650 | S124: 494.0 | T124: 366.0 | U124: 67.0 | V124: No | W124: 1,000 | X124: 5,000 | Y124: 168 | Z124: 1.1 | AA124: 2023-03-29 | AC124: IRLB8743 | AD124: - | AE124: - | AF124: - | AG124: PSMN3R4-30PL | AH124: - | AI124: -
A125: JMTG3003A | B125: Trench | C125: PDFN5x6-8L | D125: Active | F125: N | G125: 30 | H125: 142.0 | I125: 1.6 | J125: 2.3 | K125: 3.1 | L125: 3.5 | M125: 6.4 | N125: - | O125: - | P125: ±20 | Q125: 177.0 | R125: 3,650 | S125: 494.0 | T125: 366.0 | U125: 67.0 | V125: No | W125: 5,000 | X125: 50,000 | Y125: 154 | Z125: 1.6 | AA125: 2024-10-21 | AC125: IRFH7932 | AD125: - | AE125: - | AF125: AON6354 | AG125: - | AH125: - | AI125: -
A126: JMTG3005B | B126: Trench | C126: PDFN5x6-8L | D126: Active | F126: N | G126: 30 | H126: 94.0 | I126: 1.6 | J126: 3.9 | K126: 5.1 | L126: 5.5 | M126: 7.2 | N126: - | O126: - | P126: ±20 | Q126: 96.0 | R126: 2,247 | S126: 264.0 | T126: 220.0 | U126: 45.0 | V126: No | W126: 5,000 | X126: 50,000 | Y126: 176 | Z126: 1.1 | AA126: 2025-04-10 | AC126: - | AD126: - | AE126: - | AF126: - | AG126: - | AH126: - | AI126: -
A127: JMTG3005B-P | B127: Trench | C127: PDFN5x6-8L | D127: Active | F127: N | G127: 30 | H127: 94.0 | I127: 1.6 | J127: 3.9 | K127: 5.1 | L127: 5.5 | M127: 7.2 | N127: - | O127: - | P127: ±20 | Q127: 96.0 | R127: 2,247 | S127: 264.0 | T127: 220.0 | U127: 45.0 | V127: No | W127: 5,000 | X127: 50,000 | Y127: 176 | Z127: 1.0 | AA127: 2025-09-23
A128: JMTQ3003A | B128: Trench | C128: PDFN3x3-8L | D128: Active | F128: N | G128: 30 | H128: 80.0 | I128: 1.9 | J128: 2.6 | K128: 3.4 | L128: 5.1 | M128: 6.6 | N128: - | O128: - | P128: ±20 | Q128: 169.0 | R128: 3,650 | S128: 494.0 | T128: 366.0 | U128: 67.0 | V128: No | W128: 5,000 | X128: 10,000 | Y128: 174 | Z128: 1.4 | AA128: 2023-05-05 | AC128: - | AD128: NTTFS4985NF | AE128: - | AF128: AONR36366 | AG128: - | AH128: - | AI128: -
A129: JMTQ190N03A | B129: Trench | C129: PDFN3X3-8L | D129: Active | F129: N | G129: 30 | H129: 29.0 | I129: 1.6 | J129: 13.2 | K129: 17.2 | L129: 16.5 | M129: 21.4 | N129: - | O129: - | P129: ±12 | Q129: 18.0 | R129: 659 | S129: 84.0 | T129: 68.0 | U129: 14.0 | V129: No | W129: 5,000 | X129: 50,000 | Y129: 185 | Z129: 1.0 | AA129: 2024-09-03 | AC129: - | AD129: - | AE129: - | AF129: - | AG129: - | AH129: - | AI129: -
A130: JMTG3008D | B130: Trench | C130: PDFN5X6-8L-D | D130: Active | F130: N+N | G130: 30 | H130: 41.0 | I130: 1.6 | J130: 6.1 | K130: 7.9 | L130: 8.7 | M130: 11.2 | N130: - | O130: - | P130: ±20 | Q130: 44.0 | R130: 1,232 | S130: 157.0 | T130: 127.0 | U130: 25.0 | V130: No | W130: 5,000 | X130: 50,000 | Y130: 153 | Z130: 1.1 | AA130: 2024-10-09 | AC130: - | AD130: - | AE130: - | AF130: - | AG130: - | AH130: - | AI130: -
A131: JMTQ3006C | B131: Trench | C131: PDFN3x3-8L | D131: Active | F131: N | G131: 30 | H131: 52.0 | I131: 1.7 | J131: 4.3 | K131: 5.6 | L131: 6.1 | M131: 7.9 | N131: - | O131: - | P131: ±20 | Q131: 54.0 | R131: 1,612 | S131: 192.0 | T131: 164.0 | U131: 33.0 | V131: No | W131: 5,000 | X131: 50,000 | Y131: 142 | Z131: 1.1 | AA131: 2024-07-10 | AC131: - | AD131: - | AE131: - | AF131: - | AG131: - | AH131: - | AI131: -
A132: JMTK3003A | B132: Trench | C132: TO-252-3L | D132: Active | F132: N | G132: 30 | H132: 150.0 | I132: 1.9 | J132: 2.6 | K132: 3.4 | L132: 4.9 | M132: 6.4 | N132: - | O132: - | P132: ±20 | Q132: 210.0 | R132: 3,650 | S132: 494.0 | T132: 366.0 | U132: 67.0 | V132: No | W132: 2,500 | X132: 5,000 | Y132: 174 | Z132: 1.2 | AA132: 2023-03-29 | AC132: IRLR8743 | AD132: - | AE132: - | AF132: AOD4132 | AG132: - | AH132: - | AI132: -
A133: JMTG040N03A | B133: Trench | C133: PDFN5x6-8L | D133: Active | F133: N | G133: 30 | H133: 80.0 | I133: 1.9 | J133: 2.6 | K133: 3.4 | L133: 4.3 | M133: 5.6 | N133: - | O133: - | P133: ±20 | Q133: 156.0 | R133: 3,089 | S133: 372.0 | T133: 302.0 | U133: 58.0 | V133: No | W133: 5,000 | X133: 10,000 | Y133: 151 | Z133: 1.2 | AA133: 2023-03-29 | AC133: IRFH8325 | AD133: - | AE133: - | AF133: AON6576 | AG133: - | AH133: - | AI133: -
A134: JMTK3004A | B134: Trench | C134: TO-252-3L | D134: Active | F134: N | G134: 30 | H134: 100.0 | I134: 1.9 | J134: 2.8 | K134: 3.6 | L134: 4.7 | M134: 6.1 | N134: - | O134: - | P134: ±20 | Q134: 156.0 | R134: 3,089 | S134: 372.0 | T134: 302.0 | U134: 58.0 | V134: No | W134: 2,500 | X134: 5,000 | Y134: 162 | Z134: 1.1 | AA134: 2023-03-29 | AC134: - | AD134: NVD4804N | AE134: - | AF134: - | AG134: - | AH134: - | AI134: -
A135: JMTK3005L | B135: Trench | C135: TO-252-3L | D135: Active | F135: N | G135: 30 | H135: 90.0 | I135: 1.1 | J135: 3.0 | K135: 4.0 | L135: 4.7 | M135: 6.6 | N135: - | O135: - | P135: ±20 | Q135: 81.0 | R135: 1,700 | S135: 320.0 | T135: 300.0 | U135: 45.0 | V135: No | W135: 2,500 | X135: 5,000 | Y135: 135 | Z135: 1.1 | AA135: 2020-06-15 | AC135: IPD040N03L G | AD135: - | AE135: - | AF135: - | AG135: - | AH135: - | AI135: -
A136: JMTQ040N03A | B136: Trench | C136: PDFN3x3-8L | D136: Active | F136: N | G136: 30 | H136: 60.0 | I136: 1.9 | J136: 3.1 | K136: 4.0 | L136: 4.8 | M136: 6.2 | N136: - | O136: - | P136: ±20 | Q136: 121.0 | R136: 3,089 | S136: 372.0 | T136: 302.0 | U136: 58.0 | V136: No | W136: 5,000 | X136: 10,000 | Y136: 180 | Z136: 1.2 | AA136: 2023-03-29 | AC136: IRFHM8326 | AD136: NTTFS4C08N | AE136: - | AF136: AON7502 | AG136: - | AH136: - | AI136: -
A137: JMTI3005A | B137: Trench | C137: TO-251-3L | D137: Active | F137: N | G137: 30 | H137: 90.0 | I137: 1.6 | J137: 3.3 | K137: 4.3 | L137: 6.2 | M137: 8.1 | N137: - | O137: - | P137: ±20 | Q137: 110.0 | R137: 2,260 | S137: 296.0 | T137: 230.0 | U137: 42.0 | V137: No | W137: 4,950 | X137: 4,950 | Y137: 139 | Z137: 1.2 | AA137: 2024-04-10 | AC137: IRLU7843 | AD137: - | AE137: - | AF137: - | AG137: - | AH137: - | AI137: -
A138: JMTK3005A | B138: Trench | C138: TO-252-3L | D138: Active | F138: N | G138: 30 | H138: 100.0 | I138: 1.6 | J138: 3.4 | K138: 4.4 | L138: 5.7 | M138: 7.4 | N138: - | O138: - | P138: ±20 | Q138: 110.0 | R138: 2,260 | S138: 296.0 | T138: 230.0 | U138: 42.0 | V138: No | W138: 2,500 | X138: 5,000 | Y138: 143 | Z138: 1.3 | AA138: 2024-04-10 | AC138: IRLR8256 | AD138: NTD4805N | AE138: - | AF138: AOD516 | AG138: - | AH138: - | AI138: -
A139: JMTJ3404A | B139: Trench | C139: SOT-23-3L | D139: Active | F139: N | G139: 30 | H139: 5.0 | I139: 1.8 | J139: 18.0 | K139: 23.0 | L139: 25.0 | M139: 32.0 | N139: - | O139: - | P139: ±20 | Q139: - | R139: 503 | S139: 70.0 | T139: 55.0 | U139: 11.0 | V139: No | W139: 3,000 | X139: 120,000 | Y139: 198 | Z139: 1.0 | AA139: 2024-07-31 | AC139: - | AD139: - | AE139: - | AF139: - | AG139: - | AH139: - | AI139: -
A140: JMTK3005B | B140: Trench | C140: TO-252-3L | D140: Active | F140: N | G140: 30 | H140: 90.0 | I140: 1.6 | J140: 2.9 | K140: 4.4 | L140: 4.6 | M140: 6.4 | N140: - | O140: - | P140: ±20 | Q140: 96.0 | R140: 2,247 | S140: 264.0 | T140: 220.0 | U140: 45.0 | V140: No | W140: 2,500 | X140: 5,000 | Y140: 131 | Z140: 1.3 | AA140: 2025-04-10 | AC140: - | AD140: - | AE140: - | AF140: - | AG140: - | AH140: - | AI140: -
A141: JMTK3005B-P | B141: Trench | C141: TO-252-3L | D141: Active | F141: N | G141: 30 | H141: 90.0 | I141: 1.6 | J141: 2.9 | K141: 4.4 | L141: 4.6 | M141: 6.4 | N141: - | O141: - | P141: ±20 | Q141: 96.0 | R141: 2,247 | S141: 264.0 | T141: 220.0 | U141: 45.0 | V141: No | W141: 2,500 | X141: 5,000 | Y141: 131 | Z141: 1.0 | AA141: 2025-09-23
A142: JMTQ3005A | B142: Trench | C142: PDFN3x3-8L | D142: Active | F142: N | G142: 30 | H142: 50.0 | I142: 1.6 | J142: 3.7 | K142: 4.8 | L142: 6.4 | M142: 8.3 | N142: - | O142: - | P142: ±20 | Q142: 100.0 | R142: 2,260 | S142: 296.0 | T142: 230.0 | U142: 42.0 | V142: No | W142: 5,000 | X142: 50,000 | Y142: 155 | Z142: 1.5 | AA142: 2024-04-10 | AC142: - | AD142: NTTFS4C08N | AE142: - | AF142: AON7534 | AG142: PxN5R4-30QL | AH142: - | AI142: -
A143: JMTC3005A | B143: Trench | C143: TO-220C-3L | D143: Active | F143: N | G143: 30 | H143: 90.0 | I143: 1.6 | J143: 3.7 | K143: 5.0 | L143: 5.0 | M143: 9.0 | N143: - | O143: - | P143: ±20 | Q143: 103.0 | R143: 2,264 | S143: 302.0 | T143: 246.0 | U143: 44.0 | V143: No | W143: 1,000 | X143: 5,000 | Y143: 163 | Z143: 1.5 | AA143: 2021-05-19 | AC143: IRLB8748 | AD143: - | AE143: - | AF143: - | AG143: PSMN4R3-30PL | AH143: - | AI143: -
A144: JMTG3005A | B144: Trench | C144: PDFN5x6-8L | D144: Active | F144: N | G144: 30 | H144: 60.0 | I144: 1.6 | J144: 3.6 | K144: 4.7 | L144: 6.1 | M144: 7.9 | N144: - | O144: - | P144: ±20 | Q144: 110.0 | R144: 2,260 | S144: 296.0 | T144: 230.0 | U144: 42.0 | V144: No | W144: 5,000 | X144: 10,000 | Y144: =U144*J144 -> 151 | Z144: 1.5 | AA144: 2024-04-10 | AC144: IRFH8330 | AD144: - | AE144: - | AF144: AONS36346 | AG144: - | AH144: - | AI144: -
A145: JMTG3005C | B145: Trench | C145: PDFN5x6-8L | D145: Active | F145: N | G145: 30 | H145: 103.0 | I145: 1.6 | J145: 3.2 | K145: 4.2 | L145: 5.7 | M145: 7.5 | N145: - | O145: - | P145: ±20 | Q145: 85.0 | R145: 2,264 | S145: 302.0 | T145: 246.0 | U145: 44.0 | V145: No | W145: 5,000 | X145: 50,000 | Y145: 141 | Z145: 1.0 | AA145: 2024-07-31 | AC145: - | AD145: - | AE145: - | AF145: - | AG145: - | AH145: - | AI145: -
A146: JMTK3006D | B146: Trench | C146: TO-252-3L | D146: Active | F146: N | G146: 30 | H146: 80 | I146: 1.6 | J146: 3.9 | K146: 5.0 | L146: 6.3 | M146: 8.2 | N146: - | O146: - | P146: ±20 | Q146: 83 | R146: 1929 | S146: 223 | T146: 187 | U146: 38 | V146: No | W146: 2,500 | X146: 5,000 | Y146: 148 | Z146: 1.1 | AA146: 2025-03-03 | AC146: - | AD146: - | AE146: - | AF146: - | AG146: - | AH146: - | AI146: -
A147: JMTK3006E | B147: Trench | C147: TO-252-3L | D147: Active | F147: N | G147: 30 | H147: 61 | I147: 1.4 | J147: 4.3 | K147: 5.6 | L147: 7 | M147: 9.1 | N147: - | O147: - | P147: ±20 | Q147: 71 | R147: 1627 | S147: 189 | T147: 162 | U147: 33 | V147: No | W147: 2,500 | X147: 5,000 | Y147: 142 | Z147: 1.0 | AA147: 2025-02-07 | AC147: - | AD147: - | AE147: - | AF147: - | AG147: - | AH147: - | AI147: -
A148: JMTP045N03A | B148: Trench | C148: SOP-8 | D148: Active | F148: N | G148: 30 | H148: 20.0 | I148: 1.0 | J148: 4.6 | K148: 6.0 | L148: 6.1 | M148: 8.6 | N148: - | O148: - | P148: ±20 | Q148: 100.0 | R148: 1,700 | S148: 320.0 | T148: 300.0 | U148: 45.0 | V148: No | W148: 4,000 | X148: 8,000 | Y148: 207 | Z148: 1.2 | AA148: 2025-02-07 | AC148: IRF7455 | AD148: - | AE148: - | AF148: AO4494 | AG148: - | AH148: - | AI148: -
A149: JMTK3006B | B149: Trench | C149: TO-252-3L | D149: Active | F149: N | G149: 30 | H149: 70.0 | I149: 1.6 | J149: 4.6 | K149: 6.0 | L149: 7.3 | M149: 9.5 | N149: - | O149: - | P149: ±20 | Q149: 81.0 | R149: 1,788 | S149: 225.0 | T149: 180.0 | U149: 34.0 | V149: No | W149: 2,500 | X149: 5,000 | Y149: 156 | Z149: 1.1 | AA149: 2023-03-29 | AC149: IPD50N03S4L-06; IPD060N03LG; IPD050N03LG | AD149: FDD6670A | AE149: - | AF149: AOD514 | AG149: - | AH149: - | AI149: -
A150: JMTQ3006B | B150: Trench | C150: PDFN3x3-8L | D150: Active | F150: N | G150: 30 | H150: 40.0 | I150: 1.6 | J150: 4.7 | K150: 6.1 | L150: 7.4 | M150: 9.6 | N150: - | O150: - | P150: ±20 | Q150: 64.0 | R150: 1,788 | S150: 225.0 | T150: 180.0 | U150: 34.0 | V150: No | W150: 5,000 | X150: 10,000 | Y150: 160 | Z150: 1.3 | AA150: 2023-03-29 | AC150: BSZ060NE2LS; IRFH3702 | AD150: NTTFS4C10N | AE150: - | AF150: AON7380 | AG150: PxN6R7-30QL | AH150: - | AI150: -
A151: JMTK50N03A | B151: Trench | C151: TO-252-3L | D151: Active | F151: N | G151: 30 | H151: 50.0 | I151: 1.8 | J151: 6.6 | K151: 8.6 | L151: 9.9 | M151: 12.9 | N151: - | O151: - | P151: ±20 | Q151: 49.0 | R151: 1,174 | S151: 162.0 | T151: 130.0 | U151: 23.0 | V151: No | W151: 2,500 | X151: 5,000 | Y151: 152 | Z151: 1.0 | AA151: 2023-03-29 | AC151: IRLR8729; IPD50N03S2L-06; IRLR8259; IPD075N03LG | AD151: FDD8880 | AE151: - | AF151: AOD536 | AG151: - | AH151: - | AI151: -
A152: JMTG3008A | B152: Trench | C152: PDFN5x6-8L | D152: Active | F152: N | G152: 30 | H152: 40.0 | I152: 1.8 | J152: 6.6 | K152: 8.6 | L152: 9.6 | M152: 12.5 | N152: - | O152: - | P152: ±20 | Q152: 49.0 | R152: 1,174 | S152: 162.0 | T152: 130.0 | U152: 23.0 | V152: No | W152: 5,000 | X152: 10,000 | Y152: 152 | Z152: 1.2 | AA152: 2023-03-29 | AC152: IRFH8334; IRFH7914 | AD152: - | AE152: - | AF152: AONS32314 | AG152: - | AH152: - | AI152: -
A153: JMTQ3005B-P | B153: Trench | C153: PDFN3x3-8L | D153: Active | F153: N | G153: 30 | H153: 58.0 | I153: 1.6 | J153: 3.6 | K153: 4.7 | L153: 5.1 | M153: 6.7 | N153: - | O153: - | P153: ±20 | Q153: 77.0 | R153: 2,213 | S153: 260.0 | T153: 216.0 | U153: 43.0 | V153: No | W153: 5,000 | X153: 10,000 | Y153: 155 | Z153: 1.0 | AA153: 2025-09-23
A154: JMTQ3005C | B154: Trench | C154: PDFN3x3-8L | D154: Active | F154: N | G154: 30 | H154: 61.0 | I154: 1.6 | J154: 3.3 | K154: 4.4 | L154: 5.4 | M154: 7.1 | N154: - | O154: - | P154: ±20 | Q154: 77.0 | R154: 2,090 | S154: 259.0 | T154: 196.0 | U154: 38.0 | V154: No | W154: 5,000 | X154: 10,000 | Y154: 125 | Z154: 1.0 | AA154: 2024-11-27 | AC154: - | AD154: - | AE154: - | AF154: - | AG154: - | AH154: - | AI154: -
A155: JMTQ3008A | B155: Trench | C155: PDFN3x3-8L | D155: Active | F155: N | G155: 30 | H155: 41.0 | I155: 1.6 | J155: 6.1 | K155: 8.6 | L155: 8.8 | M155: 12.9 | N155: - | O155: - | P155: ±20 | Q155: 40.0 | R155: 1,209 | S155: 170.0 | T155: 137.0 | U155: 24.0 | V155: No | W155: 5,000 | X155: 50,000 | Y155: 146 | Z155: 1.4 | AA155: 2024-08-12 | AC155: - | AD155: NTTFS4C13N | AE155: - | AF155: AON7752 | AG155: PxN8R3-30QL | AH155: - | AI155: -
A156: JMTQ075N03D | B156: Trench | C156: PDFN3x3-8L-D | D156: Active | F156: N+N | G156: 30 | H156: 25.0 | I156: 1.8 | J156: 9.1 | K156: 11.8 | L156: 12.6 | M156: 16.4 | N156: - | O156: - | P156: ±20 | Q156: 36.0 | R156: 1,174 | S156: 162.0 | T156: 130.0 | U156: 23.0 | V156: No | W156: 5,000 | X156: 10,000 | Y156: 209 | Z156: 1.3 | AA156: 2023-03-29 | AC156: - | AD156: NTTFS4C25N | AE156: - | AF156: - | AG156: - | AH156: - | AI156: -
